Workbook

Sheet INDEX
B1: NEWFOUNDLAND AND LABRADOR HYDRO
B2: Cost of Service Model - Index
B4: Worksheet | C4: Schedule | D4: Description
A6: A. | B6: Model Integrity:
B7: RunOptions | D7: Run options and model status
B8: Reconciliation | D8: Reconciles General Ledger amounts to Cost of Service amounts.
B9: Balance | D9: Internal model balancing checks
A11: B. | B11: Cost of Service Schedules:
B12: Revenue Requirement | C12: Sch 1.1, p.1 | D12: Revenue Requirement
B14: Rate Base | C14: Sch 1.1, p.2 | D14: Rate Base
B16: Rev to Cost | C16: Sch 1.2 | D16: Comparison of Revenue and Allocated Revenue Requirement
C17: Sch 1.2.1 | D17: Rural Deficit Allocation
B19: Unit Costs | C19: Sch 1.3 | D19: Unit Demand, Energy and Customer Amounts - all systems. (Calculation of $/kWh and $/bill rates
C20: Sch 1.3.1 | D20: Total Demand, Energy and Customer Amounts - all systems. (Calculation of total $ per rate class)
C21: Sch 1.3.2 | D21: Demands, Sales and Number of Bills - all systems. (Units used to calculate unit rates)
C22: Sch 1.4 | D22: Rate Calculations
C23: Sch 1.5 | D23: Value of Newfoundland Power Thermal Generation Credit
C24: Sch 1.6 | D24: Calculation of firming up charge
C25: Sch 1.7 | D25: Calculation of wheeling charge
B27: IslIntCOS | D27: Island Interconnected System Functionalization, Classification and Allocation schedules
D28: * (Documentation schedules are located to the right of the main schedule)
C29: Sch 2.1A * | D29: Functional Classification of Revenue Requirement
C30: Sch 2.2A * | D30: Functional Classification of Plant in Service for Allocation of O&M Expenses
C31: Sch 2.3A | D31: Functional Classification of Net Book Value
C32: Sch 2.4A * | D32: Functional Classification of Operating and Maintenance Expenses
C33: Sch 2.5A | D33: Functional Classification of Depreciation Expense
C34: Sch 2.6A * | D34: Functional Classification of Rate Base
C35: Sch 3.1A | D35: Basis of Allocation to Classes of Service
C36: Sch 3.2A | D36: Allocation of Functionalized Amounts to Classes of Service
C37: Sch 3.3A | D37: Allocation of Specifically Assigned Amounts to Classes of Service
B39: IslIsoCOS | D39: Island Isolated System Functionalization, Classification and Allocation schedules
D40: * (Documentation schedules are located to the right of the main schedule)
C41: Sch 2.1B * | D41: Functional Classification of Revenue Requirement
C42: Sch 2.2B * | D42: Functional Classification of Plant in Service for Allocation of O&M Expenses
C43: Sch 2.3B | D43: Functional Classification of Net Book Value
C44: Sch 2.4B * | D44: Functional Classification of Operating and Maintenance Expenses
C45: Sch 2.5B | D45: Functional Classification of Depreciation Expense
C46: Sch 2.6B * | D46: Functional Classification of Rate Base
C47: Sch 3.1B | D47: Basis of Allocation to Classes of Service
C48: Sch 3.2B | D48: Allocation of Functionalized Amounts to Classes of Service
B50: LabIsoCOS | D50: Labrador Isolated System Functionalization, Classification and Allocation schedules
D51: * (Documentation schedules are located to the right of the main schedule)
C52: Sch 2.1C * | D52: Functional Classification of Revenue Requirement
C53: Sch 2.2C * | D53: Functional Classification of Plant in Service for Allocation of O&M Expenses
C54: Sch 2.3C | D54: Functional Classification of Net Book Value
C55: Sch 2.4C * | D55: Functional Classification of Operating and Maintenance Expenses
C56: Sch 2.5C | D56: Functional Classification of Depreciation Expense
C57: Sch 2.6C * | D57: Functional Classification of Rate Base
C58: Sch 3.1C | D58: Basis of Allocation to Classes of Service
C59: Sch 3.2C | D59: Allocation of Functionalized Amounts to Classes of Service
B61: LALCOS | D61: L'Anse au Loup System Functionalization, Classification and Allocation schedules
D62: * (Documentation schedules are located to the right of the main schedule)
C63: Sch 2.1D * | D63: Functional Classification of Revenue Requirement
C64: Sch 2.2D * | D64: Functional Classification of Plant in Service for Allocation of O&M Expenses
C65: Sch 2.3D | D65: Functional Classification of Net Book Value
C66: Sch 2.4D * | D66: Functional Classification of Operating and Maintenance Expenses
C67: Sch 2.5D | D67: Functional Classification of Depreciation Expense
C68: Sch 2.6D * | D68: Functional Classification of Rate Base
C69: Sch 3.1D | D69: Basis of Allocation to Classes of Service
C70: Sch 3.2D | D70: Allocation of Functionalized Amounts to Classes of Service
B72: LabIntCOS | D72: Labrador Interconnected System Functionalization, Classification and Allocation schedules
D73: * (Documentation schedules are located to the right of the main schedule)
C74: Sch 2.1E * | D74: Functional Classification of Revenue Requirement
C75: Sch 2.2E * | D75: Functional Classification of Plant in Service for Allocation of O&M Expenses
C76: Sch 2.3E | D76: Functional Classification of Net Book Value
C77: Sch 2.4E * | D77: Functional Classification of Operating and Maintenance Expenses
C78: Sch 2.5E | D78: Functional Classification of Depreciation Expense
C79: Sch 2.6E * | D79: Functional Classification of Rate Base
C80: Sch 3.1E | D80: Basis of Allocation to Classes of Service
C81: Sch 3.2E | D81: Allocation of Functionalized Amounts to Classes of Service
B83: Schedule 4.1 | D83: Functionalization and Classification Ratios
B85: Schedules 4.2,4.3,4.4 | C85: Sch 4.2 | D85: System Load Factors
C86: Sch 4.3 | D86: Holyrood Capacity Factor
C87: Sch 4.4 | D87: Power Purchases - Total System
A89: C. | B89: Backup Schedules
B91: AED | D91: Generation and Transmission Average and Excess Demand Ratios
B92: AllocDep | D92: Reconciles Depreciation input with COS schedules.
B93: AllocMisc | D93: Performs O&M allocations, by function, across systems, based on miscellaneous factors.
B94: AllocNBV | D94: Reconciles NBV input with COS schedules; Performs allocations based on Net Book Value
B95: AllocPlt | D95: Reconciles Orig Cost Plt input with COS schedules; Performs allocations based on Orig Cost Plt
B96: Average Costs | D96: Average Cost per kWh - all systems
B97: Coverage | D97: Calculation of Gross Interest Coverage
B98: Customers | D98: Schedule of customers and weighted customers
B99: DistnDetails | D99: Factors used to split distribution assets
B100: O&M Summary | D100: Summarization of O&M by system
B101: SDEPDetails | D101: Supplemental depreciation details
B102: SNBVDetails | D102: Supplemental net book value details
B103: SpecAssFuel | D103: Schedule of specifically assigned fuel (used in exceptional circumstances).
B104: SPLTDetails | D104: Supplemental original cost plant details
B105: SystemizedPlant | D105: Performs Plant, NBV and depreciation allocations, across systems.
B106: Unit Costs | D106: Calculation of Thermal Demand Costs
B107: FunSum | D107: Functional Summary Report - Interconnected Cost of Service Study
B108: FunDep | D108: Functional Summary Report - Depreciation
B109: FunDisGL | D109: Functional Summary Report - Displsal of Fized Assets
B110: FunExpCr | D110: Functional Summary Report - Expense Credits
B111: FunNBV | D111: Functional Summary Report - Net Book Value
B112: FunOAM | D112: Functional Summary Report - Operating and Maintenance Expenses
B113: FunPlt | D113: Functional Summary Report - Plant in-service
B114: FunRB | D114: Functional Summary Report - Rate Base

Sheet RunOptions
A1: NEWFOUNDLAND AND LABRADOR HYDRO
A2: Cost of Service Model - Run Options
C4: Comments
A6: This File: | B6: =CELL("Filename") -> H:\Regulatory Affairs\Rates Internal\26. GRA\2027\RFI Support\PUB\PUB NLH 101\2027 Filing - Unmitigated\Summary Files (Filing Version)\[COS 27.xlsm]Rev to Cost | C6: Directory and file from which COS is produced.
A7: Linked Files: | B7: H:\Regulatory Affairs\Rates Internal\From Old Rates\COS Runs\COS2019TY\Iterations\NP163 Iteration 1\OAM.2019TY.xlsm | C7: List of linked files is updated before schedules are
B8: H:\Regulatory Affairs\Rates Internal\From Old Rates\COS Runs\COS2019TY\Iterations\NP163 Iteration 1\Other Inputs.xlsx | C8: printed with Ctrl+T. Current links may be viewed
B9: H:\Regulatory Affairs\Rates Internal\From Old Rates\COS Runs\COS2019TY\Iterations\NP163 Iteration 1\Load Loss Model.xlsx | C9: through Edit / Links.
B10: H:\Regulatory Affairs\Rates Internal\From Old Rates\COS Runs\COS2019TY\Iterations\NP163 Iteration 1\Rural Revenue and Load Summary Model.xlsx
B11: H:\Regulatory Affairs\Rates Internal\From Old Rates\COS Runs\COS2019TY\Iterations\NP163 Iteration 1\COSAssetSummary.xlsm
B12: H:\Regulatory Affairs\Rates Internal\From Old Rates\COS Runs\COS2019TY\Iterations\NP163 Iteration 1\Copy of Weighted MC shares.xlsx
A14: Test Year Switch: | B14: 1 | C14: 1 = Test Year; 0 = Fallout Year
A15: Rural Margin Switch | B15: 0 | C15: 1 = Partial ROE/Margin Allocation 0 = Full ROE/Margin Allocation
A16: Lab Int, Iso Systems CP/AED Switch | B16: 1 | C16: 1 = CP (Test Year Proposal - Production demand in Isolated Systems and Lab Interconnected changed from AED to CP); 0 = AED (Original Generic Methodology, other than Island Interconnected, which is board-approved at CP)
A17: ExportTX | B17: 0 | C17: 1 = Yes: Show Export Transmsn; 0 = No, include as Common TX
A18: Revenue Cr Applied to Deficit | B18: 1 | C18: Enter percentage of CFB Goose Bay Revenue Credit to be applied to reduce total Rural Deficit
A19: OAM Overhead Allocation | B19: Expenses | C19: Expenses; or Labour
A20: Run Name: | B20: 2027 Test Year Cost of Service Study (No Rate Mitigation) | C20: Enter Cost of Service run description
A21: # of Hours in Run Year: | B21: =24*365 -> 8760
A22: Define named range for NoOne | B22: 1
A23: Marginal Cost Switch | B23: 0 | C23: (0=Existing method, 1=Marginal Cost, 2=Equivalent Peaker, 3=100% Transmission)
A24: Thermal Production Capacity Factor | B24: 1 | C24: (1=2015 Cos, 2=100% Production demand, 3=marginal energy)
A25: Holyrood Thermal Capacity Factor | B25: 1 | C25: (0 = 5 Year Average, 1 = Current Year capacity factor, 2 = 100% Transmission Demand)
A26: Gas Turbines & Diesel | B26: 1 | C26: (1=2015 Cos, 2=100% demand, 3=marginal energy)
A27: Wind Capacity Factor | B27: 1 | C27: (0=use 100% energy, 1=use wind capacity factor as entered)
A28: Transmission Energy Factor | B28: 1 | C28: (0=use 100% energy, 1=use transmission capacity factor as entered, else use system load factor)
A29: Use Handy Whitman Plant | B29: 0 | C29: Use indexed plant balances to allocate specifically assigned operating and maintenance charges.
A30: Rounding | B30: 1000000
A31: Year | B31: 2027 | C31: Cost of Service Year
A32: NLSO True-up in play | B32: 0 | C32: Include a true-up calculation in the NLSO rate design.
A34: Model Status: | B34: =+Balance!B5 -> Out of Balance
A37: Run Date and Time:
A38: Print Label (Leave blank if not req'd):
A39: PageNo: | B39: 0 | C39: 1 = Yes: Print page numbers; 0 = No, Do not print page numbers
E43: LineNo | F43: Fields | H43: LineNo | I43: Fields
E44: =ROW()-ROW(IISLoadPrms[[#Headers],[LineNo]]) -> 1 | F44: H:\Regulatory Affairs\Rates Internal\6. Cost of Service\3. 2023 GRA\2.Support\2.Whole Sale Model\01.Load | H44: 1 | I44: H:\Regulatory Affairs\Rates Internal\6. Cost of Service\3. 2023 GRA\2.Support\2.Whole Sale Model\01.Load
E45: =ROW()-ROW(IISLoadPrms[[#Headers],[LineNo]]) -> 2 | F45: Operating Load Forecast for the NL Interconnected System - September 2022.xlsx | H45: 2 | I45: Operating Load Forecast for the NL Interconnected System - September 2022.xlsx
E46: =ROW()-ROW(IISLoadPrms[[#Headers],[LineNo]]) -> 3 | F46: RA-IInS | H46: 3 | I46: RA-LInS
E47: =ROW()-ROW(IISLoadPrms[[#Headers],[LineNo]]) -> 4 | F47: 0 | H47: =ROW()-ROW(LabLoadPrms[[#Headers],[LineNo]]) -> 4 | I47: 0
E48: =ROW()-ROW(IISLoadPrms[[#Headers],[LineNo]]) -> 5 | F48: Key | H48: =ROW()-ROW(LabLoadPrms[[#Headers],[LineNo]]) -> 5 | I48: Key
E49: =ROW()-ROW(IISLoadPrms[[#Headers],[LineNo]]) -> 6 | F49: Description | H49: =ROW()-ROW(LabLoadPrms[[#Headers],[LineNo]]) -> 6 | I49: Description
E50: =ROW()-ROW(IISLoadPrms[[#Headers],[LineNo]]) -> 7 | F50: =TEXT(DATE(Year,1,1),"m/d/yyyy") -> 1/1/2027 | H50: =ROW()-ROW(LabLoadPrms[[#Headers],[LineNo]]) -> 7 | I50: =TEXT(DATE(Year,1,1),"m/d/yyyy") -> 1/1/2027
E51: =ROW()-ROW(IISLoadPrms[[#Headers],[LineNo]]) -> 8 | F51: =TEXT(DATE(YEAR(F50),MONTH(F50)+1,1),"m/d/yyyy") -> 2/1/2027 | H51: =ROW()-ROW(LabLoadPrms[[#Headers],[LineNo]]) -> 8 | I51: =TEXT(DATE(YEAR(I50),MONTH(I50)+1,1),"m/d/yyyy") -> 2/1/2027
E52: =ROW()-ROW(IISLoadPrms[[#Headers],[LineNo]]) -> 9 | F52: =TEXT(DATE(YEAR(F51),MONTH(F51)+1,1),"m/d/yyyy") -> 3/1/2027 | H52: =ROW()-ROW(LabLoadPrms[[#Headers],[LineNo]]) -> 9 | I52: =TEXT(DATE(YEAR(I51),MONTH(I51)+1,1),"m/d/yyyy") -> 3/1/2027
E53: =ROW()-ROW(IISLoadPrms[[#Headers],[LineNo]]) -> 10 | F53: 4/1/2027 | H53: =ROW()-ROW(LabLoadPrms[[#Headers],[LineNo]]) -> 10 | I53: 4/1/2027
E54: =ROW()-ROW(IISLoadPrms[[#Headers],[LineNo]]) -> 11 | F54: 5/1/2027 | H54: =ROW()-ROW(LabLoadPrms[[#Headers],[LineNo]]) -> 11 | I54: 5/1/2027
E55: =ROW()-ROW(IISLoadPrms[[#Headers],[LineNo]]) -> 12 | F55: 6/1/2027 | H55: =ROW()-ROW(LabLoadPrms[[#Headers],[LineNo]]) -> 12 | I55: 6/1/2027
E56: =ROW()-ROW(IISLoadPrms[[#Headers],[LineNo]]) -> 13 | F56: 7/1/2027 | H56: =ROW()-ROW(LabLoadPrms[[#Headers],[LineNo]]) -> 13 | I56: 7/1/2027
E57: =ROW()-ROW(IISLoadPrms[[#Headers],[LineNo]]) -> 14 | F57: 8/1/2027 | H57: =ROW()-ROW(LabLoadPrms[[#Headers],[LineNo]]) -> 14 | I57: 8/1/2027
E58: =ROW()-ROW(IISLoadPrms[[#Headers],[LineNo]]) -> 15 | F58: 9/1/2027 | H58: =ROW()-ROW(LabLoadPrms[[#Headers],[LineNo]]) -> 15 | I58: 9/1/2027
E59: =ROW()-ROW(IISLoadPrms[[#Headers],[LineNo]]) -> 16 | F59: 10/1/2027 | H59: =ROW()-ROW(LabLoadPrms[[#Headers],[LineNo]]) -> 16 | I59: 10/1/2027
E60: =ROW()-ROW(IISLoadPrms[[#Headers],[LineNo]]) -> 17 | F60: 11/1/2027 | H60: =ROW()-ROW(LabLoadPrms[[#Headers],[LineNo]]) -> 17 | I60: 11/1/2027
E61: =ROW()-ROW(IISLoadPrms[[#Headers],[LineNo]]) -> 18 | F61: 12/1/2027 | H61: =ROW()-ROW(LabLoadPrms[[#Headers],[LineNo]]) -> 18 | I61: 12/1/2027

Sheet Reconciliation
A2: NEWFOUNDLAND AND LABRADOR HYDRO
A3: =RunName -> 2027 Test Year Cost of Service Study (No Rate Mitigation)
A4: General Ledger to Cost of Service Reconciliations
B6: =MAX(A6)+NoOne -> 1 | C6: 2 | D6: 3 | E6: 4 | F6: 5 | G6: 6 | H6: 7 | I6: 8 | J6: 9 | K6: 10
A7: Line | C7: General | E7: Subtotal | G7: Other COS | I7: Cost of
A8: No. | B8: Description | C8: Ledger | D8: Adjustments (1) | E8: (Fin Rv Rq) | F8: Reclassification | G8: Adjustments (2) | H8: Total | I8: Service | J8: Difference | K8: Notes
C9: ($) | D9: ($) | E9: ($) | F9: ($) | G9: ($) | H9: ($) | I9: ($) | J9: ($)
A11: =MAX(A8:A10)+NoOne -> 1 | B11: Revenues: | C11: ='[3]Reconciliation Inputs'!$B$14 -> 803170874.9 | E11: =SUM(C11:D11) -> 803170874.9 | H11: =SUM(E11:G11) -> 803170874.9
A12: 2 | B12: Expense Credits | E12: 0 | F12: ='Revenue Requirement'!C36 -> -3423632 | H12: =SUM(E12:G12) -> -3423632
A13: 3 | B13: RSP Activity | E13: 0 | F13: =SUM('[3]Reconciliation Inputs'!$B$16:$B$18) -> 0 | H13: 0 | K13: Removed from Fuel Expense, included as revenue
A14: 4 | B14: Forecast RSP Activity - NP Revenues | D14: =+'Rev to Cost'!C47 -> 0 | H14: 0
A15: 5 | B15: Reverse out Hydro Quebec Revenue | D15: =-'[3]Reconciliation Inputs'!$B$3 -> -2085874.7 | E15: -2085874.7 | H15: -2085874.7 | K15: Non-regulated
A16: 6 | B16: Reverse out RSP Rural Rate Alteration | E16: 0 | F16: =-'[3]Reconciliation Inputs'!$B$20 -> 0 | H16: 0 | K16: Removed from Fuel Expense, included as revenue
A17: 7 | B17: Rural Rate Alteration adjustment | H17: =SUM(E17:G17) -> 0
A18: 8 | B18: Reverse year end accrual | G18: ='[3]Reconciliation Inputs'!$B$12 -> 0
A19: 9 | B19: Reverse rebates should be accrued receivable | K19: Removed from revenue, should be receivable/payable
A20: 10 | B20: Rural Rev Diff: Cash flows v. Rate Design | E20: 0 | H20: 0
A21: 11 | B21: Labrador Industrial Revenues | E21: 0 | G21: =IF(TestYrSwitch=1,('Rev to Cost'!D223-'Rev to Cost'!D222),LabIntCos!F476)-'[3]Reconciliation Inputs'!$B$2 -> 42599.89606 | H21: =SUM(E21:G21) -> 42599.89606 | K21: For Fin RvRq, all Labrador Industrial revenues already removed, no adj necessary; whereas the COS deems regulated costs allocated to Labrador Industrial as revenues. | P21: =113820+1304+219390+58674+51656+843 -> 445687
A22: 12 | B22: CIAC | D22: =-'[3]Reconciliation Inputs'!$B$13+'[3]Reconciliation Inputs'!$B$13 -> 0 | E22: 0 | H22: 0 | K22: Remove revenue from contribution in Aid of Construction
A23: 13 | B23: Total Revenues | C23: =SUM(C11:C21) -> 803170874.9 | D23: =SUM(D11:D22) -> -2085874.7 | E23: =SUM(C23:D23) -> 801085000.2 | F23: =SUM(F11:F22) -> -3423632 | G23: =SUM(G11:G22) -> 42599.89606 | H23: =SUM(E23:G23) -> 797703968.1 | I23: ='Rev to Cost'!C40 -> 1299669917 | J23: =I23-H23 -> 501965948.6 | P23: =+P21-568093 -> -122406
B24: Expenses:
A25: =MAX(A22:A24)+NoOne -> 14 | B25: O & M: | C25: ='[3]Reconciliation Inputs'!$B$10 -> 156361556.3
A27: =MAX(A24:A26)+NoOne -> 15 | B27: Labrador Industrial Costs | C27: ='[3]Reconciliation Inputs'!$B$26 -> 0 | G27: =G21 -> 42599.89606 | J27: =C27+G27 -> 42599.89606 | K27: For Fin RvRq, Labrador Industrial allocated expenses are removed; whereas allocated expenses are determined and reported in the COS. Labrador Industrial is out of balance between GL and COS until iterations are complete.
A28: =MAX(A25:A27)+NoOne -> 16 | B28: Labrador Industrial Costs Diff between COS and GL | G28: =-J27 -> -42599.89606
A29: =MAX(A26:A28)+NoOne -> 17 | B29: Excluded | K29: Non-regulated business units, including: Donations, Advertising, Mfalls, etc.
A30: =MAX(A27:A29)+NoOne -> 18 | B30: Total O&M | C30: =SUM(C25:C29) -> 156361556.3 | D30: =SUM(D25:D29) -> 0 | E30: =SUM(C30:D30) -> 156361556.3 | F30: =SUM(F25:F29) -> 0 | G30: =SUM(G25:G29) -> 0 | H30: =SUM(E30:G30) -> 156361556.3 | I30: ='Revenue Requirement'!C12 -> 156361556.3 | J30: =I30-H30 -> 0
A32: =MAX(A29:A31)+NoOne -> 19 | B32: Fuel | C32: ='[3]Reconciliation Inputs'!$B$11 -> 106310902
A33: 20 | B33: RSP GL Adjustment
A34: 21 | B34: RSP Lab Int WO (Test Year Only) | D34: ='[3]Reconciliation Inputs'!$B$19 -> 0 | G34: =IF(TestYrSwitch=1,-VLOOKUP("RSPLINWO",[1]SysFuelPP!$A$1:$IV$65550,[1]SysFuelPP!$D$1,FALSE),0) -> 0
A35: 22 | B35: NLP, IND and Unallocated Hydraulic Activity | F35: =F13 -> 0 | K35: Removed from Fuel Expense, included as revenue
A36: 23 | B36: Rural RSP | F36: =F16 -> 0 | K36: Removed from Fuel Expense, included as revenue
A37: 24 | B37: Unregulated Fuel | D37: =-VLOOKUP("FUELTOTAL",[1]SysFuelPP!$A$1:$IV$65550,[1]SysFuelPP!$J$1,FALSE) -> 0
A38: 25 | B38: Total Fuel | C38: =SUM(C32:C37) -> 106310902 | D38: =SUM(D32:D37) -> 0 | E38: =SUM(C38:D38) -> 106310902 | F38: =SUM(F32:F37) -> 0 | G38: =SUM(G32:G36) -> 0 | H38: =SUM(E38:G38) -> 106310902 | I38: =SUM('Revenue Requirement'!C13:C16) -> 106310900.9 | J38: =I38-H38 -> -1.103668481
A40: =MAX(A37:A39)+NoOne -> 26 | B40: Depreciation | C40: ='[3]Reconciliation Inputs'!$B$9 -> 116568390.8
A41: =MAX(A38:A40)+NoOne -> 27 | B41: CIAC Adjustment | D41: =-'[3]Reconciliation Inputs'!$B$13 -> -2346752 | K41: Finance records CIAC dep'n in dep'n exp with offset in Other revenue, for net nil NI impact. COS excludes CIAC dep'n expense.
A42: =MAX(A39:A41)+NoOne -> 28 | B42: Accretion Adjustment | F42: =[3]Inputs!$B$40 -> 1096908 | K42: Accretion expense recorded in COS as dep'n expense. Recorded as separate line item in Fin Rev Req't.
A43: =MAX(A40:A42)+NoOne -> 29 | B43: Excluded | G43: =AllocDep!D17 -> -396446.26 | K43: Assets not in operation
B44: Holyrood Impairment Inventory Allowance | F44: =AllocDep!D28 -> 0
A45: =MAX(A41:A43)+NoOne -> 30 | B45: Total Depreciation | C45: =SUM(C40:C43) -> 116568390.8 | D45: =SUM(D40:D43) -> -2346752 | E45: =SUM(C45:D45) -> 114221638.8 | F45: =SUM(F40:F44) -> 1096908 | G45: =SUM(G40:G43) -> -396446.26 | H45: =SUM(E45:G45) -> 114922100.5 | I45: ='Revenue Requirement'!C25 -> 114921994.7 | J45: =I45-H45 -> -105.8653729
A47: =MAX(A43:A46)+NoOne -> 31 | B47: Accretion
A48: =MAX(A45:A47)+NoOne -> 32 | B48: Total Accretion Expense | C48: =[3]Inputs!$B$40 -> 1096908 | E48: =SUM(C48:D48) -> 1096908 | F48: =-F42 -> -1096908 | H48: =SUM(E48:G48) -> 0 | I48: 0 | J48: =I48-H48 -> 0 | K48: Accretion expense recorded in COS as dep'n expense. Recorded as separate line item in Fin Rev Req't.
A50: =MAX(A47:A49)+NoOne -> 33 | B50: Expense Credits | E50: =SUM(C50:D50) -> 0 | F50: =+F12 -> -3423632
A51: =MAX(A48:A50)+NoOne -> 34 | B51: Total Expense Credits | C51: =SUM(C50:C50) -> 0 | D51: =SUM(D50:D50) -> 0 | E51: =SUM(C51:D51) -> 0 | F51: =SUM(F50:F50) -> -3423632 | G51: =SUM(G50:G50) -> 0 | H51: =SUM(E51:G51) -> -3423632 | I51: ='Revenue Requirement'!C36 -> -3423632 | J51: =I51-H51 -> 0
A53: =MAX(A50:A52)+NoOne -> 35 | B53: Disposal (Gain)/Loss | C53: =SUM([3]Inputs!$B$27:$B$31) -> 0 | E53: =SUM(C53:D53) -> 0 | H53: =SUM(E53:G53) -> 0 | I53: ='Revenue Requirement'!C39 -> 0 | J53: =I53-H53 -> 0 | K53: Gain/Loss on Disposal recorded as separate line item in Rev Req't and COS.
A55: =MAX(A52:A54)+NoOne -> 36 | B55: Purchased Power | C55: ='[3]Reconciliation Inputs'!$B$8 -> 862730070.7
A56: =MAX(A53:A55)+NoOne -> 37 | B56: Non-regulated | D56: =-VLOOKUP("PPUNREG",[1]SysFuelPP!$A$1:$IV$65550,[1]SysFuelPP!$D$1,FALSE) -> -55633419.43 | K56: Non-regulated
A57: =MAX(A54:A56)+NoOne -> 38 | B57: Total Purchased Power | C57: =SUM(C55:C56) -> 862730070.7 | D57: =SUM(D55:D56) -> -55633419.43 | E57: =SUM(C57:D57) -> 807096651.2 | F57: =SUM(F55:F56) -> 0 | G57: =SUM(G55:G56) -> 0 | H57: =SUM(E57:G57) -> 807096651.2 | I57: =SUM('Revenue Requirement'!C17:C22) -> 807096651.2 | J57: =I57-H57 -> 0
A59: =MAX(A56:A58)+NoOne -> 39 | B59: SUBTOTAL EXPENSES BEFORE RETURN | C59: =SUM(C30,C38,C45,C48,C51:C53,C57) -> 1243067828 | D59: =SUM(D30,D38,D45,D51:D53,D57) -> -57980171.43 | E59: =SUM(E30,E38,E45,E51:E53,E48,E57) -> 1185087656 | F59: =SUM(F30,F38,F45,F51:F53,F57) -> -2326724 | G59: =SUM(G30,G38,G45,G51:G53,G57) -> -396446.26 | H59: =SUM(H30,H38,H45,H51:H53,H57) -> 1181267578 | I59: =SUM(I30,I38,I45,I51:I53,I57) -> 1181267471 | J59: =SUM(J30,J38,J45,J51:J53,J57) -> -106.9690413
A61: =MAX(A58:A60)+NoOne -> 40 | B61: Assets NIS (Depreciation) | D61: =+E61 -> 0.07999998331 | E61: =-AllocDep!D31 -> 0.07999998331 | F61: =+E61 -> 0.07999998331
A63: =MAX(A60:A62)+NoOne -> 41 | B63: Total Return | C63: =+C23-C59 -> -439896952.8 | D63: =+D23-D59+D61 -> 55894296.81 | E63: =+E23-E59-E61 -> -384002656.2 | F63: =+F23-F59 -> -1096908 | G63: =+G23-G59 -> 439046.1561 | H63: =+H23-H59 -> -383563609.9 | I63: =+I23-I59 -> 118402445.7 | J63: =I63-H63 -> 501966055.6
A65: =MAX(A62:A64)+NoOne -> 42 | B65: Interest | C65: ='[3]Reconciliation Inputs'!$B$5 -> 103647440.3 | J65: =I65-H65 -> 0
A66: =MAX(A63:A65)+NoOne -> 43 | B66: Excluded Interest | D66: =-AllocNBV!L39 -> -266545.8105 | K66: Interest on not in service assets
A67: =MAX(A64:A66)+NoOne -> 44 | B67: Recall Revenue & Excess Dividend Impact | D67: ='[3]Reconciliation Inputs'!$B$6 -> 0
A68: =MAX(A65:A67)+NoOne -> 45 | B68: Total Interest | C68: =SUM(C65:C67) -> 103647440.3 | D68: =SUM(D65:D67) -> -266545.8105 | E68: =SUM(C68:D68) -> 103380894.5 | F68: =SUM(F65:F67) -> 0 | G68: =SUM(G65:G67) -> 0 | H68: =SUM(E68:G68) -> 103380894.5
A70: =MAX(A67:A69)+NoOne -> 46 | B70: TOTAL EXPENSES | C70: =SUM(C59,C68) -> 1346715268 | D70: -58246717.24 | E70: 1288468551 | F70: -2326724 | G70: -396446.26 | H70: 1284648473
A72: =MAX(A69:A71)+NoOne -> 47 | B72: NET INCOME | C72: =C23-C70 -> -543544393.1 | D72: =D23-D70 -> 56160842.54 | E72: =SUM(C72:D72) -> -487383550.6 | F72: =F23-F70 -> -1096908 | G72: =G23-G70 -> 439046.1561 | H72: =H23-H70 -> -486944504.4
A73: Notes:
A74: (1) | B74: Adjustments available through GL accounts.
A75: (2) | B75: Adjustments determined by the COS.

Sheet Balance
A1: NEWFOUNDLAND AND LABRADOR HYDRO
A2: =+RunName -> 2027 Test Year Cost of Service Study (No Rate Mitigation)
A3: Cost of Service Balancing Checks
A5: Model is: | B5: =IF(ROUND(E150,0)=0,"Balanced","Out of Balance") -> Out of Balance
G8: Island | H8: Island | I8: Labrador | K8: Labrador
A9: No. | B9: Item | C9: Source | D9: Standard | E9: Difference | F9: Total | G9: Intercnctd | H9: Isolated | I9: Isolated | J9: LAL | K9: Intercnctd
A11: =MAX(A8:A10)+NoOne -> 1 | B11: Plant Original Cost | C11: Individual COS Schedules | F11: =SUM(G11:K11) -> 3910695415 | G11: =+IslIntCos!$F$58 -> 3452409258 | H11: =+IslIsoCos!$F$47 -> 19028154.7 | I11: =+LabIsoCos!$F$47 -> 144564031.7 | J11: =+LALCos!$F$47 -> 41372868.47 | K11: =+LabIntCos!$F$49 -> 253321101.5
C12: Plant Inputs | F12: =+AllocPlt!$E$35 -> 3910695415 | G12: =+AllocPlt!$F$35 -> 3452409258 | H12: =+AllocPlt!$G$35 -> 19028154.7 | I12: =+AllocPlt!$H$35 -> 144564031.7 | J12: =+AllocPlt!$I$35 -> 41372868.47 | K12: =+AllocPlt!$L$35 -> 253321101.5
C13: Difference | D13: 5 | E13: =IF(ABS(SUM(F13:K13))<=D13,"OK",ABS(SUM(F13:K13))) -> OK | F13: =+F11-F12 -> 0 | G13: 0 | H13: 0 | I13: 0 | J13: 0 | K13: 0
A15: =MAX(A11:A14)+NoOne -> 2 | B15: Plant Net Book Value | C15: Individual COS Schedules | F15: =SUM(G15:K15) -> 2404120916 | G15: =+IslIntCos!$F$116 -> 2102740030 | H15: =+IslIsoCos!$F$96 -> 21518581.06 | I15: =+LabIsoCos!$F$96 -> 95513749.5 | J15: =+LALCos!$F$96 -> 24686846.38 | K15: =+LabIntCos!$F$99 -> 159661709.2 | L15: =F15-SUM(G15:K15) -> 0
C16: Plant Inputs | F16: =+AllocNBV!$D$27 -> 2404120916 | G16: =+AllocNBV!$E$27 -> 2102740030 | H16: =+AllocNBV!$F$27 -> 21518581.06 | I16: =+AllocNBV!$G$27 -> 95513749.5 | J16: =+AllocNBV!$H$27 -> 24686846.38 | K16: =+AllocNBV!$K$27 -> 159661709.1 | L16: =F16-SUM(G16:K16) -> 0
C17: Difference | D17: 5 | E17: =IF(ABS(SUM(F17:K17))<=D17,"OK",ABS(SUM(F17:K17))) -> OK | F17: =+F15-F16 -> 0.2300004959 | G17: =+G15-G16 -> 0.120000124 | H17: 0 | I17: 0 | J17: 0 | K17: 0.1099999845
A19: =MAX(A15:A18)+NoOne -> 3 | B19: Plant Depreciation | C19: Individual COS Schedules | F19: =SUM(G19:K19) -> 114921994.7 | G19: =+IslIntCos!$F$176 -> 100512134.6 | H19: =+IslIsoCos!$F$146 -> 1117416.687 | I19: =+LabIsoCos!$F$146 -> 5466481.449 | J19: =+LALCos!$F$146 -> 1420232.453 | K19: =+LabIntCos!$F$149 -> 6405729.441
C20: Plant Inputs | F20: =+AllocDep!$D$29 -> 114921994.6 | G20: =+AllocDep!$E$29 -> 100512135.1 | H20: =+AllocDep!$F$29 -> 1117416.687 | I20: =+AllocDep!$G$29 -> 5466481.449 | J20: =+AllocDep!$H$29 -> 1420232.453 | K20: =+AllocDep!$K$29 -> 6405729.241
C21: Difference | D21: 5 | E21: =IF(ABS(SUM(F21:K21))<=D21,"OK",ABS(SUM(F21:K21))) -> OK | F21: =+F19-F20 -> 0.07999999821 | G21: =+G19-G20 -> -0.4799999744 | H21: 0 | I21: =+I19-I20 -> 0 | J21: 0 | K21: 0.2000000011
A23: =MAX(A19:A22)+NoOne -> 4 | B23: Production Demand | C23: Individual COS Schedules | G23: =+IslIntCos!$G$363 -> 1644377.672 | H23: =+IslIsoCos!$G$320 -> 1809.394846 | I23: =+LabIsoCos!$G$319 -> 9688.450501 | J23: =+LALCos!$G$315 -> 6105.183615 | K23: =+LabIntCos!$G$324 -> 480168.872
C24: Load Inputs | G24: =SUMPRODUCT(--('[2]Summary of Factors'!$A$1:$A$63981=G$26),'[2]Summary of Factors'!$J$1:$J$63981) -> 1644377.672 | H24: =SUMPRODUCT(--('[2]Summary of Factors'!$A$1:$A$63981=H$26),'[2]Summary of Factors'!$J$1:$J$63981) -> 1809.394846 | I24: =SUMPRODUCT(--('[2]Summary of Factors'!$A$1:$A$63981=I$26),'[2]Summary of Factors'!$J$1:$J$63981) -> 9688.450501 | J24: =SUMPRODUCT(--('[2]Summary of Factors'!$A$1:$A$63981=J$26),'[2]Summary of Factors'!$J$1:$J$63981) -> 6105.183615 | K24: =SUMPRODUCT(--('[2]Summary of Factors'!$A$1:$A$63981=K$26),'[2]Summary of Factors'!$J$1:$J$63981) -> 480168.872
C25: Difference | D25: 1 | E25: =IF(ABS(SUM(F25:K25))<=D25,"OK",ABS(SUM(F25:K25))) -> OK | G25: =+G23-G24 -> 0 | H25: =+H23-H24 -> 0 | I25: =+I23-I24 -> 0 | J25: =+J23-J24 -> 0 | K25: =+K23-K24 -> 0
G26: INTTOT | H26: ISLISOTOT | I26: LABISOTOT | J26: LALTOT | K26: LINTTOT
A27: =MAX(A23:A26)+NoOne -> 5 | B27: Prod/Trans Energy | C27: Individual COS Schedules | G27: =+IslIntCos!$H$363 -> 7416874.478 | H27: =+IslIsoCos!$H$320 -> 6022.345746 | I27: =+LabIsoCos!$H$319 -> 46088.56896 | J27: =+LALCos!$H$315 -> 27046.92493 | K27: =+LabIntCos!$H$324 -> 2810078.543
C28: Load Inputs | G28: =SUMPRODUCT(--('[2]Summary of Factors'!$A$1:$A$63981=G$26),'[2]Summary of Factors'!$H$1:$H$63981) -> 7416874.478 | H28: =SUMPRODUCT(--('[2]Summary of Factors'!$A$1:$A$63981=H$26),'[2]Summary of Factors'!$H$1:$H$63981) -> 6022.345746 | I28: =SUMPRODUCT(--('[2]Summary of Factors'!$A$1:$A$63981=I$26),'[2]Summary of Factors'!$H$1:$H$63981) -> 46088.56896 | J28: =SUMPRODUCT(--('[2]Summary of Factors'!$A$1:$A$63981=J$26),'[2]Summary of Factors'!$H$1:$H$63981) -> 27046.92493 | K28: =SUMPRODUCT(--('[2]Summary of Factors'!$A$1:$A$63981=K$26),'[2]Summary of Factors'!$H$1:$H$63981) -> 2810078.543
C29: Difference | D29: 1 | E29: =IF(ABS(SUM(F29:K29))<=D29,"OK",ABS(SUM(F29:K29))) -> OK | G29: =+G27-G28 -> 0 | H29: =+H27-H28 -> 0 | I29: =+I27-I28 -> 0 | J29: =+J27-J28 -> 0 | K29: =+K27-K28 -> 0
A31: =MAX(A27:A30)+NoOne -> 6 | B31: Customers | C31: Individual COS Schedules | G31: =+IslIntCos!$M$363 -> 24398 | H31: =+IslIsoCos!$L$320 -> 666.1481481 | I31: =+LabIsoCos!$L$319 -> 2978.892593 | J31: =+LALCos!$L$315 -> 1132.571429 | K31: =+LabIntCos!$L$324 -> 12173.0165
C32: Load Inputs | G32: =SUMPRODUCT(--('[2]Summary of Factors'!$A$1:$A$63981=G$42),'[2]Summary of Factors'!$D$1:$D$63981) -> 24398 | H32: =SUMPRODUCT(--('[2]Summary of Factors'!$A$1:$A$63981=H$26),'[2]Summary of Factors'!$D$1:$D$63981) -> 666.1481481 | I32: =SUMPRODUCT(--('[2]Summary of Factors'!$A$1:$A$63981=I$26),'[2]Summary of Factors'!$D$1:$D$63981) -> 2978.892593 | J32: =SUMPRODUCT(--('[2]Summary of Factors'!$A$1:$A$63981=J$26),'[2]Summary of Factors'!$D$1:$D$63981) -> 1132.571429 | K32: =SUMPRODUCT(--('[2]Summary of Factors'!$A$1:$A$63981=K$26),'[2]Summary of Factors'!$D$1:$D$63981) -> 12173.0165
C33: Difference | D33: 1 | E33: =IF(ABS(SUM(F33:K33))<=D33,"OK",ABS(SUM(F33:K33))) -> OK | G33: =+G31-G32 -> 0 | H33: =+H31-H32 -> 0 | I33: =+I31-I32 -> 0 | J33: =+J31-J32 -> 0 | K33: =+K31-K32 -> 0
A35: =MAX(A31:A34)+NoOne -> 7 | B35: Transmission Demand | C35: Individual COS Schedules | G35: =IslIntCos!$I$363 -> 1613309.114 | H35: =+IslIsoCos!$I$320 -> 1809.394846 | I35: =+LabIsoCos!$I$319 -> 9688.450501 | J35: =+LALCos!$I$315 -> 6105.183615 | K35: =+LabIntCos!$I$324 -> 451962.3321
C36: Load Inputs | G36: =SUMPRODUCT(--('[2]Summary of Factors'!$A$1:$A$63981=G$26),'[2]Summary of Factors'!$K$1:$K$63981) -> 1613309.114 | H36: =SUMPRODUCT(--('[2]Summary of Factors'!$A$1:$A$63981=H$26),'[2]Summary of Factors'!$K$1:$K$63981) -> 1809.394846 | I36: =SUMPRODUCT(--('[2]Summary of Factors'!$A$1:$A$63981=I$26),'[2]Summary of Factors'!$K$1:$K$63981) -> 9688.450501 | J36: =SUMPRODUCT(--('[2]Summary of Factors'!$A$1:$A$63981=J$26),'[2]Summary of Factors'!$K$1:$K$63981) -> 6105.183615 | K36: =SUMPRODUCT(--('[2]Summary of Factors'!$A$1:$A$63981=K$26),'[2]Summary of Factors'!$K$1:$K$63981) -> 451962.3321
C37: Difference | D37: 1 | E37: =IF(ABS(SUM(F37:K37))<=D37,"OK",ABS(SUM(F37:K37))) -> OK | G37: =+G35-G36 -> 0 | H37: =+H35-H36 -> 0 | I37: =+I35-I36 -> 0 | J37: =+J35-J36 -> 0 | K37: =+K35-K36 -> 0
A39: =MAX(A35:A38)+NoOne -> 8 | B39: Rural Trans Demand | C39: Individual COS Schedules | G39: =+IslIntCos!$J$363 -> 98953.30302
C40: Load Inputs | G40: =SUMPRODUCT(--('[2]Summary of Factors'!$A$1:$A$63981=G$42),'[2]Summary of Factors'!$K$1:$K$63981) -> 98953.30302
C41: Difference | D41: 1 | E41: =IF(ABS(SUM(F41:K41))<=D41,"OK",ABS(SUM(F41:K41))) -> OK | G41: =+G39-G40 -> 0
G42: INTRRL
A43: =MAX(A39:A42)+NoOne -> 9 | B43: Substn Demand | C43: Individual COS Schedules | G43: =+IslIntCos!$K$363 -> 91651.32076 | H43: =+IslIsoCos!$J$320 -> 1730.399821 | I43: =+LabIsoCos!$J$319 -> 9423.423617 | J43: =+LALCos!$J$315 -> 5777.772431 | K43: =+LabIntCos!$J$324 -> 148156.7278
C44: Load Inputs | G44: =SUMPRODUCT(--('[2]Summary of Factors'!$A$1:$A$63981=G$26),'[2]Summary of Factors'!$L$1:$L$63981) -> 91651.32076 | H44: =SUMPRODUCT(--('[2]Summary of Factors'!$A$1:$A$63981=H$26),'[2]Summary of Factors'!$L$1:$L$63981) -> 1730.399821 | I44: =SUMPRODUCT(--('[2]Summary of Factors'!$A$1:$A$63981=I$26),'[2]Summary of Factors'!$L$1:$L$63981) -> 9423.423617 | J44: =SUMPRODUCT(--('[2]Summary of Factors'!$A$1:$A$63981=J$26),'[2]Summary of Factors'!$L$1:$L$63981) -> 5777.772431 | K44: =SUMPRODUCT(--('[2]Summary of Factors'!$A$1:$A$63981=K$26),'[2]Summary of Factors'!$L$1:$L$63981) -> 148156.7278
C45: Difference | D45: 1 | E45: =IF(ABS(SUM(F45:K45))<=D45,"OK",ABS(SUM(F45:K45))) -> OK | G45: =+G43-G44 -> 0 | H45: =+H43-H44 -> 0 | I45: =+I43-I44 -> 0 | J45: =+J43-J44 -> 0 | K45: =+K43-K44 -> 0
A47: =MAX(A43:A46)+NoOne -> 10 | B47: Primary Demand | C47: Individual COS Schedules | G47: =+IslIntCos!$L$363 -> 91651.32076 | H47: =+IslIsoCos!$K$320 -> 1730.399821 | I47: =+LabIsoCos!$K$319 -> 9423.423617 | J47: =+LALCos!$K$315 -> 5777.772431 | K47: =+LabIntCos!$K$324 -> 148156.7278
C48: Load Inputs | G48: =SUMPRODUCT(--('[2]Summary of Factors'!$A$1:$A$63981=G$26),'[2]Summary of Factors'!$L$1:$L$63981) -> 91651.32076 | H48: =SUMPRODUCT(--('[2]Summary of Factors'!$A$1:$A$63981=H$26),'[2]Summary of Factors'!$L$1:$L$63981) -> 1730.399821 | I48: =SUMPRODUCT(--('[2]Summary of Factors'!$A$1:$A$63981=I$26),'[2]Summary of Factors'!$L$1:$L$63981) -> 9423.423617 | J48: =SUMPRODUCT(--('[2]Summary of Factors'!$A$1:$A$63981=J$26),'[2]Summary of Factors'!$L$1:$L$63981) -> 5777.772431 | K48: =SUMPRODUCT(--('[2]Summary of Factors'!$A$1:$A$63981=K$26),'[2]Summary of Factors'!$L$1:$L$63981) -> 148156.7278
C49: Difference | D49: 1 | E49: =IF(ABS(SUM(F49:K49))<=D49,"OK",ABS(SUM(F49:K49))) -> OK | G49: =+G47-G48 -> 0 | H49: =+H47-H48 -> 0 | I49: =+I47-I48 -> 0 | J49: =+J47-J48 -> 0 | K49: =+K47-K48 -> 0
A51: =MAX(A47:A50)+NoOne -> 11 | B51: Transformer Demand | C51: Individual COS Schedules | G51: =+IslIntCos!$N$363 -> 77802.85929 | H51: =+IslIsoCos!$M$320 -> 1612.358823 | I51: =+LabIsoCos!$M$319 -> 9020.646911 | J51: =+LALCos!$M$315 -> 5293.627667 | K51: =+LabIntCos!$M$324 -> 120805.2609
C52: Load Inputs | G52: =SUMPRODUCT(--('[2]Summary of Factors'!$A$1:$A$63981=G$26),'[2]Summary of Factors'!$M$1:$M$63981) -> 77802.85929 | H52: =SUMPRODUCT(--('[2]Summary of Factors'!$A$1:$A$63981=H$26),'[2]Summary of Factors'!$M$1:$M$63981) -> 1612.358823 | I52: =SUMPRODUCT(--('[2]Summary of Factors'!$A$1:$A$63981=I$26),'[2]Summary of Factors'!$M$1:$M$63981) -> 9020.646911 | J52: =SUMPRODUCT(--('[2]Summary of Factors'!$A$1:$A$63981=J$26),'[2]Summary of Factors'!$M$1:$M$63981) -> 5293.627667 | K52: =SUMPRODUCT(--('[2]Summary of Factors'!$A$1:$A$63981=K$26),'[2]Summary of Factors'!$M$1:$M$63981) -> 120805.2609
C53: Difference | D53: 1 | E53: =IF(ABS(SUM(F53:K53))<=D53,"OK",ABS(SUM(F53:K53))) -> OK | G53: =+G51-G52 -> 0 | H53: =+H51-H52 -> 0 | I53: =+I51-I52 -> 0 | J53: =+J51-J52 -> 0 | K53: =+K51-K52 -> 0
A55: =MAX(A51:A54)+NoOne -> 12 | B55: Secondary Demand | C55: Individual COS Schedules | G55: =+IslIntCos!$P$363 -> 77802.85929 | H55: =+IslIsoCos!$O$320 -> 1612.358823 | I55: =+LabIsoCos!$O$319 -> 9020.646911 | J55: =+LALCos!$O$315 -> 5293.627667 | K55: =+LabIntCos!$O$324 -> 120805.2609
C56: Load Inputs | G56: =SUMPRODUCT(--('[2]Summary of Factors'!$A$1:$A$63981=G$26),'[2]Summary of Factors'!$M$1:$M$63981) -> 77802.85929 | H56: =SUMPRODUCT(--('[2]Summary of Factors'!$A$1:$A$63981=H$26),'[2]Summary of Factors'!$M$1:$M$63981) -> 1612.358823 | I56: =SUMPRODUCT(--('[2]Summary of Factors'!$A$1:$A$63981=I$26),'[2]Summary of Factors'!$M$1:$M$63981) -> 9020.646911 | J56: =SUMPRODUCT(--('[2]Summary of Factors'!$A$1:$A$63981=J$26),'[2]Summary of Factors'!$M$1:$M$63981) -> 5293.627667 | K56: =SUMPRODUCT(--('[2]Summary of Factors'!$A$1:$A$63981=K$26),'[2]Summary of Factors'!$M$1:$M$63981) -> 120805.2609
C57: Difference | D57: 1 | E57: =IF(ABS(SUM(F57:K57))<=D57,"OK",ABS(SUM(F57:K57))) -> OK | G57: =+G55-G56 -> 0 | H57: =+H55-H56 -> 0 | I57: =+I55-I56 -> 0 | J57: =+J55-J56 -> 0 | K57: =+K55-K56 -> 0
A59: =MAX(A55:A58)+NoOne -> 13 | B59: Rural Revenues | C59: Rev to Cost schedule | G59: =+'Rev to Cost'!C87 -> 68909057.95 | H59: =+'Rev to Cost'!C128 -> 1717948.94 | I59: =+'Rev to Cost'!C166 -> 11969343.18 | J59: =+'Rev to Cost'!C198 -> 4077136.507 | K59: =+'Rev to Cost'!C236 -> 21931248.04
C60: Rural Revenue Adjustments
C61: Load Inputs | G61: =SUMPRODUCT(--('[4]Rev COS Output'!$A:$A=M61),'[4]Rev COS Output'!$D:$D) -> 68909057.95 | H61: =SUMPRODUCT(--('[4]Rev COS Output'!$A:$A=N61),'[4]Rev COS Output'!$D:$D) -> 1717948.94 | I61: =SUMPRODUCT(--('[4]Rev COS Output'!$A:$A=O61),'[4]Rev COS Output'!$D:$D) -> 11969343.18 | J61: =SUMPRODUCT(--('[4]Rev COS Output'!$A:$A=P61),'[4]Rev COS Output'!$D:$D) -> 4077136.507 | K61: =SUMPRODUCT(--('[4]Rev COS Output'!$A:$A=Q61),'[4]Rev COS Output'!$D:$D) -> 21931248.04 | M61: INTRRL | N61: ISLISOTOT | O61: LABISOTOT | P61: LALTOT | Q61: LEINTTOT
C62: Difference | D62: 1 | E62: =IF(ABS(SUM(F62:K62))<=D62,"OK",ABS(SUM(F62:K62))) -> OK | G62: =+G59-G61-G60 -> 0 | H62: =+H59-H61-H60 -> 0 | I62: =+I59-I61-I60 -> 0 | J62: =+J59-J61-J60 -> 0 | K62: =+K59-K61-K60 -> 0
A64: =MAX(A59:A63)+NoOne -> 14 | B64: Rural Revenues | C64: Average Cost schedule | G64: =+'Average Costs'!G53 -> 68909057.95 | H64: =+'Average Costs'!G90 -> 1717948.94 | I64: =+'Average Costs'!G103 -> 11969343.18 | J64: =+'Average Costs'!G122 -> 4077136.507 | K64: =+'Average Costs'!G138 -> 21931248.04
C65: Rural Revenue Adjustments
C66: Load Inputs | G66: =SUMPRODUCT(--('[4]Rev COS Output'!$A:$A=M66),'[4]Rev COS Output'!$D:$D) -> 68909057.95 | H66: =SUMPRODUCT(--('[4]Rev COS Output'!$A:$A=N66),'[4]Rev COS Output'!$D:$D) -> 1717948.94 | I66: =SUMPRODUCT(--('[4]Rev COS Output'!$A:$A=O66),'[4]Rev COS Output'!$D:$D) -> 11969343.18 | J66: =SUMPRODUCT(--('[4]Rev COS Output'!$A:$A=P66),'[4]Rev COS Output'!$D:$D) -> 4077136.507 | K66: =SUMPRODUCT(--('[4]Rev COS Output'!$A:$A=Q66),'[4]Rev COS Output'!$D:$D) -> 21931248.04 | M66: INTRRL | N66: ISLISOTOT | O66: LABISOTOT | P66: LALTOT | Q66: LEINTTOT
C67: Difference | D67: 1 | E67: =IF(ABS(SUM(F67:K67))<=D67,"OK",ABS(SUM(F67:K67))) -> OK | G67: =+G64-G66-G65 -> 0 | H67: =+H64-H66-H65 -> 0 | I67: =+I64-I66-I65 -> 0 | J67: =+J64-J66-J65 -> 0 | K67: =+K64-K66-K65 -> 0
A69: =MAX(A64:A68)+NoOne -> 15 | B69: Sales (MWh) | C69: Unit Cost schedule | G69: =+'Unit Costs'!$AB$31 -> 7053473.16 | H69: =+'Unit Costs'!$AB$72 -> 5712.45 | I69: =+'Unit Costs'!$AB$81 -> 44145.82917 | J69: =+'Unit Costs'!$AB$107 -> 24962.94 | K69: =+'Unit Costs'!$AB$128 -> 2604535.013
C70: Load Inputs | G70: =SUMPRODUCT(--('[2]Summary of Factors'!$A$1:$A$63981=G$26),'[2]Summary of Factors'!$C$1:$C$63981) -> 7053473.16 | H70: =SUMPRODUCT(--('[2]Summary of Factors'!$A$1:$A$63981=H$26),'[2]Summary of Factors'!$C$1:$C$63981) -> 5712.45 | I70: =SUMPRODUCT(--('[2]Summary of Factors'!$A$1:$A$63981=I$26),'[2]Summary of Factors'!$C$1:$C$63981) -> 44145.82917 | J70: =SUMPRODUCT(--('[2]Summary of Factors'!$A$1:$A$63981=J$26),'[2]Summary of Factors'!$C$1:$C$63981) -> 24962.94 | K70: =SUMPRODUCT(--('[2]Summary of Factors'!$A$1:$A$63981=K$26),'[2]Summary of Factors'!$C$1:$C$63981) -> 2604535.013
C71: Difference | D71: 1 | E71: =IF(ABS(SUM(F71:K71))<=D71,"OK",ABS(SUM(F71:K71))) -> OK | G71: =+G69-G70 -> 0 | H71: =+H69-H70 -> 0 | I71: =+I69-I70 -> 0 | J71: =+J69-J70 -> 0 | K71: =+K69-K70 -> 0
A73: =MAX(A68:A72)+NoOne -> 16 | B73: Sales (MWh) | C73: Average Cost schedule | G73: =+'Average Costs'!$F$55 -> 7053473.16 | H73: =+'Average Costs'!$F$90 -> 5712.45 | I73: =+'Average Costs'!$F$103 -> 44145.82917 | J73: =+'Average Costs'!$F$122 -> 24962.94 | K73: =+'Average Costs'!$F$140 -> 2604535.013
C74: Load Inputs | G74: =SUMPRODUCT(--('[2]Summary of Factors'!$A$1:$A$63981=G$26),'[2]Summary of Factors'!$C$1:$C$63981) -> 7053473.16 | H74: =SUMPRODUCT(--('[2]Summary of Factors'!$A$1:$A$63981=H$26),'[2]Summary of Factors'!$C$1:$C$63981) -> 5712.45 | I74: =SUMPRODUCT(--('[2]Summary of Factors'!$A$1:$A$63981=I$26),'[2]Summary of Factors'!$C$1:$C$63981) -> 44145.82917 | J74: =SUMPRODUCT(--('[2]Summary of Factors'!$A$1:$A$63981=J$26),'[2]Summary of Factors'!$C$1:$C$63981) -> 24962.94 | K74: =SUMPRODUCT(--('[2]Summary of Factors'!$A$1:$A$63981=K$26),'[2]Summary of Factors'!$C$1:$C$63981) -> 2604535.013
C75: Difference | D75: 1 | E75: =IF(ABS(SUM(F75:K75))<=D75,"OK",ABS(SUM(F75:K75))) -> OK | G75: =+G73-G74 -> 0 | H75: =+H73-H74 -> 0 | I75: =+I73-I74 -> 0 | J75: =+J73-J74 -> 0 | K75: =+K73-K74 -> 0
A77: =MAX(A72:A76)+NoOne -> 17 | B77: Cross-Footing | C77: Individual COS Schedules | D77: 1 | E77: =IF(ABS(SUM(F77:K77))<=D77,"OK",ABS(SUM(F77:K77))) -> OK | G77: =+IslIntCos!$A$13 -> 0 | H77: =+IslIsoCos!$A$14 -> 0 | I77: =+LabIsoCos!$A$14 -> 0 | J77: =+LALCos!$A$14 -> 0 | K77: =+LabIntCos!$A$15 -> 0
A78: =MAX(A73:A77)+NoOne -> 18 | B78: Cross-Footing | C78: Rate Base Schedule | D78: 1 | E78: =IF(ABS(SUM(F78:K78))<=D78,"OK",ABS(SUM(F78:K78))) -> OK | F78: =+'Rate Base'!$A$12 -> 0
A79: =MAX(A74:A78)+NoOne -> 19 | B79: Cross-Footing | C79: O&M Summary | D79: 1 | E79: =IF(ABS(SUM(F79:K79))<=D79,"OK",ABS(SUM(F79:K79))) -> OK | F79: =+'O&M Summary'!A7 -> 0
A81: =MAX(A76:A80)+NoOne -> 20 | B81: COS, Before Def/RevCr | C81: Revenue Requirement schedule | F81: =+'Revenue Requirement'!$C$45 -> 1299672108 | G81: =+'Revenue Requirement'!$D$45 -> 1206131974 | H81: =+'Revenue Requirement'!$E$45 -> 10404666.6 | I81: =+'Revenue Requirement'!$F$45 -> 44165751.54 | J81: =+'Revenue Requirement'!$G$45 -> 9758495.865 | K81: =+'Revenue Requirement'!$H$45 -> 29211219.8
C82: Individual COS Schedules | F82: =SUM(G82:K82) -> 1299672108 | G82: =+IslIntCos!$F$322 -> 1206131974 | H82: =+IslIsoCos!$F$282 -> 10404666.6 | I82: =+LabIsoCos!$F$281 -> 44165751.54 | J82: =+LALCos!$F$281 -> 9758495.865 | K82: =+LabIntCos!$F$287 -> 29211219.8
C83: Difference | D83: 1 | E83: =IF(ABS(SUM(F83:K83))<=D83,"OK",ABS(SUM(F83:K83))) -> OK | F83: =+F81-F82 -> 0 | G83: 0 | H83: 0 | I83: 0 | J83: 0 | K83: 0
A85: =MAX(A80:A84)+NoOne -> 21 | B85: COS, Before Def/RevCr | C85: Rev to Cost schedule, by Customer | F85: =+'Rev to Cost'!$D$40 -> 1299671580 | G85: =+'Rev to Cost'!$D$88 -> 1206131974 | H85: =+'Rev to Cost'!$D$128 -> 10404401.51 | I85: =+'Rev to Cost'!$D$166 -> 44165488.19 | J85: =+'Rev to Cost'!$D$198 -> 9758495.865 | K85: =+'Rev to Cost'!$D$237 -> 29211219.8
C86: Individual COS Schedules, by System | F86: =SUM(G86:K86) -> 1299672108 | G86: =+IslIntCos!$F$322 -> 1206131974 | H86: =+IslIsoCos!$F$282 -> 10404666.6 | I86: =+LabIsoCos!$F$281 -> 44165751.54 | J86: =+LALCos!$F$281 -> 9758495.865 | K86: =+LabIntCos!$F$287 -> 29211219.8
C87: Difference | D87: 15 | E87: =IF(ABS(SUM(F87:K87))<=D87,"OK",ABS(SUM(F87:K87))) -> 1056.885344 | F87: =+F85-F86 -> -528.4426723 | G87: 0 | H87: -265.0946225 | I87: -263.3480495 | J87: 0 | K87: 0
A89: =MAX(A84:A88)+NoOne -> 22 | B89: COS, Before Def/RevCr | C89: Rev Reqmt, Individual COS Schedules | F89: =SUM(G89:K89) -> 1299672108 | G89: =+IslIntCos!$F$322 -> 1206131974 | H89: =+IslIsoCos!$F$282 -> 10404666.6 | I89: =+LabIsoCos!$F$281 -> 44165751.54 | J89: =+LALCos!$F$281 -> 9758495.865 | K89: =+LabIntCos!$F$287 -> 29211219.8
C90: Allocated COS, Individual COS Sch 3.2 | F90: =SUM(G90:K90) -> 1299672031 | G90: =+IslIntCos!$F$469 -> 1206131974 | H90: =+IslIsoCos!$F$403 -> 10404589.37 | I90: =+LabIsoCos!$F$404 -> 44165751.54 | J90: =+LALCos!F383 -> 9758495.865 | K90: =+LabIntCos!F436 -> 29211219.8
C91: Difference | D91: 5 | E91: =IF(ABS(SUM(F91:K91))<=D91,"OK",ABS(SUM(F91:K91))) -> 154.4575413 | F91: =+F89-F90 -> 77.22877073 | G91: 0 | H91: 77.22877053 | I91: 0 | J91: 0 | K91: 0
A93: =MAX(A88:A92)+NoOne -> 23 | B93: Rev to Cost schedule | C93: COS, Before Def/RevCr | F93: =+'Rev to Cost'!$D$40 -> 1299671580
C94: COS, After Def/RevCr | F94: =+'Rev to Cost'!$H$40 -> 1299671580
D95: 1 | E95: =IF(ABS(SUM(F95:K95))<=D95,"OK",ABS(SUM(F95:K95))) -> OK | F95: =+F93-F94 -> 0
A97: =MAX(A92:A96)+NoOne -> 24 | B97: COS, After Def/RevCr | C97: Rev to Cost schedule | F97: =+'Rev to Cost'!$H$40 -> 1299671580
C98: Average Cost | F98: =+'Average Costs'!$M$26 -> 1299671580
C99: Difference | D99: 1 | E99: =IF(ABS(SUM(F99:K99))<=D99,"OK",ABS(SUM(F99:K99))) -> OK | F99: =+F97-F98 -> 0
A101: =MAX(A96:A100)+NoOne -> 25 | B101: COS, Before Def/RevCr | C101: Rev to Cost schedule | F101: =+'Rev to Cost'!$D$40 -> 1299671580 | G101: =+'Rev to Cost'!$D$88 -> 1206131974 | H101: =+'Rev to Cost'!$D$128 -> 10404401.51 | I101: =+'Rev to Cost'!$D$166 -> 44165488.19 | J101: =+'Rev to Cost'!$D$198 -> 9758495.865 | K101: =+'Rev to Cost'!$D$237 -> 29211219.8
C102: Unit Cost schedule | F102: =SUM(G102:K102) -> 1299671580 | G102: =+'Unit Costs'!$P$31 -> 1206131974 | H102: =+'Unit Costs'!$P$72 -> 10404401.51 | I102: =+'Unit Costs'!$P$81 -> 44165488.19 | J102: =+'Unit Costs'!$P$107 -> 9758495.865 | K102: =+'Unit Costs'!$P$128 -> 29211219.8
C103: Difference | D103: 1 | E103: =IF(ABS(SUM(F103:K103))<=D103,"OK",ABS(SUM(F103:K103))) -> OK | F103: =+F101-F102 -> 0 | G103: 0 | H103: 0 | I103: 0 | J103: 0 | K103: 0
A105: =MAX(A100:A104)+NoOne -> 26 | B105: Spec Assigned Costs | C105: Spec Assigned Schedule | G105: =+IslIntCos!$F$554 -> 3154611.562
C106: Island Interc Rev Reqmt | G106: =+IslIntCos!V499 -> 3154611.562
C107: Difference | D107: 1 | E107: =IF(ABS(SUM(F107:K107))<=D107,"OK",ABS(SUM(F107:K107))) -> OK | G107: =+G105-G106 -> 0
A109: =MAX(A104:A108)+NoOne -> 27 | B109: Spec Assigned Deprec | C109: Spec Assigned Schedule | G109: =SUM(IslIntCos!K554:N554) -> 1040819.954
C110: Depreciation Schedule | G110: =+IslIntCos!V176 -> 1040819.954
D111: 1 | E111: =IF(ABS(SUM(F111:K111))<=D111,"OK",ABS(SUM(F111:K111))) -> OK | G111: =+G109-G110 -> 0
A113: =MAX(A108:A112)+NoOne -> 28 | B113: Spec Assigned Plant | C113: Lines/Stations Spec Assigned Schedule | G113: =+IslIntCos!I531 -> 63343717.3
C114: Plant Schedule | G114: =+IslIntCos!V38 -> 63343717.3
D115: 1 | E115: =IF(ABS(SUM(F115:K115))<=D115,"OK",ABS(SUM(F115:K115))) -> OK | G115: =+G113-G114 -> 0
A117: =MAX(A112:A116)+NoOne -> 29 | B117: Spec Assigned NBV | C117: Spec Assigned Schedule | G117: =+IslIntCos!Q531 -> 27259473.91
C118: NBV Schedule | G118: =SUM(IslIntCos!V96,IslIntCos!V112) -> 27259473.91
D119: 1 | E119: =IF(ABS(SUM(F119:K119))<=D119,"OK",ABS(SUM(F119:K119))) -> OK | G119: =+G117-G118 -> 0
A121: =MAX(A116:A120)+NoOne -> 30 | B121: Reconciliation Difference | C121: Reconciliation Worksheet | D121: 25 | E121: =IF(ABS(SUM(F121:K121))<=D121,"OK",ABS(SUM(F121:K121))) -> 501965841.7 | F121: =SUM(Reconciliation!$J$23,Reconciliation!$J$59) -> 501965841.7
A123: =MAX(A118:A122)+NoOne -> 31 | B123: Total Return | C123: Reconciliation Worksheet | F123: =+Reconciliation!I63 -> 118402445.7
C124: Revenue Requirement | F124: =SUM('Revenue Requirement'!C42:C43) -> 136742229.9
C125: F/O Yr s/b balanced; TestYr N/A | D125: 5 | E125: =IF(TestYrSwitch=0,IF(ABS(SUM(F125:K125))<=D125,"OK",ABS(SUM(F125:K125))),"N/A") -> N/A | F125: =+F123-F124 -> -18339784.28
A127: =MAX(A122:A126)+NoOne -> 32 | B127: Rev to Cost schedule | C127: Revenues | F127: =+'Rev to Cost'!$C$40 -> 1299669917
C128: COS, Before Def/RevCr | F128: =+'Rev to Cost'!$D$40 -> 1299671580
C129: F/O Yr s/b balanced; TestYr N/A | D129: 5 | E129: =IF(TestYrSwitch=0,IF(ABS(SUM(F129:K129))<=D129,"OK",ABS(SUM(F129:K129))),"N/A") -> N/A | F129: =+F127-F128 -> -1662.841366
A131: =MAX(A126:A130)+NoOne -> 33 | B131: Fallout ROE | C131: Lab Int Rev Req ROE Sch 2.1E | F131: =+LabIntCos!F285 -> 3340950.606
C132: Lab Int Allocated ROE Sch 3.2E | F132: =+LabIntCos!F410 -> 3340950.606
C133: F/O Yr s/b balanced; TestYr N/A | D133: 1 | E133: =IF(TestYrSwitch=0,IF(ABS(SUM(F133:K133))<=D133,"OK",ABS(SUM(F133:K133))),"N/A") -> N/A | F133: =+F131-F132 -> 0
A135: =MAX(A130:A134)+NoOne -> 34 | B135: Revenues | C135: Rev to Cost schedule | F135: =+'Rev to Cost'!$C$40 -> 1299669917
C136: Coverage schedule | F136: =+Coverage!$D$45 -> 1299669917
C137: Difference | D137: 1 | E137: =IF(ABS(SUM(F137:K137))<=D137,"OK",ABS(SUM(F137:K137))) -> OK | F137: =+F135-F136 -> 0
A139: =MAX(A134:A138)+NoOne -> 35 | B139: Revenues | C139: Revenue Requirement schedule | F139: =+'Revenue Requirement'!$C$45 -> 1299672108
C140: Coverage schedule | F140: =+Coverage!$D$45 -> 1299669917
C141: F/O Yr s/b balanced; TestYr N/A | D141: 5 | E141: =IF(TestYrSwitch=0,IF(ABS(SUM(F141:K141))<=D141,"OK",ABS(SUM(F141:K141))),"N/A") -> N/A | F141: =+F139-F140 -> 2191.284038
A143: =MAX(A138:A142)+NoOne -> 36 | B143: =+NPRateCalcs!#REF! ->  | C143: =NPRateCalcs!#REF!&" schedule" -> 
C144: Should be a number | E144: =IF(ISNUMBER(NPRateCalcs!#REF!),0,1) -> 1
A146: =MAX(A141:A145)+NoOne -> 37 | B146: Rate Base | C146: Rate Base schedule | F146: =+'Rate Base'!D29 -> 2802094876
C147: G/L Rate Base, Other input file | F147: ='[3]Reconciliation Inputs'!$B$4*1000 -> 2802094877
D148: 1000 | E148: =IF(TestYrSwitch=1,IF(ABS(SUM(F148:K148))<=D148,"OK",ABS(SUM(F148:K148))),"N/A") -> OK | F148: =+F146-F147 -> -1.286007404
C150: Grand Total, Balancing Checks | E150: =ABS(SUM(E11:E149)) -> 501967054

Sheet Revenue Requirement
I1: Schedule G 1.1
I2: Page 1 of 2
A3: NEWFOUNDLAND AND LABRADOR HYDRO
A4: =RunName -> 2027 Test Year Cost of Service Study (No Rate Mitigation)
A5: Total System Revenue Requirement
B7: =MAX(A7)+NoOne -> 1 | C7: 2 | D7: 3 | E7: 4 | F7: 5 | G7: 6 | H7: 7 | I7: 8
A8: Line | C8: Total | D8: Island | E8: Island | F8: Labrador | G8: L'Anse au | H8: Labrador
A9: No. | B9: Description | C9: Amount | D9: Interconnected | E9: Isolated | F9: Isolated | G9: Loup | H9: Interconnected | I9: Basis of Proration
B10: Revenue Requirement | C10: ($) | D10: ($) | E10: ($) | F10: ($) | G10: ($) | H10: ($)
B11: Expenses
A12: =MAX(A10:A11)+NoOne -> 1 | B12: Operating, Maintenance and Admin. | C12: =SUM(D12:H12) -> 156361556.3 | D12: =IslIntCos!F286 -> 120418337.1 | E12: =IslIsoCos!F236 -> 5763854.357 | F12: =LabIsoCos!F236 -> 15269541.95 | G12: =LALCos!F236 -> 2238392.264 | H12: =LabIntCos!F242 -> 12671430.66 | I12: Detailed Analysis
A13: =MAX(A11:A12)+NoOne -> 2 | B13: Fuels - No. 6 Fuel | C13: 65010009.15 | D13: =IslIntCos!F287 -> 65010009.15 | E13: =IslIsoCos!F254 -> 0 | F13: =LabIsoCos!F254 -> 0 | G13: =LALCos!F254 -> 0 | H13: =LabIntCos!F260 -> 0 | I13: Detailed Analysis
A14: =MAX(A11:A13)+NoOne -> 3 | B14: Fuels - Diesel | C14: 22311830.22 | D14: =IslIntCos!F288 -> 2016430.222 | E14: =IslIsoCos!F255 -> 2124200 | F14: =LabIsoCos!F255 -> 17415200 | G14: =LALCos!F255 -> 756000 | H14: =LabIntCos!F261 -> 0 | I14: Detailed Analysis
A15: 4 | B15: Fuels - Gas Turbine | C15: 18989061.53 | D15: =IslIntCos!F289 -> 18829333.46 | E15: =IslIsoCos!F256 -> 0 | F15: =LabIsoCos!F256 -> 0 | G15: =LALCos!F256 -> 0 | H15: =LabIntCos!F262 -> 159728.0657
A16: 5 | B16: Fuel Supply Deferral | C16: 0 | D16: =IslIntCos!F290 -> 0 | E16: 0 | F16: 0 | G16: 0 | H16: 0
A17: 6 | B17: Power Purchases -CF(L)Co | C17: 1554060.666 | D17: =IslIntCos!F291 -> 0 | E17: =IslIsoCos!F257 -> 0 | F17: =LabIsoCos!F257 -> 0 | G17: =LALCos!F257 -> 0 | H17: =LabIntCos!F263 -> 1554060.666 | I17: Detailed Analysis
A18: 7 | B18: Power Purchases - Other | C18: =SUM(D18:H18) -> 65357538.58 | D18: =IslIntCos!F292 -> 60766345.57 | E18: =IslIsoCos!F258 -> 177100 | F18: =LabIsoCos!F258 -> 309793.008 | G18: =LALCos!F258 -> 4104300 | H18: =LabIntCos!F264 -> 0 | I18: Detailed Analysis
A19: 8 | B19: Power Purchases - MF | C19: =SUM(D19:H19) -> 269134555.8 | D19: =IslIntCos!F293 -> 269134555.8 | E19: 0 | F19: 0 | G19: 0 | H19: 0 | I19: Detailed Analysis
A20: 9 | B20: Total Exports | C20: =SUM(D20:H20) -> -40178593 | D20: =IslIntCos!F294 -> -40178593 | E20: 0 | F20: 0 | G20: 0 | H20: 0 | I20: Detailed Analysis
A21: 10 | B21: Power Purchases - LTA Costs | C21: 46146683.15 | D21: =IslIntCos!F295 -> 46146683.15 | E21: 0 | F21: 0 | G21: 0 | H21: 0 | I21: Detailed Analysis
A22: 11 | B22: Power Purchases - LIL Costs | C22: =SUM(D22:H22) -> 465082406 | D22: =IslIntCos!F296 -> 465082406 | E22: 0 | F22: 0 | G22: 0 | H22: 0 | I22: Detailed Analysis
A23: 12 | B23: Rate Mitigation | C23: =SUM(D23:H23) -> 0 | D23: =IslIntCos!F297 -> 0 | E23: 0 | F23: 0 | G23: 0 | H23: 0
A24: 13 | B24: Tariff Revenue | C24: =SUM(D24:H24) -> -18337593 | D24: =IslIntCos!F298 -> -18337593 | E24: 0 | F24: 0 | G24: 0 | H24: 0 | I24: Detailed Analysis
A25: =MAX(A19:A24)+NoOne -> 14 | B25: Depreciation | C25: =SUM(D25:H25) -> 114921994.7 | D25: =IslIntCos!F299 -> 100512134.6 | E25: =IslIsoCos!F259 -> 1117416.687 | F25: =LabIsoCos!F259 -> 5466481.449 | G25: =LALCos!F259 -> 1420232.453 | H25: =LabIntCos!F265 -> 6405729.441 | I25: Detailed Analysis
B26: Expense Credits: | C26: 0 | D26: 0 | E26: 0 | F26: 0 | G26: 0 | H26: 0
A27: =MAX(A24:A26)+NoOne -> 15 | B27: Sundry | C27: =SUM(D27:H27) -> -511404 | D27: =IslIntCos!F302 -> -393846.2926 | E27: =IslIsoCos!F262 -> -18851.55305 | F27: =LabIsoCos!F262 -> -49941.33479 | G27: =LALCos!F262 -> -7320.998746 | H27: =LabIntCos!F268 -> -41443.82083 | I27: Total O&M Expenses
A28: =MAX(A24:A27)+NoOne -> 16 | B28: Greenhouse Gas Carbon Credits | C28: =SUM(D28:H28) -> -1250000 | D28: =IslIntCos!F303 -> -1250000 | E28: 0 | F28: 0 | G28: 0 | H28: 0 | I28: Detailed Analysis
A29: =MAX(A25:A28)+NoOne -> 17 | B29: Building Rental Income | C29: -6000 | D29: =IslIntCos!F304 -> -6000 | E29: =IslIsoCos!F263 -> 0 | F29: =LabIsoCos!F263 -> 0 | G29: =LALCos!F263 -> 0 | H29: =LabIntCos!F269 -> 0 | I29: Detailed Analysis
A30: =MAX(A26:A29)+NoOne -> 18 | B30: Tax Refunds | C30: 0 | D30: =IslIntCos!F305 -> 0 | E30: =IslIsoCos!F264 -> 0 | F30: =LabIsoCos!F264 -> 0 | G30: =LALCos!F264 -> 0 | H30: =LabIntCos!F270 -> 0 | I30: Total O&M Expenses
A31: =MAX(A27:A30)+NoOne -> 19 | B31: Suppliers' Discounts | C31: 0 | D31: =IslIntCos!F306 -> 0 | E31: =IslIsoCos!F265 -> 0 | F31: =LabIsoCos!F265 -> 0 | G31: =LALCos!F265 -> 0 | H31: =LabIntCos!F271 -> 0 | I31: Total O&M Expenses
A32: 20 | B32: Pole Attachments | C32: -1635600 | D32: =IslIntCos!F307 -> -1196656.19 | E32: =IslIsoCos!F266 -> -20860.28549 | F32: =LabIsoCos!F266 -> -107593.2317 | G32: =LALCos!F266 -> -61422.62905 | H32: =LabIntCos!F272 -> -249067.6635 | I32: Detailed Analysis
A33: =MAX(A31:A32)+NoOne -> 21 | B33: Wheeling Revenues | C33: =SUM(D33:H33) -> 0 | D33: =IslIntCos!F309 -> 0 | E33: =IslIsoCos!F268 -> 0 | F33: =LabIsoCos!F268 -> 0 | G33: =LALCos!F268 -> 0 | H33: =LabIntCos!F274 -> 0 | I33: Island Interconnected
A34: =MAX(A32:A33)+NoOne -> 22 | B34: Application Fees | C34: =SUM(D34:H34) -> -20628 | D34: =IslIntCos!F310 -> -10956 | E34: =IslIsoCos!F269 -> -216 | F34: =LabIsoCos!F269 -> -1176 | G34: =LALCos!F269 -> -432 | H34: =LabIntCos!F275 -> -7848 | I34: Detailed Analysis
A35: =MAX(A33:A34)+NoOne -> 23 | B35: Meter Test Revenues | C35: =SUM(D35:H35) -> 0 | D35: =IslIntCos!F311 -> 0 | E35: =IslIsoCos!F270 -> 0 | F35: =LabIsoCos!F270 -> 0 | G35: =LALCos!F270 -> 0 | H35: =LabIntCos!F276 -> 0 | I35: Weighted Customers
A36: =MAX(A33:A35)+NoOne -> 24 | B36: Total Expense Credits | C36: =SUM(D36:H36) -> -3423632 | D36: =SUM(D27:D35) -> -2857458.483 | E36: =SUM(E27:E35) -> -39927.83854 | F36: =SUM(F27:F35) -> -158710.5665 | G36: =SUM(G27:G35) -> -69175.62779 | H36: =SUM(H27:H35) -> -298359.4843
A38: =MAX(A35:A37)+NoOne -> 25 | B38: Subtotal Expenses | C38: =SUM(C36,C12:C25) -> 1162929878 | D38: =SUM(D12:D25,D36) -> 1086542591 | E38: =SUM(E12:E25,E36) -> 9142643.205 | F38: =SUM(F12:F25,F36) -> 38302305.84 | G38: =SUM(G12:G25,G36) -> 8449749.09 | H38: =SUM(H12:H25,H36) -> 20492589.34
A39: =MAX(A38:A38)+NoOne -> 26 | B39: Disposal Gain/Loss | C39: =SUM(D39:H39) -> 0 | D39: =IslIntCos!F316 -> 0 | E39: =IslIsoCos!F275 -> 0 | F39: =LabIsoCos!F275 -> 0 | G39: =LALCos!F275 -> 0 | H39: =LabIntCos!F281 -> 0 | I39: Detailed Analysis
A40: =MAX(A39:A39)+NoOne -> 27 | B40: Subtotal Rev Reqt Excl Return | C40: =SUM(C38,C39) -> 1162929878 | D40: 1086542591 | E40: 9142643.205 | F40: 38302305.84 | G40: 8449749.09 | H40: 20492589.34
A42: =MAX(A40:A41)+NoOne -> 28 | B42: Return on Debt | C42: =SUM(D42:H42) -> 84343055.76 | D42: =IslIntCos!F319 -> 73763123.91 | E42: =IslIsoCos!F278 -> 778420.1692 | F42: =LabIsoCos!F278 -> 3616592.53 | G42: =LALCos!F278 -> 807239.3018 | H42: =LabIntCos!F284 -> 5377679.852 | I42: Rate Base
A43: =MAX(A41:A42)+NoOne -> 29 | B43: Return on Equity | C43: =SUM(D43:H43) -> 52399174.18 | D43: =IslIntCos!F320 -> 45826259.71 | E43: =IslIsoCos!F279 -> 483603.2281 | F43: =LabIsoCos!F279 -> 2246853.167 | G43: =LALCos!F279 -> 501507.4732 | H43: =LabIntCos!F285 -> 3340950.606 | I43: Rate Base
A45: =MAX(A42:A44)+NoOne -> 30 | B45: Total Revenue Requirement | C45: =SUM(C38,C42,C39,C43) -> 1299672108 | D45: 1206131974 | E45: 10404666.6 | F45: 44165751.54 | G45: 9758495.865 | H45: 29211219.8

Sheet Rate Base
J1: Schedule G 1.1
J2: Page 2 of 2
B3: NEWFOUNDLAND AND LABRADOR HYDRO
B4: =RunName -> 2027 Test Year Cost of Service Study (No Rate Mitigation)
B5: Total System
B6: Return on Rate Base
C8: =MAX(B8)+NoOne -> 1 | D8: 2 | E8: 3 | F8: 4 | G8: 5 | H8: 6 | I8: 7 | J8: 8
A10: Check | B10: Line | E10: Island | F10: Island | G10: Labrador | H10: L'Anse au | I10: Labrador
A11: Column | B11: No | D11: Total | E11: Interconnected | F11: Isolated | G11: Isolated | H11: Loup | I11: Interconnected | J11: Basis of Proration
A12: =SUM(A14:A48) -> 0 | D12: $ | E12: $ | F12: $ | G12: $ | H12: $ | I12: $
C13: Rate Base:
A14: =SUM(E14:I14)-D14 -> 0 | B14: =MAX(B11:B13)+NoOne -> 1 | C14: Average Net Book Value | D14: =SUM(E14:I14) -> 2404120916 | E14: =IslIntCos!F116 -> 2102740030 | F14: =IslIsoCos!F96 -> 21518581.06 | G14: =LabIsoCos!F96 -> 95513749.5 | H14: =LALCos!F96 -> 24686846.38 | I14: =LabIntCos!F99 -> 159661709.2 | J14: Schedule G 2.3
A15: 0 | B15: =MAX(B11:B14)+NoOne -> 2 | C15: Cash Working Capital | D15: =[3]Inputs!$B$48 -> 1562000 | E15: =$D15*E14/$D14 -> 1366187.493 | F15: =$D15*F14/$D14 -> 13981.00378 | G15: =$D15*G14/$D14 -> 62056.97714 | H15: =$D15*H14/$D14 -> 16039.48196 | I15: =$D15*I14/$D14 -> 103735.0443 | J15: Prorated on Average Net Book Value - L. 1
A16: 0 | B16: =MAX(B12:B15)+NoOne -> 3 | C16: Cash Working Capital - Muskrat Falls | D16: =SUM(E16:I16) -> 115124000 | E16: =[3]Inputs!$B$49 -> 115124000 | F16: 0 | G16: 0 | H16: 0 | I16: 0 | J16: Detailed Analysis
A17: 0 | B17: =MAX(B13:B16)+NoOne -> 4 | C17: Fuel Inventory - No. 6 Fuel | D17: =SUM(E17:I17) -> 53963965.14 | E17: =[3]Inputs!$B$50 -> 53963965.14 | F17: 0 | G17: 0 | H17: 0 | I17: 0 | J17: Specifically Assigned - Holyrood
A18: 0 | B18: =MAX(B14:B17)+NoOne -> 5 | C18: Fuel Inventory - Diesel | D18: =SUM(E18:I18) -> 6181463.548 | E18: =[3]Inputs!$B$51 -> 180545.7591 | F18: =[3]Inputs!$B$52 -> 206652.8138 | G18: =[3]Inputs!$B$53 -> 5700590.546 | H18: =[3]Inputs!$B$54 -> 93674.42931 | I18: =[3]Inputs!$B$55 -> 0 | J18: Detailed Fuel Analysis
A19: 0 | B19: =MAX(B15:B18)+NoOne -> 6 | C19: Fuel Inventory - Gas Turbine | D19: =SUM(E19:I19) -> 7883571.309 | E19: =[3]Inputs!$B$56 -> 7763005.788 | F19: =[3]Inputs!$B$57 -> 0 | G19: =[3]Inputs!$B$58 -> 0 | H19: =[3]Inputs!$B$59 -> 0 | I19: =[3]Inputs!$B$60 -> 120565.5215 | J19: Detailed Fuel Analysis
A20: 0 | B20: 7 | C20: Inventory/Supplies | D20: =[3]Inputs!$B$61 -> 44722000 | E20: =$D20*AllocPlt!F40 -> 39481123.04 | F20: =$D20*AllocPlt!G40 -> 217602.5091 | G20: =$D20*AllocPlt!H40 -> 1653207.919 | H20: =$D20*AllocPlt!I40 -> 473132.5832 | I20: =$D20*AllocPlt!L40 -> 2896933.947 | J20: Prorated on Total Plant in Service, Schedule G 2.2
A21: =SUM(E21:I21)-D21 -> 0 | B21: 8 | C21: Deferred Charges: Muskrat Falls | D21: =SUM(E21:I21) -> 47774.5 | E21: =[3]Inputs!$B$63 -> 47774.5 | F21: 0 | G21: 0 | H21: 0 | I21: 0 | J21: Detailed Analysis
A22: 0 | B22: 9 | C22: Deferred Charges: Foreign Exchange Loss and Regulatory Costs | D22: =[3]Inputs!$B$62 -> 115554721.9 | E22: =$D22*E14/$D14 -> 101068768.1 | F22: =$D22*F14/$D14 -> 1034296.417 | G22: =$D22*G14/$D14 -> 4590894.196 | H22: =$D22*H14/$D14 -> 1186579.947 | I22: =$D22*I14/$D14 -> 7674183.227 | J22: Prorated on Average Net Book Value - L. 1
A23: =SUM(E23:I23)-D23 -> 0 | B23: 10 | C23: Retired Asset Pool | D23: =SUM(E23:I23) -> 52934463.7 | E23: =SystemizedPlant!E55 -> 28866723.83 | F23: =SystemizedPlant!F55 -> 2870021.387 | G23: =SystemizedPlant!G55 -> 12632076.62 | H23: =SystemizedPlant!H55 -> 362308.6305 | I23: =SystemizedPlant!K55 -> 8203333.231 | J23: Assigned by System | K23: RAP
A25: =SUM(D14:D23)-D25 -> 0 | B25: =MAX(B21:B24)+NoOne -> 11 | C25: Total Rate Base | D25: =SUM(E25:I25) -> 2802094876 | E25: =SUM(E14:E23) -> 2450602123 | F25: =SUM(F14:F23) -> 25861135.19 | G25: =SUM(G14:G23) -> 120152575.8 | H25: =SUM(H14:H23) -> 26818581.45 | I25: =SUM(I14:I23) -> 178660460.2
A27: =SUM(E27:I27)-D27 -> 0 | B27: =MAX(B24:B26)+NoOne -> 12 | C27: Less: Rural Portion | D27: =SUM(E27:I27) -> 0 | E27: =IslIntCos!F210 -> 0 | F27: =+IslIsoCos!F178 -> 0 | G27: =+LabIsoCos!F178 -> 0 | H27: =+LALCos!F178 -> 0 | I27: =+LabIntCos!F182 -> 0 | J27: Schedule G 2.6, L. 11
A29: =SUM(D25:D27)-D29 -> 0 | B29: =MAX(B22:B27)+NoOne -> 13 | C29: Rate Base Available for Equity Return | D29: =SUM(E29:I29) -> 2802094876 | E29: =IslIntCos!F212 -> 2450602123 | F29: =SUM(F25:F27) -> 25861135.19 | G29: =SUM(G25:G27) -> 120152575.8 | H29: =SUM(H25:H27) -> 26818581.45 | I29: =SUM(I25:I27) -> 178660460.2
C31: Corporate Targets:
B32: =MAX(B29:B31)+NoOne -> 14 | C32: Capital Structure: Percent of Debt | D32: =[3]Inputs!$B$64 -> 0.7450341064 | E32: (1)
B33: =MAX(B30:B32)+NoOne -> 15 | C33: Return | D33: =[3]Inputs!$B$68 -> 0.04045
B34: =MAX(B31:B33)+NoOne -> 16 | C34: Weighted Average Return: Debt | D34: =ROUND(D32*D33,4) -> 0.0301
B36: =MAX(B33:B35)+NoOne -> 17 | C36: Capital Structure: Percent of Equity | D36: =[3]Inputs!$B$67 -> 0.2175226428 | E36: (1)
B37: =MAX(B34:B36)+NoOne -> 18 | C37: Return | D37: =IF(TestYrSwitch=1,+[3]Inputs!$B$69,D48/(D29*D36)) -> 0.086
B38: =MAX(B35:B37)+NoOne -> 19 | C38: Weighted Average Return: Equity | D38: =ROUND(D36*ROE,4) -> 0.0187
B40: =MAX(B37:B39)+NoOne -> 20 | C40: Weighted Average Cost of Capital | D40: =D38+D34 -> 0.0488
C42: Return on Rate Base by System (%):
B43: =MAX(B40:B42)+NoOne -> 21 | C43: Return on Rate Base - Debt Component | D43: 0 | E43: =+$D$34 -> 0.0301 | F43: =+$D$34 -> 0.0301 | G43: =+$D$34 -> 0.0301 | H43: =+$D$34 -> 0.0301 | I43: =+$D$34 -> 0.0301
B44: =MAX(B41:B43)+NoOne -> 22 | C44: Return on Rate Base - Equity Component | D44: 0 | E44: =+$D$38 -> 0.0187 | F44: =+$D$38 -> 0.0187 | G44: =+$D$38 -> 0.0187 | H44: =+$D$38 -> 0.0187 | I44: =+$D$38 -> 0.0187
C46: Return on Rate Base ($):
B47: =MAX(B44:B46)+NoOne -> 23 | C47: Return on Debt | D47: =SUM(E47:I47) -> 84343055.76 | E47: =IslIntCos!F214 -> 73763123.91 | F47: =IslIsoCos!F182 -> 778420.1692 | G47: =LabIsoCos!F182 -> 3616592.53 | H47: =LALCos!F182 -> 807239.3018 | I47: =LabIntCos!F186 -> 5377679.852 | J47: =+"Schedule G 2.6, L."&IslIntCos!D214 -> Schedule G 2.6, L.13
A48: =SUM(E48:I48)-D48 -> 0 | B48: =MAX(B45:B47)+NoOne -> 24 | C48: Return on Equity | D48: =IF(TestYrSwitch=1,SUM(E48:I48),Reconciliation!I63-'Rate Base'!D47) -> 52399174.18 | E48: =IslIntCos!F216 -> 45826259.71 | F48: =IslIsoCos!F184 -> 483603.2281 | G48: =LabIsoCos!F184 -> 2246853.167 | H48: =LALCos!F184 -> 501507.4732 | I48: =LabIntCos!F188 -> 3340950.606 | J48: =+"Schedule G 2.6, L."&IslIntCos!D216 -> Schedule G 2.6, L.14
B50: =MAX(B47:B49)+NoOne -> 25 | C50: Return on Rate Base ($) | D50: =SUM(E50:I50) -> 136742229.9 | E50: =IslIntCos!F218 -> 119589383.6 | F50: =IslIsoCos!F186 -> 1262023.397 | G50: =LabIsoCos!F186 -> 5863445.697 | H50: =LALCos!F186 -> 1308746.775 | I50: =LabIntCos!F190 -> 8718630.458 | J50: =+"Schedule G 2.6, L."&IslIntCos!D218 -> Schedule G 2.6, L.15
C52: Return on Total Rate Base (%):
B53: =MAX(B50:B52)+NoOne -> 26 | C53: Return on Rate Base - Debt Component | D53: =+D47/D25 -> 0.0301 | E53: 0.0301 | F53: 0.0301 | G53: 0.0301 | H53: 0.0301 | I53: 0.0301 | J53: =+"L. "&B47&" divided by L."&B$25 -> L. 23 divided by L.11
B54: =MAX(B51:B53)+NoOne -> 27 | C54: Return on Rate Base - Equity Component | D54: =+D48/D25 -> 0.0187 | E54: 0.0187 | F54: 0.0187 | G54: 0.0187 | H54: 0.0187 | I54: 0.0187 | J54: =+"L. "&B48&" divided by L."&B$25 -> L. 24 divided by L.11
B56: =MAX(B53:B55)+NoOne -> 28 | C56: Return on Rate Base (%) | D56: =D50/D25 -> 0.0488 | E56: 0.0488 | F56: 0.0488 | G56: 0.0488 | H56: 0.0488 | I56: 0.0488 | J56: =+"L. "&B50&" divided by L."&B$25 -> L. 25 divided by L.11
B59: (1) | C59: =+"Debt and equity weightings reflect a "&TEXT([3]Inputs!$B$65*100,"0.00")&"% funded ARO and "&TEXT([3]Inputs!$B$66*100,"0.00")&"% component for Employee Future Benefits at 0% cost." -> Debt and equity weightings reflect a 0.74% funded ARO and 3.01% component for Employee Future Benefits at 0% cost.

Sheet Rev to Cost
I2: Schedule G 1.2 | U2: Schedule G 1.2A | AC2: Schedule G 1.2A
I3: Page 1 of 6 | U3: Page 1 of 2 | AC3: Page 2 of 2
A6: NEWFOUNDLAND AND LABRADOR HYDRO | M6: NEWFOUNDLAND AND LABRADOR HYDRO | X6: NEWFOUNDLAND AND LABRADOR HYDRO
A7: =RunName -> 2027 Test Year Cost of Service Study (No Rate Mitigation) | M7: =RunName -> 2027 Test Year Cost of Service Study (No Rate Mitigation) | X7: =RunName -> 2027 Test Year Cost of Service Study (No Rate Mitigation)
A8: Total System | M8: Total System | X8: Total System
A9: Comparison of Revenue & Allocated Revenue Requirement | M9: Allocation of Rate Mitigation | X9: Classification & Allocation of Muskrat Falls Purchased Power Cost
B11: =MAX(A11)+NoOne -> 1 | C11: 2 | D11: 3 | E11: 4 | F11: 5 | G11: 6 | H11: =MAX(F11)+NoOne -> 6 | I11: 7 | N11: =MAX(M11)+NoOne -> 1 | O11: =MAX(N11)+NoOne -> 2 | P11: =MAX(O11)+NoOne -> 3 | Q11: =MAX(P11)+NoOne -> 4 | Y11: =MAX(X11)+NoOne -> 1
D13: Cost of Service Before | H13: Revenue Requirement | I13: Revenue | N13: Revenue Requirement | O13: Rate Mitigation | Y13: Total Muskrat Falls
A14: Line | D14: Deficit and Revenue | E14: Revenue | G14: RSP | H14: After Deficit and Revenue | I14: to Cost | L14: Line | N14: After Deficit and Revenue | O14: (Allocated consistent | Q14: Net Class | W14: Line | Y14: Purchased Power
A15: No. | B15: Rate Class | C15: Revenues | D15: Credit Allocation | E15: Credits | F15: Deficit | G15: Activity | H15: Credit Allocation | I15: Coverage | L15: No. | M15: Rate Class | N15: Credit Allocation | O15: with Muskrat Falls PPA) | Q15: Billing Amount | W15: No. | X15: Rate Class | Y15: Costs | Z15: Demand | AA15: Energy | AB15: Demand | AC15: Energy
H16: (Col.3+4+5) | I16: (Col.2/3)
C17: ($) | D17: ($) | E17: ($) | F17: ($) | G17: ($) | H17: ($) | N17: ($) | O17: ($) | P17: ($) | Q17: ($) | Y17: ($) | Z17: ($) | AA17: ($) | AB17: % | AC17: %
W19: =MAX(W7:W18)+NoOne -> 1 | X19: Power Purchases-MF | Y19: =IslIntCos!F293 -> 269134555.8 | Z19: =IslIntCos!G293 -> 133794097.7 | AA19: =IslIntCos!H293 -> 135340458.1 | AB19: =Z19/$Y19 -> 0.4971271611 | AC19: =AA19/$Y19 -> 0.5028728389
B20: Total System | M20: Total System | W20: =MAX(W8:W19)+NoOne -> 2 | X20: Total Exports | Y20: =IslIntCos!F294 -> -40178593 | Z20: =IslIntCos!G294 -> -19973869.88 | AA20: =IslIntCos!H294 -> -20204723.12 | AB20: =Z20/$Y20 -> 0.4971271611 | AC20: =AA20/$Y20 -> 0.5028728389
A21: =MAX(A18:A20)+NoOne -> 1 | B21: Newfoundland Power | C21: =C66 -> 1104811717 | D21: =D66 -> 1009624141 | E21: =E66 -> 0 | F21: 95188620.58 | G21: 0 | H21: =SUM(D21:G21) -> 1104812761 | L21: =MAX(L18:L20)+NoOne -> 1 | M21: Newfoundland Power | N21: =H21 -> 1104812761 | O21: ='Unit Costs'!AR17 -> 0 | Q21: =SUM(N21:P21) -> 1104812761 | W21: =MAX(W9:W20)+NoOne -> 3 | X21: Power Purchases - LTA Costs | Y21: =IslIntCos!F295 -> 46146683.15 | Z21: =IslIntCos!G295 -> 22940769.59 | AA21: =IslIntCos!H295 -> 23205913.56 | AB21: 0.4971271611 | AC21: 0.5028728389
A22: =MAX(A19:A21)+NoOne -> 2 | B22: RSP Activity | C22: =C67 -> 0 | D22: 0 | E22: 0 | F22: 0 | G22: 0 | H22: =SUM(D22:G22) -> 0 | L22: =MAX(L19:L21)+NoOne -> 2 | M22: Hydro Rural 1 | O22: ='Unit Costs'!AR20 -> 0 | Q22: =SUM(N22:P22) -> 0 | W22: =MAX(W10:W21)+NoOne -> 4 | X22: Power Purchases - LIL Costs | Y22: =IslIntCos!F296 -> 465082406 | Z22: =IslIntCos!G296 -> 231205096.2 | AA22: =IslIntCos!H296 -> 233877309.8 | AB22: 0.4971271611 | AC22: 0.5028728389
A23: =MAX(A20:A22)+NoOne -> 3 | B23: Subtotal Newfoundland Power | C23: =SUM(C21:C22) -> 1104811717 | D23: 1009624141 | E23: 0 | F23: 95188620.58 | G23: 0 | H23: 1104812761 | I23: =IF(D23<>0,C23/D23,0) -> 1.094280211 | L23: =MAX(L20:L22)+NoOne -> 3 | M23: Subtotal Newfoundland Power | N23: =SUM(N21:N22) -> 1104812761 | O23: 0 | P23: 0 | Q23: 1104812761 | W23: =MAX(W11:W22)+NoOne -> 5 | X23: Total Muskrat Falls Purchased Power | Y23: =SUM(Y19:Y22) -> 740185052 | Z23: =SUM(Z19:Z22) -> 367966093.6 | AA23: 372218958.4
A25: =MAX(A22:A24)+NoOne -> 4 | B25: Island Industrial | C25: =C73 -> 77081467.07 | D25: =D73 -> 77084808.24 | E25: =E73 -> 0 | F25: 0 | H25: =H73 -> 77084808.24 | I25: =IF(D25<>0,C25/D25,0) -> 0.999956656 | L25: =MAX(L22:L24)+NoOne -> 4 | M25: Island Industrial | N25: =H25 -> 77084808.24 | O25: ='Unit Costs'!AR18 -> 0 | Q25: =SUM(N25:P25) -> 77084808.24 | X25: =INDEX('Schedules 4.2,4.3,4.4'!Q32:Q36,'Schedules 4.2,4.3,4.4'!R23)&" - basis for classification." -> 1. System Load Factor - basis for classification.
A26: =MAX(A23:A25)+NoOne -> 5 | B26: Unallocated RSP Hydraulic Variation | C26: =+C75 -> 0 | D26: =+D75 -> 0 | E26: =+E75 -> 0 | F26: =+F75 -> 0 | H26: =+H75 -> 0 | I26: =IF(D26<>0,C26/D26,0) -> 0
A27: =MAX(A24:A26)+NoOne -> 6 | B27: Labrador Industrial | C27: =+C223 -> 9171997.769 | D27: =+D223 -> 9172199.896 | E27: =+E223 -> 0 | F27: 0 | H27: =SUM(D27:F27) -> 9172199.896 | I27: 0.9999779631 | L27: =MAX(L24:L25)+NoOne -> 5 | M27: Labrador Industrial | N27: =H27 -> 9172199.896 | Q27: =SUM(N27:P27) -> 9172199.896
A28: =MAX(A25:A27)+NoOne -> 7 | B28: CFB - Goose Bay Secondary | C28: =+C225 -> 0 | D28: =+D225 -> 0 | E28: =+E225 -> 0 | F28: 0 | H28: =+C28 -> 0 | I28: 0 | L28: =MAX(L25:L27)+NoOne -> 6 | M28: CFB - Goose Bay Secondary | N28: 0 | Q28: =SUM(N28:P28) -> 0 | AD28: Overall
A29: =MAX(A26:A28)+NoOne -> 8 | B29: Rural Labrador Interconnected | C29: =C236 -> 21931248.04 | D29: =D236 -> 20039019.91 | E29: =E236 -> 0 | F29: =C324 -> 1889303.738 | H29: =SUM(D29:F29) -> 21928323.64 | I29: =IF(D29<>0,C29/D29,0) -> 1.09442718 | L29: =MAX(L26:L28)+NoOne -> 7 | M29: Rural Labrador Interconnected | N29: 21928323.64 | Q29: 21928323.64 | Y29: Total Muskrat Falls | Z29: Production | AA29: Production | AB29: Production | AC29: Production | AD29: Allocation of
Y30: Purchased Power | Z30: Demand | AA30: Demand | AB30: Energy | AC30: Energy | AD30: Muskrat Falls
B31: Rural Deficit Areas | M31: Rural Deficit Areas | Y31: Costs | Z31: (1 CP kW) | AB31: (MWh @ Gen) | AD31: Costs
A32: =MAX(A29:A31)+NoOne -> 9 | B32: Island Interconnected | C32: =C87 -> 68909057.95 | D32: =D87 -> 119423025.3 | E32: =E87 -> 0 | F32: =C32-D32-E32 -> -50513967.39 | H32: =SUM(D32:F32) -> 68909057.95 | I32: 0.5770165155 | L32: =MAX(L29:L31)+NoOne -> 8 | M32: Island Interconnected | N32: =H32 -> 68909057.95 | Q32: =SUM(N32:P32) -> 68909057.95 | Y32: ($) | Z32: % | AA32: ($) | AB32: % | AC32: ($) | AD32: %
A33: =MAX(A30:A32)+NoOne -> 10 | B33: Island Isolated | C33: =C128 -> 1717948.94 | D33: =D128 -> 10404401.51 | E33: =E128 -> 0 | F33: =C33-D33-E33 -> -8686452.568 | H33: =SUM(D33:F33) -> 1717948.94 | I33: 0.1651175167 | L33: =MAX(L30:L32)+NoOne -> 9 | M33: Island Isolated | N33: 1717948.94 | Q33: 1717948.94 | X33: Total System
A34: =MAX(A31:A33)+NoOne -> 11 | B34: Labrador Isolated | C34: =C166 -> 11969343.18 | D34: =D166 -> 44165488.19 | E34: =E166 -> 0 | F34: =C34-D34-E34 -> -32196145.01 | H34: =SUM(D34:F34) -> 11969343.18 | I34: 0.2710112279 | L34: =MAX(L31:L33)+NoOne -> 10 | M34: Labrador Isolated | N34: 11969343.18 | Q34: 11969343.18 | W34: =MAX(W32:W33)+NoOne -> 1 | X34: Newfoundland Power | Y34: =SUM(AA34,AC34) -> 642307199 | Z34: =IslIntCos!G366 -> 0.8873860412 | AA34: =AA$44*Z34 -> 326527975.1 | AB34: =IslIntCos!H366 -> 0.848369533 | AC34: =AC$44*AB34 -> 315779223.9 | AD34: =Y34/Y$44 -> 0.867765699
A35: =MAX(A32:A34)+NoOne -> 12 | B35: L'Anse au Loup | C35: =C198 -> 4077136.507 | D35: =D198 -> 9758495.865 | E35: =E198 -> 0 | F35: =C35-D35-E35 -> -5681359.359 | H35: =SUM(D35:F35) -> 4077136.507 | I35: 0.4178037848 | L35: =MAX(L32:L34)+NoOne -> 11 | M35: L'Anse au Loup | N35: 4077136.507 | Q35: 4077136.507 | W35: =MAX(W32:W34)+NoOne -> 2 | X35: Hydro Rural 1 | Y35: =SUM(AA35,AC35) -> 47345155.22 | Z35: =IslIntCos!G378 -> 0.06280146587 | AA35: =AA$44*Z35 -> 23108810.07 | AB35: =IslIntCos!H378 -> 0.06511314002 | AC35: =AC$44*AB35 -> 24236345.15 | AD35: =Y35/Y$44 -> 0.06396394401
A36: =MAX(A33:A35)+NoOne -> 13 | B36: CFB Revenue Credit Applied to Deficit | C36: 0 | D36: 0 | E36: =-E225 -> 0 | F36: =C36-D36-E36 -> 0 | H36: =SUM(D36:F36) -> 0 | I36: 0 | L36: =MAX(L33:L35)+NoOne -> 12 | M36: CFB Revenue Credit Applied to Deficit | N36: 0 | Q36: 0 | W36: =MAX(W33:W35)+NoOne -> 3 | X36: Subtotal Newfoundland Power | Y36: =SUM(Y34:Y35) -> 689652354.2 | Z36: 0.9501875071 | AA36: 349636785.2 | AB36: 0.9134826731 | AC36: 340015569.1 | AD36: 0.931729643
A38: =MAX(A35:A37)+NoOne -> 14 | B38: Subtotal | C38: =SUM(C32:C36) -> 86673486.58 | D38: 183751410.9 | E38: 0 | F38: -97077924.32 | G38: 0 | H38: 86673486.58 | I38: =IF(D38<>0,C38/D38,0) -> 0.4716888222 | L38: =MAX(L35:L37)+NoOne -> 13 | M38: Subtotal | N38: =SUM(N32:N36) -> 86673486.58 | O38: 0 | P38: 0 | Q38: 86673486.58 | W38: =MAX(W35:W37)+NoOne -> 4 | X38: Island Industrial | Y38: =SUM(AA38,AC38) -> 50532697.76 | Z38: =IslIntCos!G367 -> 0.04981249294 | AA38: =AA$44*Z38 -> 18329308.44 | AB38: =IslIntCos!H367 -> 0.08651732694 | AC38: =AC$44*AB38 -> 32203389.32 | AD38: =Y38/Y$44 -> 0.06827035701
A40: =MAX(A37:A39)+NoOne -> 15 | B40: Total | C40: =SUM(C23:C29,C38) -> 1299669917 | D40: 1299671580 | E40: 0 | F40: 0 | G40: 0 | H40: 1299671580 | I40: =IF(D40<>0,C40/D40,0) -> 0.9999987206 | L40: =MAX(L37:L39)+NoOne -> 14 | M40: Total | N40: =SUM(N23:N29,N38) -> 1299671580 | O40: 0 | P40: 0 | Q40: 1299671580 | W40: =MAX(W37:W38)+NoOne -> 5 | X40: Labrador Industrial
W41: =MAX(W38:W40)+NoOne -> 6 | X41: CFB - Goose Bay Secondary
L42: 1 | M42: ="The $"&TEXT(ABS(O22),"0,000")&" represents the Island Interconnected Rural rate mitigation allocation." -> The $0,000 represents the Island Interconnected Rural rate mitigation allocation. | W42: =MAX(W39:W41)+NoOne -> 7 | X42: Rural Labrador Interconnected
W44: =MAX(W41:W43)+NoOne -> 8 | X44: Total | Y44: =SUM(Y36:Y38) -> 740185052 | Z44: =SUM(Z36:Z42) -> 1 | AA44: =Z23 -> 367966093.6 | AB44: =SUM(AB36:AB42) -> 1 | AC44: =AA23 -> 372218958.4 | AD44: =SUM(AD36:AD42) -> 1
I48: Schedule G 1.2
I49: Page 2 of 6
A52: =+A6 -> NEWFOUNDLAND AND LABRADOR HYDRO
A53: =RunName -> 2027 Test Year Cost of Service Study (No Rate Mitigation)
A54: Island Interconnected
A55: Comparison of Revenue & Allocated Revenue Requirement
B57: =MAX(A57)+NoOne -> 1 | C57: 2 | D57: 3 | E57: 4 | F57: 5 | G57: 6 | H57: =MAX(F57)+NoOne -> 6 | I57: 7
D59: Cost of Service Before | H59: Revenue Requirement | I59: Revenue
A60: Line | D60: Deficit and Revenue | E60: Revenue | F60: Deficit | G60: RSP | H60: After Deficit and Revenue | I60: to Cost
A61: No. | B61: Rate Class | C61: Revenues | D61: Credit Allocation | E61: Credit | F61: Allocation | G61: Activity | H61: Credit Allocation | I61: Coverage
H62: (Col.3+4+5) | I62: (Col.2/3)
C63: ($) | D63: ($) | E63: ($) | F63: ($) | G63: ($) | H63: ($)
B65: Island Interconnected
A66: =MAX(A63:A65)+NoOne -> 1 | B66: Newfoundland Power | C66: ='NPRateCalc Detail'!E35 -> 1104811717 | D66: =IslIntCos!F486 -> 1009624141 | E66: =(D66/($D$66+$D$70+$D$87))*-$E$95 -> 0 | F66: =+C320-D273 -> 95188620.58 | G66: =-G67 -> 0 | H66: =SUM(D66:G66) -> 1104812761
A67: =MAX(A64:A66)+NoOne -> 2 | B67: NLP RSP Activity | C67: 0 | H67: =SUM(D67:G67) -> 0
A68: =MAX(A65:A67)+NoOne -> 3 | B68: Subtotal Newfoundland Power | C68: =SUM(C66:C67) -> 1104811717 | D68: 1009624141 | E68: 0 | F68: 95188620.58 | G68: 0 | H68: 1104812761 | I68: =IF(D68<>0,C68/D68,0) -> 1.094280211
A70: =MAX(A67:A69)+NoOne -> 4 | B70: Industrial - Firm | C70: ='Isl Ind Summary'!E16 -> 77081467.07 | D70: =IslIntCos!F487 -> 77084808.24 | E70: =(D70/($D$66+$D$70+$D$87))*-$E$95 -> 0 | H70: =SUM(D70:F70) -> 77084808.24
A71: =MAX(A68:A70)+NoOne -> 5 | B71: Industrial - Non-Firm | C71: 0 | D71: =IslIntCos!F488 -> 0 | E71: =+E95 -> 0 | H71: =+C71 -> 0
A72: =MAX(A69:A71)+NoOne -> 6 | B72: Industrial RSP Activity | C72: 0 | H72: =SUM(D72:F72) -> 0
A73: =MAX(A70:A72)+NoOne -> 7 | B73: Subtotal Industrial | C73: =SUM(C70:C72) -> 77081467.07 | D73: =SUM(D70:D72) -> 77084808.24 | E73: =SUM(E70:E72) -> 0 | F73: =SUM(F70:F72) -> 0 | H73: =SUM(H70:H72) -> 77084808.24 | I73: =IF(D73<>0,C73/D73,0) -> 0.999956656
A75: =MAX(A72:A74)+NoOne -> 8 | B75: Unallocated RSP Hydraulic Variation | C75: ='[3]Reconciliation Inputs'!$B$18 -> 0
B77: Rural
A78: =MAX(A75:A77)+NoOne -> 9 | B78: 1.1 Domestic | C78: =SUMPRODUCT(--('[4]Rev COS Output'!$A:$A=K78),'[4]Rev COS Output'!$D:$D) -> 18788947.56 | D78: =IslIntCos!F490 -> 37388533.8 | E78: =(D78/($D$66+$D$70+$D$87))*-$E$95 -> 0 | F78: =C78-D78-E78 -> -18599586.24 | H78: =SUM(D78:F78) -> 18788947.56 | I78: =IF(D78<>0,C78/D78,0) -> 0.5025323448 | K78: ISLINT1.1
A79: 10 | B79: 1.12 Domestic All Electric | C79: =SUMPRODUCT(--('[4]Rev COS Output'!$A:$A=K79),'[4]Rev COS Output'!$D:$D) -> 23929645.32 | D79: =IslIntCos!F491 -> 42858447.73 | E79: 0 | F79: =C79-D79-E79 -> -18928802.41 | H79: 23929645.32 | I79: =IF(D79<>0,C79/D79,0) -> 0.558341391 | K79: ISLINT1.12
A80: 11 | B80: 1.3 Special | C80: =SUMPRODUCT(--('[4]Rev COS Output'!$A:$A=K80),'[4]Rev COS Output'!$D:$D) -> 21703.95 | D80: =IslIntCos!F492 -> 120316.1813 | E80: 0 | F80: -98612.23126 | H80: 21703.95 | I80: 0.180390948 | K80: ISLINT1.3
A81: 12 | B81: 2.1 General Service 0-100 kW | C81: =SUMPRODUCT(--('[4]Rev COS Output'!$A:$A=K81),'[4]Rev COS Output'!$D:$D) -> 12084583.4 | D81: =IslIntCos!F493 -> 18726443.1 | E81: 0 | F81: -6641859.701 | H81: 12084583.4 | I81: 0.6453218764 | K81: ISLINT2.1
A82: 13 | B82: 2.2 General Service 10-100 kW | C82: =SUMPRODUCT(--('[4]Rev COS Output'!$A:$A=K82),'[4]Rev COS Output'!$D:$D) -> 0 | D82: =IslIntCos!F494 -> 0 | E82: 0 | F82: 0 | H82: 0 | I82: 0 | K82: ISLINT2.2
A83: =MAX(A80:A81)+NoOne -> 13 | B83: 2.3 General Service 110-1,000 kVa | C83: =SUMPRODUCT(--('[4]Rev COS Output'!$A:$A=K83),'[4]Rev COS Output'!$D:$D) -> 7645700.217 | D83: =IslIntCos!F495 -> 11511869.29 | E83: 0 | F83: -3866169.074 | H83: 7645700.217 | I83: 0.6641580115 | K83: ISLINT2.3
A84: 14 | B84: 2.4 General Service Over 1,000 kVa | C84: =SUMPRODUCT(--('[4]Rev COS Output'!$A:$A=K84),'[4]Rev COS Output'!$D:$D) -> 5260869.331 | D84: =IslIntCos!F496 -> 7187261.562 | E84: 0 | F84: -1926392.231 | H84: 5260869.331 | I84: 0.7319713197 | K84: ISLINT2.4
A85: 15 | B85: 4.1 Street and Area Lighting | C85: =SUMPRODUCT(--('[4]Rev COS Output'!$A:$A=K85),'[4]Rev COS Output'!$D:$D) -> 1177608.173 | D85: =IslIntCos!F497 -> 1630153.673 | E85: 0 | F85: -452545.4995 | H85: 1177608.173 | I85: 0.7223908966 | K85: ISLINT4.1
A87: =MAX(A84:A86)+NoOne -> 16 | B87: Subtotal Rural | C87: =SUM(C78:C85) -> 68909057.95 | D87: =SUM(D78:D85) -> 119423025.3 | E87: =SUM(E78:E85) -> 0 | F87: =SUM(F78:F85) -> -50513967.39 | H87: =SUM(H78:H85) -> 68909057.95 | I87: =IF(D87<>0,C87/D87,0) -> 0.5770165155
A88: =MAX(A85:A87)+NoOne -> 17 | B88: Total Island Interconnected | C88: =SUM(C87,C73,C68,C75) -> 1250802242 | D88: =SUM(D87,D73,D68,D75) -> 1206131974 | E88: =SUM(E87,E73,E68,E75) -> 0 | F88: =SUM(F87,F73,F68,F75) -> 44674653.19 | H88: =SUM(H87,H73,H68,H75) -> 1250806627 | I88: =IF(D88<>0,C88/D88,0) -> 1.03703597
I97: Schedule G 1.2
I98: Page 3 of 6
A101: =+A6 -> NEWFOUNDLAND AND LABRADOR HYDRO
A102: =RunName -> 2027 Test Year Cost of Service Study (No Rate Mitigation)
A103: Island Isolated
A104: Comparison of Revenue & Allocated Revenue Requirement
B106: =MAX(A106)+NoOne -> 1 | C106: 2 | D106: 3 | E106: 4 | F106: 5 | G106: 6 | H106: =MAX(F106)+NoOne -> 6 | I106: 7
D108: Cost of Service Before | H108: Revenue Requirement | I108: Revenue
A109: Line | D109: Deficit and Revenue | E109: Revenue | G109: RSP | H109: After Deficit and Revenue | I109: to Cost
A110: No. | B110: Rate Class | C110: Revenues | D110: Credit Allocation | E110: Credit | F110: Deficit | G110: Activity | H110: Credit Allocation | I110: Coverage
H111: (Col.3+4+5) | I111: (Col.2/3)
C112: ($) | D112: ($) | E112: ($) | F112: ($) | G112: ($) | H112: ($)
B115: Island Isolated
A116: =MAX(A113:A115)+NoOne -> 1 | B116: 1.2 Domestic Diesel | C116: =SUMPRODUCT(--('[4]Rev COS Output'!$A:$A=K116),'[4]Rev COS Output'!$D:$D) -> 809510.0533 | D116: =IslIsoCos!F420 -> 7704844.264 | F116: =C116-D116 -> -6895334.21 | H116: =SUM(D116,F116) -> 809510.0533 | I116: =IF(D116<>0,C116/D116,0) -> 0.1050650767 | K116: ISLISO1.2
A117: 2 | B117: 1.2G Government Domestic Diesel | C117: =SUMPRODUCT(--('[4]Rev COS Output'!$A:$A=K117),'[4]Rev COS Output'!$D:$D) -> 0 | D117: =IslIsoCos!F421 -> 55464.45589 | F117: =C117-D117 -> -55464.45589 | H117: 0 | I117: =IF(D117<>0,C117/D117,0) -> 0 | K117: ISLISO1.2G
A118: 3 | B118: 1.23 Churches, Schools & Com Halls | C118: =SUMPRODUCT(--('[4]Rev COS Output'!$A:$A=K118),'[4]Rev COS Output'!$D:$D) -> 54842.66046 | D118: =IslIsoCos!F422 -> 367318.7635 | F118: -312476.103 | H118: 54842.66046 | I118: 0.1493053607 | K118: ISLISO1.23
A119: 4 | B119: 2.1 General Service 0-10 kW | C119: =SUMPRODUCT(--('[4]Rev COS Output'!$A:$A=K119),'[4]Rev COS Output'!$D:$D) -> 285054.3629 | D119: =IslIsoCos!F423 -> 823424.7408 | F119: -538370.3779 | H119: 285054.3629 | I119: 0.3461814405 | K119: ISLISO2.1D
A120: 5 | B120: 2.2 GS 10-100 kW | C120: =SUMPRODUCT(--('[4]Rev COS Output'!$A:$A=K120),'[4]Rev COS Output'!$D:$D) -> 535299.3427 | D120: =IslIsoCos!F424 -> 1290296.056 | F120: -754996.7134 | H120: 535299.3427 | I120: 0.4148655188 | K120: ISLISO2.2D
A121: 6 | B121: 2.3 GS 110-1,000 kVa | C121: =SUMPRODUCT(--('[4]Rev COS Output'!$A:$A=K121),'[4]Rev COS Output'!$D:$D) -> 0 | D121: =IslIsoCos!F425 -> 0 | F121: 0 | H121: 0 | I121: 0 | K121: ISLISO2.3
A122: 7 | B122: 2.4 General Service Over 1,000 kVa | C122: =SUMPRODUCT(--('[4]Rev COS Output'!$A:$A=K122),'[4]Rev COS Output'!$D:$D) -> 0 | D122: =IslIsoCos!F426 -> 0 | F122: 0 | H122: 0 | I122: 0 | K122: ISLISO2.4
A123: 8 | B123: 2.5 GS Diesel | C123: =SUMPRODUCT(--('[4]Rev COS Output'!$A:$A=K123),'[4]Rev COS Output'!$D:$D) -> 0 | D123: =IslIsoCos!F427 -> 0 | F123: 0 | H123: 0 | I123: 0 | K123: ISLISO2.5
A124: 9 | B124: 2.5G Gov't General Service Diesel | C124: =SUMPRODUCT(--('[4]Rev COS Output'!$A:$A=K124),'[4]Rev COS Output'!$D:$D) -> 0 | D124: =IslIsoCos!F428 -> 0 | F124: 0 | H124: 0 | I124: 0 | K124: ISLISO2.5G
A125: 8 | B125: 4.1 Street and Area Lighting | C125: =SUMPRODUCT(--('[4]Rev COS Output'!$A:$A=K125),'[4]Rev COS Output'!$D:$D) -> 26858.52048 | D125: =IslIsoCos!F429 -> 163053.2277 | F125: -136194.7073 | H125: 26858.52048 | I125: 0.1647224091 | K125: ISLISO4.1
A126: 9 | B126: 4.1G Gov't Street and Area Lighting | C126: =SUMPRODUCT(--('[4]Rev COS Output'!$A:$A=K126),'[4]Rev COS Output'!$D:$D) -> 6384 | D126: =IslIsoCos!F430 -> 0 | F126: 6384 | H126: 6384 | I126: 0 | K126: ISLISO4.1G
A128: =MAX(A125:A127)+NoOne -> 10 | B128: Total | C128: =SUM(C116:C126) -> 1717948.94 | D128: =SUM(D116:D126) -> 10404401.51 | F128: =SUM(F116:F126) -> -8686452.568 | H128: =SUM(H116:H126) -> 1717948.94 | I128: =IF(D128<>0,C128/D128,0) -> 0.1651175167
I135: Schedule G 1.2
I136: Page 4 of 6
A139: =+A6 -> NEWFOUNDLAND AND LABRADOR HYDRO
A140: =RunName -> 2027 Test Year Cost of Service Study (No Rate Mitigation)
A141: Labrador Isolated
A142: Comparison of Revenue & Allocated Revenue Requirement
B144: =MAX(A144)+NoOne -> 1 | C144: 2 | D144: 3 | E144: 4 | F144: 5 | G144: 6 | H144: =MAX(F144)+NoOne -> 6 | I144: 7
D146: Cost of Service Before | H146: Revenue Requirement | I146: Revenue
A147: Line | D147: Deficit and Revenue | E147: Revenue | G147: RSP | H147: After Deficit and Revenue | I147: to Cost
A148: No. | B148: Rate Class | C148: Revenues | D148: Credit Allocation | E148: Credit | F148: Deficit | G148: Activity | H148: Credit Allocation | I148: Coverage
H149: (Col.3+4+5) | I149: (Col.2/3)
C150: ($) | D150: ($) | E150: ($) | F150: ($) | G150: ($) | H150: ($)
B153: Labrador Isolated
A154: =MAX(A151:A153)+NoOne -> 1 | B154: 1.2 Domestic Diesel | C154: =SUMPRODUCT(--('[4]Rev COS Output'!$A:$A=K154),'[4]Rev COS Output'!$D:$D) -> 4669502.374 | D154: =LabIsoCos!F421 -> 25171515.05 | F154: =C154-D154 -> -20502012.67 | H154: =SUM(D154,F154) -> 4669502.374 | I154: =IF(D154<>0,C154/D154,0) -> 0.1855074025 | K154: LABISO1.2
A155: 2 | B155: 1.2G Government Domestic Diesel | C155: =SUMPRODUCT(--('[4]Rev COS Output'!$A:$A=K155),'[4]Rev COS Output'!$D:$D) -> 945103.9988 | D155: =LabIsoCos!F422 -> 894392.756 | F155: =C155-D155 -> 50711.2428 | H155: 945103.9988 | I155: =IF(D155<>0,C155/D155,0) -> 1.056699076 | K155: LABISO1.2G
A156: 3 | B156: 1.23 Churches, Schools & Com Halls | C156: =SUMPRODUCT(--('[4]Rev COS Output'!$A:$A=K156),'[4]Rev COS Output'!$D:$D) -> 328741.8927 | D156: =LabIsoCos!F423 -> 1337649.255 | F156: -1008907.362 | H156: 328741.8927 | I156: 0.2457609059 | K156: LABISO1.23
A157: 4 | B157: 2.1 General Service 0-10 kW | C157: =SUMPRODUCT(--('[4]Rev COS Output'!$A:$A=K157),'[4]Rev COS Output'!$D:$D) -> 1505529.976 | D157: =LabIsoCos!F424 -> 3692362.273 | F157: -2186832.297 | H157: 1505529.976 | I157: 0.4077416746 | K157: LABISO2.1D
A158: 5 | B158: 2.2 GS 10-100 kW | C158: =SUMPRODUCT(--('[4]Rev COS Output'!$A:$A=K158),'[4]Rev COS Output'!$D:$D) -> 3760678.818 | D158: =LabIsoCos!F425 -> 9555598.324 | F158: -5794919.506 | H158: 3760678.818 | I158: 0.3935576497 | K158: LABISO2.2
A159: 6 | B159: 2.3 GS 110-1,000 kVa | C159: =SUMPRODUCT(--('[4]Rev COS Output'!$A:$A=K159),'[4]Rev COS Output'!$D:$D) -> 364087.4878 | D159: =LabIsoCos!F426 -> 1830406.551 | F159: -1466319.063 | H159: 364087.4878 | I159: 0.1989107215 | K159: LABISO2.3
A160: 7 | B160: 2.4 General Service Over 1,000 kVa | C160: =SUMPRODUCT(--('[4]Rev COS Output'!$A:$A=K160),'[4]Rev COS Output'!$D:$D) -> 245159.7699 | D160: =LabIsoCos!F427 -> 1373674.878 | F160: -1128515.108 | H160: 245159.7699 | I160: 0.1784700106 | K160: LABISO2.4
A161: 8 | B161: 2.5 GS Diesel | C161: =SUMPRODUCT(--('[4]Rev COS Output'!$A:$A=K161),'[4]Rev COS Output'!$D:$D) -> 0 | D161: =LabIsoCos!F428 -> 0 | F161: 0 | H161: 0 | I161: 0 | K161: LABISO2.5
A162: 9 | B162: 2.5G Gov't General Service Diesel | C162: =SUMPRODUCT(--('[4]Rev COS Output'!$A:$A=K162),'[4]Rev COS Output'!$D:$D) -> 0 | D162: =LabIsoCos!F429 -> 0 | F162: 0 | H162: 0 | I162: 0 | K162: LABISO2.5G
A163: 8 | B163: 4.1 Street and Area Lighting | C163: =SUMPRODUCT(--('[4]Rev COS Output'!$A:$A=K163),'[4]Rev COS Output'!$D:$D) -> 144154.8662 | D163: =LabIsoCos!F430 -> 309889.1047 | F163: -165734.2385 | H163: 144154.8662 | I163: 0.4651821056 | K163: LABISO4.1
A164: 9 | B164: 4.1G Gov't Street and Area Lighting | C164: =SUMPRODUCT(--('[4]Rev COS Output'!$A:$A=K164),'[4]Rev COS Output'!$D:$D) -> 6384 | D164: =LabIsoCos!F431 -> 0 | F164: =C164-D164 -> 6384 | H164: 6384 | I164: 0 | K164: LABISO4.1G
A166: =MAX(A163:A165)+NoOne -> 10 | B166: Total | C166: =SUM(C154:C164) -> 11969343.18 | D166: =SUM(D154:D164) -> 44165488.19 | F166: -32196145.01 | H166: =SUM(H154:H164) -> 11969343.18 | I166: =IF(D166<>0,C166/D166,0) -> 0.2710112279
I173: Schedule G 1.2
I174: Page 5 of 6
A177: =+A6 -> NEWFOUNDLAND AND LABRADOR HYDRO
A178: =RunName -> 2027 Test Year Cost of Service Study (No Rate Mitigation)
A179: L'Anse au Loup
A180: Comparison of Revenue & Allocated Revenue Requirement
B182: =MAX(A182)+NoOne -> 1 | C182: 2 | D182: 3 | E182: 4 | F182: 5 | G182: 6 | H182: =MAX(F182)+NoOne -> 6 | I182: 7
D184: Cost of Service Before | H184: Revenue Requirement | I184: Revenue
A185: Line | D185: Deficit and Revenue | E185: Revenue | G185: RSP | H185: After Deficit and Revenue | I185: to Cost
A186: No. | B186: Rate Class | C186: Revenues | D186: Credit Allocation | E186: Credit | F186: Deficit | G186: Activity | H186: Credit Allocation | I186: Coverage
H187: (Col.3+4+5) | I187: (Col.2/3)
C188: ($) | D188: ($) | E188: ($) | F188: ($) | G188: ($) | H188: ($)
B190: L'Anse au Loup
A191: =MAX(A188:A190)+NoOne -> 1 | B191: 1.1 Domestic | C191: =SUMPRODUCT(--('[4]Rev COS Output'!$A:$A=K191),'[4]Rev COS Output'!$D:$D) -> 828511.2948 | D191: =LALCos!F395 -> 2224303.689 | F191: =C191-D191 -> -1395792.394 | H191: =SUM(D191,F191) -> 828511.2948 | I191: =IF(D191<>0,C191/D191,0) -> 0.3724811944 | K191: LAL1.2
A192: 2 | B192: 1.12 Domestic All Electric | C192: =SUMPRODUCT(--('[4]Rev COS Output'!$A:$A=K192),'[4]Rev COS Output'!$D:$D) -> 1782546.83 | D192: =LALCos!F396 -> 4421636.593 | F192: =C192-D192 -> -2639089.762 | H192: 1782546.83 | I192: 0.4031418668 | K192: LAL1.12
A193: 3 | B193: 2.1 General Service 0-100 kW | C193: =SUMPRODUCT(--('[4]Rev COS Output'!$A:$A=K193),'[4]Rev COS Output'!$D:$D) -> 1046117.989 | D193: =LALCos!F397 -> 2332949.62 | F193: -1286831.631 | H193: 1046117.989 | I193: 0.4484100214 | K193: LAL2.1
A194: 4 | B194: 2.2 General Service 10-100 kW | C194: =SUMPRODUCT(--('[4]Rev COS Output'!$A:$A=K194),'[4]Rev COS Output'!$D:$D) -> 0 | D194: =LALCos!F398 -> 0 | F194: 0 | H194: 0 | I194: 0 | K194: LAL2.2
A195: 5 | B195: 2.3 General Service 110-1,000 kVa | C195: =SUMPRODUCT(--('[4]Rev COS Output'!$A:$A=K195),'[4]Rev COS Output'!$D:$D) -> 354037.2956 | D195: =LALCos!F399 -> 690869.1985 | F195: -336831.9029 | H195: 354037.2956 | I195: 0.51245199 | K195: LAL2.3
A196: 6 | B196: 4.1 Street and Area Lighting | C196: =SUMPRODUCT(--('[4]Rev COS Output'!$A:$A=K196),'[4]Rev COS Output'!$D:$D) -> 65923.0968 | D196: =LALCos!F400 -> 88736.76479 | F196: -22813.66799 | H196: 65923.0968 | I196: 0.7429062459 | K196: LAL4.1
A198: =MAX(A195:A197)+NoOne -> 7 | B198: Total L'Anse Au Loup | C198: =SUM(C191:C196) -> 4077136.507 | D198: =SUM(D191:D196) -> 9758495.865 | F198: -5681359.359 | H198: =SUM(H191:H196) -> 4077136.507 | I198: =IF(D198<>0,C198/D198,0) -> 0.4178037848
I205: Schedule G 1.2
I206: Page 6 of 6
A208: =+A6 -> NEWFOUNDLAND AND LABRADOR HYDRO
A209: =RunName -> 2027 Test Year Cost of Service Study (No Rate Mitigation)
A210: Labrador Interconnected
A211: Comparison of Revenue & Allocated Revenue Requirement
B212: =MAX(A212)+NoOne -> 1 | C212: 2 | D212: 3 | E212: 4 | F212: 5 | G212: 6 | H212: =MAX(F212)+NoOne -> 6 | I212: 7
D214: Cost of Service Before | H214: Revenue Requirement | I214: Revenue
A215: Line | D215: Deficit and Revenue | E215: Revenue | F215: Deficit | G215: RSP | H215: After Deficit and Revenue | I215: to Cost
A216: No. | B216: Rate Class | C216: Revenues | D216: Credit Allocation | E216: Credit | F216: Allocation | G216: Activity | H216: Credit Allocation | I216: Coverage
H217: (Col.3+4+5) | I217: (Col.2/3)
C218: ($) | D218: ($) | E218: ($) | F218: ($) | G218: ($) | H218: ($)
B219: Labrador Interconnected
A220: =MAX(A218:A219)+NoOne -> 1 | B220: Labrador Industrial Firm | C220: =(-'Lab Ind Summary'!E11-LabIntCos!G454-LabIntCos!H454)*-1 -> 9171997.769 | D220: =LabIntCos!F454 -> 9172199.896 | F220: =$F$27*(D220/SUM($D$220:$D$221)) -> 0 | H220: =SUM(D220:F220) -> 9172199.896 | I220: =IF(H220<>0,C220/H220,0) -> 0.9999779631
A221: =MAX(A219:A220)+NoOne -> 2 | B221: Labrador Industrial Non-Firm | C221: =+D221 -> 0 | D221: =+LabIntCos!F455 -> 0 | F221: =$F$27*(D221/SUM($D$220:$D$221)) -> 0 | H221: =SUM(D221:F221) -> 0 | I221: 0
A223: =MAX(A220:A222)+NoOne -> 3 | B223: Subtotal Industrial | C223: =+C220+C221+C222 -> 9171997.769 | D223: =+D220+D221+D222 -> 9172199.896 | E223: =+E220+E221+E222 -> 0 | F223: =+F220+F221 -> 0 | H223: =+H220+H221+H222 -> 9172199.896
A225: =MAX(A222:A224)+NoOne -> 4 | B225: CFB - Goose Bay Secondary | C225: =[3]Inputs!$B$26 -> 0 | D225: =LabIntCos!F453 -> 0 | E225: =+E246 -> 0 | F225: 0 | H225: =SUM(D225:F225) -> 0 | I225: =IF(H225<>0,C225/H225,0) -> 0
B227: Rural
A228: =MAX(A225:A227)+NoOne -> 5 | B228: 1.1 Domestic | C228: =SUMPRODUCT(--('[4]Rev COS Output'!$A:$A=K228),'[4]Rev COS Output'!$D:$D) -> 104600.6693 | D228: =LabIntCos!F458 -> 206447.6223 | E228: =-$E$249*(D228/$D$236) -> 0 | F228: =(D228/$D$236)*$F$29 -> 19464.13878 | H228: =SUM(D228:F228) -> 225911.761 | I228: =IF(H228<>0,C228/H228,0) -> 0.4630155987 | K228: LEINT1.1
A229: 6 | B229: 1.1A Domestic All Electric | C229: =SUMPRODUCT(--('[4]Rev COS Output'!$A:$A=K229),'[4]Rev COS Output'!$D:$D) -> 11621731.66 | D229: =LabIntCos!F459 -> 12172687.44 | E229: 0 | F229: 1147656.122 | H229: 13320343.56 | I229: =IF(H229<>0,C229/H229,0) -> 0.8724798727 | K229: LEINT1.12
A230: 7 | B230: 2.1 General Service 0-10 kW | C230: =SUMPRODUCT(--('[4]Rev COS Output'!$A:$A=K230),'[4]Rev COS Output'!$D:$D) -> 297862.2385 | D230: =LabIntCos!F460 -> 302668.0417 | E230: 0 | F230: 28535.91968 | H230: 331203.9614 | I230: 0.8993317511 | K230: LEINT2.1
A231: 8 | B231: 2.2 General Service 10-100 kW | C231: =SUMPRODUCT(--('[4]Rev COS Output'!$A:$A=K231),'[4]Rev COS Output'!$D:$D) -> 2454187.939 | D231: =LabIntCos!F461 -> 1963428.76 | E231: 0 | F231: 185114.5072 | H231: 2148543.267 | I231: 1.142256699 | K231: LEINT2.2
A232: 9 | B232: 2.3 General Service 110-1,000 kVa | C232: =SUMPRODUCT(--('[4]Rev COS Output'!$A:$A=K232),'[4]Rev COS Output'!$D:$D) -> 4196071.885 | D232: =LabIntCos!F462 -> 2864081.836 | E232: 0 | F232: 270029.2002 | H232: 3134111.037 | I232: 1.338839574 | K232: LEINT2.3
A233: 10 | B233: 2.4 General Service Over 1,000 kVa | C233: =SUMPRODUCT(--('[4]Rev COS Output'!$A:$A=K233),'[4]Rev COS Output'!$D:$D) -> 2863985.647 | D233: =LabIntCos!F463 -> 2090121.321 | E233: 0 | F233: 197059.2395 | H233: 2287180.56 | I233: 1.252190447 | K233: LEINT2.4
A234: 11 | B234: 4.1 Street and Area Lighting | C234: =SUMPRODUCT(--('[4]Rev COS Output'!$A:$A=K234),'[4]Rev COS Output'!$D:$D) -> 392808 | D234: =LabIntCos!F464 -> 439584.8833 | E234: 0 | F234: 41444.60992 | H234: 481029.4933 | I234: 0.8165985776 | K234: LEINT4.1
A236: =MAX(A233:A235)+NoOne -> 12 | B236: Subtotal Rural | C236: =SUM(C228:C234) -> 21931248.04 | D236: =SUM(D228:D234) -> 20039019.91 | E236: =SUM(E228:E234) -> 0 | F236: =SUM(F228:F234) -> 1889303.738 | H236: =SUM(D236:F236) -> 21928323.64
A237: =MAX(A234:A236)+NoOne -> 13 | B237: Total Labrador Interconnected | C237: =+C236+C225+C223 -> 31103245.81 | D237: =+D236+D225+D223 -> 29211219.8 | E237: =+E236+E225+E223 -> 0 | F237: =+F236+F225+F223 -> 1889303.738 | H237: =SUM(D237:F237) -> 31100523.54
B239: NOTES:
B240: Revenue to Cost ratios include the deficit allocation when calculated for individual rate classes.
B242: Calculation of CFB - Goose Bay Secondary Revenue Credit
B243: CFB - Goose Bay Secondary Revenues, Ln 4, Col 2 | E243: =+C225 -> 0
B244: CFB - Goose Bay Secondary Allocated Cost of Service, Ln 4, Col 3 | E244: =-D225 -> 0
B245: CFB - Goose Bay Secondary Allocated Deficit, Ln 4, Col 5 | E245: 0
B246: Revenue Credit | E246: =SUM(E243:E245) -> 0
B248: Revenue Credit Applied to Deficit | D248: =+RunOptions!B18 -> 1 | E248: =+E246*D248 -> 0
B249: Revenue Credit Applied to Firm Regulated Labrador Interconnected Customers | E249: =+E246-E248 -> 0
E250: =SUM(E248:E249) -> 0
H251: Schedule G 1.2.1
H252: Page 1 of 2
A255: =+A6 -> NEWFOUNDLAND AND LABRADOR HYDRO
A256: =RunName -> 2027 Test Year Cost of Service Study (No Rate Mitigation)
A257: Total System
A258: Rural Deficit Allocation
B260: =MAX(A260)+NoOne -> 1 | C260: 2 | F260: =MAX(C260)+NoOne -> 3 | H260: =MAX(F260)+NoOne -> 4 | I260: =MAX(H260)+NoOne -> 5
C262: Before Deficit and Revenue Credit Allocation
A263: Line | C263: Allocated | D263: Rural Rate | E263: Net Alocated
A264: No. | B264: Rate Class | C264: Revenue Reqt | D264: Mitigation | E264: Revenue Reqt | F264: Demand | H264: Energy | I264: Customer
C265: ($) | D265: ($) | E265: ($) | F265: ($) | H265: ($) | I265: ($)
B267: CLASSIFICATION TO DEMAND, ENERGY, CUSTOMERS:
A268: =MAX(A265:A267)+NoOne -> 1 | B268: Newfoundland Power | C268: =SUM(F268:I268) -> 1009624141 | E268: =SUM(C268:D268) -> 1009624141 | F268: ='Unit Costs'!AL17 -> 565424999.6 | H268: ='Unit Costs'!AM17 -> 441457478.9 | I268: ='Unit Costs'!AN17 -> 2741662.236
A269: =MAX(A266:A268)+NoOne -> 2 | B269: Rural Labrador Interconnected | C269: =SUM(F269:I269) -> 20039019.91 | E269: =SUM(C269:D269) -> 20039019.91 | F269: ='Unit Costs'!AZ24 -> 12775025.53 | H269: ='Unit Costs'!BA24 -> 1088077.398 | I269: ='Unit Costs'!BB24 -> 6175916.979
A271: =MAX(A268:A270)+NoOne -> 3 | B271: Total | C271: =SUM(C268:C269) -> 1029663161 | E271: =SUM(E268:E269) -> 1029663161 | F271: =SUM(F268:F269) -> 578200025.1 | H271: =SUM(H268:H269) -> 442545556.3 | I271: =SUM(I268:I269) -> 8917579.215
A273: =MAX(A270:A272)+NoOne -> 4 | B273: Deficit Classified | C273: =-1*F38 -> 97077924.32 | D273: 0 | E273: =SUM(C273:D273) -> 97077924.32 | F273: =E273-SUM(H273:I273) -> 54513418.01 | H273: =H$271/$C$271*$E$273 -> 41723745.85 | I273: =I$271/$C$271*$E$273 -> 840760.4675
B276: NOTE: This page omitted from the print range in favour of Page 2 below.
B288: * Specifically assigned costs are converted to equivalent unweighted customers
B289: by dividing the assigned cost by the allocated customer cost per unweighted customer.
B291: Rural Customer Costs per Rural Customer:
B292: Island Interconnected: | D292: ='Unit Costs'!$S$30/('Unit Costs'!$AD$30/12) -> 534.2075103
B293: Labrador Interconnected: | D293: ='Unit Costs'!$S$126/('Unit Costs'!$AD$126/12) -> 507.3448294
H294: Schedule G 1.2.1
H295: Page 1 of 1
A298: =+A6 -> NEWFOUNDLAND AND LABRADOR HYDRO
A299: =RunName -> 2027 Test Year Cost of Service Study (No Rate Mitigation)
A300: Total System
... 20 more rows

Sheet Unit Costs
M2: Schedule G 1.3 | X2: Schedule G 1.3.1 | AD2: Schedule G 1.3.2 | AN2: Schedule G 1.3.1A | AU2: Schedule G 1.3.1A | BB2: Schedule G 1.3.1A
M3: Page 1 of 3 | X3: Page 1 of 3 | AD3: Page 1 of 3 | AN3: Page 1 of 3 | AU3: Page 2 of 3 | BB3: Page 2 of 3
A5: NEWFOUNDLAND AND LABRADOR HYDRO | N5: NEWFOUNDLAND & LABRADOR HYDRO | Y5: NEWFOUNDLAND & LABRADOR HYDRO | AI5: NEWFOUNDLAND & LABRADOR HYDRO | AP5: NEWFOUNDLAND & LABRADOR HYDRO | AW5: NEWFOUNDLAND & LABRADOR HYDRO
A6: =RunName -> 2027 Test Year Cost of Service Study (No Rate Mitigation) | N6: =RunName -> 2027 Test Year Cost of Service Study (No Rate Mitigation) | Y6: =RunName -> 2027 Test Year Cost of Service Study (No Rate Mitigation) | AI6: =RunName -> 2027 Test Year Cost of Service Study (No Rate Mitigation) | AP6: =RunName -> 2027 Test Year Cost of Service Study (No Rate Mitigation) | AW6: =RunName -> 2027 Test Year Cost of Service Study (No Rate Mitigation)
A7: Unit Demand, Energy & Customer Amounts | N7: Total Demand, Energy & Customer Amounts | Y7: Demands, Sales, & Number of Bills | AI7: Rate Mitigation Summary | AP7: Rate Mitigation Summary | AW7: Rate Mitigation Summary
B10: =MAX(A10)+NoOne -> 1 | C10: 2 | D10: 3 | E10: 4 | F10: 5 | G10: 6 | I10: =MAX(G10)+NoOne -> 7 | J10: =MAX(I10)+NoOne -> 8 | K10: =MAX(J10)+NoOne -> 9 | L10: =MAX(K10)+NoOne -> 10 | M10: =MAX(L10)+NoOne -> 11 | O10: =MAX(N10)+NoOne -> 1 | P10: =MAX(O10)+NoOne -> 2 | Q10: =MAX(P10)+NoOne -> 3 | R10: =MAX(Q10)+NoOne -> 4 | S10: =MAX(R10)+NoOne -> 5 | U10: =MAX(S10)+NoOne -> 6 | V10: =MAX(U10)+NoOne -> 7 | W10: =MAX(V10)+NoOne -> 8 | X10: =MAX(W10)+NoOne -> 9 | Z10: =MAX(Y10)+NoOne -> 1 | AA10: =MAX(Z10)+NoOne -> 2 | AB10: =MAX(AA10)+NoOne -> 3 | AC10: =MAX(AB10)+NoOne -> 4 | AD10: =MAX(AC10)+NoOne -> 5 | AJ10: =MAX(AI10)+NoOne -> 1 | AK10: =MAX(AJ10)+NoOne -> 2 | AL10: =MAX(AK10)+NoOne -> 3 | AM10: =MAX(AL10)+NoOne -> 4 | AN10: =MAX(AM10)+NoOne -> 5 | AQ10: =MAX(AP10)+NoOne -> 1 | AR10: =MAX(AQ10)+NoOne -> 2 | AS10: =MAX(AR10)+NoOne -> 3 | AT10: =MAX(AS10)+NoOne -> 4 | AU10: =MAX(AT10)+NoOne -> 5 | AX10: =MAX(AW10)+NoOne -> 1 | AY10: =MAX(AX10)+NoOne -> 2 | AZ10: =MAX(AY10)+NoOne -> 3 | BA10: =MAX(AZ10)+NoOne -> 4 | BB10: =MAX(BA10)+NoOne -> 5
B12: Rate Class | C12: Before Deficit and Revenue Credit Allocation | I12: After Deficit and Revenue Credit Allocation | AA12: Units
A13: Line | C13: Demand | F13: Non-Demand | I13: Demand | L13: Non-Demand | N13: Line | O13: Rate Class | P13: Before Deficit and Revenue Credit Allocation | U13: After Deficit and Revenue Credit Allocation | Y13: Line | AA13: Billing | AG13: Billing | AI13: Line | AJ13: Rate Class | AK13: Before Rate Mitigation | AP13: Line | AQ13: Rate Class | AR13: Rate Mitigation | AW13: Line | AX13: Rate Class | AY13: Net Revenue Requirement (Before Rural Deficit if applicable)
A14: No. | C14: Demand | D14: Non-Demand | E14: Energy | F14: Demand & Energy | G14: Customer | I14: Demand | J14: Non-Demand | K14: Energy | L14: Demand & Energy | M14: Customer | N14: No. | P14: Total | Q14: Demand | R14: Energy | S14: Customer | U14: Total | V14: Demand | W14: Energy | X14: Customer | Y14: No. | Z14: Rate Class | AA14: Demands | AB14: Sales | AC14: Customers | AD14: Bills | AG14: Demands | AH14: Sales | AI14: No. | AK14: Total | AL14: Demand | AM14: Energy | AN14: Customer | AP14: No. | AR14: Total | AS14: Demand | AT14: Energy | AU14: Customer | AW14: No. | AY14: Total | AZ14: Demand | BA14: Energy | BB14: Customer
C15: ($/kW) | D15: ($/kWh) | E15: ($/kWh) | F15: ($/kWh) | G15: ($/Bill) | I15: ($/kW) | J15: ($/kWh) | K15: ($/kWh) | L15: ($/kWh) | M15: ($/Bill) | P15: ($) | Q15: ($) | R15: ($) | S15: ($) | U15: ($) | V15: ($) | W15: ($) | X15: ($) | AA15: (kW) | AB15: (MWh) | AD15: (Total No) | AG15: (%) | AH15: (%) | AK15: ($) | AL15: ($) | AM15: ($) | AN15: ($) | AR15: ($) | AS15: ($) | AT15: ($) | AU15: ($) | AY15: ($) | AZ15: ($) | BA15: ($) | BB15: ($)
B16: Island Interconnected | O16: Island Interconnected | Z16: Island Interconnected | AJ16: Island Interconnected | AQ16: Island Interconnected | AX16: Island Interconnected
A17: =MAX(A14:A16)+NoOne -> 1 | B17: Newfoundland Power | C17: =IF(AA17<>0,Q17/AA17,0) -> 33.53644828 | D17: =IF(AND(AA17<>0,AB17<>0),0,IF(AA17<>0,0,IF(AB17<>0,Q17/(AB17*1000),0))) -> 0 | E17: =IF(AB17<>0,R17/(AB17*1000),0) -> 0.0733978652 | F17: =IF(AND(AA17<>0,AB17<>0),0,IF(AA17<>0,0,IF(AB17<>0,SUM(D17:E17),0))) -> 0 | G17: =IF(AD17<>0,S17/AD17,0) -> 228471.853 | I17: =IF(AA17<>0,V17/AA17,0) -> 36.69830636 | J17: =IF(AND(AA17<>0,AB17<>0),0,IF(AA17<>0,0,IF(AB17<>0,V17/(AB17*1000),0))) -> 0 | K17: =IF(AB17<>0,W17/(AB17*1000),0) -> 0.08031790728 | L17: =IF(AND(AA17<>0,AB17<>0),0,IF(AA17<>0,0,IF(AB17<>0,SUM(J17:K17),0))) -> 0 | M17: =IF(AD17<>0,X17/AD17,0) -> 250012.4637 | N17: =MAX(N14:N16)+NoOne -> 1 | O17: Newfoundland Power | P17: =SUM(Q17:S17) -> 1009624141 | Q17: =SUM(IslIntCos!G486,IslIntCos!I486:L486,IslIntCos!N486,IslIntCos!P486) -> 565424999.6 | R17: =SUM(IslIntCos!H486) -> 441457478.9 | S17: =SUM(IslIntCos!M486,IslIntCos!O486,IslIntCos!Q486:V486) -> 2741662.236 | U17: ='Rev to Cost'!H68 -> 1104812761 | V17: =IF($P17<>0,$U17/$P17*Q17,0) -> 618733972.3 | W17: 483078639.4 | X17: 3000149.564 | Y17: 1 | Z17: Newfoundland Power | AA17: ='NPRateCalc Detail'!E5 -> 16860014.36 | AB17: =SUMPRODUCT(--('[2]Summary of Factors'!$A$1:$A$63981=$AE17),'[2]Summary of Factors'!$C$1:$C$63981) -> 6014582 | AC17: =SUMPRODUCT(--('[2]Summary of Factors'!$A$1:$A$63981=$AE17),'[2]Summary of Factors'!$D$1:$D$63981) -> 1 | AD17: =12*Customers!$D$29 -> 12 | AE17: ISLINTNP | AG17: =AA17/AA$31 -> 0.9112249624 | AH17: 0.8527121126 | AI17: =MAX(AI14:AI16)+NoOne -> 1 | AJ17: Newfoundland Power | AK17: =P17 -> 1009624141 | AL17: =Q17 -> 565424999.6 | AM17: 441457478.9 | AN17: 2741662.236 | AP17: =MAX(AP14:AP16)+NoOne -> 1 | AQ17: Newfoundland Power | AR17: =SUM(AS17:AU17) -> 0 | AS17: =AS$27*IslIntCos!J502 -> 0 | AT17: =AT$27*IslIntCos!K502 -> 0 | AU17: =AU$27*IslIntCos!L502 -> 0 | AW17: =MAX(AW14:AW16)+NoOne -> 1 | AX17: Newfoundland Power | AY17: =AK17+AR17 -> 1009624141 | AZ17: =AL17+AS17 -> 565424999.6 | BA17: =AM17+AT17 -> 441457478.9 | BB17: =AN17+AU17 -> 2741662.236
A18: =MAX(A15:A17)+NoOne -> 2 | B18: Industrial - Firm | C18: =IF(AA18<>0,Q18/AA18,0) -> 28.88363239 | D18: =IF(AND(AA18<>0,AB18<>0),0,IF(AA18<>0,0,IF(AB18<>0,Q18/(AB18*1000),0))) -> 0 | E18: =IF(AB18<>0,R18/(AB18*1000),0) -> 0.07340895853 | F18: =IF(AND(AA18<>0,AB18<>0),0,IF(AA18<>0,0,IF(AB18<>0,SUM(D18:E18),0))) -> 0 | G18: =IF(AD18<>0,S18/AD18,0) -> 5735.4073 | I18: =IF(AA18<>0,V18/AA18,0) -> 28.88363239 | J18: 0 | K18: 0.07340895853 | L18: =IF(AND(AA18<>0,AB18<>0),0,IF(AA18<>0,0,IF(AB18<>0,SUM(J18:K18),0))) -> 0 | M18: =IF(AD18<>0,X18/AD18,0) -> 5735.4073 | N18: =MAX(N15:N17)+NoOne -> 2 | O18: Industrial - Firm | P18: =SUM(Q18:S18) -> 77084808.24 | Q18: =SUM(IslIntCos!G487,IslIntCos!I487:L487,IslIntCos!N487,IslIntCos!P487) -> 31644907.65 | R18: =SUM(IslIntCos!H487) -> 45026951.26 | S18: =SUM(IslIntCos!M487,IslIntCos!O487,IslIntCos!Q487:V487) -> 412949.3256 | U18: ='Rev to Cost'!H70 -> 77084808.24 | V18: 31644907.65 | W18: 45026951.26 | X18: 412949.3256 | Y18: =+Y17+1 -> 2 | Z18: Industrial - Firm | AA18: ='Isl Ind Summary'!E5 -> 1095600 | AB18: =SUMPRODUCT(--('[2]Summary of Factors'!$A$1:$A$63981=$AE18),'[2]Summary of Factors'!$C$1:$C$63981) -> 613371.34 | AC18: =SUMPRODUCT(--('[2]Summary of Factors'!$A$1:$A$63981=$AE18),'[2]Summary of Factors'!$D$1:$D$63981) -> 6 | AD18: =12*Customers!$D$30 -> 72 | AE18: ISLINTINDF | AG18: 0.05921335816 | AH18: 0.08696018629 | AI18: =MAX(AI15:AI17)+NoOne -> 2 | AJ18: Industrial - Firm | AK18: =P18 -> 77084808.24 | AL18: =Q18 -> 31644907.65 | AM18: =R18 -> 45026951.26 | AN18: =S18 -> 412949.3256 | AP18: =MAX(AP15:AP17)+NoOne -> 2 | AQ18: Industrial - Firm | AR18: =SUM(AS18:AU18) -> 0 | AS18: =AS$27*IslIntCos!J503 -> 0 | AT18: =AT$27*IslIntCos!K503 -> 0 | AU18: =AU$27*IslIntCos!L503 -> 0 | AW18: =MAX(AW15:AW17)+NoOne -> 2 | AX18: Industrial - Firm | AY18: =AK18+AR18 -> 77084808.24 | AZ18: =AL18+AS18 -> 31644907.65 | BA18: 45026951.26 | BB18: 412949.3256
A19: =MAX(A16:A18)+NoOne -> 3 | B19: Industrial - Non-Firm | C19: =IF(AA19<>0,Q19/AA19,0) -> 0 | D19: =IF(AND(AA19<>0,AB19<>0),0,IF(AA19<>0,0,IF(AB19<>0,Q19/(AB19*1000),0))) -> 0 | E19: =IF(AB19<>0,R19/(AB19*1000),0) -> 0 | F19: =IF(AND(AA19<>0,AB19<>0),0,IF(AA19<>0,0,IF(AB19<>0,SUM(D19:E19),0))) -> 0 | G19: =IF(AD19<>0,S19/AD19,0) -> 0 | I19: =IF(AA19<>0,V19/AA19,0) -> 0 | J19: 0 | K19: 0 | L19: =IF(AND(AA19<>0,AB19<>0),0,IF(AA19<>0,0,IF(AB19<>0,SUM(J19:K19),0))) -> 0 | M19: =IF(AD19<>0,X19/AD19,0) -> 0 | N19: =MAX(N16:N18)+NoOne -> 3 | O19: Industrial - Non-Firm | P19: =SUM(Q19:S19) -> 0 | Q19: =SUM(IslIntCos!G488,IslIntCos!I488:L488,IslIntCos!N488,IslIntCos!P488) -> 0 | R19: =SUM(IslIntCos!H488) -> 0 | S19: =SUM(IslIntCos!M488,IslIntCos!O488,IslIntCos!Q488:V488) -> 0 | U19: ='Rev to Cost'!H71 -> 0 | V19: 0 | W19: 0 | X19: 0 | Y19: =+Y18+1 -> 3 | Z19: Industrial - Non-Firm | AA19: 0 | AB19: =SUMPRODUCT(--('[2]Summary of Factors'!$A$1:$A$63981=$AE19),'[2]Summary of Factors'!$C$1:$C$63981) -> 0 | AC19: =SUMPRODUCT(--('[2]Summary of Factors'!$A$1:$A$63981=$AE19),'[2]Summary of Factors'!$D$1:$D$63981) -> 0 | AD19: 0 | AE19: ISLINTINDNF | AG19: 0 | AH19: 0 | AI19: =MAX(AI16:AI18)+NoOne -> 3 | AJ19: Industrial - Non-Firm | AK19: 0 | AL19: 0 | AM19: 0 | AN19: 0 | AP19: =MAX(AP16:AP18)+NoOne -> 3 | AQ19: Industrial - Non-Firm | AR19: 0 | AS19: =AS$27*IslIntCos!J504 -> 0 | AT19: =AT$27*IslIntCos!K504 -> 0 | AU19: =AU$27*IslIntCos!L504 -> 0 | AW19: =MAX(AW16:AW18)+NoOne -> 3 | AX19: Industrial - Non-Firm | AY19: 0 | AZ19: 0 | BA19: 0 | BB19: 0
B20: Rural | K20: 0 | O20: Rural | Z20: Rural | AI20: =MAX(AI17:AI19)+NoOne -> 4 | AJ20: Rural Island | AK20: =P30 -> 119423025.3 | AL20: =Q30 -> 72090235.32 | AM20: 34299195.19 | AN20: 13033594.84 | AP20: =MAX(AP17:AP19)+NoOne -> 4 | AQ20: Rural Island | AR20: =SUM(AS20:AU20) -> 0 | AS20: =AS$27*IslIntCos!J505 -> 0 | AT20: =AT$27*IslIntCos!K505 -> 0 | AU20: =AU$27*IslIntCos!L505 -> 0 | AW20: =MAX(AW17:AW19)+NoOne -> 4 | AX20: Rural Island | AY20: 119423025.3 | AZ20: 72090235.32 | BA20: 34299195.19 | BB20: 13033594.84
A21: =MAX(A18:A20)+NoOne -> 4 | B21: 1.1 Domestic | C21: =IF(AA21<>0,Q21/AA21,0) -> 0 | D21: =IF(AND(AA21<>0,AB21<>0),0,IF(AA21<>0,0,IF(AB21<>0,Q21/(AB21*1000),0))) -> 0.2118645522 | E21: =IF(AB21<>0,R21/(AB21*1000),0) -> 0.08071856782 | F21: =IF(AND(AA21<>0,AB21<>0),0,IF(AA21<>0,0,IF(AB21<>0,SUM(D21:E21),0))) -> 0.29258312 | G21: =IF(AD21<>0,S21/AD21,0) -> 40.24512145 | I21: =IF(AA21<>0,V21/AA21,0) -> 0 | J21: 0 | K21: 0 | L21: =IF(AND(AA21<>0,AB21<>0),0,IF(AA21<>0,0,IF(AB21<>0,SUM(J21:K21),0))) -> 0 | M21: =IF(AD21<>0,X21/AD21,0) -> 0 | N21: =MAX(N18:N20)+NoOne -> 4 | O21: 1.1 Domestic | P21: =SUM(Q21:S21) -> 37388533.8 | Q21: =SUM(IslIntCos!G490,IslIntCos!I490:L490,IslIntCos!N490,IslIntCos!P490) -> 23054201.58 | R21: =SUM(IslIntCos!H490) -> 8783452.045 | S21: =SUM(IslIntCos!M490,IslIntCos!O490,IslIntCos!Q490:V490) -> 5550880.173 | U21: 0 | V21: =IF(P21<>0,$U21/$P21*Q21,0) -> 0 | W21: 0 | X21: 0 | Y21: =+Y19+1 -> 4 | Z21: 1.1 Domestic | AA21: =SUMPRODUCT(--('[2]Summary of Factors'!$A$1:$A$63981=$AE21),'[2]Summary of Factors'!$E$1:$E$63981) -> 0 | AB21: =SUMPRODUCT(--('[2]Summary of Factors'!$A$1:$A$63981=$AE21),'[2]Summary of Factors'!$C$1:$C$63981) -> 108815.7568 | AC21: =SUMPRODUCT(--('[2]Summary of Factors'!$A$1:$A$63981=$AE21),'[2]Summary of Factors'!$D$1:$D$63981) -> 11493.89867 | AD21: =12*Customers!$D32 -> 137926.784 | AE21: ISLINT1.1 | AY21: 0 | AZ21: 0 | BA21: 0 | BB21: 0
A22: 5 | B22: 1.12 Domestic All Electric | C22: 0 | D22: 0.1826098859 | E22: 0.08081156697 | F22: 0.2634214528 | G22: 40.2914895 | I22: 0 | J22: 0 | K22: 0 | L22: 0 | M22: 0 | N22: 5 | O22: 1.12 Domestic All Electric | P22: 42858447.73 | Q22: =SUM(IslIntCos!G491,IslIntCos!I491:L491,IslIntCos!N491,IslIntCos!P491) -> 26789919.02 | R22: =SUM(IslIntCos!H491) -> 11855520.99 | S22: =SUM(IslIntCos!M491,IslIntCos!O491,IslIntCos!Q491:V491) -> 4213007.72 | U22: 0 | V22: 0 | W22: 0 | X22: 0 | Y22: =+Y21+1 -> 5 | Z22: 1.12 Domestic All Electric | AA22: =SUMPRODUCT(--('[2]Summary of Factors'!$A$1:$A$63981=$AE22),'[2]Summary of Factors'!$E$1:$E$63981) -> 0 | AB22: =SUMPRODUCT(--('[2]Summary of Factors'!$A$1:$A$63981=$AE22),'[2]Summary of Factors'!$C$1:$C$63981) -> 146705.7432 | AC22: =SUMPRODUCT(--('[2]Summary of Factors'!$A$1:$A$63981=$AE22),'[2]Summary of Factors'!$D$1:$D$63981) -> 8713.601335 | AD22: =12*Customers!$D33 -> 104563.216 | AE22: ISLINT1.12 | AI22: =MAX(AI19:AI21)+NoOne -> 5 | AJ22: Total Island Interconnected | AK22: =SUM(AK13:AK20) -> 1206131974 | AL22: =SUM(AL13:AL20) -> 669160142.5 | AM22: 520783625.3 | AN22: 16188206.4 | AP22: =MAX(AP19:AP21)+NoOne -> 5 | AQ22: Total Island Interconnected | AR22: 0 | AS22: 0 | AT22: 0 | AU22: 0 | AW22: =MAX(AW19:AW21)+NoOne -> 5 | AX22: Total Island Interconnected | AY22: 1206131974 | AZ22: 669160142.5 | BA22: 520783625.3 | BB22: 16188206.4
A23: 6 | B23: 1.3 Special | C23: 0 | D23: 0.2671310173 | E23: 0.08022034699 | F23: 0.3473513643 | G23: 39.99671569 | I23: 0 | J23: 0 | K23: 0 | L23: 0 | M23: 0 | N23: 6 | O23: 1.3 Special | P23: 120316.1813 | Q23: =SUM(IslIntCos!G492,IslIntCos!I492:L492,IslIntCos!N492,IslIntCos!P492) -> 92160.20096 | R23: =SUM(IslIntCos!H492) -> 27676.01971 | S23: =SUM(IslIntCos!M492,IslIntCos!O492,IslIntCos!Q492:V492) -> 479.9605883 | U23: 0 | V23: 0 | W23: 0 | X23: 0 | Y23: 6 | Z23: 1.3 Special | AA23: =SUMPRODUCT(--('[2]Summary of Factors'!$A$1:$A$63981=$AE23),'[2]Summary of Factors'!$E$1:$E$63981) -> 0 | AB23: =SUMPRODUCT(--('[2]Summary of Factors'!$A$1:$A$63981=$AE23),'[2]Summary of Factors'!$C$1:$C$63981) -> 345 | AC23: =SUMPRODUCT(--('[2]Summary of Factors'!$A$1:$A$63981=$AE23),'[2]Summary of Factors'!$D$1:$D$63981) -> 1 | AD23: =12*Customers!$D34 -> 12 | AE23: ISLINT1.3
A24: 7 | B24: 2.1 General Service 0-10 kW | C24: 42.93005609 | D24: 0 | E24: 0.08105683616 | F24: 0 | G24: 59.31818883 | I24: 0 | J24: 0 | K24: 0 | L24: 0 | M24: 0 | N24: 7 | O24: 2.1 General Service 0-10 kW | P24: 18726443.1 | Q24: =SUM(IslIntCos!G493,IslIntCos!I493:L493,IslIntCos!N493,IslIntCos!P493) -> 10657498.67 | R24: =SUM(IslIntCos!H493) -> 5903949.175 | S24: =SUM(IslIntCos!M493,IslIntCos!O493,IslIntCos!Q493:V493) -> 2164995.256 | Y24: 7 | Z24: 2.1 General Service 0-10 kW | AA24: =SUMPRODUCT(--('[2]Summary of Factors'!$A$1:$A$63981=$AE24),'[2]Summary of Factors'!$E$1:$E$63981) -> 248252.6146 | AB24: =SUMPRODUCT(--('[2]Summary of Factors'!$A$1:$A$63981=$AE24),'[2]Summary of Factors'!$C$1:$C$63981) -> 72837.15297 | AC24: =SUMPRODUCT(--('[2]Summary of Factors'!$A$1:$A$63981=$AE24),'[2]Summary of Factors'!$D$1:$D$63981) -> 3041.5 | AD24: =12*Customers!$D35 -> 36498 | AE24: ISLINT2.1 | AI24: =MAX(AI21:AI23)+NoOne -> 6 | AJ24: Rural Labrador Interconnected | AK24: =P126 -> 20039019.91 | AL24: =Q126 -> 12775025.53 | AM24: =R126 -> 1088077.398 | AN24: =S126 -> 6175916.979 | AP24: =MAX(AP21:AP23)+NoOne -> 6 | AQ24: Rural Labrador Interconnected | AR24: 0 | AS24: 0 | AT24: 0 | AU24: 0 | AW24: =MAX(AW21:AW23)+NoOne -> 6 | AX24: Rural Labrador Interconnected | AY24: =AK24+AR24 -> 20039019.91 | AZ24: 12775025.53 | BA24: 1088077.398 | BB24: 6175916.979
A25: 8 | B25: 2.2 General Service 10-100 kW | C25: 0 | D25: 0 | E25: 0 | F25: 0 | G25: 0 | I25: 0 | J25: 0 | K25: 0 | L25: 0 | M25: 0 | N25: 8 | O25: 2.2 General Service 10-100 kW | P25: 0 | Q25: =SUM(IslIntCos!G494,IslIntCos!I494:L494,IslIntCos!N494,IslIntCos!P494) -> 0 | R25: =SUM(IslIntCos!H494) -> 0 | S25: =SUM(IslIntCos!M494,IslIntCos!O494,IslIntCos!Q494:V494) -> 0 | U25: 0 | V25: =IF(P25<>0,$U25/$P25*Q25,0) -> 0 | W25: 0 | X25: 0 | Y25: 8 | Z25: 2.2 General Service 10-100 kW | AA25: =SUMPRODUCT(--('[2]Summary of Factors'!$A$1:$A$63981=$AE25),'[2]Summary of Factors'!$E$1:$E$63981) -> 0 | AB25: =SUMPRODUCT(--('[2]Summary of Factors'!$A$1:$A$63981=$AE25),'[2]Summary of Factors'!$C$1:$C$63981) -> 0 | AC25: =SUMPRODUCT(--('[2]Summary of Factors'!$A$1:$A$63981=$AE25),'[2]Summary of Factors'!$D$1:$D$63981) -> 0 | AD25: =12*Customers!$D36 -> 0 | AE25: ISLINT2.2 | AI25: =MAX(AI20:AI24)+NoOne -> 7 | AJ25: Labrador Industrial | AK25: =P111 -> 9172199.896 | AL25: =Q111 -> 9127445.421 | AM25: =R111 -> 0 | AN25: =S111 -> 44754.47508 | AP25: =MAX(AP20:AP24)+NoOne -> 7 | AQ25: Labrador Industrial | AR25: 0 | AS25: 0 | AT25: 0 | AU25: 0 | AW25: =MAX(AW20:AW24)+NoOne -> 7 | AX25: Labrador Industrial | AY25: 9172199.896 | AZ25: 9127445.421 | BA25: 0 | BB25: 44754.47508
A26: 9 | B26: 2.3 General Service 110-1,000 kVa | C26: 41.1353471 | D26: 0 | E26: 0.08079084104 | F26: 0 | G26: 77.68247947 | I26: 0 | J26: 0 | K26: 0 | L26: 0 | M26: 0 | N26: 9 | O26: 2.3 General Service 110-1,000 kVa | P26: 11511869.29 | Q26: =SUM(IslIntCos!G495,IslIntCos!I495:L495,IslIntCos!N495,IslIntCos!P495) -> 7034411.135 | R26: =SUM(IslIntCos!H495) -> 4399620.311 | S26: =SUM(IslIntCos!M495,IslIntCos!O495,IslIntCos!Q495:V495) -> 77837.84443 | U26: 0 | V26: 0 | W26: 0 | X26: 0 | Y26: 9 | Z26: 2.3 General Service 110-1,000 kVa | AA26: =SUMPRODUCT(--('[2]Summary of Factors'!$A$1:$A$63981=$AE26),'[2]Summary of Factors'!$E$1:$E$63981) -> 171006.4854 | AB26: =SUMPRODUCT(--('[2]Summary of Factors'!$A$1:$A$63981=$AE26),'[2]Summary of Factors'!$C$1:$C$63981) -> 54456.91931 | AC26: =SUMPRODUCT(--('[2]Summary of Factors'!$A$1:$A$63981=$AE26),'[2]Summary of Factors'!$D$1:$D$63981) -> 83.5 | AD26: =12*Customers!$D37 -> 1002 | AE26: ISLINT2.3 | AJ26: Total Revenue Requirement | AQ26: Total Revenue Requirement | AX26: Total Revenue Requirement
A27: 10 | B27: 2.4 General Service Over 1,000 kVa | C27: 31.47573075 | D27: 0 | E27: 0.07844874419 | F27: 0 | G27: 77.54110908 | I27: 0 | J27: 0 | K27: 0 | L27: 0 | M27: 0 | N27: 10 | O27: 2.4 General Service Over 1,000 kVa | P27: 7187261.562 | Q27: =SUM(IslIntCos!G496,IslIntCos!I496:L496,IslIntCos!N496,IslIntCos!P496) -> 4019711.748 | R27: =SUM(IslIntCos!H496) -> 3160105.867 | S27: =SUM(IslIntCos!M496,IslIntCos!O496,IslIntCos!Q496:V496) -> 7443.946471 | U27: 0 | V27: 0 | W27: 0 | X27: 0 | Y27: 10 | Z27: 2.4 General Service Over 1,000 kVa | AA27: =SUMPRODUCT(--('[2]Summary of Factors'!$A$1:$A$63981=$AE27),'[2]Summary of Factors'!$E$1:$E$63981) -> 127708.2899 | AB27: =SUMPRODUCT(--('[2]Summary of Factors'!$A$1:$A$63981=$AE27),'[2]Summary of Factors'!$C$1:$C$63981) -> 40282.42772 | AC27: =SUMPRODUCT(--('[2]Summary of Factors'!$A$1:$A$63981=$AE27),'[2]Summary of Factors'!$D$1:$D$63981) -> 8 | AD27: =12*Customers!$D38 -> 96 | AE27: ISLINT2.4 | AI27: =MAX(AI21:AI25)+NoOne -> 8 | AJ27: for Deficit Allocation | AK27: =SUM(AK22:AK25) -> 1235343194 | AL27: =SUM(AL22:AL25) -> 691062613.5 | AM27: 521871702.7 | AN27: 22408877.85 | AP27: =MAX(AP21:AP25)+NoOne -> 8 | AQ27: for Deficit Allocation | AR27: ='Schedules 4.2,4.3,4.4'!V29 -> 0 | AS27: ='Schedules 4.2,4.3,4.4'!W29 -> 0 | AT27: ='Schedules 4.2,4.3,4.4'!X29 -> 0 | AU27: =0 -> 0 | AW27: =MAX(AW21:AW25)+NoOne -> 8 | AX27: for Deficit Allocation | AY27: 1235343194 | AZ27: 691062613.5 | BA27: 521871702.7 | BB27: 22408877.85
A28: 11 | B28: 4.1 Street and Area Lighting | C28: 0 | D28: 0.2129856713 | E28: 0.0813121771 | F28: 0.2942978484 | G28: 80.37150469 | I28: 0 | J28: 0 | K28: 0 | L28: 0 | M28: 0 | N28: 11 | O28: 4.1 Street and Area Lighting | P28: 1630153.673 | Q28: =SUM(IslIntCos!G497,IslIntCos!I497:L497,IslIntCos!N497,IslIntCos!P497) -> 442332.9589 | R28: =SUM(IslIntCos!H497) -> 168870.7774 | S28: =SUM(IslIntCos!M497,IslIntCos!O497,IslIntCos!Q497:V497) -> 1018949.936 | U28: 0 | V28: 0 | W28: 0 | X28: 0 | Y28: 11 | Z28: 4.1 Street and Area Lighting | AA28: =SUMPRODUCT(--('[2]Summary of Factors'!$A$1:$A$63981=$AE28),'[2]Summary of Factors'!$E$1:$E$63981) -> 0 | AB28: =SUMPRODUCT(--('[2]Summary of Factors'!$A$1:$A$63981=$AE28),'[2]Summary of Factors'!$C$1:$C$63981) -> 2076.820268 | AC28: =SUMPRODUCT(--('[2]Summary of Factors'!$A$1:$A$63981=$AE28),'[2]Summary of Factors'!$D$1:$D$63981) -> 1056.5 | AD28: =12*Customers!$D39 -> 12678 | AE28: ISLINT4.1
AJ29: Can add other isolated Rural if required. | AP29: =MAX(AP26:AP28)+NoOne -> 9 | AQ29: Rate Mitigation Allocation Factors:
N30: =MAX(N27:N29)+NoOne -> 12 | O30: Subtotal Rural | P30: =SUM(P21:P28) -> 119423025.3 | Q30: =SUM(Q21:Q28) -> 72090235.32 | R30: =SUM(R21:R28) -> 34299195.19 | S30: =SUM(S21:S28) -> 13033594.84 | Y30: =+Y28+1 -> 12 | Z30: Subtotal Rural | AA30: =SUM(AA21:AA28) -> 546967.39 | AB30: =SUM(AB21:AB28) -> 425519.8203 | AC30: =SUM(AC21:AC28) -> 24398 | AD30: =SUM(AD21:AD28) -> 292776 | AG30: =AA30/AA$31 -> 0.02956167941 | AH30: =AB30/AB$31 -> 0.06032770106 | AP30: =MAX(AP27:AP29)+NoOne -> 10 | AQ30: Newfoundland Power | AR30: =AR17/AR$27 ->  | AS30: =IslIntCos!J502 -> 0.8873860412 | AT30: =IslIntCos!K502 -> 0.848369533
N31: =MAX(N28:N30)+NoOne -> 13 | O31: Total Island Interconnected | P31: =SUM(P30,P17:P19) -> 1206131974 | Q31: =SUM(Q30,Q17:Q19) -> 669160142.5 | R31: =SUM(R30,R17:R19) -> 520783625.3 | S31: =SUM(S30,S17:S19) -> 16188206.4 | Y31: =+Y30+1 -> 13 | Z31: Total Island Interconnected | AA31: =SUM(AA30,AA17:AA19) -> 18502581.75 | AB31: =SUM(AB30,AB17:AB19) -> 7053473.16 | AC31: =SUM(AC30,AC17:AC19) -> 24405 | AD31: =SUM(AD30,AD17:AD19) -> 292860 | AG31: =SUM(AG17:AG30) -> 1 | AH31: =SUM(AH17:AH30) -> 1 | AP31: =MAX(AP28:AP30)+NoOne -> 11 | AQ31: Industrial - Firm | AR31: =AR18/AR$27 ->  | AS31: =IslIntCos!J503 -> 0.04981249294 | AT31: =IslIntCos!K503 -> 0.08651732694
AP32: =MAX(AP29:AP31)+NoOne -> 12 | AQ32: Industrial - Non-Firm | AS32: =IslIntCos!J504 -> 0 | AT32: =IslIntCos!K504 -> 0
AP33: =MAX(AP30:AP32)+NoOne -> 13 | AQ33: Rural Island | AS33: =IslIntCos!J505 -> 0.06280146587 | AT33: =IslIntCos!K505 -> 0.06511314002
AN35: Schedule G 1.4.1A | AU35: Schedule G 1.4.1A
AN36: Page 2 of 2 | AU36: Page 1 of 2
M37: Schedule G 1.3 | X37: Schedule G 1.3.1 | AD37: Schedule G 1.3.2
M38: Page 2 of 3 | X38: Page 2 of 3 | AD38: Page 2 of 3 | AI38: NEWFOUNDLAND & LABRADOR HYDRO | AP38: NEWFOUNDLAND & LABRADOR HYDRO
AI39: =RunName -> 2027 Test Year Cost of Service Study (No Rate Mitigation) | AP39: =RunName -> 2027 Test Year Cost of Service Study (No Rate Mitigation)
A40: =+A5 -> NEWFOUNDLAND AND LABRADOR HYDRO | N40: NEWFOUNDLAND & LABRADOR HYDRO | Y40: NEWFOUNDLAND & LABRADOR HYDRO | AI40: Illustrative Island Industrial Customer Class Billing | AP40: Illustrative Wholesale Class Billing
A41: =RunName -> 2027 Test Year Cost of Service Study (No Rate Mitigation) | N41: =RunName -> 2027 Test Year Cost of Service Study (No Rate Mitigation) | Y41: =RunName -> 2027 Test Year Cost of Service Study (No Rate Mitigation)
A42: Unit Demand, Energy & Customer Amounts | N42: Total Demand, Energy & Customer Amounts | Y42: Demands, Sales, & Number of Bills | AI42: Line | AP42: Line
AI43: No. | AJ43: Industrial | AK43: Unmitigated | AL43: Mitigation | AM43: Net | AP43: No. | AQ43: Wholesale | AR43: Unmitigated | AS43: Mitigation | AT43: Net
B45: =MAX(A45)+NoOne -> 1 | C45: 2 | D45: 3 | E45: 4 | F45: 5 | G45: 6 | I45: =MAX(G45)+NoOne -> 7 | J45: =MAX(I45)+NoOne -> 8 | K45: =MAX(J45)+NoOne -> 9 | L45: =MAX(K45)+NoOne -> 10 | M45: =MAX(L45)+NoOne -> 11 | O45: =MAX(N45)+NoOne -> 1 | P45: =MAX(O45)+NoOne -> 2 | Q45: =MAX(P45)+NoOne -> 3 | R45: =MAX(Q45)+NoOne -> 4 | S45: =MAX(R45)+NoOne -> 5 | U45: =MAX(S45)+NoOne -> 6 | V45: =MAX(U45)+NoOne -> 7 | W45: =MAX(V45)+NoOne -> 8 | X45: =MAX(W45)+NoOne -> 9 | Z45: =MAX(Y45)+NoOne -> 1 | AA45: =MAX(Z45)+NoOne -> 2 | AB45: =MAX(AA45)+NoOne -> 3 | AC45: =MAX(AB45)+NoOne -> 4 | AD45: =MAX(AC45)+NoOne -> 5 | AJ45: Demand (billing units) | AM45: =AA18 -> 1095600 | AN45: kW | AQ45: Demand (billing units) | AT45: =AA17 -> 16860014.36 | AU45: kW
AI46: =MAX(AI44:AI45)+NoOne -> 1 | AJ46: Tier 1 1 | AM46: =MIN(AM45*AK68/1000,AB18) -> 493020 | AN46: MWh | AP46: =MAX(AP44:AP45)+NoOne -> 1 | AQ46: First Block | AT46: 3000000 | AU46: MWh
B47: Rate Class | C47: Before Deficit and Revenue Credit Allocation | I47: After Deficit and Revenue Credit Allocation | AA47: Units | AI47: =MAX(AI45:AI46)+NoOne -> 2 | AJ47: Tier 2 | AM47: =AB18-AM46 -> 120351.34 | AN47: MWh | AP47: =MAX(AP45:AP46)+NoOne -> 2 | AQ47: Tail Block | AT47: =AB17-AT46 -> 3014582 | AU47: MWh
A48: Line | C48: Demand | F48: Non-Demand | I48: Demand | L48: Non-Demand | N48: Line | O48: Rate Class | P48: Before Deficit and Revenue Credit Allocation | U48: After Deficit and Revenue Credit Allocation | Y48: Line | AA48: Billing
A49: No. | C49: Demand | D49: Non-Demand | E49: Energy | F49: Demand & Energy | G49: Customer | I49: Demand | J49: Non-Demand | K49: Energy | L49: Demand & Energy | M49: Customer | N49: No. | P49: Total | Q49: Demand | R49: Energy | S49: Customer | U49: Total | V49: Demand | W49: Energy | X49: Customer | Y49: No. | Z49: Rate Class | AA49: Demands | AB49: Sales | AC49: Customers | AD49: Bills | AI49: =MAX(AI47:AI48)+NoOne -> 3 | AJ49: Demand | AK49: =AL18/$AM45 -> 28.88363239 | AL49: =AS18/$AM45 -> 0 | AM49: =AM54/$AM45 -> 28.88363239 | AN49: $ | AP49: =MAX(AP47:AP48)+NoOne -> 3 | AQ49: Demand | AT49: =[3]Inputs!$B$36 -> 5.5
C50: ($/kW) | D50: ($/kWh) | E50: ($/kWh) | F50: ($/kWh) | G50: ($/Bill) | I50: ($/kW) | J50: ($/kWh) | K50: ($/kWh) | L50: ($/kWh) | M50: ($/Bill) | P50: ($) | Q50: ($) | R50: ($) | S50: ($) | U50: ($) | V50: ($) | W50: ($) | X50: ($) | AA50: (kW) | AB50: (MWh) | AD50: (Total No) | AI50: =MAX(AI48:AI49)+NoOne -> 4 | AJ50: Energy: | AP50: =MAX(AP49:AP49)+NoOne -> 4 | AQ50: Energy:
AI51: =MAX(AI49:AI50)+NoOne -> 5 | AJ51: Tier 1 | AK51: =AK57/$AM46/10 -> 8.522609177 | AL51: =AL57/$AM46/10 -> 0 | AM51: =AM57/$AM46/10 -> 8.522609177 | AN51: cents / kWh | AP51: =MAX(AP50:AP50)+NoOne -> 5 | AQ51: First Block | AT51: =AT59/AT46/10 -> 28.13293511
AI52: =MAX(AI50:AI51)+NoOne -> 6 | AJ52: Tier 2 | AM52: =AM58/AM47/10 -> 2.5 | AN52: cents / kWh | AP52: =MAX(AP50:AP51)+NoOne -> 6 | AQ52: Tail Block | AT52: =AT60/AT47/10 -> 2.5
B53: Isolated Systems: | O53: =+B53 -> Isolated Systems: | Z53: =+B53 -> Isolated Systems:
A54: =MAX(A51:A53)+NoOne -> 1 | B54: 1.2 Domestic Diesel | C54: =IF(AA54<>0,Q54/AA54,0) -> 0 | D54: =IF(AND(AA54<>0,AB54<>0),0,IF(AA54<>0,0,IF(AB54<>0,Q54/(AB54*1000),0))) -> 0.4041120697 | E54: =IF(AB54<>0,R54/(AB54*1000),0) -> 0.7048580993 | F54: =IF(AND(AA54<>0,AB54<>0),0,IF(AA54<>0,0,IF(AB54<>0,SUM(D54:E54),0))) -> 1.108970169 | G54: =IF(AD54<>0,S54/AD54,0) -> 59.47923673 | N54: =MAX(N51:N53)+NoOne -> 1 | O54: 1.2 Domestic Diesel | P54: =SUM(Q54:S54) -> 35531184.54 | Q54: =SUM(Q66,Q75) -> 12225414.2 | R54: 21323743.74 | S54: 1982026.606 | Y54: =MAX(Y51:Y53)+NoOne -> 1 | Z54: =+O54 -> 1.2 Domestic Diesel | AA54: =SUM(AA66,AA75) -> 0 | AB54: 30252.53417 | AC54: 2899.75 | AD54: 33323 | AI54: =MAX(AI52:AI53)+NoOne -> 7 | AJ54: Demand ($) | AK54: =AL18 -> 31644907.65 | AL54: =AS18 -> 0 | AM54: =AZ18 -> 31644907.65 | AP54: =MAX(AP52:AP53)+NoOne -> 7 | AQ54: Fixed Charge | AR54: =AT54-AS54 -> 0 | AS54: =SUM(AR17, AR20) -> 0 | AT54: 0
A55: 2 | B55: 2.1 General Service 0-10 kW | C55: 0 | D55: 0.2850683358 | E55: 0.7078952398 | F55: 0.9929635755 | G55: 60.91041629 | N55: 2 | O55: 2.1 General Service 0-10 kW | P55: 4515787.014 | Q55: 1202108.941 | R55: 2985134.055 | S55: 328544.0176 | Y55: 2 | Z55: 2.1 General Service 0-10 kW | AA55: 0 | AB55: 4216.915 | AC55: 449.4907407 | AD55: 5393.888889
A56: 3 | B56: 2.2 GS 10-100 kW | C56: 70.74225858 | D56: 0 | E56: 0.7001781471 | F56: 0 | G56: 74.93746707 | N56: 3 | O56: 2.2 GS 10-100 kW | P56: 10845894.38 | Q56: 3018652.006 | R56: 7711419.025 | S56: 115823.3491 | Y56: 3 | Z56: 2.2 GS 10-100 kW | AA56: 42671.1285 | AB56: 11013.51 | AC56: 128.8 | AD56: 1545.6 | AI56: =MAX(AI54:AI55)+NoOne -> 8 | AJ56: Energy ($): | AP56: =MAX(AP54:AP55)+NoOne -> 8 | AQ56: Demand | AR56: =AT56 -> 92730078.98 | AT56: =AT49*AT45 -> 92730078.98 | AU56: ($)
A57: 4 | B57: 2.3 GS 110-1,000 kVa | C57: 18.44879422 | D57: 0 | E57: 0.6859039597 | F57: 0 | G57: 92.08517344 | N57: 4 | O57: 2.3 GS 110-1,000 kVa | P57: 1830406.551 | Q57: 192285.2601 | R57: 1631491.159 | S57: 6630.132488 | Y57: 4 | Z57: 2.3 GS 110-1,000 kVa | AA57: 10422.64648 | AB57: 2378.6 | AC57: 6 | AD57: 72 | AI57: =MAX(AI55:AI56)+NoOne -> 9 | AJ57: Tier 1 | AK57: =AM18-$AM58 -> 42018167.76 | AL57: =AT18 -> 0 | AM57: =BA18-$AM58 -> 42018167.76
A58: 5 | B58: 2.4 General Service Over 1,000 kVa | C58: 25.88646573 | D58: 0 | E58: 0.686031297 | F58: 0 | G58: 92.10226895 | N58: 5 | O58: 2.4 General Service Over 1,000 kVa | P58: 1373674.878 | Q58: 145945.6912 | R58: 1226623.959 | S58: 1105.227227 | Y58: 5 | Z58: 2.4 General Service Over 1,000 kVa | AA58: 5637.914915 | AB58: 1788 | AC58: 1 | AD58: 12 | AI58: =MAX(AI56:AI57)+NoOne -> 10 | AJ58: Tier 2 | AK58: =AM58-AL58 -> 3008783.5 | AM58: =AM47*AK69*1000/100 -> 3008783.5 | AP58: =MAX(AP56:AP57)+NoOne -> 9 | AQ58: Energy: 1
A59: 6 | B59: Subtotal Metered Demand Classes | C59: 57.15624672 | D59: 0 | E59: 0.696275201 | F59: 0 | G59: 75.82149535 | N59: 6 | O59: Subtotal Metered Demand Classes | P59: 14049975.81 | Q59: =SUM(Q56:Q58) -> 3356882.958 | R59: =SUM(R56:R58) -> 10569534.14 | S59: =SUM(S56:S58) -> 123558.7088 | Y59: 6 | Z59: Subtotal Metered Demand Classes | AA59: =SUM(AA56:AA58) -> 58731.6899 | AB59: =SUM(AB56:AB58) -> 15180.11 | AC59: =SUM(AC56:AC58) -> 135.8 | AD59: =SUM(AD56:AD58) -> 1629.6 | AI59: =MAX(AI57:AI58)+NoOne -> 11 | AJ59: Total Energy ($) | AK59: =SUM(AK57:AK58) -> 45026951.26 | AL59: =SUM(AL57:AL58) -> 0 | AM59: 45026951.26 | AP59: =MAX(AP57:AP58)+NoOne -> 10 | AQ59: First Block | AR59: =AT59-AS59 -> 843988053.3 | AT59: =AT61-SUM(AT60,AT56) -> 843988053.3 | AU59: ($)
AP60: =MAX(AP58:AP59)+NoOne -> 11 | AQ60: Tail Block | AR60: 75364550 | AT60: =AT47*AK69*1000/100 -> 75364550
A61: =MAX(A58:A60)+NoOne -> 7 | B61: 4.1 Street and Area Lighting | C61: =IF(AA61<>0,Q61/AA61,0) -> 0 | D61: =IF(AND(AA61<>0,AB61<>0),0,IF(AA61<>0,0,IF(AB61<>0,Q61/(AB61*1000),0))) -> 0.4184539563 | E61: =IF(AB61<>0,R61/(AB61*1000),0) -> 0.7115851692 | F61: =IF(AND(AA61<>0,AB61<>0),0,IF(AA61<>0,0,IF(AB61<>0,SUM(D61:E61),0))) -> 1.130039126 | G61: =IF(AD61<>0,S61/AD61,0) -> 125.8389417 | N61: =MAX(N58:N60)+NoOne -> 7 | O61: =+B61 -> 4.1 Street and Area Lighting | P61: =SUM(Q61:S61) -> 472942.3325 | Q61: =SUM(Q71,Q80) -> 87339.70977 | R61: =SUM(R71,R80) -> 148522.0565 | S61: =SUM(S71,S80) -> 237080.5662 | Y61: =MAX(Y58:Y60)+NoOne -> 7 | Z61: =+O61 -> 4.1 Street and Area Lighting | AA61: =SUM(AA71,AA80) -> 0 | AB61: =SUM(AB71,AB80) -> 208.72 | AC61: =SUM(AC71,AC80) -> 157 | AD61: =SUM(AD71,AD80) -> 1884 | AI61: =MAX(AI59:AI60)+NoOne -> 12 | AJ61: Specifically Assigned Charge | AK61: =AN18 -> 412949.3256 | AL61: 0 | AM61: =AN18 -> 412949.3256 | AP61: =MAX(AP59:AP60)+NoOne -> 12 | AQ61: Total Energy Cost | AR61: =AT61-AS61 -> 1012082682 | AS61: =SUM(AS54:AS60) -> 0 | AT61: =AK17+'Rev to Cost'!F21-AT56+AS61 -> 1012082682
N62: =MAX(N59:N61)+NoOne -> 8 | O62: Total Isolated Systems | P62: =SUM(P54:P55,P59,P61) -> 54569889.7 | Q62: =SUM(Q54:Q55,Q59,Q61) -> 16871745.81 | R62: =SUM(R54:R55,R59,R61) -> 35026933.99 | S62: =SUM(S54:S55,S59,S61) -> 2671209.898 | Y62: =MAX(Y59:Y61)+NoOne -> 8 | Z62: =+O62 -> Total Isolated Systems | AA62: =SUM(AA54:AA55,AA59,AA61) -> 58731.6899 | AB62: =SUM(AB54:AB55,AB59,AB61) -> 49858.27917 | AC62: =SUM(AC54:AC55,AC59,AC61) -> 3642.040741 | AD62: =SUM(AD54:AD55,AD59,AD61) -> 42230.48889
AI63: =MAX(AI61:AI62)+NoOne -> 13 | AJ63: Total Industrial Revenue | AK63: =SUM(AK54,AK59,AK61) -> 77084808.24 | AL63: =SUM(AL54,AL59,AL61) -> 0 | AM63: =SUM(AM54,AM59,AM61) -> 77084808.24 | AN63: =AM63/SUM(AM46:AM47)/10 -> 12.56739649 | AP63: =MAX(AP61:AP62)+NoOne -> 13 | AQ63: Total Revenue Requirement | AR63: =SUM(AR56,AR61) -> 1104812761 | AS63: =SUM(AS56,AS61) -> 0 | AT63: 1104812761 | AU63: =AT63/SUM(AT46:AT47)/10 -> 18.36890346
B65: Island Isolated | O65: Island Isolated | Z65: Island Isolated | AJ65: 1 Approximate - may exclude any minimum values at the customer level. | AQ65: 1 Includes customer costs.
A66: =MAX(A61:A65)+NoOne -> 8 | B66: 1.2 Domestic Diesel | C66: =IF(AA66<>0,Q66/AA66,0) -> 0 | D66: =IF(AND(AA66<>0,AB66<>0),0,IF(AA66<>0,0,IF(AB66<>0,Q66/(AB66*1000),0))) -> 0.9333884776 | E66: =IF(AB66<>0,R66/(AB66*1000),0) -> 0.8183679237 | F66: =IF(AND(AA66<>0,AB66<>0),0,IF(AA66<>0,0,IF(AB66<>0,SUM(D66:E66),0))) -> 1.751756401 | G66: =IF(AD66<>0,S66/AD66,0) -> 98.56428392 | I66: =IF(AA66<>0,V66/AA66,0) -> 0 | J66: =IF(AND(AA66<>0,AB66<>0),0,IF(AA66<>0,0,IF(AB66<>0,W66/(AB66*1000),0))) -> 0 | K66: =IF(AB66<>0,X66/(AB66*1000),0) -> 0 | L66: =IF(AND(AA66<>0,AB66<>0),0,IF(AA66<>0,0,IF(AB66<>0,SUM(J66:K66),0))) -> 0 | M66: =IF(AD66<>0,X66/AD66,0) -> 0 | N66: =MAX(N62:N65)+NoOne -> 9 | O66: =+B66 -> 1.2 Domestic Diesel | P66: =SUM(Q66:S66) -> 8127627.483 | Q66: =SUM(IslIsoCos!G420,IslIsoCos!I420:K420,IslIsoCos!M420,IslIsoCos!O420)+SUM(IslIsoCos!G422,IslIsoCos!I422:K422,IslIsoCos!M422,IslIsoCos!O422)+SUM(IslIsoCos!G421,IslIsoCos!I421:K421,IslIsoCos!M421,IslIsoCos!O421) -> 3987491.58 | R66: =SUM(IslIsoCos!H420)+SUM(IslIsoCos!H422)+IslIsoCos!H421 -> 3496116.872 | S66: =SUM(IslIsoCos!L420,IslIsoCos!N420,IslIsoCos!P420:U420)+SUM(IslIsoCos!L422,IslIsoCos!N422,IslIsoCos!P422:U422)+SUM(IslIsoCos!L421,IslIsoCos!N421,IslIsoCos!P421:U421) -> 644019.0311 | U66: 0 | V66: 0 | W66: 0 | X66: 0 | Y66: =MAX(Y62:Y65)+NoOne -> 9 | Z66: =+O66 -> 1.2 Domestic Diesel | AA66: =SUMPRODUCT(--('[2]Summary of Factors'!$A$1:$A$63981=$AE66),'[2]Summary of Factors'!$E$1:$E$63981) -> 0 | AB66: =SUMPRODUCT(--('[2]Summary of Factors'!$A$1:$A$63981=$AE66),'[2]Summary of Factors'!$C$1:$C$63981)+SUMPRODUCT(--('[2]Summary of Factors'!$A$1:$A$63981=$AF66),'[2]Summary of Factors'!$C$1:$C$63981)+SUMPRODUCT(--('[2]Summary of Factors'!$A$1:$A$63981=$AG66),'[2]Summary of Factors'!$C$1:$C$63981) -> 4272.06 | AC66: =SUMPRODUCT(--('[2]Summary of Factors'!$A$1:$A$63981=$AE66),'[2]Summary of Factors'!$D$1:$D$63981)+SUMPRODUCT(--('[2]Summary of Factors'!$A$1:$A$63981=$AF66),'[2]Summary of Factors'!$D$1:$D$63981) -> 559.5 | AD66: =12*Customers!$D57 -> 6534 | AE66: ISLISO1.2 | AF66: ISLISO1.23 | AG66: ISLISO1.2G
A67: =MAX(A64:A66)+NoOne -> 9 | B67: 2.1 General Service 0-10 kW | C67: 0 | D67: 0.4942129808 | E67: 0.8223416562 | F67: 1.316554637 | G67: 108.3660783 | I67: 0 | J67: 0 | K67: 0 | L67: 0 | M67: 0 | N67: =MAX(N64:N66)+NoOne -> 10 | O67: 2.1 General Service 0-10 kW | P67: 823424.7408 | Q67: =SUM(IslIsoCos!G423,IslIsoCos!I423:K423,IslIsoCos!M423,IslIsoCos!O423) -> 278518.6675 | R67: =SUM(IslIsoCos!H423) -> 463438.8638 | S67: =SUM(IslIsoCos!L423,IslIsoCos!N423,IslIsoCos!P423:U423) -> 81467.20955 | U67: 0 | V67: 0 | W67: 0 | X67: 0 | Y67: =MAX(Y64:Y66)+NoOne -> 10 | Z67: 2.1 General Service 0-10 kW | AA67: =SUMPRODUCT(--('[2]Summary of Factors'!$A$1:$A$63981=$AE67),'[2]Summary of Factors'!$E$1:$E$63981) -> 0 | AB67: =SUMPRODUCT(--('[2]Summary of Factors'!$A$1:$A$63981=$AE67),'[2]Summary of Factors'!$C$1:$C$63981) -> 563.56 | AC67: =SUMPRODUCT(--('[2]Summary of Factors'!$A$1:$A$63981=$AE67),'[2]Summary of Factors'!$D$1:$D$63981) -> 62.64814815 | AD67: =12*Customers!$D60 -> 751.7777778 | AE67: ISLISO2.1 | AJ67: Billing Inputs:
A68: =MAX(A65:A67)+NoOne -> 10 | B68: 2.2 GS 10-100 kW | C68: 176.0336881 | D68: 0 | E68: 0.8256015001 | F68: 0 | G68: 150.0936867 | I68: 0 | J68: 0 | K68: 0 | L68: 0 | M68: 0 | N68: 11 | O68: 2.2 GS 10-100 kW | P68: 1290296.056 | Q68: =SUM(IslIsoCos!G424,IslIsoCos!I424:K424,IslIsoCos!M424,IslIsoCos!O424) -> 581615.3056 | R68: =SUM(IslIsoCos!H424) -> 696072.8808 | S68: =SUM(IslIsoCos!L424,IslIsoCos!N424,IslIsoCos!P424:U424) -> 12607.86968 | U68: 0 | V68: 0 | W68: 0 | X68: 0 | Y68: 11 | Z68: 2.2 GS 10-100 kW | AA68: =SUMPRODUCT(--('[2]Summary of Factors'!$A$1:$A$63981=$AE68),'[2]Summary of Factors'!$E$1:$E$63981) -> 3304 | AB68: =SUMPRODUCT(--('[2]Summary of Factors'!$A$1:$A$63981=$AE68),'[2]Summary of Factors'!$C$1:$C$63981) -> 843.11 | AC68: =SUMPRODUCT(--('[2]Summary of Factors'!$A$1:$A$63981=$AE68),'[2]Summary of Factors'!$D$1:$D$63981) -> 7 | AD68: =12*Customers!$D61 -> 84 | AE68: ISLISO2.2 | AJ68: Hours of use | AK68: 450
A69: =MAX(A66:A68)+NoOne -> 11 | B69: 2.3 GS 110-1,000 kVa | C69: 0 | D69: 0 | E69: 0 | F69: 0 | G69: 0 | I69: 0 | J69: 0 | K69: 0 | L69: 0 | M69: 0 | N69: 12 | O69: 2.3 GS 110-1,000 kVa | P69: 0 | Q69: =SUM(IslIsoCos!G425,IslIsoCos!I425:K425,IslIsoCos!M425,IslIsoCos!O425) -> 0 | R69: =SUM(IslIsoCos!H425) -> 0 | S69: =SUM(IslIsoCos!L425,IslIsoCos!N425,IslIsoCos!P425:U425) -> 0 | U69: 0 | V69: 0 | W69: 0 | X69: 0 | Y69: 12 | Z69: 2.3 GS 110-1,000 kVa | AA69: =SUMPRODUCT(--('[2]Summary of Factors'!$A$1:$A$63981=$AE69),'[2]Summary of Factors'!$E$1:$E$63981) -> 0 | AB69: =SUMPRODUCT(--('[2]Summary of Factors'!$A$1:$A$63981=$AE69),'[2]Summary of Factors'!$C$1:$C$63981) -> 0 | AC69: =SUMPRODUCT(--('[2]Summary of Factors'!$A$1:$A$63981=$AE69),'[2]Summary of Factors'!$D$1:$D$63981) -> 0 | AD69: =12*Customers!$D62 -> 0 | AE69: ISLISO2.3 | AJ69: Tail Block Rate | AK69: 2.5 | AL69: Cents / kWh
A70: =MAX(A67:A69)+NoOne -> 12 | B70: 2.4 General Service Over 1,000 kVa | C70: 0 | D70: 0 | E70: 0 | F70: 0 | G70: 0 | I70: 0 | J70: 0 | K70: 0 | L70: 0 | M70: 0 | N70: 13 | O70: 2.4 General Service Over 1,000 kVa | P70: 0 | Q70: =SUM(IslIsoCos!G426,IslIsoCos!I426:K426,IslIsoCos!M426,IslIsoCos!O426) -> 0 | R70: =SUM(IslIsoCos!H426) -> 0 | S70: =SUM(IslIsoCos!L426,IslIsoCos!N426,IslIsoCos!P426:U426) -> 0 | U70: 0 | V70: 0 | W70: 0 | X70: 0 | Y70: 13 | Z70: 2.4 General Service Over 1,000 kVa | AA70: =SUMPRODUCT(--('[2]Summary of Factors'!$A$1:$A$63981=$AE70),'[2]Summary of Factors'!$E$1:$E$63981) -> 0 | AB70: =SUMPRODUCT(--('[2]Summary of Factors'!$A$1:$A$63981=$AE70),'[2]Summary of Factors'!$C$1:$C$63981) -> 0 | AC70: =SUMPRODUCT(--('[2]Summary of Factors'!$A$1:$A$63981=$AE70),'[2]Summary of Factors'!$D$1:$D$63981) -> 0 | AD70: =12*Customers!$D63 -> 0 | AE70: ISLISO2.4
A71: =MAX(A68:A70)+NoOne -> 13 | B71: 4.1 Street and Area Lighting | C71: 0 | D71: 0.8806214287 | E71: 0.8219512743 | F71: 1.702572703 | G71: 258.9276377 | I71: 0 | J71: 0 | K71: 0 | L71: 0 | M71: 0 | N71: 14 | O71: 4.1 Street and Area Lighting | P71: 163053.2277 | Q71: =SUM(IslIsoCos!G429,IslIsoCos!I429:K429,IslIsoCos!M429,IslIsoCos!O429)+SUM(IslIsoCos!G430,IslIsoCos!I430:K430,IslIsoCos!M430,IslIsoCos!O430) -> 29694.55457 | R71: =SUM(IslIsoCos!H429)+SUM(IslIsoCos!H430) -> 27716.19697 | S71: =SUM(IslIsoCos!L429,IslIsoCos!N429,IslIsoCos!P429:U429)+SUM(IslIsoCos!L430,IslIsoCos!N430,IslIsoCos!P430:U430) -> 105642.4762 | U71: 0 | V71: 0 | W71: 0 | X71: 0 | Y71: 14 | Z71: 4.1 Street and Area Lighting | AA71: =SUMPRODUCT(--('[2]Summary of Factors'!$A$1:$A$63981=$AE71),'[2]Summary of Factors'!$E$1:$E$63981) -> 0 | AB71: =SUMPRODUCT(--('[2]Summary of Factors'!$A$1:$A$63981=$AE71),'[2]Summary of Factors'!$C$1:$C$63981)+SUMPRODUCT(--('[2]Summary of Factors'!$A$1:$A$63981=$AF71),'[2]Summary of Factors'!$C$1:$C$63981) -> 33.72 | AC71: =SUMPRODUCT(--('[2]Summary of Factors'!$A$1:$A$63981=$AE71),'[2]Summary of Factors'!$D$1:$D$63981)+SUMPRODUCT(--('[2]Summary of Factors'!$A$1:$A$63981=$AF71),'[2]Summary of Factors'!$D$1:$D$63981) -> 34 | AD71: =12*Customers!$D66 -> 408 | AE71: ISLISO4.1 | AF71: ISLISO4.1G
N72: 15 | O72: Total Island Isolated | P72: =SUM(P66:P71) -> 10404401.51 | Q72: =SUM(Q66:Q71) -> 4877320.107 | R72: =SUM(R66:R71) -> 4683344.814 | S72: =SUM(S66:S71) -> 843736.5866 | Y72: 15 | Z72: Total Island Isolated | AA72: =SUM(AA66:AA71) -> 3304 | AB72: =SUM(AB66:AB71) -> 5712.45 | AC72: =SUM(AC66:AC71) -> 663.1481481 | AD72: =SUM(AD66:AD71) -> 7777.777778
B74: Labrador Isolated | O74: Labrador Isolated | Z74: Labrador Isolated
A75: =MAX(A71:A74)+NoOne -> 14 | B75: 1.2 Domestic Diesel | C75: =IF(AA75<>0,Q75/AA75,0) -> 0 | D75: =IF(AND(AA75<>0,AB75<>0),0,IF(AA75<>0,0,IF(AB75<>0,Q75/(AB75*1000),0))) -> 0.3170813036 | E75: =IF(AB75<>0,R75/(AB75*1000),0) -> 0.6861932829 | F75: =IF(AND(AA75<>0,AB75<>0),0,IF(AA75<>0,0,IF(AB75<>0,SUM(D75:E75),0))) -> 1.003274587 | G75: =IF(AD75<>0,S75/AD75,0) -> 49.94615605 | I75: =IF(AA75<>0,V75/AA75,0) -> 0 | J75: =IF(AND(AA75<>0,AB75<>0),0,IF(AA75<>0,0,IF(AB75<>0,W75/(AB75*1000),0))) -> 0 | K75: =IF(AB75<>0,X75/(AB75*1000),0) -> 0 | L75: =IF(AND(AA75<>0,AB75<>0),0,IF(AA75<>0,0,IF(AB75<>0,SUM(J75:K75),0))) -> 0 | M75: =IF(AD75<>0,X75/AD75,0) -> 0 | N75: =MAX(N72:N74)+NoOne -> 16 | O75: =+B75 -> 1.2 Domestic Diesel | P75: =SUM(Q75:S75) -> 27403557.06 | Q75: =SUM(LabIsoCos!G421,LabIsoCos!I421:K421,LabIsoCos!M421,LabIsoCos!O421)+SUM(LabIsoCos!G422,LabIsoCos!I422:K422,LabIsoCos!M422,LabIsoCos!O422)+SUM(LabIsoCos!G423,LabIsoCos!I423:K423,LabIsoCos!M423,LabIsoCos!O423) -> 8237922.618 | R75: =SUM(LabIsoCos!H421)+SUM(LabIsoCos!H422)+SUM(LabIsoCos!H423) -> 17827626.87 | S75: =SUM(LabIsoCos!L421,LabIsoCos!N421,LabIsoCos!P421:U421)+SUM(LabIsoCos!L422,LabIsoCos!N422,LabIsoCos!P422:U422)+SUM(LabIsoCos!L423,LabIsoCos!N423,LabIsoCos!P423:U423) -> 1338007.575 | U75: 0 | V75: 0 | W75: 0 | X75: 0 | Y75: =MAX(Y72:Y74)+NoOne -> 16 | Z75: =+O75 -> 1.2 Domestic Diesel | AA75: =SUMPRODUCT(--('[2]Summary of Factors'!$A$1:$A$63981=$AE75),'[2]Summary of Factors'!$E$1:$E$63981) -> 0 | AB75: =SUMPRODUCT(--('[2]Summary of Factors'!$A$1:$A$63981=$AE75),'[2]Summary of Factors'!$C$1:$C$63981)+SUMPRODUCT(--('[2]Summary of Factors'!$A$1:$A$63981=$AF75),'[2]Summary of Factors'!$C$1:$C$63981)+SUMPRODUCT(--('[2]Summary of Factors'!$A$1:$A$63981=$AG75),'[2]Summary of Factors'!$C$1:$C$63981) -> 25980.47417 | AC75: =SUMPRODUCT(--('[2]Summary of Factors'!$A$1:$A$63981=$AE75),'[2]Summary of Factors'!$D$1:$D$63981)+SUMPRODUCT(--('[2]Summary of Factors'!$A$1:$A$63981=$AF75),'[2]Summary of Factors'!$D$1:$D$63981)+SUMPRODUCT(--('[2]Summary of Factors'!$A$1:$A$63981=$AG75),'[2]Summary of Factors'!$D$1:$D$63981) -> 2340.25 | AD75: =12*Customers!$D83 -> 26789 | AE75: LABISO1.2 | AF75: LABISO1.23 | AG75: LABISO1.2G
A76: =MAX(A73:A75)+NoOne -> 15 | B76: 2.1 General Service 0-10 kW | C76: 0 | D76: 0.2528060574 | E76: 0.6902409405 | F76: 0.9430469979 | G76: 53.22509569 | I76: 0 | J76: 0 | K76: 0 | L76: 0 | M76: 0 | N76: 17 | O76: 2.1 General Service 0-10 kW | P76: 3692362.273 | Q76: =SUM(LabIsoCos!G424,LabIsoCos!I424:K424,LabIsoCos!M424,LabIsoCos!O424) -> 923590.2737 | R76: =SUM(LabIsoCos!H424) -> 2521695.191 | S76: =SUM(LabIsoCos!L424,LabIsoCos!N424,LabIsoCos!P424:U424) -> 247076.8081 | U76: 0 | V76: 0 | W76: 0 | X76: 0 | Y76: 17 | Z76: 2.1 General Service 0-10 kW | AA76: =SUMPRODUCT(--('[2]Summary of Factors'!$A$1:$A$63981=$AE76),'[2]Summary of Factors'!$E$1:$E$63981) -> 0 | AB76: =SUMPRODUCT(--('[2]Summary of Factors'!$A$1:$A$63981=$AE76),'[2]Summary of Factors'!$C$1:$C$63981) -> 3653.355 | AC76: =SUMPRODUCT(--('[2]Summary of Factors'!$A$1:$A$63981=$AE76),'[2]Summary of Factors'!$D$1:$D$63981) -> 386.8425926 | AD76: =12*Customers!$D86 -> 4642.111111 | AE76: LABISO2.1
A77: =MAX(A74:A76)+NoOne -> 16 | B77: 2.2 GS 10-100 kW | C77: 61.90537114 | D77: 0 | E77: 0.6897807504 | F77: 0 | G77: 70.6181441 | I77: 0 | J77: 0 | K77: 0 | L77: 0 | M77: 0 | N77: 18 | O77: 2.2 GS 10-100 kW | P77: 9555598.324 | Q77: =SUM(LabIsoCos!G425,LabIsoCos!I425:K425,LabIsoCos!M425,LabIsoCos!O425) -> 2437036.701 | R77: =SUM(LabIsoCos!H425) -> 7015346.144 | S77: =SUM(LabIsoCos!L425,LabIsoCos!N425,LabIsoCos!P425:U425) -> 103215.4794 | U77: 0 | V77: 0 | W77: 0 | X77: 0 | Y77: 18 | Z77: 2.2 GS 10-100 kW | AA77: =SUMPRODUCT(--('[2]Summary of Factors'!$A$1:$A$63981=$AE77),'[2]Summary of Factors'!$E$1:$E$63981) -> 39367.1285 | AB77: =SUMPRODUCT(--('[2]Summary of Factors'!$A$1:$A$63981=$AE77),'[2]Summary of Factors'!$C$1:$C$63981) -> 10170.4 | AC77: =SUMPRODUCT(--('[2]Summary of Factors'!$A$1:$A$63981=$AE77),'[2]Summary of Factors'!$D$1:$D$63981) -> 121.8 | AD77: =12*Customers!$D87 -> 1461.6 | AE77: LABISO2.2
A78: =MAX(A75:A77)+NoOne -> 17 | B78: 2.3 GS 110-1,000 kVa | C78: 18.44879422 | D78: 0 | E78: 0.6859039597 | F78: 0 | G78: 92.08517344 | I78: 0 | J78: 0 | K78: 0 | L78: 0 | M78: 0 | N78: 19 | O78: 2.3 GS 110-1,000 kVa | P78: 1830406.551 | Q78: =SUM(LabIsoCos!G426,LabIsoCos!I426:K426,LabIsoCos!M426,LabIsoCos!O426) -> 192285.2601 | R78: =SUM(LabIsoCos!H426) -> 1631491.159 | S78: =SUM(LabIsoCos!L426,LabIsoCos!N426,LabIsoCos!P426:U426) -> 6630.132488 | U78: 0 | V78: 0 | W78: 0 | X78: 0 | Y78: 19 | Z78: 2.3 GS 110-1,000 kVa | AA78: =SUMPRODUCT(--('[2]Summary of Factors'!$A$1:$A$63981=$AE78),'[2]Summary of Factors'!$E$1:$E$63981) -> 10422.64648 | AB78: =SUMPRODUCT(--('[2]Summary of Factors'!$A$1:$A$63981=$AE78),'[2]Summary of Factors'!$C$1:$C$63981) -> 2378.6 | AC78: =SUMPRODUCT(--('[2]Summary of Factors'!$A$1:$A$63981=$AE78),'[2]Summary of Factors'!$D$1:$D$63981) -> 6 | AD78: =12*Customers!$D88 -> 72 | AE78: LABISO2.3
A79: =MAX(A76:A78)+NoOne -> 18 | B79: 2.4 General Service Over 1,000 kVa | C79: 25.88646573 | D79: 0 | E79: 0.686031297 | F79: 0 | G79: 92.10226895 | I79: 0 | J79: 0 | K79: 0 | L79: 0 | M79: 0 | N79: 20 | O79: 2.4 General Service Over 1,000 kVa | P79: 1373674.878 | Q79: =SUM(LabIsoCos!G427,LabIsoCos!I427:K427,LabIsoCos!M427,LabIsoCos!O427) -> 145945.6912 | R79: =SUM(LabIsoCos!H427) -> 1226623.959 | S79: =SUM(LabIsoCos!L427,LabIsoCos!N427,LabIsoCos!P427:U427) -> 1105.227227 | U79: 0 | V79: 0 | W79: 0 | X79: 0 | Y79: 20 | Z79: 2.4 General Service Over 1,000 kVa | AA79: =SUMPRODUCT(--('[2]Summary of Factors'!$A$1:$A$63981=$AE79),'[2]Summary of Factors'!$E$1:$E$63981) -> 5637.914915 | AB79: =SUMPRODUCT(--('[2]Summary of Factors'!$A$1:$A$63981=$AE79),'[2]Summary of Factors'!$C$1:$C$63981) -> 1788 | AC79: =SUMPRODUCT(--('[2]Summary of Factors'!$A$1:$A$63981=$AE79),'[2]Summary of Factors'!$D$1:$D$63981) -> 1 | AD79: =12*Customers!$D89 -> 12 | AE79: LABISO2.4
A80: =MAX(A77:A79)+NoOne -> 19 | B80: 4.1 Street and Area Lighting | C80: 0 | D80: 0.3294008868 | E80: 0.6903191974 | F80: 1.019720084 | G80: 89.05019647 | I80: 0 | J80: 0 | K80: 0 | L80: 0 | M80: 0 | N80: 21 | O80: 4.1 Street and Area Lighting | P80: 309889.1047 | Q80: =SUM(LabIsoCos!G430,LabIsoCos!I430:K430,LabIsoCos!M430,LabIsoCos!O430)+SUM(LabIsoCos!G431,LabIsoCos!I431:K431,LabIsoCos!M431,LabIsoCos!O431) -> 57645.15519 | R80: =SUM(LabIsoCos!H430)+SUM(LabIsoCos!H431) -> 120805.8595 | S80: =SUM(LabIsoCos!L430,LabIsoCos!N430,LabIsoCos!P430:U430)+SUM(LabIsoCos!L431,LabIsoCos!N431,LabIsoCos!P431:U431) -> 131438.09 | U80: 0 | V80: 0 | W80: 0 | X80: 0 | Y80: 21 | Z80: 4.1 Street and Area Lighting | AA80: =SUMPRODUCT(--('[2]Summary of Factors'!$A$1:$A$63981=$AE80),'[2]Summary of Factors'!$E$1:$E$63981) -> 0 | AB80: =SUMPRODUCT(--('[2]Summary of Factors'!$A$1:$A$63981=$AE80),'[2]Summary of Factors'!$C$1:$C$63981)+SUMPRODUCT(--('[2]Summary of Factors'!$A$1:$A$63981=$AF80),'[2]Summary of Factors'!$C$1:$C$63981) -> 175 | AC80: =SUMPRODUCT(--('[2]Summary of Factors'!$A$1:$A$63981=$AE80),'[2]Summary of Factors'!$D$1:$D$63981)+SUMPRODUCT(--('[2]Summary of Factors'!$A$1:$A$63981=$AF80),'[2]Summary of Factors'!$D$1:$D$63981) -> 123 | AD80: =12*Customers!$D92 -> 1476 | AE80: LABISO4.1 | AF80: LABISO4.1G
N81: 22 | O81: Total Labrador Isolated | P81: =SUM(P75:P80) -> 44165488.19 | Q81: =SUM(Q75:Q80) -> 11994425.7 | R81: =SUM(R75:R80) -> 30343589.18 | S81: =SUM(S75:S80) -> 1827473.312 | Y81: 22 | Z81: Total Labrador Isolated | AA81: =SUM(AA75:AA80) -> 55427.6899 | AB81: =SUM(AB75:AB80) -> 44145.82917 | AC81: =SUM(AC75:AC80) -> 2978.892593 | AD81: =SUM(AD75:AD80) -> 34452.71111
M84: Schedule G 1.3 | X84: Schedule G 1.3.1 | AD84: Schedule G 1.3.2
M85: Page 3 of 3 | X85: Page 3 of 3 | AD85: Page 3 of 3
A87: =+A5 -> NEWFOUNDLAND AND LABRADOR HYDRO | N87: NEWFOUNDLAND & LABRADOR HYDRO | Y87: NEWFOUNDLAND & LABRADOR HYDRO
A88: =RunName -> 2027 Test Year Cost of Service Study (No Rate Mitigation) | N88: =RunName -> 2027 Test Year Cost of Service Study (No Rate Mitigation) | Y88: =RunName -> 2027 Test Year Cost of Service Study (No Rate Mitigation)
A89: Unit Demand, Energy & Customer Amounts | N89: Total Demand, Energy & Customer Amounts | Y89: Demands, Sales, & Number of Bills
B92: =MAX(A92)+NoOne -> 1 | C92: 2 | D92: 3 | E92: 4 | F92: 5 | G92: 6 | I92: =MAX(G92)+NoOne -> 7 | J92: =MAX(I92)+NoOne -> 8 | K92: =MAX(J92)+NoOne -> 9 | L92: =MAX(K92)+NoOne -> 10 | M92: =MAX(L92)+NoOne -> 11 | O92: =MAX(N92)+NoOne -> 1 | P92: =MAX(O92)+NoOne -> 2 | Q92: =MAX(P92)+NoOne -> 3 | R92: =MAX(Q92)+NoOne -> 4 | S92: =MAX(R92)+NoOne -> 5 | U92: =MAX(S92)+NoOne -> 6 | V92: =MAX(U92)+NoOne -> 7 | W92: =MAX(V92)+NoOne -> 8 | X92: =MAX(W92)+NoOne -> 9 | Z92: =MAX(Y92)+NoOne -> 1 | AA92: =MAX(Z92)+NoOne -> 2 | AB92: =MAX(AA92)+NoOne -> 3 | AC92: =MAX(AB92)+NoOne -> 4 | AD92: =MAX(AC92)+NoOne -> 5
B94: Rate Class | C94: Before Deficit and Revenue Credit Allocation | I94: After Deficit and Revenue Credit Allocation | AA94: Units
A95: Line | C95: Demand | F95: Non-Demand | I95: Demand | L95: Non-Demand | N95: Line | O95: Rate Class | P95: Before Deficit and Revenue Credit Allocation | U95: After Deficit and Revenue Credit Allocation | Y95: Line | AA95: Billing
A96: No. | C96: Demand | D96: Non-Demand | E96: Energy | F96: Demand & Energy | G96: Customer | I96: Demand | J96: Non-Demand | K96: Energy | L96: Demand & Energy | M96: Customer | N96: No. | P96: Total | Q96: Demand | R96: Energy | S96: Customer | U96: Total | V96: Demand | W96: Energy | X96: Customer | Y96: No. | Z96: Rate Class | AA96: Demands | AB96: Sales | AC96: Customers | AD96: Bills
C97: ($/kW) | D97: ($/kWh) | E97: ($/kWh) | F97: ($/kWh) | G97: ($/Bill) | I97: ($/kW) | J97: ($/kWh) | K97: ($/kWh) | L97: ($/kWh) | M97: ($/Bill) | P97: ($) | Q97: ($) | R97: ($) | S97: ($) | U97: ($) | V97: ($) | W97: ($) | X97: ($) | AA97: (kW) | AB97: (MWh) | AD97: (Total No)
B100: L'Anse au Loup | O100: L'Anse au Loup | Z100: =+O100 -> L'Anse au Loup
A101: =MAX(A98:A100)+NoOne -> 1 | B101: 1.1 Domestic | C101: =IF(AA101<>0,Q101/AA101,0) -> 0 | D101: =IF(AND(AA101<>0,AB101<>0),0,IF(AA101<>0,0,IF(AB101<>0,Q101/(AB101*1000),0))) -> 0.2090859465 | E101: =IF(AB101<>0,R101/(AB101*1000),0) -> 0.1964827309 | F101: =IF(AND(AA101<>0,AB101<>0),0,IF(AA101<>0,0,IF(AB101<>0,SUM(D101:E101),0))) -> 0.4055686775 | G101: =IF(AD101<>0,S101/AD101,0) -> 45.66914094 | I101: =IF(AA101<>0,V101/AA101,0) -> 0 | J101: =IF(AND(AA101<>0,AB101<>0),0,IF(AA101<>0,0,IF(AB101<>0,W101/(AB101*1000),0))) -> 0 | K101: =IF(AB101<>0,X101/(AB101*1000),0) -> 0 | L101: =IF(AND(AA101<>0,AB101<>0),0,IF(AA101<>0,0,IF(AB101<>0,SUM(J101:K101),0))) -> 0 | M101: =IF(AD101<>0,X101/AD101,0) -> 0 | N101: =MAX(N98:N100)+NoOne -> 1 | O101: =+B101 -> 1.1 Domestic | P101: =SUM(Q101:S101) -> 2224303.689 | Q101: =SUM(LALCos!G395,LALCos!I395:K395,LALCos!M395,LALCos!O395) -> 1029886.283 | R101: =SUM(LALCos!H395) -> 967807.1283 | S101: =SUM(LALCos!L395,LALCos!N395,LALCos!P395:U395) -> 226610.2773 | U101: 0 | V101: 0 | W101: 0 | X101: 0 | Y101: =MAX(Y98:Y100)+NoOne -> 1 | Z101: 1.1 Domestic | AA101: =SUMPRODUCT(--('[2]Summary of Factors'!$A$1:$A$63981=$AE101),'[2]Summary of Factors'!$E$1:$E$63981) -> 0 | AB101: =SUMPRODUCT(--('[2]Summary of Factors'!$A$1:$A$63981=$AE101),'[2]Summary of Factors'!$C$1:$C$63981) -> 4925.66 | AC101: =SUMPRODUCT(--('[2]Summary of Factors'!$A$1:$A$63981=$AE101),'[2]Summary of Factors'!$D$1:$D$63981) -> 413.5 | AD101: =12*Customers!$D110 -> 4962 | AE101: LAL1.2
A102: 2 | B102: 1.12 Domestic All Electric | C102: 0 | D102: 0.176113942 | E102: 0.1966301666 | F102: 0.3727441085 | G102: 45.7034099 | I102: 0 | J102: 0 | K102: 0 | L102: 0 | M102: 0 | N102: 2 | O102: 1.12 Domestic All Electric | P102: 4421636.593 | Q102: =SUM(LALCos!G396,LALCos!I396:K396,LALCos!M396,LALCos!O396) -> 1965010.68 | R102: =SUM(LALCos!H396) -> 2193922.713 | S102: =SUM(LALCos!L396,LALCos!N396,LALCos!P396:U396) -> 262703.2001 | U102: 0 | V102: 0 | W102: 0 | X102: 0 | Y102: 2 | Z102: 1.12 Domestic All Electric | AA102: =SUMPRODUCT(--('[2]Summary of Factors'!$A$1:$A$63981=$AE102),'[2]Summary of Factors'!$E$1:$E$63981) -> 0 | AB102: =SUMPRODUCT(--('[2]Summary of Factors'!$A$1:$A$63981=$AE102),'[2]Summary of Factors'!$C$1:$C$63981) -> 11157.61 | AC102: =SUMPRODUCT(--('[2]Summary of Factors'!$A$1:$A$63981=$AE102),'[2]Summary of Factors'!$D$1:$D$63981) -> 479 | AD102: =12*Customers!$D111 -> 5748 | AE102: LAL1.12
A103: 3 | B103: 2.1 General Service 0-10 kW | C103: 39.65489279 | D103: 0 | E103: 0.1971420999 | F103: 0 | G103: 62.02760634 | I103: 0 | J103: 0 | K103: 0 | L103: 0 | M103: 0 | N103: 3 | O103: 2.1 General Service 0-10 kW | P103: 2332949.62 | Q103: =SUM(LALCos!G397,LALCos!I397:K397,LALCos!M397,LALCos!O397) -> 912221.1538 | R103: =SUM(LALCos!H397) -> 1275211.702 | S103: =SUM(LALCos!L397,LALCos!N397,LALCos!P397:U397) -> 145516.7645 | U103: 0 | V103: 0 | W103: 0 | X103: 0 | Y103: 3 | Z103: 2.1 General Service 0-10 kW | AA103: =SUMPRODUCT(--('[2]Summary of Factors'!$A$1:$A$63981=$AE103),'[2]Summary of Factors'!$E$1:$E$63981) -> 23004 | AB103: =SUMPRODUCT(--('[2]Summary of Factors'!$A$1:$A$63981=$AE103),'[2]Summary of Factors'!$C$1:$C$63981) -> 6468.49 | AC103: =SUMPRODUCT(--('[2]Summary of Factors'!$A$1:$A$63981=$AE103),'[2]Summary of Factors'!$D$1:$D$63981) -> 195.5 | AD103: =12*Customers!$D112 -> 2346 | AE103: LAL2.1
A104: 4 | B104: 2.2 General Service 10-100 kW | C104: 0 | D104: 0 | E104: 0 | F104: 0 | G104: 0 | I104: 0 | J104: 0 | K104: 0 | L104: 0 | M104: 0 | N104: 4 | O104: 2.2 General Service 10-100 kW | P104: 0 | Q104: =SUM(LALCos!G398,LALCos!I398:K398,LALCos!M398,LALCos!O398) -> 0 | R104: =SUM(LALCos!H398) -> 0 | S104: =SUM(LALCos!L398,LALCos!N398,LALCos!P398:U398) -> 0 | U104: 0 | V104: 0 | W104: 0 | X104: 0 | Y104: 4 | Z104: 2.2 General Service 10-100 kW | AA104: =SUMPRODUCT(--('[2]Summary of Factors'!$A$1:$A$63981=$AE104),'[2]Summary of Factors'!$E$1:$E$63981) -> 0 | AB104: =SUMPRODUCT(--('[2]Summary of Factors'!$A$1:$A$63981=$AE104),'[2]Summary of Factors'!$C$1:$C$63981) -> 0 | AC104: =SUMPRODUCT(--('[2]Summary of Factors'!$A$1:$A$63981=$AE104),'[2]Summary of Factors'!$D$1:$D$63981) -> 0 | AD104: =12*Customers!$D113 -> 0 | AE104: LAL2.2
A105: 5 | B105: 2.3 General Service 110-1,000 kVa | C105: 24.22190122 | D105: 0 | E105: 0.1972354836 | F105: 0 | G105: 77.75030636 | I105: 0 | J105: 0 | K105: 0 | L105: 0 | M105: 0 | N105: 5 | O105: 2.3 General Service 110-1,000 kVa | P105: 690869.1985 | Q105: =SUM(LALCos!G399,LALCos!I399:K399,LALCos!M399,LALCos!O399) -> 222019.6421 | R105: =SUM(LALCos!H399) -> 462718.3893 | S105: =SUM(LALCos!L399,LALCos!N399,LALCos!P399:U399) -> 6131.167016 | U105: 0 | V105: 0 | W105: 0 | X105: 0 | Y105: 5 | Z105: 2.3 General Service 110-1,000 kVa | AA105: =SUMPRODUCT(--('[2]Summary of Factors'!$A$1:$A$63981=$AE105),'[2]Summary of Factors'!$E$1:$E$63981) -> 9166.07 | AB105: =SUMPRODUCT(--('[2]Summary of Factors'!$A$1:$A$63981=$AE105),'[2]Summary of Factors'!$C$1:$C$63981) -> 2346.02 | AC105: =SUMPRODUCT(--('[2]Summary of Factors'!$A$1:$A$63981=$AE105),'[2]Summary of Factors'!$D$1:$D$63981) -> 6.571428571 | AD105: =12*Customers!$D114 -> 78.85714286 | AE105: LAL2.3
A106: 6 | B106: 4.1 Street and Area Lighting | C106: 0 | D106: 0.1915164403 | E106: 0.196126499 | F106: 0.3876429392 | G106: 139.2060326 | I106: 0 | J106: 0 | K106: 0 | L106: 0 | M106: 0 | N106: 6 | O106: 4.1 Street and Area Lighting | P106: 88736.76479 | Q106: =SUM(LALCos!G400,LALCos!I400:K400,LALCos!M400,LALCos!O400) -> 12479.21125 | R106: =SUM(LALCos!H400) -> 12779.60267 | S106: =SUM(LALCos!L400,LALCos!N400,LALCos!P400:U400) -> 63477.95087 | U106: 0 | V106: 0 | W106: 0 | X106: 0 | Y106: 6 | Z106: 4.1 Street and Area Lighting | AA106: =SUMPRODUCT(--('[2]Summary of Factors'!$A$1:$A$63981=$AE106),'[2]Summary of Factors'!$E$1:$E$63981) -> 0 | AB106: =SUMPRODUCT(--('[2]Summary of Factors'!$A$1:$A$63981=$AE106),'[2]Summary of Factors'!$C$1:$C$63981) -> 65.16 | AC106: =SUMPRODUCT(--('[2]Summary of Factors'!$A$1:$A$63981=$AE106),'[2]Summary of Factors'!$D$1:$D$63981) -> 38 | AD106: =12*Customers!$D115 -> 456 | AE106: LAL4.1
N107: 7 | O107: Total L'Anse au Loup | P107: =SUM(P101:P106) -> 9758495.865 | Q107: =SUM(Q101:Q106) -> 4141616.971 | R107: =SUM(R101:R106) -> 4912439.535 | S107: =SUM(S101:S106) -> 704439.3598 | Y107: 7 | Z107: Total L'Anse au Loup | AA107: =SUM(AA101:AA106) -> 32170.07 | AB107: =SUM(AB101:AB106) -> 24962.94 | AC107: =SUM(AC101:AC106) -> 1132.571429 | AD107: =SUM(AD101:AD106) -> 13590.85714
B110: Labrador Interconnected | O110: =+B110 -> Labrador Interconnected | Z110: =+O110 -> Labrador Interconnected
A111: =MAX(A106:A110)+NoOne -> 7 | B111: Labrador Industrial - Firm | C111: =IF(AA111<>0,(Q111+R111)/AA111,0) -> 2.399433602 | D111: =IF(AND(AA111<>0,AB111<>0),0,IF(AA111<>0,0,IF(AB111<>0,Q111/(AB111*1000),0))) -> 0 | E111: =IF(AB111<>0,R111/(AB111*1000),0) -> 0 | F111: =IF(AND(AA111<>0,AB111<>0),0,IF(AA111<>0,0,IF(AB111<>0,SUM(D111:E111),0))) -> 0 | G111: =IF(AD111<>0,S111/AD111,0) -> 0 | I111: =IF(AA111<>0,(V111+W111)/AA111,0) -> 2.399433602 | J111: =IF(AND(AA111<>0,AB111<>0),0,IF(AA111<>0,0,IF(AB111<>0,V111/(AB111*1000),0))) -> 0 | K111: =IF(AB111<>0,W111/(AB111*1000),0) -> 0 | L111: =IF(AND(AA111<>0,AB111<>0),0,IF(AA111<>0,0,IF(AB111<>0,SUM(J111:K111),0))) -> 0 | M111: =IF(AD111<>0,X111/AD111,0) -> 0 | N111: =MAX(N106:N110)+NoOne -> 8 | O111: =+B111 -> Labrador Industrial - Firm | P111: =SUM(Q111:S111) -> 9172199.896 | Q111: =SUM(LabIntCos!G454,LabIntCos!I454:K454,LabIntCos!M454,LabIntCos!O454)+SUM(LabIntCos!H454) -> 9127445.421 | R111: =SUM(LabIntCos!H454)-SUM(LabIntCos!H454) -> 0 | S111: =SUM(LabIntCos!L454,LabIntCos!N454,LabIntCos!P454:U454) -> 44754.47508 | U111: =+'Rev to Cost'!H220 -> 9172199.896 | V111: =IF($P111<>0,$U111/$P111*Q111,0) -> 9127445.421 | W111: 0 | X111: 44754.47508 | Y111: =MAX(Y107:Y110)+NoOne -> 8 | Z111: =+O111 -> Labrador Industrial - Firm | AA111: ='[2]Summary of Factors'!$E$47 -> 3804000 | AB111: =SUMPRODUCT(--('[2]Summary of Factors'!$A$1:$A$63981=$AE111),'[2]Summary of Factors'!$C$1:$C$63981) -> 1902365.337 | AC111: =SUMPRODUCT(--('[2]Summary of Factors'!$A$1:$A$63981=$AE111),'[2]Summary of Factors'!$D$1:$D$63981) -> 0 | AD111: =12*Customers!$D133 -> 0 | AE111: LINTIOCF
A112: =MAX(A109:A111)+NoOne -> 8 | B112: Labrador Industrial - Non-Firm | C112: =IF(AA112<>0,Q112/AA112,0) -> 0 | D112: =IF(AND(AA112<>0,AB112<>0),0,IF(AA112<>0,0,IF(AB112<>0,Q112/(AB112*1000),0))) -> 0 | E112: =IF(AB112<>0,R112/(AB112*1000),0) -> 0 | F112: =IF(AND(AA112<>0,AB112<>0),0,IF(AA112<>0,0,IF(AB112<>0,SUM(D112:E112),0))) -> 0 | G112: =IF(AD112<>0,S112/AD112,0) -> 0 | I112: =IF(AA112<>0,V112/AA112,"-") -> - | J112: =IF(AND(AA112<>0,AB112<>0),0,IF(AA112<>0,0,IF(AB112<>0,V112/(AB112*1000),0))) -> 0 | K112: =IF(AB112<>0,W112/(AB112*1000),0) -> 0 | L112: =IF(AND(AA112<>0,AB112<>0),0,IF(AA112<>0,0,IF(AB112<>0,SUM(J112:K112),0))) -> 0 | M112: =IF(AD112<>0,X112/AD112,0) -> 0 | N112: =MAX(N109:N111)+NoOne -> 9 | O112: =+B112 -> Labrador Industrial - Non-Firm | P112: =SUM(Q112:S112) -> 0 | Q112: =SUM(LabIntCos!G455,LabIntCos!I455:K455,LabIntCos!M455,LabIntCos!O455) -> 0 | R112: =SUM(LabIntCos!H455) -> 0 | S112: =SUM(LabIntCos!L455,LabIntCos!N455,LabIntCos!P455:U455) -> 0 | U112: =+'Rev to Cost'!H221 -> 0 | V112: 0 | W112: 0 | X112: 0 | Y112: =MAX(Y109:Y111)+NoOne -> 9 | Z112: =+O112 -> Labrador Industrial - Non-Firm | AA112: =SUMPRODUCT(--('[2]Summary of Factors'!$A$1:$A$63981=$AE112),'[2]Summary of Factors'!$E$1:$E$63981) -> 0 | AB112: =SUMPRODUCT(--('[2]Summary of Factors'!$A$1:$A$63981=$AE112),'[2]Summary of Factors'!$C$1:$C$63981) -> 0 | AC112: =SUMPRODUCT(--('[2]Summary of Factors'!$A$1:$A$63981=$AE112),'[2]Summary of Factors'!$D$1:$D$63981) -> 0 | AE112: LINTIOCNF
A113: =MAX(A110:A112)+NoOne -> 9 | B113: CFB - Goose Bay Secondary | C113: =IF(AA113<>0,Q113/AA113,0) -> 0 | D113: =IF(AND(AA113<>0,AB113<>0),0,IF(AA113<>0,0,IF(AB113<>0,Q113/(AB113*1000),0))) -> 0 | E113: =IF(AB113<>0,R113/(AB113*1000),0) -> 0 | F113: =IF(AND(AA113<>0,AB113<>0),0,IF(AA113<>0,0,IF(AB113<>0,SUM(D113:E113),0))) -> 0 | G113: =IF(AD113<>0,S113/AD113,0) -> 0 | I113: =IF(AA113<>0,V113/AA113,"-") -> - | J113: =IF(AND(AA113<>0,AB113<>0),0,IF(AA113<>0,0,IF(AB113<>0,V113/(AB113*1000),0))) -> 0 | K113: =IF(AB113<>0,W113/(AB113*1000),0) -> 0 | L113: =IF(AND(AA113<>0,AB113<>0),0,IF(AA113<>0,0,IF(AB113<>0,SUM(J113:K113),0))) -> 0 | M113: =IF(AD113<>0,X113/AD113,0) -> 0 | N113: =MAX(N110:N112)+NoOne -> 10 | O113: =+B113 -> CFB - Goose Bay Secondary | P113: =SUM(Q113:S113) -> 0 | Q113: =SUM(LabIntCos!G453,LabIntCos!I453:K453,LabIntCos!M453,LabIntCos!O453) -> 0 | R113: =SUM(LabIntCos!H453) -> 0 | S113: =SUM(LabIntCos!L453,LabIntCos!N453,LabIntCos!P453:U453) -> 0 | U113: =+'Rev to Cost'!D225+'Rev to Cost'!F225 -> 0 | V113: 0 | W113: 0 | X113: 0 | Y113: =MAX(Y110:Y112)+NoOne -> 10 | Z113: =+O113 -> CFB - Goose Bay Secondary | AA113: =SUMPRODUCT(--('[2]Summary of Factors'!$A$1:$A$63981=$AE113),'[2]Summary of Factors'!$E$1:$E$63981) -> 0 | AB113: =SUMPRODUCT(--('[2]Summary of Factors'!$A$1:$A$63981=$AE113),'[2]Summary of Factors'!$C$1:$C$63981) -> 0 | AC113: =SUMPRODUCT(--('[2]Summary of Factors'!$A$1:$A$63981=$AE113),'[2]Summary of Factors'!$D$1:$D$63981) -> 0 | AD113: =12*Customers!$D132 -> 0 | AE113: LINTCFB
B115: Rural | J115: =IF(AND(AA115<>0,AB115<>0),0,IF(AA115<>0,0,IF(AB115<>0,V115/(AB115*1000),0))) -> 0 | K115: =IF(AB115<>0,W115/(AB115*1000),0) -> 0 | O115: =+B115 -> Rural | Z115: =+O115 -> Rural
A116: =MAX(A113:A115)+NoOne -> 10 | B116: 1.1 Domestic | C116: =IF(AA116<>0,Q116/AA116,0) -> 0 | D116: =IF(AND(AA116<>0,AB116<>0),0,IF(AA116<>0,0,IF(AB116<>0,Q116/(AB116*1000),0))) -> 0.02547340688 | E116: =IF(AB116<>0,R116/(AB116*1000),0) -> 0.00152762493 | F116: =IF(AND(AA116<>0,AB116<>0),0,IF(AA116<>0,0,IF(AB116<>0,SUM(D116:E116),0))) -> 0.02700103181 | G116: =IF(AD116<>0,S116/AD116,0) -> 38.3184008 | I116: =IF(AA116<>0,V116/AA116,"-") -> - | J116: 0.02787507138 | K116: 0.00167165131 | L116: =IF(AND(AA116<>0,AB116<>0),0,IF(AA116<>0,0,IF(AB116<>0,SUM(J116:K116),0))) -> 0.02954672269 | M116: =IF(AD116<>0,X116/AD116,0) -> 41.93110732 | N116: =MAX(N113:N115)+NoOne -> 11 | O116: =+B116 -> 1.1 Domestic | P116: =SUM(Q116:S116) -> 206447.6223 | Q116: =SUM(LabIntCos!G458,LabIntCos!I458:K458,LabIntCos!M458,LabIntCos!O458) -> 57901.81946 | R116: =SUM(LabIntCos!H458) -> 3472.33738 | S116: =SUM(LabIntCos!L458,LabIntCos!N458,LabIntCos!P458:U458) -> 145073.4654 | U116: =+'Rev to Cost'!H228 -> 225911.761 | V116: =IF($P116<>0,$U116/$P116*Q116,0) -> 63360.87506 | W116: 3799.71367 | X116: 158751.1723 | Y116: =MAX(Y113:Y115)+NoOne -> 11 | Z116: =+O116 -> 1.1 Domestic | AA116: =SUMPRODUCT(--('[2]Summary of Factors'!$A$1:$A$63981=$AE116),'[2]Summary of Factors'!$E$1:$E$63981) -> 0 | AB116: =SUMPRODUCT(--('[2]Summary of Factors'!$A$1:$A$63981=$AE116),'[2]Summary of Factors'!$C$1:$C$63981) -> 2273.030056 | AC116: =SUMPRODUCT(--('[2]Summary of Factors'!$A$1:$A$63981=$AE116),'[2]Summary of Factors'!$D$1:$D$63981) -> 315.5 | AD116: =12*Customers!$D135 -> 3786 | AE116: LINT1.1
A117: =MAX(A114:A116)+NoOne -> 11 | B117: 1.1A Domestic All Electric | C117: =IF(AA117<>0,Q117/AA117,0) -> 0 | D117: =IF(AND(AA117<>0,AB117<>0),0,IF(AA117<>0,0,IF(AB117<>0,Q117/(AB117*1000),0))) -> 0.02181066077 | E117: =IF(AB117<>0,R117/(AB117*1000),0) -> 0.001546593484 | F117: =IF(AND(AA117<>0,AB117<>0),0,IF(AA117<>0,0,IF(AB117<>0,SUM(D117:E117),0))) -> 0.02335725425 | G117: =IF(AD117<>0,S117/AD117,0) -> 38.79420127 | I117: =IF(AA117<>0,V117/AA117,"-") -> - | J117: 0.02386699701 | K117: 0.001692408243 | L117: =IF(AND(AA117<>0,AB117<>0),0,IF(AA117<>0,0,IF(AB117<>0,SUM(J117:K117),0))) -> 0.02555940526 | M117: =IF(AD117<>0,X117/AD117,0) -> 42.45176685 | N117: =MAX(N114:N116)+NoOne -> 12 | O117: =+B117 -> 1.1A Domestic All Electric | P117: =SUM(Q117:S117) -> 12172687.44 | Q117: =SUM(LabIntCos!G459,LabIntCos!I459:K459,LabIntCos!M459,LabIntCos!O459) -> 6989192.66 | R117: =SUM(LabIntCos!H459) -> 495603.5006 | S117: =SUM(LabIntCos!L459,LabIntCos!N459,LabIntCos!P459:U459) -> 4687891.282 | U117: =+'Rev to Cost'!H229 -> 13320343.56 | V117: 7648142.443 | W117: 542329.6155 | X117: 5129871.507 | Y117: =MAX(Y114:Y116)+NoOne -> 12 | Z117: =+O117 -> 1.1A Domestic All Electric | AA117: =SUMPRODUCT(--('[2]Summary of Factors'!$A$1:$A$63981=$AE117),'[2]Summary of Factors'!$E$1:$E$63981) -> 0 | AB117: =SUMPRODUCT(--('[2]Summary of Factors'!$A$1:$A$63981=$AE117),'[2]Summary of Factors'!$C$1:$C$63981) -> 320448.4602 | AC117: =SUMPRODUCT(--('[2]Summary of Factors'!$A$1:$A$63981=$AE117),'[2]Summary of Factors'!$D$1:$D$63981) -> 10070 | AD117: =12*Customers!$D136 -> 120840 | AE117: LINT1.1A
A118: =MAX(A115:A117)+NoOne -> 12 | B118: Subtotal Domestic | C118: =IF(AA118<>0,Q118/AA118,0) -> 0 | D118: =IF(AND(AA118<>0,AB118<>0),0,IF(AA118<>0,0,IF(AB118<>0,Q118/(AB118*1000),0))) -> 0.02183645865 | E118: =IF(AB118<>0,R118/(AB118*1000),0) -> 0.001546459883 | F118: =IF(AND(AA118<>0,AB118<>0),0,IF(AA118<>0,0,IF(AB118<>0,SUM(D118:E118),0))) -> 0.02338291854 | G118: =IF(AD118<>0,S118/AD118,0) -> 38.77974698 | I118: =IF(AA118<>0,V118/AA118,"-") -> - | J118: 0.02389522715 | K118: 0.001692262045 | L118: =IF(AND(AA118<>0,AB118<>0),0,IF(AA118<>0,0,IF(AB118<>0,SUM(J118:K118),0))) -> 0.0255874892 | M118: =IF(AD118<>0,X118/AD118,0) -> 42.43594979 | N118: =MAX(N115:N117)+NoOne -> 13 | O118: =+B118 -> Subtotal Domestic | P118: =SUM(P116:P117) -> 12379135.06 | Q118: =SUM(Q116:Q117) -> 7047094.479 | R118: =SUM(R116:R117) -> 499075.838 | S118: =SUM(S116:S117) -> 4832964.747 | U118: =SUM(U116:U117) -> 13546255.33 | V118: =SUM(V116:V117) -> 7711503.318 | W118: =SUM(W116:W117) -> 546129.3292 | X118: =SUM(X116:X117) -> 5288622.679 | Y118: =MAX(Y115:Y117)+NoOne -> 13 | Z118: =+O118 -> Subtotal Domestic | AA118: 0 | AB118: =SUM(AB116:AB117) -> 322721.4903 | AC118: =SUM(AC116:AC117) -> 10385.5 | AD118: =SUM(AD116:AD117) -> 124626
J119: 0 | K119: 0
A120: =MAX(A117:A119)+NoOne -> 13 | B120: 2.1 General Service 0-10 kW | C120: =IF(AA120<>0,Q120/AA120,0) -> 0 | D120: =IF(AND(AA120<>0,AB120<>0),0,IF(AA120<>0,0,IF(AB120<>0,Q120/(AB120*1000),0))) -> 0.01650240113 | E120: =IF(AB120<>0,R120/(AB120*1000),0) -> 0.00155977772 | F120: =IF(AND(AA120<>0,AB120<>0),0,IF(AA120<>0,0,IF(AB120<>0,SUM(D120:E120),0))) -> 0.01806217885 | G120: =IF(AD120<>0,S120/AD120,0) -> 43.34317215 | I120: =IF(AA120<>0,V120/AA120,"-") -> - | J120: 0.01805826805 | K120: 0.001706835505 | L120: =IF(AND(AA120<>0,AB120<>0),0,IF(AA120<>0,0,IF(AB120<>0,SUM(J120:K120),0))) -> 0.01976510356 | M120: =IF(AD120<>0,X120/AD120,0) -> 47.42962037 | N120: =MAX(N117:N119)+NoOne -> 14 | O120: =+B120 -> 2.1 General Service 0-10 kW | P120: =SUM(Q120:S120) -> 302668.0417 | Q120: =SUM(LabIntCos!G460,LabIntCos!I460:K460,LabIntCos!M460,LabIntCos!O460) -> 72906.46096 | R120: =SUM(LabIntCos!H460) -> 6890.989533 | S120: =SUM(LabIntCos!L460,LabIntCos!N460,LabIntCos!P460:U460) -> 222870.5912 | U120: =+'Rev to Cost'!H230 -> 331203.9614 | V120: =IF($P120<>0,$U120/$P120*Q120,0) -> 79780.17284 | W120: 7540.680603 | X120: 243883.1079 | Y120: =MAX(Y117:Y119)+NoOne -> 14 | Z120: =+O120 -> 2.1 General Service 0-10 kW | AA120: =SUMPRODUCT(--('[2]Summary of Factors'!$A$1:$A$63981=$AE120),'[2]Summary of Factors'!$E$1:$E$63981) -> 0 | AB120: =SUMPRODUCT(--('[2]Summary of Factors'!$A$1:$A$63981=$AE120),'[2]Summary of Factors'!$C$1:$C$63981) -> 4417.93048 | AC120: =SUMPRODUCT(--('[2]Summary of Factors'!$A$1:$A$63981=$AE120),'[2]Summary of Factors'!$D$1:$D$63981) -> 428.5 | AD120: =12*Customers!$D137 -> 5142 | AE120: LINT2.1
A121: =MAX(A118:A120)+NoOne -> 14 | B121: 2.2 General Service 10-100 kW | C121: =IF(AA121<>0,Q121/AA121,0) -> 5.331657205 | D121: =IF(AND(AA121<>0,AB121<>0),0,IF(AA121<>0,0,IF(AB121<>0,Q121/(AB121*1000),0))) -> 0 | E121: =IF(AB121<>0,R121/(AB121*1000),0) -> 0.001558422541 | F121: =IF(AND(AA121<>0,AB121<>0),0,IF(AA121<>0,0,IF(AB121<>0,SUM(D121:E121),0))) -> 0 | G121: =IF(AD121<>0,S121/AD121,0) -> 57.21979264 | I121: =IF(AA121<>0,V121/AA121,0) -> 5.834332482 | J121: 0 | K121: 0.001705352558 | L121: =IF(AND(AA121<>0,AB121<>0),0,IF(AA121<>0,0,IF(AB121<>0,SUM(J121:K121),0))) -> 0 | M121: =IF(AD121<>0,X121/AD121,0) -> 62.61454591 | N121: =MAX(N118:N120)+NoOne -> 15 | O121: =+B121 -> 2.2 General Service 10-100 kW | P121: =SUM(Q121:S121) -> 1963428.76 | Q121: =SUM(LabIntCos!G461,LabIntCos!I461:K461,LabIntCos!M461,LabIntCos!O461) -> 1326045.026 | R121: =SUM(LabIntCos!H461) -> 116569.1813 | S121: =SUM(LabIntCos!L461,LabIntCos!N461,LabIntCos!P461:U461) -> 520814.5526 | U121: =+'Rev to Cost'!H231 -> 2148543.267 | V121: 1451066.201 | W121: 127559.4688 | X121: 569917.5969 | Y121: =MAX(Y118:Y120)+NoOne -> 15 | Z121: =+O121 -> 2.2 General Service 10-100 kW | AA121: =SUMPRODUCT(--('[2]Summary of Factors'!$A$1:$A$63981=$AE121),'[2]Summary of Factors'!$E$1:$E$63981) -> 248711.606 | AB121: =SUMPRODUCT(--('[2]Summary of Factors'!$A$1:$A$63981=$AE121),'[2]Summary of Factors'!$C$1:$C$63981) -> 74799.47078 | AC121: =SUMPRODUCT(--('[2]Summary of Factors'!$A$1:$A$63981=$AE121),'[2]Summary of Factors'!$D$1:$D$63981) -> 758.5 | AD121: =12*Customers!$D138 -> 9102 | AE121: LINT2.2
A122: =MAX(A119:A121)+NoOne -> 15 | B122: 2.3 General Service 110-1,000 kVa | C122: =IF(AA122<>0,Q122/AA122,0) -> 5.434161231 | D122: =IF(AND(AA122<>0,AB122<>0),0,IF(AA122<>0,0,IF(AB122<>0,Q122/(AB122*1000),0))) -> 0 | E122: =IF(AB122<>0,R122/(AB122*1000),0) -> 0.001561689059 | F122: =IF(AND(AA122<>0,AB122<>0),0,IF(AA122<>0,0,IF(AB122<>0,SUM(D122:E122),0))) -> 0 | G122: =IF(AD122<>0,S122/AD122,0) -> 75.00975609 | I122: =IF(AA122<>0,V122/AA122,0) -> 5.946500715 | J122: 0 | K122: 0.001708927047 | L122: =IF(AND(AA122<>0,AB122<>0),0,IF(AA122<>0,0,IF(AB122<>0,SUM(J122:K122),0))) -> 0 | M122: =IF(AD122<>0,X122/AD122,0) -> 82.08176926 | N122: =MAX(N119:N121)+NoOne -> 16 | O122: =+B122 -> 2.3 General Service 110-1,000 kVa | P122: =SUM(Q122:S122) -> 2864081.836 | Q122: =SUM(LabIntCos!G462,LabIntCos!I462:K462,LabIntCos!M462,LabIntCos!O462) -> 2445073.695 | R122: =SUM(LabIntCos!H462) -> 242120.2843 | S122: =SUM(LabIntCos!L462,LabIntCos!N462,LabIntCos!P462:U462) -> 176887.8568 | U122: =+'Rev to Cost'!H232 -> 3134111.037 | V122: 2675598.287 | W122: 264947.6861 | X122: 193565.0641 | Y122: =MAX(Y119:Y121)+NoOne -> 16 | Z122: =+O122 -> 2.3 General Service 110-1,000 kVa | AA122: =SUMPRODUCT(--('[2]Summary of Factors'!$A$1:$A$63981=$AE122),'[2]Summary of Factors'!$E$1:$E$63981) -> 449945.0037 | AB122: =SUMPRODUCT(--('[2]Summary of Factors'!$A$1:$A$63981=$AE122),'[2]Summary of Factors'!$C$1:$C$63981) -> 155037.4467 | AC122: =SUMPRODUCT(--('[2]Summary of Factors'!$A$1:$A$63981=$AE122),'[2]Summary of Factors'!$D$1:$D$63981) -> 196.5165 | AD122: =12*Customers!$D139 -> 2358.198 | AE122: LINT2.3
A123: =MAX(A120:A122)+NoOne -> 16 | B123: 2.4 General Service Over 1,000 kVa | C123: =IF(AA123<>0,Q123/AA123,0) -> 7.81069024 | D123: =IF(AND(AA123<>0,AB123<>0),0,IF(AA123<>0,0,IF(AB123<>0,Q123/(AB123*1000),0))) -> 0 | E123: =IF(AB123<>0,R123/(AB123*1000),0) -> 0.001538744509 | F123: =IF(AND(AA123<>0,AB123<>0),0,IF(AA123<>0,0,IF(AB123<>0,SUM(D123:E123),0))) -> 0 | G123: =IF(AD123<>0,S123/AD123,0) -> 75.74739943 | I123: =IF(AA123<>0,V123/AA123,0) -> 8.547091837 | J123: 0 | K123: 0.001683819256 | L123: =IF(AND(AA123<>0,AB123<>0),0,IF(AA123<>0,0,IF(AB123<>0,SUM(J123:K123),0))) -> 0 | M123: =IF(AD123<>0,X123/AD123,0) -> 82.88895853 | N123: =MAX(N120:N122)+NoOne -> 17 | O123: =+B123 -> 2.4 General Service Over 1,000 kVa | P123: =SUM(Q123:S123) -> 2090121.321 | Q123: =SUM(LabIntCos!G463,LabIntCos!I463:K463,LabIntCos!M463,LabIntCos!O463) -> 1862739.404 | R123: =SUM(LabIntCos!H463) -> 221928.1042 | S123: =SUM(LabIntCos!L463,LabIntCos!N463,LabIntCos!P463:U463) -> 5453.812759 | U123: =+'Rev to Cost'!H233 -> 2287180.56 | V123: 2038360.793 | W123: 242851.7621 | X123: 5968.005014 | Y123: =MAX(Y120:Y122)+NoOne -> 17 | Z123: =+O123 -> 2.4 General Service Over 1,000 kVa | AA123: =SUMPRODUCT(--('[2]Summary of Factors'!$A$1:$A$63981=$AE123),'[2]Summary of Factors'!$E$1:$E$63981) -> 238485.8888 | AB123: =SUMPRODUCT(--('[2]Summary of Factors'!$A$1:$A$63981=$AE123),'[2]Summary of Factors'!$C$1:$C$63981) -> 144226.74 | AC123: =SUMPRODUCT(--('[2]Summary of Factors'!$A$1:$A$63981=$AE123),'[2]Summary of Factors'!$D$1:$D$63981) -> 6 | AD123: =12*Customers!$D140 -> 72 | AE123: LINT2.4
A124: =MAX(A121:A123)+NoOne -> 17 | B124: 4.1 Street and Area Lighting | C124: =IF(AA124<>0,Q124/AA124,0) -> 0 | D124: =IF(AND(AA124<>0,AB124<>0),0,IF(AA124<>0,0,IF(AB124<>0,Q124/(AB124*1000),0))) -> 0.02189791568 | E124: =IF(AB124<>0,R124/(AB124*1000),0) -> 0.001544594044 | F124: =IF(AND(AA124<>0,AB124<>0),0,IF(AA124<>0,0,IF(AB124<>0,SUM(D124:E124),0))) -> 0.02344250973 | G124: =IF(AD124<>0,S124/AD124,0) -> 87.29594188 | I124: =IF(AA124<>0,V124/AA124,0) -> 0 | J124: 0.02396247843 | K124: 0.001690220293 | L124: =IF(AND(AA124<>0,AB124<>0),0,IF(AA124<>0,0,IF(AB124<>0,SUM(J124:K124),0))) -> 0.02565269872 | M124: =IF(AD124<>0,X124/AD124,0) -> 95.52631193 | N124: =MAX(N121:N123)+NoOne -> 18 | O124: =+B124 -> 4.1 Street and Area Lighting | P124: =SUM(Q124:S124) -> 439584.8833 | Q124: =SUM(LabIntCos!G464,LabIntCos!I464:K464,LabIntCos!M464,LabIntCos!O464) -> 21166.4646 | R124: =SUM(LabIntCos!H464) -> 1493.000322 | S124: =SUM(LabIntCos!L464,LabIntCos!N464,LabIntCos!P464:U464) -> 416925.4184 | U124: =+'Rev to Cost'!H234 -> 481029.4933 | V124: 23162.06523 | W124: 1633.76225 | X124: 456233.6658 | Y124: =MAX(Y121:Y123)+NoOne -> 18 | Z124: =+O124 -> 4.1 Street and Area Lighting | AA124: =SUMPRODUCT(--('[2]Summary of Factors'!$A$1:$A$63981=$AE124),'[2]Summary of Factors'!$E$1:$E$63981) -> 0 | AB124: =SUMPRODUCT(--('[2]Summary of Factors'!$A$1:$A$63981=$AE124),'[2]Summary of Factors'!$C$1:$C$63981) -> 966.5972281 | AC124: =SUMPRODUCT(--('[2]Summary of Factors'!$A$1:$A$63981=$AE124),'[2]Summary of Factors'!$D$1:$D$63981) -> 398 | AD124: =12*Customers!$D141 -> 4776 | AE124: LINT4.1
N126: =MAX(N123:N125)+NoOne -> 19 | O126: Subtotal Rural | P126: =SUM(P118,P120:P124) -> 20039019.91 | Q126: =SUM(Q118,Q120:Q124) -> 12775025.53 | R126: =SUM(R118,R120:R124) -> 1088077.398 | S126: =SUM(S118,S120:S124) -> 6175916.979 | U126: =SUM(U118,U120:U124) -> 21928323.64 | V126: =SUM(V118,V120:V124) -> 13979470.84 | W126: =SUM(W118,W120:W124) -> 1190662.689 | X126: =SUM(X118,X120:X124) -> 6758190.119 | Y126: =MAX(Y123:Y125)+NoOne -> 19 | Z126: =+O126 -> Subtotal Rural | AA126: =SUM(AA118,AA120:AA124) -> 937142.4985 | AB126: =SUM(AB118,AB120:AB124) -> 702169.6755 | AC126: =SUM(AC118,AC120:AC124) -> 12173.0165 | AD126: =SUM(AD118,AD120:AD124) -> 146076.198
N128: =MAX(N125:N127)+NoOne -> 20 | O128: Total Labrador Interconnected | P128: =SUM(P126,P111:P113) -> 29211219.8 | Q128: =SUM(Q126,Q111:Q113) -> 21902470.95 | R128: =SUM(R126,R111:R113) -> 1088077.398 | S128: =SUM(S126,S111:S113) -> 6220671.454 | U128: =SUM(U126,U111:U113) -> 31100523.54 | V128: =SUM(V126,V111:V113) -> 23106916.26 | W128: =SUM(W126,W111:W113) -> 1190662.689 | X128: =SUM(X126,X111:X113) -> 6802944.594 | Y128: =MAX(Y125:Y127)+NoOne -> 20 | Z128: =+O128 -> Total Labrador Interconnected | AA128: =SUM(AA126,AA111:AA113,) -> 4741142.498 | AB128: =SUM(AB126,AB111:AB113,) -> 2604535.013 | AC128: =SUM(AC126,AC111:AC113,) -> 12173.0165 | AD128: =SUM(AD126,AD111:AD113,) -> 146076.198

Sheet NPRateCalcs
D1: Schedule G 1.4
D2: Page 1 of 1
A4: NEWFOUNDLAND & LABRADOR HYDRO
A5: =RunName -> 2027 Test Year Cost of Service Study (No Rate Mitigation)
A6: Rate Calculations for Newfoundland Power
B9: 1 | C9: =+B9+1 -> 2 | D9: =+C9+1 -> 3
A12: Line
A13: No. | B13: Description | C13: Amount | D13: Source
B15: Newfoundland Power:
B16: Demand:
A17: 1 | B17: Rate ($/kW/mo.) | C17: =[3]Inputs!$B$36 -> 5.5
A18: =+A17+1 -> 2 | B18: Billing Units (kW) | C18: =+'Unit Costs'!AA17 -> 16860014.36 | D18: Sch G 1.3.2, pg 1, Ln 1, Col 2
A19: =+A18+1 -> 3 | B19: Demand Revenue | C19: =ROUND(C18*C17,2) -> 92730078.98 | D19: Ln 1 * Ln 2
B22: Energy (First Block):
A23: =+A19+1 -> 4 | B23: Total Revenue Requirement | C23: =+'Rev to Cost'!H21 -> 1104812761 | D23: Sch G 1.2, pg 1, Ln 1, Col 6
A24: =+A23+1 -> 5 | B24: Less: Demand Revenue | C24: =C19 -> 92730078.98 | D24: Ln 3
A25: 6 | B25: Less: Second Block Energy Revenue (winter) | C25: =-'NPRateCalc Detail'!E40 -> 138546777.4 | D25: Ln 11 * Ln 13
A26: 7 | B26: Less: Second Block Energy Revenue (non-winter) | C26: =-'NPRateCalc Detail'!E41 -> 51084860.89 | D26: Ln 14 * Ln 16
A27: 8 | B27: First Block Energy Revenue | C27: =+C23-C24-C25-C26 -> 822451043.9 | D27: Ln 4 - Ln 5 - Ln 6 - Ln 7
A28: 9 | B28: First Block Energy Consumed (MWh) | C28: 3000000
A29: 10 | B29: Rate (¢/kWh) | C29: =C27/(C28*1000)*100 -> 27.4150348 | D29: Ln 8 / Ln 9
B32: Energy (Second Block - Winter):
A33: =+A29+1 -> 11 | B33: Energy Consumption (MWh) | C33: ='NPRateCalc Detail'!E20/1000 -> 1546626.227
A34: =+A33+1 -> 12 | B34: Energy Revenue (winter) | C34: =C25 -> 138546777.4
A35: =+A34+1 -> 13 | B35: Rate (¢/kWh) | C35: =C34/(C33*1000)*100 -> 8.958
B38: Energy (Second Block - Non-winter):
A39: =+A35+1 -> 14 | B39: Energy Consumption (MWh) | C39: ='NPRateCalc Detail'!E21/1000 -> 1467955.773
A40: =+A39+1 -> 15 | B40: Energy Revenue (non-winter) | C40: =C26 -> 51084860.89
A41: =+A40+1 -> 16 | B41: Rate (¢/kWh) | C41: =C40/(C39*1000)*100 -> 3.48
D59: Schedule G 1.5
D60: Page 1 of 1
A62: NEWFOUNDLAND AND LABRADOR HYDRO
A63: =RunName -> 2027 Test Year Cost of Service Study (No Rate Mitigation)
A64: Value of Newfoundland Power Thermal Generation Credit
B67: =MAX(A67)+NoOne -> 1 | C67: =MAX(B67)+NoOne -> 2 | D67: =MAX(C67)+NoOne -> 3
A70: Line
A71: No. | B71: Description | C71: Amount | D71: Source
A73: =MAX(A70:A72)+NoOne -> 1 | B73: Island Interconnected System:
A74: =MAX(A71:A73)+NoOne -> 2 | B74: Generation demand costs ($) | C74: =+IslIntCos!G322 -> 560623656 | D74: =+"Sch G 2.1A, C. 3, Ln "&IslIntCos!D322 -> Sch G 2.1A, C. 3, Ln 31
A75: =MAX(A72:A74)+NoOne -> 3 | B75: Coincident peak (kW) | C75: =+IslIntCos!G363 -> 1644377.672 | D75: =+"Sch G 3.1A, C. 3, Ln "&IslIntCos!D363 -> Sch G 3.1A, C. 3, Ln 13
A76: =MAX(A73:A75)+NoOne -> 4 | B76: Generation demand costs ($/kW) | C76: =ROUND(+C74/C75,2) -> 340.93 | D76: =+"Ln "&A74&" / Ln "&A75 -> Ln 2 / Ln 3
A78: =MAX(A75:A77)+NoOne -> 5 | B78: NP thermal generation capacity credit (kW) | C78: =+C92 -> 39299 | D78: (1)
A79: =MAX(A76:A78)+NoOne -> 6 | B79: Gross value of credit to NP ($) | C79: =+C76*C78 -> 13398208.07 | D79: =+"Ln "&A76&" x Ln "&A78 -> Ln 4 x Ln 5
A81: =MAX(A78:A80)+NoOne -> 7 | B81: Less NP's cost share:
A82: =MAX(A79:A81)+NoOne -> 8 | B82: Percentage | C82: =+IslIntCos!I366 -> 0.890014571 | D82: =+"Sch G 3.1A, C. 5, Ln "&IslIntCos!D366 -> Sch G 3.1A, C. 5, Ln 14
A83: =MAX(A80:A82)+NoOne -> 9 | B83: Amount ($) | C83: =-C79*C82 -> -11924600.41 | D83: =+"Ln "&A79&" x Ln "&A82 -> Ln 6 x Ln 8
A84: =MAX(A81:A83)+NoOne -> 10 | B84: Net value of credit to NP ($) | C84: =+C79+C83 -> 1473607.662 | D84: =+"Ln "&A79&" - Ln "&A83 -> Ln 6 - Ln 9
A90: (1) | B90: NP gas turbine and diesel generation capacity (kW) | C90: 44500
B91: ÷ System reserve | C91: =[3]Inputs!$B$2 -> 1.13235
B92: NP thermal generation capacity credit (kW) | C92: =ROUND(+C90/C91,0) -> 39299

Sheet Other Unit Costs
E2: Schedule G 1.6 | K2: Schedule G 1.7 | S2: BkpThermalDmd
E3: Page 1 of 1 | K3: Page 1 of 1 | S3: Page 1 of 1
A5: NEWFOUNDLAND & LABRADOR HYDRO | G5: NEWFOUNDLAND & LABRADOR HYDRO | M5: NEWFOUNDLAND & LABRADOR HYDRO
A6: =RunName -> 2027 Test Year Cost of Service Study (No Rate Mitigation) | G6: =RunName -> 2027 Test Year Cost of Service Study (No Rate Mitigation) | M6: =RunName -> 2027 Test Year Cost of Service Study (No Rate Mitigation)
A7: Island Interconnected | G7: Island Interconnected | M7: Island Interconnected
A8: Calculation of Firming Up Charge | G8: Calculation of Transmission Wheeling Charge | M8: Calculation of Thermal Demand Costs
B10: =MAX(A10)+NoOne -> 1 | C10: =MAX(B10)+NoOne -> 2 | D10: =MAX(C10)+NoOne -> 3 | E10: =MAX(D10)+NoOne -> 4 | H10: =MAX(G10)+NoOne -> 1 | J10: =MAX(H10)+NoOne -> 2 | N10: =MAX(M10)+NoOne -> 1 | O10: 2 | P10: 3 | Q10: 4 | R10: 5 | S10: 6
O12: Total
A13: Line | E13: Transmission | G13: Line | M13: Line | O13: Thermal | P13: Holyrood | Q13: Holyrood | R13: Gas Tur | S13: Gas Tur
A14: No. | B14: Description | C14: Total | D14: Gas Turbine | E14: & Terminals | G14: No. | H14: Description | M14: No. | N14: Description | O14: Demand | P14: Plant | Q14: Term Stn | R14: Plant | S14: Term Stn
A16: =MAX(A13:A15)+NoOne -> 1 | B16: Operating & Maintenance | C16: =SUM(D16:E16) -> 18091848.6 | D16: =+D43 -> 4264845.828 | E16: =SUM(IslIntCos!I$243:I$243) -> 13827002.77 | G16: =MAX(G13:G15)+NoOne -> 1 | H16: Island Interconnected Transmission Revenue Requirement | J16: =SUM(IslIntCos!I322:I322)/'Schedule 4.1'!G32 -> 75818019.68 | M16: =MAX(M13:M15)+NoOne -> 1 | N16: Operating & Maintenance | O16: =SUM(P16:S16) -> 22345532.82 | P16: =+IslIntCos!G232 -> 17889732.87 | Q16: =+IslIntCos!G34/IslIntCos!F37*IslIntCos!F241 -> 185032.0823 | R16: =+D16 -> 4264845.828 | S16: =+IslIntCos!G35/IslIntCos!F37*IslIntCos!F241 -> 5922.035845
A17: =MAX(A14:A16)+NoOne -> 2 | B17: O&M Overhead | C17: =SUM(D17:E17) -> 15874398.7 | D17: =+D54 -> 4901340.223 | E17: =SUM(IslIntCos!I$269:I$269) -> 10973058.47 | M17: =MAX(M14:M16)+NoOne -> 2 | N17: O&M Overhead | O17: =SUM(P17:S17) -> 17694206.39 | P17: =P16/IslIntCos!G$250*IslIntCos!G$269 -> 12657757.89 | Q17: =Q16/IslIntCos!$G$250*IslIntCos!$G$269 -> 130918.1818 | R17: =+D17 -> 4901340.223 | S17: =S16/IslIntCos!$G$250*IslIntCos!$G$269 -> 4190.095876
A18: =MAX(A15:A17)+NoOne -> 3 | B18: Depreciation | C18: =SUM(D18:E18) -> 24638245 | D18: =+D66 -> 6720131.44 | E18: =SUM(IslIntCos!I$176:I$176) -> 17918113.57 | F18: INTTOT | G18: =MAX(G15:G17)+NoOne -> 2 | H18: Transmission Energy Output (MWh) | J18: =SUMPRODUCT(--('[2]Summary of Factors'!$A$1:$A$63981=$F18),'[2]Summary of Factors'!$T$1:$T$63981) -> 7089578.027 | M18: =MAX(M15:M17)+NoOne -> 3 | N18: Depreciation | O18: =SUM(P18:S18) -> 39828713.12 | P18: =IslIntCos!G$143*(1+SUM(IslIntCos!G$170:G$175)/IslIntCos!G$169) -> 32688362.37 | Q18: =IslIntCos!G$152*(1+SUM(IslIntCos!G$170:G$175)/IslIntCos!G$169) -> 408703.6758 | R18: =+D18 -> 6720131.44 | S18: =IslIntCos!G$153*(1+SUM(IslIntCos!G$170:G$175)/IslIntCos!G$169) -> 11515.63403
M19: =MAX(M16:M18)+NoOne -> 4 | N19: Return (Note 1) | O19: =SUM(P19:S19) -> 7359676.575 | P19: =P34*SUM(IslIntCos!$G$319,IslIntCos!$G$320) -> 0 | Q19: =Q34*SUM(IslIntCos!$G$319,IslIntCos!$G$320) -> 0 | R19: =+D20 -> 7359676.575 | S19: =S34*SUM(IslIntCos!$G$319,IslIntCos!$G$320) -> 0
A20: =MAX(A17:A19)+NoOne -> 4 | B20: Return | C20: =SUM(D20:E20) -> 40542173.37 | D20: =+D71 -> 7359676.575 | E20: =SUM(IslIntCos!I$319:I$319,IslIntCos!I$320:I$320) -> 33182496.79 | G20: =MAX(G17:G19)+NoOne -> 3 | H20: Rate ($/kWh) | J20: =+J16/(J18*1000) -> 0.0106942923
M21: =MAX(M18:M20)+NoOne -> 5 | N21: Total | O21: =SUM(O16:O19) -> 87228128.9 | P21: =SUM(P16:P19) -> 63235853.13 | Q21: =SUM(Q16:Q19) -> 724653.9399 | R21: =SUM(R16:R19) -> 23245994.07 | S21: =SUM(S16:S19) -> 21627.76575
A22: =MAX(A19:A21)+NoOne -> 5 | B22: Total | C22: =SUM(D22:E22) -> 99146665.66 | D22: =SUM(D16:D20) -> 23245994.07 | E22: =SUM(E16:E20) -> 75900671.6
M23: =MAX(M20:M22)+NoOne -> 6 | N23: Coincident Peak at Generation (kW) | O23: =+'Schedules 4.2,4.3,4.4'!C20 -> 1683676.475
A24: =MAX(A21:A23)+NoOne -> 6 | B24: Capacity (kW) | D24: =[3]Inputs!$B$71 -> 248500 | E24: =SUM([3]Inputs!$B$72:$B$83) -> 1797100
M25: =MAX(M22:M24)+NoOne -> 7 | N25: Cost ($/kW) | O25: =+O21/O23 -> 51.80812953
A26: =MAX(A23:A25)+NoOne -> 7 | B26: Cost ($/kW) | C26: =SUM(D26:E26) -> 135.7803329 | D26: =D22/D24 -> 93.54524775 | E26: =E22/E24 -> 42.23508519 | M26: =MAX(M23:M25)+NoOne -> 8 | N26: Cost ($/kW/mo.) | O26: =+O25/12 -> 4.317344128
A28: =MAX(A25:A27)+NoOne -> 8 | B28: Transmission coincident peak (1) | C28: =SUMPRODUCT(--('[2]Summary of Factors'!$A$1:$A$63981=$F30),'[2]Summary of Factors'!$K$1:$K$63981) -> 1435868.619
A29: =MAX(A26:A28)+NoOne -> 9 | B29: Newfoundland Power Sales (MWh) | C29: =SUMPRODUCT(--('[2]Summary of Factors'!$A$1:$A$63981=$F30),'[2]Summary of Factors'!$C$1:$C$63981) -> 6014582
A30: =MAX(A27:A29)+NoOne -> 10 | B30: Rate ($/kWh) | C30: =+C26*SUMPRODUCT(--('[2]Summary of Factors'!$A$1:$A$63981=$F30),'[2]Summary of Factors'!$K$1:$K$63981)/(SUMPRODUCT(--('[2]Summary of Factors'!$A$1:$A$63981=$F30),'[2]Summary of Factors'!$C$1:$C$63981)*1000) -> 0.03241500725 | F30: ISLINTNP | M30: Schedule G 1.x
M31: Page 1 of 1
B32: (1) Newfoundland Power Transmission Coincident Peak adjusted for thermal credit in compliance with PU.8(2007).
G33: NEWFOUNDLAND & LABRADOR HYDRO
G34: =RunName -> 2027 Test Year Cost of Service Study (No Rate Mitigation)
G35: Island Interconnected
G36: Calculation of Transmission Demand Cost
H38: =MAX(G38)+NoOne -> 1 | J38: =MAX(H38)+NoOne -> 2 | K38: =MAX(J38)+NoOne -> 3 | L38: =MAX(K38)+NoOne -> 4 | M38: =MAX(L38)+NoOne -> 5
B39: O&M: | G39: Line | J39: Transmission | K39: Deficit | M39: $/kW
B40: Direct O&M | D40: =IslIntCos!G$234+(IslIntCos!F26/IslIntCos!F29*IslIntCos!F236) -> 4264845.828 | G40: No. | H40: Description | J40: Demand | K40: Allocation | L40: Total | M40: $/kWh
B41: Terminal Stations | D41: =SPLTDetails!$D$63/IslIntCos!$F$37*IslIntCos!$F$241 -> 0
B42: Transmission and Term Stns Other | D42: =SPLTDetails!$D$63/IslIntCos!$F$38*IslIntCos!$F$242 -> 0 | H42: Island Interconnected
B43: Subtotal Direct | D43: =SUM(D40:D42) -> 4264845.828 | G43: =MAX(G40:G42)+NoOne -> 1 | H43: Newfoundland Power | J43: =IslIntCos!I486 -> 67533636.25 | K43: =IFERROR(J43/'Rev to Cost'!D66*'Rev to Cost'!F66,0) -> 6367155.28 | L43: =SUM(J43:K43) -> 73900791.53
G44: =MAX(G41:G43)+NoOne -> 2 | H44: Industrial - Firm | J44: =IslIntCos!I487 -> 3692069.402 | L44: 3692069.402
B45: Indirect O&M: | G45: =MAX(G42:G44)+NoOne -> 3 | H45: Industrial - Non-Firm | J45: =IslIntCos!I488 -> 0 | L45: 0
B46: Production | D46: =(IslIntCos!F26/IslIntCos!F29*IslIntCos!$F$256) -> 821388.7715
B47: Gas Turbine & Diesel | D47: =(IslIntCos!F26/SUM(IslIntCos!$F$26,IslIntCos!$F$28)*IslIntCos!$F$257) -> 1919269.547 | H47: Rural
B48: Transmission | D48: =SPLTDetails!$D$63/IslIntCos!$F$38*IslIntCos!$F$258 -> 0 | G48: =MAX(G45:G47)+NoOne -> 4 | H48: 1.1 Domestic | J48: =IslIntCos!I490 -> 1503889.338 | K48: =IFERROR(J48/'Rev to Cost'!D78*'Rev to Cost'!F78,0) -> -748136.3026 | L48: =SUM(J48:K48) -> 755753.0353
B49: Plant-related A&G | D49: =+D89/D94*IslIntCos!$F$261 -> 17566.63916 | G49: 5 | H49: 1.12 Domestic All Electric | J49: =IslIntCos!I491 -> 1747580.52 | K49: =IFERROR(J49/'Rev to Cost'!D79*'Rev to Cost'!F79,0) -> -771833.9815 | L49: 975746.5382
B50: Plant-related A& G excluding Hydraulic and Holyrood | D50: =+D85/D95*IslIntCos!$F$262 -> 76863.81216 | G50: 6 | H50: 1.3 Special | J50: =IslIntCos!I492 -> 6011.864827 | K50: =IFERROR(J50/'Rev to Cost'!D80*'Rev to Cost'!F80,0) -> -4927.378831 | L50: 1084.485996
B51: Property Insurance | D51: =SUM(D85,D87)/D96*IslIntCos!$F$263 -> 251239.2955 | G51: 7 | H51: 2.1 General Service 0-10 kW | J51: =IslIntCos!I493 -> 695218.1174 | K51: =IFERROR(J51/'Rev to Cost'!D81*'Rev to Cost'!F81,0) -> -246578.6574 | L51: 448639.46
B52: Expense-related GTDC | D52: =+D43/D91*IslIntCos!$F$267 -> 1780855.738 | G52: 8 | H52: 2.2 General Service 10-100 kW | J52: =IslIntCos!I494 -> 0 | K52: =IFERROR(J52/'Rev to Cost'!D82*'Rev to Cost'!F82,0) -> 0 | L52: 0
B53: Expense-related GTD | D53: =+D43/D92*IslIntCos!$F$268 -> 34156.41964 | G53: 9 | H53: 2.3 General Service 110-1,000 kVa | J53: =IslIntCos!I495 -> 460127.5479 | K53: =IFERROR(J53/'Rev to Cost'!D83*'Rev to Cost'!F83,0) -> -154530.1507 | L53: 305597.3973
B54: Subtotal Indirect | D54: =SUM(D46:D53) -> 4901340.223 | G54: 10 | H54: 2.4 General Service Over 1,000 kVa | J54: =IslIntCos!I496 -> 268114.8912 | K54: =IFERROR(J54/'Rev to Cost'!D84*'Rev to Cost'!F84,0) -> -71862.48045 | L54: 196252.4107
B55: Total O&M | D55: =+D54+D43 -> 9166186.05 | G55: 11 | H55: 4.1 Street and Area Lighting | J55: =IslIntCos!I497 -> 28854.60242 | K55: =IFERROR(J55/'Rev to Cost'!D85*'Rev to Cost'!F85,0) -> -8010.300306 | L55: 20844.30211
B57: Depreciation: | G57: =MAX(G54:G56)+NoOne -> 12 | H57: Subtotal Rural | J57: =SUM(J48:J55) -> 4709796.881 | K57: =SUM(K48:K55) -> -2005879.252 | L57: =SUM(L48:L55) -> 2703917.63
B58: Direct Depreciation | D58: =+IslIntCos!$F$144 -> 5751896.979 | G58: =MAX(G55:G57)+NoOne -> 13 | H58: Total Island Interconnected | J58: =SUM(J43:J45,J57) -> 75935502.53 | K58: =SUM(K43:K45,K57) -> 4361276.028 | L58: =SUM(L43:L45,L57) -> 80296778.56
B59: Terminal Stations | D59: =+SDEPDetails!$D$62 -> 9923.21
B60: Subtotal Direct | D60: =SUM(D58:D59) -> 5761820.189 | F60: INTTOT | G60: =MAX(G57:G59)+NoOne -> 14 | H60: Coincident Peak @ Transmission Voltage (kW) | L60: =SUMPRODUCT(--('[2]Summary of Factors'!$A$1:$A$63981=$F60),'[2]Summary of Factors'!$K$1:$K$63981) -> 1613309.114 | M60: =L$58/L60 -> 49.77147768
G61: =MAX(G58:G60)+NoOne -> 15 | H61: Energy Sales @ Transmission (MWh) | L61: =SUMPRODUCT(--('[2]Summary of Factors'!$A$1:$A$63981=$F60),'[2]Summary of Factors'!$T$1:$T$63981) -> 7089578.027 | M61: =L$58/(L61*1000) -> 0.01132603073
B62: Indirect Depreciation:
B63: General Plant Depreciation | D63: =+D43/D91*IslIntCos!$F$170 -> 730976.3859
B64: General Feasibility Studies and Software | D64: =+D60/D98*SUM(IslIntCos!$F$174,IslIntCos!$F$175) -> 227334.8649 | G64: =MAX(G61:G63)+NoOne -> 16 | H64: Labrador Industrial Firm | J64: =LabIntCos!I454 -> 7608202.127 | L64: =SUM(J64:K64) -> 7608202.127
B65: Subtotal Indirect | D65: =SUM(D63:D64) -> 958311.2508
B66: Total Depreciation | D66: =+D60+D65 -> 6720131.44
G67: =MAX(G64:G66)+NoOne -> 17 | H67: 1.1 Domestic | J67: =LabIntCos!I458 -> 18039.95332 | K67: =J67/'Rev to Cost'!D228*'Rev to Cost'!F228 -> 1700.829252 | L67: =SUM(J67:K67) -> 19740.78258
B68: Return: | G68: 18 | H68: 1.1A Domestic All Electric | J68: =LabIntCos!I459 -> 2177560.404 | K68: =J68/'Rev to Cost'!D229*'Rev to Cost'!F229 -> 205303.1051 | L68: 2382863.509
B69: Return on Rate Base - Debt Component | D69: =+D117/D119*IslIntCos!$F$214 -> 4539472.642 | G69: 19 | H69: 2.1 GS 0-10 kW | J69: =LabIntCos!I460 -> 22714.81561 | K69: =J69/'Rev to Cost'!D230*'Rev to Cost'!F230 -> 2141.581087 | L69: 24856.3967
B70: Return on Rate Base - Equity Component | D70: =+D117/D120*IslIntCos!$F$216 -> 2820203.934 | G70: 20 | H70: 2.2 GS 10-100 kW | J70: =LabIntCos!I461 -> 413654.4364 | K70: =J70/'Rev to Cost'!D231*'Rev to Cost'!F231 -> 38999.85511 | L70: 452654.2916
D71: =SUM(D69:D70) -> 7359676.575 | G71: 21 | H71: 2.3 GS 110-1,000 kVa | J71: =LabIntCos!I462 -> 766197.0968 | K71: =J71/'Rev to Cost'!D232*'Rev to Cost'!F232 -> 72238.01591 | L71: 838435.1127
G72: 22 | H72: 2.4 GS Over 1,000 kVa | J72: =LabIntCos!I463 -> 639595.4928 | K72: =J72/'Rev to Cost'!D233*'Rev to Cost'!F233 -> 60301.85912 | L72: 699897.3519
G73: 23 | H73: 4.1 Street and Area Lighting | J73: =LabIntCos!I464 -> 6594.646541 | K73: =J73/'Rev to Cost'!D234*'Rev to Cost'!F234 -> 621.7514837 | L73: 7216.398024
G74: 24 | H74: Subtotal Rural | J74: =SUM(J67:J73) -> 4044356.845 | K74: =SUM(K67:K73) -> 381306.9971 | L74: 4425663.842
G75: 25 | H75: Total | J75: =SUM(J64,J74) -> 11652558.97 | K75: =SUM(K64,K74) -> 381306.9971 | L75: 12033865.97
F78: LINTTOT | G78: =MAX(G75:G77)+NoOne -> 26 | H78: Coincident Peak @ Transmission Voltage (kW) | L78: =SUMPRODUCT(--('[2]Summary of Factors'!$A$1:$A$63981=$F78),'[2]Summary of Factors'!$K$1:$K$63981) -> 451962.3321 | M78: =L$75/L78 -> 26.62581617
G79: 27 | H79: Energy Sales @ Transmission (MWh) | L79: =SUMPRODUCT(--('[2]Summary of Factors'!$A$1:$A$63981=$F78),'[2]Summary of Factors'!$T$1:$T$63981) -> 2638193.313 | M79: =L$75/(L79*1000) -> 0.004561404165
B81: Allocation Bases:
B82: Direct Plant:
B83: Gas Turbines | D83: =IslIntCos!$F$26 -> 200469523.9
B84: Terminal Station | D84: =SPLTDetails!$D$63 -> 0
B85: Total Direct Plant | D85: =+D84+D83 -> 200469523.9
B87: General Plant Allocated on O&M | D87: =+D43/D91*IslIntCos!$F$52 -> 14700994.27
B88: General Feas Studies & Software Allocated on GTD Plant | D88: =+D85/D93*SUM(IslIntCos!$F$56,IslIntCos!$F$57) -> 871037.1658
B89: Direct Plus G Plant used to allocate PTD + Gen Plt OH | D89: =SUM(D85:D88) -> 216041555.3
B91: Total Direct Island Interconnected O&M | D91: =SUM(IslIntCos!$F$250,IslIntCos!$F$252) -> 67790088.92
B92: Total GTD Direct Island Interconnected O&M | D92: =IslIntCos!$F$250 -> 65601558.87
B93: Total GTD Plant | D93: =+IslIntCos!$F$51 -> 3203063241
B94: Total Plant | D94: =+IslIntCos!$F$58 -> 3452409258
B95: Plant Excluding Hydraulic and Holyrood | D95: =+D93-SUM(IslIntCos!$F$24,IslIntCos!$F$25) -> 1645337983
B96: Insurable Plant | D96: =SUM(IslIntCos!$F$29,IslIntCos!$F$37,IslIntCos!$F$40,IslIntCos!$F$52:$F$54) -> 2506811718
B98: GTD Depreciation | D98: =+IslIntCos!$F$169 -> 85508469.92
B100: Direct NBV:
B101: Gas Turbines | D101: =+IslIntCos!$F$84 -> 126292246.2
B102: Terminal Station | D102: =+SNBVDetails!$D$59 -> 354104.935
B103: Total Direct NBV | D103: =SUM(D101:D102) -> 126646351.2
B105: General Plant Allocated on O&M | D105: =+D43/D91*IslIntCos!$F$110 -> 6905795.574
B106: General Feas Studies & Software Allocated on GTD Plant | D106: =+D103/D109*SUM(IslIntCos!$F$114,IslIntCos!$F$115) -> 881205.7702
B107: Direct plus Gen Plant NBV | D107: =SUM(D103,D105:D106) -> 134433352.5
B109: GTD NBV | D109: =+IslIntCos!$F$109 -> 1978787241
B110: Total NBV | D110: =+IslIntCos!$F$116 -> 2102740030
B112: Rate Base, excl. Fuel Inventory:
B113: NBV | D113: =+D107 -> 134433352.5
B114: Working Capital | D114: =+D113/D110*IslIntCos!$F$197 -> 7447504.787
B115: Inventory Supplies | D115: =+D89/D94*IslIntCos!$F$203 -> 2470611.851
B116: Deferred charges | D116: =+D113/D110*IslIntCos!$F$206 -> 6461575.438
D117: =SUM(D113:D116) -> 150813044.6
B119: Total Rate base Debt | D119: =+IslIntCos!$F$208 -> 2450602123
B120: Total Rate base Equity | D120: =+IslIntCos!$F$212 -> 2450602123

Sheet IslIntCos
A1: 1 | B1: Island Interconnected
A2: 8 | B2: Plant Column Lookups
A3: 6 | V3: Schedule G 2.2A | AI3: Schedule G 2.2A
V4: Page 1 of 2 | AI4: Page 2 of 2
D5: NEWFOUNDLAND AND LABRADOR HYDRO | AA5: NEWFOUNDLAND & LABRADOR HYDRO
D6: =RunName -> 2027 Test Year Cost of Service Study (No Rate Mitigation) | AA6: =RunName -> 2027 Test Year Cost of Service Study (No Rate Mitigation)
D7: =$B$1 -> Island Interconnected | AA7: =$B$1 -> Island Interconnected
D8: Functional Classification of Plant in Service for the Allocation of O&M Expense | AA8: =+D8&" (CONT'D.)" -> Functional Classification of Plant in Service for the Allocation of O&M Expense (CONT'D.)
E9: =MAX(D9)+NoOne -> 1 | F9: 2 | G9: 3 | H9: 4 | I9: 5 | J9: 6 | K9: 7 | L9: 8 | M9: 9 | N9: 10 | O9: 11 | P9: 12 | Q9: 13 | R9: 14 | S9: 15 | T9: 16 | U9: 17 | V9: 18
J10: Rural Prod & | K10: Distribution | V10: Specifically | AC10: =MAX(AB10)+NoOne -> 1 | AE10: =MAX(V9)+NoOne -> 19
A11: Check | B11: Alloc | C11: Code | D11: Line | F11: Total | G11: Production | H11: Production | I11: Transmission | J11: Transmission | K11: Substations | L11: Primary Lines | N11: Line Transformers | P11: Secondary Lines | R11: Services | S11: Meters | T11: Street Lighting | U11: Accounting | V11: Assigned
A12: Column | B12: Factor | C12: Reference | D12: No. | E12: Description | F12: Amount | G12: Demand | H12: Energy | I12: Demand | J12: Demand | K12: Demand | L12: Demand | M12: Customer | N12: Demand | O12: Customer | P12: Demand | Q12: Customer | R12: Customer | S12: Customer | T12: Customer | U12: Customer | V12: Customer | AC12: Description | AE12: Basis of Functional Classification
A13: =ROUND(SUM(A14:A635),2) -> 0 | E13: Production | F13: ($) | G13: ($) | H13: ($) | I13: ($) | J13: ($) | K13: ($) | L13: ($) | M13: ($) | N13: ($) | O13: ($) | P13: ($) | Q13: ($) | R13: ($) | S13: ($) | T13: ($) | U13: ($) | V13: ($) | AC13: =IF(ISBLANK(E13),"",E13) -> Production
E14: Hydraulic | AC14: =IF(ISBLANK(E14),"",E14) -> Hydraulic
C15: P01 | D15: =MAX(D12:D14)+NoOne -> 1 | E15: Bay D'Espoir | F15: =IFERROR(VLOOKUP($C15,[5]!HistCostAvg,AllocDep!$E$13,FALSE),0)+IFERROR(VLOOKUP($C15&".1",[5]!HistCostAvg,AllocDep!$E$13,FALSE),0) -> 1114924927 | G15: =$F15*'Schedule 4.1'!$D$13 -> 554259464 | H15: =$F15*'Schedule 4.1'!$E$13 -> 560665463.3 | I15: 0 | J15: 0 | K15: 0 | L15: 0 | M15: 0 | N15: 0 | O15: 0 | P15: 0 | Q15: 0 | R15: 0 | S15: 0 | T15: 0 | U15: 0 | V15: 0 | AC15: Bay D'Espoir | AE15: =+"Production - Demand, Energy ratios Sch G 4.1 L."&'Schedule 4.1'!$A$13 -> Production - Demand, Energy ratios Sch G 4.1 L.1
C16: P10 | D16: 2 | E16: Upper Salmon | F16: =IFERROR(VLOOKUP($C16,[5]!HistCostAvg,AllocDep!$E$13,FALSE),0)+IFERROR(VLOOKUP($C16&".1",[5]!HistCostAvg,AllocDep!$E$13,FALSE),0) -> 700314.78 | G16: =$F16*'Schedule 4.1'!$D$13 -> 348145.4985 | H16: =$F16*'Schedule 4.1'!$E$13 -> 352169.2815 | I16: 0 | J16: 0 | K16: 0 | L16: 0 | M16: 0 | N16: 0 | O16: 0 | P16: 0 | Q16: 0 | R16: 0 | S16: 0 | T16: 0 | U16: 0 | V16: 0 | AC16: Upper Salmon | AE16: =+"Production - Demand, Energy ratios Sch G 4.1 L."&'Schedule 4.1'!$A$13 -> Production - Demand, Energy ratios Sch G 4.1 L.1
C17: P05 | D17: 3 | E17: Hinds Lake | F17: =IFERROR(VLOOKUP($C17,[5]!HistCostAvg,AllocDep!$E$13,FALSE),0)+IFERROR(VLOOKUP($C17&".1",[5]!HistCostAvg,AllocDep!$E$13,FALSE),0) -> 2313263.2 | G17: =$F17*'Schedule 4.1'!$D$13 -> 1149985.968 | H17: =$F17*'Schedule 4.1'!$E$13 -> 1163277.232 | I17: 0 | J17: 0 | K17: 0 | L17: 0 | M17: 0 | N17: 0 | O17: 0 | P17: 0 | Q17: 0 | R17: 0 | S17: 0 | T17: 0 | U17: 0 | V17: 0 | AC17: Hinds Lake | AE17: =+"Production - Demand, Energy ratios Sch G 4.1 L."&'Schedule 4.1'!$A$13 -> Production - Demand, Energy ratios Sch G 4.1 L.1
C18: P02 | D18: 4 | E18: Cat Arm | F18: =IFERROR(VLOOKUP($C18,[5]!HistCostAvg,AllocDep!$E$13,FALSE),0)+IFERROR(VLOOKUP($C18&".1",[5]!HistCostAvg,AllocDep!$E$13,FALSE),0) -> 1149439.01 | G18: =$F18*'Schedule 4.1'!$D$13 -> 571417.3519 | H18: =$F18*'Schedule 4.1'!$E$13 -> 578021.6581 | I18: 0 | J18: 0 | K18: 0 | L18: 0 | M18: 0 | N18: 0 | O18: 0 | P18: 0 | Q18: 0 | R18: 0 | S18: 0 | T18: 0 | U18: 0 | V18: 0 | AC18: Cat Arm | AE18: =+"Production - Demand, Energy ratios Sch G 4.1 L."&'Schedule 4.1'!$A$13 -> Production - Demand, Energy ratios Sch G 4.1 L.1
C19: P08 | D19: 5 | E19: Paradise River | F19: =IFERROR(VLOOKUP($C19,[5]!HistCostAvg,AllocDep!$E$13,FALSE),0)+IFERROR(VLOOKUP($C19&".1",[5]!HistCostAvg,AllocDep!$E$13,FALSE),0) -> 219265.38 | G19: =$F19*'Schedule 4.1'!$D$13 -> 109002.7759 | H19: =$F19*'Schedule 4.1'!$E$13 -> 110262.6041 | I19: 0 | J19: 0 | K19: 0 | L19: 0 | M19: 0 | N19: 0 | O19: 0 | P19: 0 | Q19: 0 | R19: 0 | S19: 0 | T19: 0 | U19: 0 | V19: 0 | AC19: Paradise River | AE19: =+"Production - Demand, Energy ratios Sch G 4.1 L."&'Schedule 4.1'!$A$13 -> Production - Demand, Energy ratios Sch G 4.1 L.1
C20: P09 | D20: 6 | E20: Granite Canal | F20: =IFERROR(VLOOKUP($C20,[5]!HistCostAvg,AllocDep!$E$13,FALSE),0)+IFERROR(VLOOKUP($C20&".1",[5]!HistCostAvg,AllocDep!$E$13,FALSE),0) -> 1090425.46 | G20: =$F20*'Schedule 4.1'!$D$13 -> 542080.1134 | H20: =$F20*'Schedule 4.1'!$E$13 -> 548345.3466 | I20: 0 | J20: 0 | K20: 0 | L20: 0 | M20: 0 | N20: 0 | O20: 0 | P20: 0 | Q20: 0 | R20: 0 | S20: 0 | T20: 0 | U20: 0 | V20: 0 | AC20: Granite Canal | AE20: =+"Production - Demand, Energy ratios Sch G 4.1 L."&'Schedule 4.1'!$A$13 -> Production - Demand, Energy ratios Sch G 4.1 L.1
C21: P12 | D21: 7 | E21: Exploits | F21: =IFERROR(VLOOKUP($C21,[5]!HistCostAvg,AllocDep!$E$13,FALSE),0)+IFERROR(VLOOKUP($C21&".1",[5]!HistCostAvg,AllocDep!$E$13,FALSE),0) -> 0 | G21: =$F21*'Schedule 4.1'!$D$13 -> 0 | H21: =$F21*'Schedule 4.1'!$E$13 -> 0 | I21: 0 | J21: 0 | K21: 0 | L21: 0 | M21: 0 | N21: 0 | O21: 0 | P21: 0 | Q21: 0 | R21: 0 | S21: 0 | T21: 0 | U21: 0 | V21: 0 | AC21: Exploits | AE21: =+"Production - Demand, Energy ratios Sch G 4.1 L."&'Schedule 4.1'!$A$13 -> Production - Demand, Energy ratios Sch G 4.1 L.1
C22: P13 | D22: 8 | E22: Star Lake | F22: =IFERROR(VLOOKUP($C22,[5]!HistCostAvg,AllocDep!$E$13,FALSE),0)+IFERROR(VLOOKUP($C22&".1",[5]!HistCostAvg,AllocDep!$E$13,FALSE),0) -> 0 | G22: =$F22*'Schedule 4.1'!$D$13 -> 0 | H22: =$F22*'Schedule 4.1'!$E$13 -> 0 | I22: 0 | J22: 0 | K22: 0 | L22: 0 | M22: 0 | N22: 0 | O22: 0 | P22: 0 | Q22: 0 | R22: 0 | S22: 0 | T22: 0 | U22: 0 | V22: 0 | AC22: Star Lake | AE22: =+"Production - Demand, Energy ratios Sch G 4.1 L."&'Schedule 4.1'!$A$13 -> Production - Demand, Energy ratios Sch G 4.1 L.1
C23: P07 | D23: 9 | E23: Other Hydraulic | F23: =IFERROR(VLOOKUP($C23,[5]!HistCostAvg,AllocDep!$E$13,FALSE),0)+IFERROR(VLOOKUP($C23&".1",[5]!HistCostAvg,AllocDep!$E$13,FALSE),0) -> 282499.95 | G23: =$F23*'Schedule 4.1'!$D$13 -> 140438.3982 | H23: =$F23*'Schedule 4.1'!$E$13 -> 142061.5518 | I23: 0 | J23: =+SPLTDetails!$J13 -> 0 | K23: 0 | L23: 0 | M23: 0 | N23: 0 | O23: 0 | P23: 0 | Q23: 0 | R23: 0 | S23: 0 | T23: 0 | U23: 0 | V23: 0 | AC23: Other Hydraulic | AE23: =+"Production - Demand, Energy ratios Sch G 4.1 L."&'Schedule 4.1'!$A$13&", "&'Schedule 4.1'!$A$14 -> Production - Demand, Energy ratios Sch G 4.1 L.1, 2
A24: =SUM(G24:V24)-F24 -> 0 | D24: =MAX(D19:D23)+NoOne -> 10 | E24: Subtotal Hydraulic | F24: =SUM(F15:F23) -> 1120680135 | G24: =SUM(G15:G23) -> 557120534.1 | H24: =SUM(H15:H23) -> 563559601 | I24: =SUM(I15:I23) -> 0 | J24: =SUM(J15:J23) -> 0 | K24: 0 | L24: 0 | M24: 0 | N24: 0 | O24: 0 | P24: 0 | Q24: 0 | R24: 0 | S24: 0 | T24: 0 | U24: 0 | V24: 0 | AC24: Subtotal Hydraulic
C25: P06 | D25: =MAX(D20:D24)+NoOne -> 11 | E25: Holyrood | F25: =IFERROR(VLOOKUP($C25,[5]!HistCostAvg,AllocDep!$E$13,FALSE),0)+IFERROR(VLOOKUP($C25&".1",[5]!HistCostAvg,AllocDep!$E$13,FALSE),0) -> 437045122.5 | G25: =$F25*'Schedule 4.1'!D15 -> 388270886.8 | H25: =$F25*'Schedule 4.1'!E15 -> 48774235.67 | I25: 0 | J25: 0 | K25: 0 | L25: 0 | M25: 0 | N25: 0 | O25: 0 | P25: 0 | Q25: 0 | R25: 0 | S25: 0 | T25: 0 | U25: 0 | V25: 0 | AC25: Holyrood | AE25: =+"Production - Demand, Energy ratios Sch G 4.1 L."&'Schedule 4.1'!$A$15 -> Production - Demand, Energy ratios Sch G 4.1 L.3
C26: P04 | D26: 12 | E26: Gas Turbines | F26: =IFERROR(VLOOKUP($C26,[5]!HistCostAvg,AllocDep!$E$13,FALSE),0)+IFERROR(VLOOKUP($C26&".1",[5]!HistCostAvg,AllocDep!$E$13,FALSE),0) -> 200469523.9 | G26: =$F26*'Schedule 4.1'!D16 -> 200469523.9 | H26: =$F26*'Schedule 4.1'!E16 -> 0 | I26: =$F26*'Schedule 4.1'!H16 -> 0 | J26: =$F26*'Schedule 4.1'!I16 -> 0 | K26: =$F26*'Schedule 4.1'!J16 -> 0 | L26: =$F26*'Schedule 4.1'!K16 -> 0 | M26: =$F26*'Schedule 4.1'!L16 -> 0 | N26: =$F26*'Schedule 4.1'!M16 -> 0 | O26: =$F26*'Schedule 4.1'!N16 -> 0 | P26: =$F26*'Schedule 4.1'!O16 -> 0 | Q26: =$F26*'Schedule 4.1'!P16 -> 0 | R26: =$F26*'Schedule 4.1'!Q16 -> 0 | S26: =$F26*'Schedule 4.1'!R16 -> 0 | T26: =$F26*'Schedule 4.1'!S16 -> 0 | U26: =$F26*'Schedule 4.1'!T16 -> 0 | V26: =$F26*'Schedule 4.1'!U16 -> 0 | AC26: Gas Turbines | AE26: =+"Production - Demand, Energy ratios Sch G 4.1 L."&'Schedule 4.1'!$A$16 -> Production - Demand, Energy ratios Sch G 4.1 L.4
C27: P11 | D27: 13 | E27: Roddickton | F27: =IFERROR(VLOOKUP($C27,[5]!HistCostAvg,AllocDep!$E$13,FALSE),0)+IFERROR(VLOOKUP($C27&".1",[5]!HistCostAvg,AllocDep!$E$13,FALSE),0) -> 0 | G27: =$F27*'Schedule 4.1'!D15 -> 0 | H27: =$F27*'Schedule 4.1'!E15 -> 0 | I27: 0 | J27: =$F27*'Schedule 4.1'!I15 -> 0 | K27: =$F27*'Schedule 4.1'!J15 -> 0 | L27: =$F27*'Schedule 4.1'!K15 -> 0 | M27: =$F27*'Schedule 4.1'!L15 -> 0 | N27: =$F27*'Schedule 4.1'!M15 -> 0 | O27: =$F27*'Schedule 4.1'!N15 -> 0 | P27: =$F27*'Schedule 4.1'!O15 -> 0 | Q27: =$F27*'Schedule 4.1'!P15 -> 0 | R27: =$F27*'Schedule 4.1'!Q15 -> 0 | S27: =$F27*'Schedule 4.1'!R15 -> 0 | T27: =$F27*'Schedule 4.1'!S15 -> 0 | U27: =$F27*'Schedule 4.1'!T15 -> 0 | V27: =$F27*'Schedule 4.1'!U15 -> 0 | AC27: Roddickton | AE27: =+"Production - Demand, Energy ratios Sch G 4.1 L."&'Schedule 4.1'!$A$15 -> Production - Demand, Energy ratios Sch G 4.1 L.3
C28: =+SPLTDetails!C18 -> SPLT2 | D28: 14 | E28: Diesel | F28: =SUM(G28:V28) -> 12942772.87 | G28: =+SPLTDetails!$E18*'Schedule 4.1'!D$16 -> 12942772.87 | H28: =+SPLTDetails!$E18*'Schedule 4.1'!E$16 -> 0 | I28: 0 | J28: =+SPLTDetails!$J18 -> 0 | K28: 0 | L28: 0 | M28: 0 | N28: 0 | O28: 0 | P28: 0 | Q28: 0 | R28: 0 | S28: 0 | T28: 0 | U28: 0 | V28: 0 | AC28: Diesel | AE28: =+"Production - Demand, Energy ratios Sch G 4.1 L."&'Schedule 4.1'!$A$17 -> Production - Demand, Energy ratios Sch G 4.1 L.5
A29: =SUM(G29:V29)-F29 -> 0 | D29: 15 | E29: Subtotal Production | F29: =SUM(F24:F28) -> 1771137554 | G29: =SUM(G24:G28) -> 1158803718 | H29: =SUM(H24:H28) -> 612333836.7 | I29: =SUM(I24:I28) -> 0 | J29: =SUM(J24:J28) -> 0 | K29: 0 | L29: 0 | M29: 0 | N29: 0 | O29: 0 | P29: 0 | Q29: 0 | R29: 0 | S29: 0 | T29: 0 | U29: 0 | V29: 0 | AC29: Subtotal Production
E30: Transmission | AC30: Transmission
C31: =+SPLTDetails!C35 -> SPLT3 | D31: =MAX(D28:D30)+NoOne -> 16 | E31: Lines | F31: =SUM(G31:V31) -> 678735396.5 | G31: =SPLTDetails!E35*'Schedule 4.1'!D34 -> 16819819.19 | H31: =SPLTDetails!E35*'Schedule 4.1'!E34 -> 17014218.67 | I31: =SPLTDetails!I35 -> 510359668.2 | J31: =SPLTDetails!J35 -> 93873902.31 | K31: 0 | L31: =+SPLTDetails!K35 -> 0 | M31: 0 | N31: 0 | O31: 0 | P31: 0 | Q31: 0 | R31: 0 | S31: 0 | T31: 0 | U31: 0 | V31: =SPLTDetails!M35 -> 40667788.07 | AC31: Lines | AE31: ="Production - Demand, Energy ratios Sch G 4.1 L."&'Schedule 4.1'!$A$34 & " Transmission - Demand; Distribution - Primary Demand; Spec Assigned - Custmr" -> Production - Demand, Energy ratios Sch G 4.1 L.17 Transmission - Demand; Distribution - Primary Demand; Spec Assigned - Custmr
C32: =+SPLTDetails!C52 -> SPLT4 | D32: 17 | E32: Terminal Stations | F32: =SUM(G32:V32) -> 364335330 | G32: =+SPLTDetails!E52*G29/F29 -> 0 | H32: =+SPLTDetails!E52*H29/F29 -> 0 | I32: =SPLTDetails!I52 -> 311535933.7 | J32: =SPLTDetails!J52 -> 30123467.05 | K32: 0 | L32: 0 | M32: 0 | N32: 0 | O32: 0 | P32: 0 | Q32: 0 | R32: 0 | S32: 0 | T32: 0 | U32: 0 | V32: =SPLTDetails!M52 -> 22675929.23 | AC32: Terminal Stations | AE32: =+"Production - Demand, Energy subtotals, L. "&D29&"; Transmission - Demand; Spec Assigned - Custmr" -> Production - Demand, Energy subtotals, L. 15; Transmission - Demand; Spec Assigned - Custmr
C33: =+SPLTDetails!C59 -> SPLT5 | D33: =MAX(D31:D32)+NoOne -> 18 | E33: Term Stns - Hydraulic | F33: =SUM(G33:V33) -> 55383108.33 | G33: =SPLTDetails!D59*'Schedule 4.1'!D34 -> 27532447.42 | H33: =SPLTDetails!E59*'Schedule 4.1'!E34 -> 27850660.91 | I33: 0 | J33: 0 | K33: 0 | L33: 0 | M33: 0 | N33: 0 | O33: 0 | P33: 0 | Q33: 0 | R33: 0 | S33: 0 | T33: 0 | U33: 0 | V33: 0 | AC33: Term Stns - Hydraulic | AE33: =+"Production - Demand, Energy ratios Sch G 4.1 L."&'Schedule 4.1'!$A$38 -> Production - Demand, Energy ratios Sch G 4.1 L.20
C34: T24 | D34: =MAX(D32:D33)+NoOne -> 19 | E34: Term Stns - Holyrood | F34: =IFERROR(VLOOKUP($C34,[5]!HistCostAvg,AllocDep!$E$13,FALSE),0)+IFERROR(VLOOKUP($C34&".1",[5]!HistCostAvg,AllocDep!$E$13,FALSE),0) -> 15948999.2 | G34: =$F34*'Schedule 4.1'!D$39 -> 14169090.88 | H34: =$F34*'Schedule 4.1'!E$39 -> 1779908.31 | I34: 0 | J34: 0 | K34: 0 | L34: 0 | M34: 0 | N34: 0 | O34: 0 | P34: 0 | Q34: 0 | R34: 0 | S34: 0 | T34: 0 | U34: 0 | V34: 0 | AC34: Term Stns - Holyrood | AE34: =+"Production - Demand, Energy ratios Sch G 4.1 L."&'Schedule 4.1'!$A$39 -> Production - Demand, Energy ratios Sch G 4.1 L.21
C35: =+SPLTDetails!C65 -> SPLT6 | D35: =MAX(D33:D34)+NoOne -> 20 | E35: Term Stns - Gas Tur/Dsl | F35: =SUM(G35:V35) -> 453488.19 | G35: =+SPLTDetails!$E65*'Schedule 4.1'!D$40 -> 453488.19 | H35: =+SPLTDetails!$E65*'Schedule 4.1'!E$40 -> 0 | I35: 0 | J35: =+SPLTDetails!$J65 -> 0 | K35: 0 | L35: 0 | M35: 0 | N35: 0 | O35: 0 | P35: 0 | Q35: 0 | R35: 0 | S35: 0 | T35: 0 | U35: 0 | V35: 0 | AC35: Term Stns - Gas Tur/Dsl | AE35: =+"Production - Demand, Energy ratios Sch G 4.1 L."&'Schedule 4.1'!$A$40&", "&'Schedule 4.1'!$A$41 -> Production - Demand, Energy ratios Sch G 4.1 L.22, 23
C36: T18 | D36: 21 | E36: Term Stns - Distribution | F36: =IFERROR(VLOOKUP($C36,[5]!HistCostAvg,AllocDep!$E$13,FALSE),0)+IFERROR(VLOOKUP($C36&".1",[5]!HistCostAvg,AllocDep!$E$13,FALSE),0) -> 19394860.19 | G36: 0 | H36: 0 | I36: 0 | J36: 0 | K36: =F36 -> 19394860.19 | L36: 0 | M36: 0 | N36: 0 | O36: 0 | P36: 0 | Q36: 0 | R36: 0 | S36: 0 | T36: 0 | U36: 0 | V36: 0 | AC36: Term Stns - Distribution | AE36: Distribution - Substations Demand
A37: =SUM(G37:V37)-F37 -> 0 | D37: 22 | E37: Subtotal Term Stns | F37: =SUM(F32:F36) -> 455515785.9 | G37: 42155026.49 | H37: 29630569.22 | I37: 311535933.7 | J37: 30123467.05 | K37: 19394860.19 | L37: 0 | M37: 0 | N37: 0 | O37: 0 | P37: 0 | Q37: 0 | R37: 0 | S37: 0 | T37: 0 | U37: 0 | V37: 22675929.23 | AC37: Subtotal Term Stns
A38: =SUM(G38:V38)-F38 -> 0 | D38: 23 | E38: Subtotal Transmission | F38: =SUM(F31,F37) -> 1134251182 | G38: 58974845.69 | H38: 46644787.89 | I38: 821895602 | J38: 123997369.4 | K38: 19394860.19 | L38: 0 | M38: 0 | N38: 0 | O38: 0 | P38: 0 | Q38: 0 | R38: 0 | S38: 0 | T38: 0 | U38: 0 | V38: 63343717.3 | AC38: Subtotal Transmission
E39: Distribution | AC39: Distribution
C40: =+SPLTDetails!C71 -> SPLT7 | D40: =MAX(D37:D39)+NoOne -> 24 | E40: Substations | F40: =SUM(G40:V40) -> 44549496.55 | G40: =+SPLTDetails!E71 -> 0 | H40: 0 | I40: 0 | J40: =+SPLTDetails!J71 -> 0 | K40: =+SPLTDetails!K71 -> 44549496.55 | L40: 0 | M40: 0 | N40: 0 | O40: 0 | P40: 0 | Q40: 0 | R40: 0 | S40: 0 | T40: 0 | U40: 0 | V40: 0 | AC40: Substations | AE40: Production - Demand; Dist Substns - Demand
C41: D11 | D41: 25 | E41: Land & Land Improvements | F41: =DistnDetails!C13+DistnDetails!C22 -> 3384051.39 | G41: =$F41*'Schedule 4.1'!D$62 -> 0 | H41: =$F41*'Schedule 4.1'!E$62 -> 0 | I41: 0 | J41: =$F41*'Schedule 4.1'!I$62 -> 0 | K41: =$F41*'Schedule 4.1'!J$62 -> 0 | L41: =$F41*'Schedule 4.1'!K$62 -> 2551405.545 | M41: =$F41*'Schedule 4.1'!L$62 -> 325038.136 | N41: =$F41*'Schedule 4.1'!M$62 -> 0 | O41: =$F41*'Schedule 4.1'!N$62 -> 0 | P41: =$F41*'Schedule 4.1'!O$62 -> 295935.2941 | Q41: =$F41*'Schedule 4.1'!P$62 -> 211672.4144 | R41: =$F41*'Schedule 4.1'!Q$62 -> 0 | S41: =$F41*'Schedule 4.1'!R$62 -> 0 | T41: =$F41*'Schedule 4.1'!S$62 -> 0 | U41: =$F41*'Schedule 4.1'!T$62 -> 0 | V41: =$F41*'Schedule 4.1'!U$62 -> 0 | AC41: Land & Land Improvements | AE41: =+"Primary, Secondary - Demand, Customer - zero intercept ratios Sch G 4.1 L."&'Schedule 4.1'!$A$62 -> Primary, Secondary - Demand, Customer - zero intercept ratios Sch G 4.1 L.32
C42: D11 | D42: 26 | E42: Poles | F42: =DistnDetails!C16+DistnDetails!C14 -> 160253235.8 | G42: =$F42*'Schedule 4.1'!D$67 -> 0 | H42: =$F42*'Schedule 4.1'!E$67 -> 0 | I42: 0 | J42: =$F42*'Schedule 4.1'!I$67 -> 0 | K42: =$F42*'Schedule 4.1'!J$67 -> 0 | L42: =$F42*'Schedule 4.1'!K$67 -> 92682138.43 | M42: =$F42*'Schedule 4.1'!L$67 -> 31674372.57 | N42: =$F42*'Schedule 4.1'!M$67 -> 0 | O42: =$F42*'Schedule 4.1'!N$67 -> 0 | P42: =$F42*'Schedule 4.1'!O$67 -> 16404803.24 | Q42: =$F42*'Schedule 4.1'!P$67 -> 19491921.58 | R42: =$F42*'Schedule 4.1'!Q$67 -> 0 | S42: =$F42*'Schedule 4.1'!R$67 -> 0 | T42: =$F42*'Schedule 4.1'!S$67 -> 0 | U42: =$F42*'Schedule 4.1'!T$67 -> 0 | V42: =$F42*'Schedule 4.1'!U$67 -> 0 | AC42: Poles | AE42: =+"Primary, Secondary - Demand, Customer - zero intercept ratios Sch G 4.1 L."&'Schedule 4.1'!$A$67 -> Primary, Secondary - Demand, Customer - zero intercept ratios Sch G 4.1 L.37
C43: D11 | D43: 27 | E43: Primary Conductor & Eqpt | F43: =DistnDetails!C17 -> 25812930.06 | G43: =$F43*'Schedule 4.1'!D$68 -> 0 | H43: =$F43*'Schedule 4.1'!E$68 -> 0 | I43: 0 | J43: =$F43*'Schedule 4.1'!I$68 -> 0 | K43: =$F43*'Schedule 4.1'!J$68 -> 0 | L43: =$F43*'Schedule 4.1'!K$68 -> 22896068.96 | M43: =$F43*'Schedule 4.1'!L$68 -> 2916861.097 | N43: =$F43*'Schedule 4.1'!M$68 -> 0 | O43: =$F43*'Schedule 4.1'!N$68 -> 0 | P43: =$F43*'Schedule 4.1'!O$68 -> 0 | Q43: =$F43*'Schedule 4.1'!P$68 -> 0 | R43: =$F43*'Schedule 4.1'!Q$68 -> 0 | S43: =$F43*'Schedule 4.1'!R$68 -> 0 | T43: =$F43*'Schedule 4.1'!S$68 -> 0 | U43: =$F43*'Schedule 4.1'!T$68 -> 0 | V43: =$F43*'Schedule 4.1'!U$68 -> 0 | AC43: Primary Conductor & Eqpt | AE43: =+"Primary - Demand, Customer - zero intercept ratios Sch G 4.1 L."&'Schedule 4.1'!$A$68 -> Primary - Demand, Customer - zero intercept ratios Sch G 4.1 L.38
C44: D05 | D44: 28 | E44: Submarine Conductor | F44: =IFERROR(VLOOKUP($C44,[5]!HistCostAvg,AllocDep!$E$13,FALSE),0)+IFERROR(VLOOKUP($C44&".1",[5]!HistCostAvg,AllocDep!$E$13,FALSE),0) -> 9854684.43 | G44: =$F44*'Schedule 4.1'!D$69 -> 0 | H44: =$F44*'Schedule 4.1'!E$69 -> 0 | I44: 0 | J44: =$F44*'Schedule 4.1'!I$69 -> 0 | K44: =$F44*'Schedule 4.1'!J$69 -> 0 | L44: =$F44*'Schedule 4.1'!K$69 -> 9854684.43 | M44: =$F44*'Schedule 4.1'!L$69 -> 0 | N44: =$F44*'Schedule 4.1'!M$69 -> 0 | O44: =$F44*'Schedule 4.1'!N$69 -> 0 | P44: =$F44*'Schedule 4.1'!O$69 -> 0 | Q44: =$F44*'Schedule 4.1'!P$69 -> 0 | R44: =$F44*'Schedule 4.1'!Q$69 -> 0 | S44: =$F44*'Schedule 4.1'!R$69 -> 0 | T44: =$F44*'Schedule 4.1'!S$69 -> 0 | U44: =$F44*'Schedule 4.1'!T$69 -> 0 | V44: =$F44*'Schedule 4.1'!U$69 -> 0 | AC44: Submarine Conductor | AE44: =+"Primary - Demand, Customer - zero intercept ratios Sch G 4.1 L."&'Schedule 4.1'!$A$69 -> Primary - Demand, Customer - zero intercept ratios Sch G 4.1 L.39
C45: D11 | D45: 29 | E45: Transformers | F45: =DistnDetails!C18 -> 29563425.3 | G45: =$F45*'Schedule 4.1'!D$70 -> 0 | H45: =$F45*'Schedule 4.1'!E$70 -> 0 | I45: 0 | J45: =$F45*'Schedule 4.1'!I$70 -> 0 | K45: =$F45*'Schedule 4.1'!J$70 -> 0 | L45: =$F45*'Schedule 4.1'!K$70 -> 0 | M45: =$F45*'Schedule 4.1'!L$70 -> 0 | N45: =$F45*'Schedule 4.1'!M$70 -> 10672396.53 | O45: =$F45*'Schedule 4.1'!N$70 -> 18891028.76 | P45: =$F45*'Schedule 4.1'!O$70 -> 0 | Q45: =$F45*'Schedule 4.1'!P$70 -> 0 | R45: =$F45*'Schedule 4.1'!Q$70 -> 0 | S45: =$F45*'Schedule 4.1'!R$70 -> 0 | T45: =$F45*'Schedule 4.1'!S$70 -> 0 | U45: =$F45*'Schedule 4.1'!T$70 -> 0 | V45: =$F45*'Schedule 4.1'!U$70 -> 0 | AC45: Transformers | AE45: =+"Transformers - Demand, Customer - zero intercept ratios Sch G 4.1 L."&'Schedule 4.1'!$A$70 -> Transformers - Demand, Customer - zero intercept ratios Sch G 4.1 L.40
C46: D11 | D46: 30 | E46: Secondary Conductor&Eqpt | F46: =DistnDetails!C19 -> 3070255.368 | G46: =$F46*'Schedule 4.1'!D$71 -> 0 | H46: =$F46*'Schedule 4.1'!E$71 -> 0 | I46: 0 | J46: =$F46*'Schedule 4.1'!I$71 -> 0 | K46: =$F46*'Schedule 4.1'!J$71 -> 0 | L46: =$F46*'Schedule 4.1'!K$71 -> 0 | M46: =$F46*'Schedule 4.1'!L$71 -> 0 | N46: =$F46*'Schedule 4.1'!M$71 -> 0 | O46: =$F46*'Schedule 4.1'!N$71 -> 0 | P46: =$F46*'Schedule 4.1'!O$71 -> 1789958.879 | Q46: =$F46*'Schedule 4.1'!P$71 -> 1280296.488 | R46: =$F46*'Schedule 4.1'!Q$71 -> 0 | S46: =$F46*'Schedule 4.1'!R$71 -> 0 | T46: =$F46*'Schedule 4.1'!S$71 -> 0 | U46: =$F46*'Schedule 4.1'!T$71 -> 0 | V46: =$F46*'Schedule 4.1'!U$71 -> 0 | AC46: Secondary Conductor&Eqpt | AE46: =+"Secondary - Demand, Customer - zero intercept ratios Sch G 4.1 L."&'Schedule 4.1'!$A$71 -> Secondary - Demand, Customer - zero intercept ratios Sch G 4.1 L.41
C47: D11 | D47: 31 | E47: Services | F47: =DistnDetails!C20 -> 6162248.81 | G47: =$F47*'Schedule 4.1'!D$72 -> 0 | H47: =$F47*'Schedule 4.1'!E$72 -> 0 | I47: 0 | J47: =$F47*'Schedule 4.1'!I$72 -> 0 | K47: =$F47*'Schedule 4.1'!J$72 -> 0 | L47: =$F47*'Schedule 4.1'!K$72 -> 0 | M47: =$F47*'Schedule 4.1'!L$72 -> 0 | N47: =$F47*'Schedule 4.1'!M$72 -> 0 | O47: =$F47*'Schedule 4.1'!N$72 -> 0 | P47: =$F47*'Schedule 4.1'!O$72 -> 0 | Q47: =$F47*'Schedule 4.1'!P$72 -> 0 | R47: =$F47*'Schedule 4.1'!Q$72 -> 6162248.81 | S47: =$F47*'Schedule 4.1'!R$72 -> 0 | T47: =$F47*'Schedule 4.1'!S$72 -> 0 | U47: =$F47*'Schedule 4.1'!T$72 -> 0 | V47: =$F47*'Schedule 4.1'!U$72 -> 0 | AC47: Services | AE47: Services Customer
C48: =+SystemizedPlant!C21 -> SMET01 | D48: 32 | E48: Meters | F48: =SUM((IF(VLOOKUP($C48,AllocatedMeters,3,FALSE)="",0,VLOOKUP($C48,AllocatedMeters,3,FALSE)))) -> 9766092.77 | G48: =$F48*'Schedule 4.1'!D$73 -> 0 | H48: =$F48*'Schedule 4.1'!E$73 -> 0 | I48: 0 | J48: =$F48*'Schedule 4.1'!I$73 -> 0 | K48: =$F48*'Schedule 4.1'!J$73 -> 0 | L48: =$F48*'Schedule 4.1'!K$73 -> 0 | M48: =$F48*'Schedule 4.1'!L$73 -> 0 | N48: =$F48*'Schedule 4.1'!M$73 -> 0 | O48: =$F48*'Schedule 4.1'!N$73 -> 0 | P48: =$F48*'Schedule 4.1'!O$73 -> 0 | Q48: =$F48*'Schedule 4.1'!P$73 -> 0 | R48: =$F48*'Schedule 4.1'!Q$73 -> 0 | S48: =$F48*'Schedule 4.1'!R$73 -> 9766092.77 | T48: =$F48*'Schedule 4.1'!S$73 -> 0 | U48: =$F48*'Schedule 4.1'!T$73 -> 0 | V48: =$F48*'Schedule 4.1'!U$73 -> 0 | AC48: Meters | AE48: Meters - Customer
C49: D11 | D49: 33 | E49: Street Lighting | F49: =DistnDetails!C21 -> 5258083.654 | G49: =$F49*'Schedule 4.1'!D$74 -> 0 | H49: =$F49*'Schedule 4.1'!E$74 -> 0 | I49: 0 | J49: =$F49*'Schedule 4.1'!I$74 -> 0 | K49: =$F49*'Schedule 4.1'!J$74 -> 0 | L49: =$F49*'Schedule 4.1'!K$74 -> 0 | M49: =$F49*'Schedule 4.1'!L$74 -> 0 | N49: =$F49*'Schedule 4.1'!M$74 -> 0 | O49: =$F49*'Schedule 4.1'!N$74 -> 0 | P49: =$F49*'Schedule 4.1'!O$74 -> 0 | Q49: =$F49*'Schedule 4.1'!P$74 -> 0 | R49: =$F49*'Schedule 4.1'!Q$74 -> 0 | S49: =$F49*'Schedule 4.1'!R$74 -> 0 | T49: =$F49*'Schedule 4.1'!S$74 -> 5258083.654 | U49: =$F49*'Schedule 4.1'!T$74 -> 0 | V49: =$F49*'Schedule 4.1'!U$74 -> 0 | AC49: Street Lighting | AE49: Street Lighting - Customer
A50: =SUM(G50:V50)-F50 -> 0 | D50: 34 | E50: Subtotal Distribution | F50: =SUM(F40:F49) -> 297674504.2 | G50: =SUM(G40:G49) -> 0 | H50: =SUM(H40:H49) -> 0 | I50: =SUM(I40:I49) -> 0 | J50: =SUM(J40:J49) -> 0 | K50: 44549496.55 | L50: 127984297.4 | M50: 34916271.8 | N50: 10672396.53 | O50: 18891028.76 | P50: 18490697.42 | Q50: 20983890.48 | R50: 6162248.81 | S50: 9766092.77 | T50: 5258083.654 | U50: 0 | V50: 0 | AC50: Subtotal Distribution
A51: =SUM(G51:V51)-F51 -> 0 | D51: 35 | E51: Subttl Prod, Trans, & Dist | F51: =SUM(F50,F38,F29) -> 3203063241 | G51: 1217778563 | H51: 658978624.6 | I51: 821895602 | J51: 123997369.4 | K51: 63944356.74 | L51: 127984297.4 | M51: 34916271.8 | N51: 10672396.53 | O51: 18891028.76 | P51: 18490697.42 | Q51: 20983890.48 | R51: 6162248.81 | S51: 9766092.77 | T51: 5258083.654 | U51: 0 | V51: 63343717.3 | AC51: Subttl Prod, Trans, & Dist
B52: =IF(OverheadAlloc="Expenses","E-GTDC","L-GTDC") -> E-GTDC | C52: =+SystemizedPlant!C114 -> SGPLT01 | D52: 36 | E52: General | F52: =SystemizedPlant!E114 -> 233673560.4 | G52: =$F52*VLOOKUP($B52,RatiosIslInt,G$561,FALSE) -> 109613188.7 | H52: 38726936.46 | I52: 47661907.78 | J52: 6622265.124 | K52: 4454820.039 | L52: 8401746.387 | M52: 2292137.914 | N52: 700607.5812 | O52: 1240133.641 | P52: 1213853.21 | Q52: 1377523.1 | R52: 404531.2803 | S52: 1239176.751 | T52: 345175.8243 | U52: 7543899.367 | V52: 1835657.208 | AC52: General | AE52: =+"Prorated on Subtotal Production, Transmission, Distribution, Accounting Expenses - Sch G 2.4 L."&$D$250&", "&$D$252 -> Prorated on Subtotal Production, Transmission, Distribution, Accounting Expenses - Sch G 2.4 L.15, 16
C53: G06 | D53: 37 | E53: NLSO | F53: =IFERROR(VLOOKUP($C53,[5]!HistCostAvg,AllocDep!$E$13,FALSE),0)+IFERROR(VLOOKUP($C53&".1",[5]!HistCostAvg,AllocDep!$E$13,FALSE),0) -> 1935320.405 | G53: =$F53*(G$51/SUM($G$51:$V$51)) -> 735793.0597 | H53: 398160.9736 | I53: 496596.9167 | J53: 74920.35625 | K53: 38635.77116 | L53: 77329.29499 | M53: 21096.73403 | N53: 6448.360593 | O53: 11414.13412 | P53: 11172.25023 | Q53: 12678.66051 | R53: 3723.287667 | S53: 5900.763486 | T53: 3176.982726 | U53: 0 | V53: 38272.85926
C54: =+SPLTDetails!C76 -> SPLT8 | D54: 38 | E54: Telecontrol - Custmr & Spec | F54: =SUM(G54:V54) -> 0 | G54: 0 | H54: 0 | I54: 0 | J54: 0 | K54: 0 | L54: 0 | M54: 0 | N54: 0 | O54: 0 | P54: 0 | Q54: 0 | R54: 0 | S54: 0 | T54: 0 | U54: =+SPLTDetails!L76 -> 0 | V54: =+SPLTDetails!M76 -> 0 | AC54: Telecontrol - Custmr & Spec | AE54: Specifically Assigned - Customer
C55: =+SPLTDetails!C83 -> SPLT9 | D55: 39 | E55: Feasibility Studies | F55: =SUM(G55:V55) -> -180126.59 | G55: =+SPLTDetails!E83 -> -180126.59 | H55: 0 | I55: 0 | J55: 0 | K55: =+SPLTDetails!K83 -> 0 | L55: 0 | M55: 0 | N55: 0 | O55: 0 | P55: 0 | Q55: 0 | R55: 0 | S55: 0 | T55: 0 | U55: 0 | V55: 0 | AC55: Feasibility Studies | AE55: Production, Transmission - Demand
C56: G10 | D56: 40 | E56: Feasibility Studies - General | F56: =IFERROR(VLOOKUP($C56,[5]!HistCostAvg,AllocDep!$E$13,FALSE),0)+IFERROR(VLOOKUP($C56&".1",[5]!HistCostAvg,AllocDep!$E$13,FALSE),0) -> 0 | G56: =$F56*(G$51/SUM($G$51:$V$51)) -> 0 | H56: 0 | I56: 0 | J56: 0 | K56: 0 | L56: 0 | M56: 0 | N56: 0 | O56: 0 | P56: 0 | Q56: 0 | R56: 0 | S56: 0 | T56: 0 | U56: 0 | V56: 0 | AC56: Feasibility Studies - General | AE56: =+"Prorated on subtotal Production, Transmission, & Distribution plant - L."&$D$51 -> Prorated on subtotal Production, Transmission, & Distribution plant - L.35
C57: =+SystemizedPlant!C77 -> SCS2_01 | D57: =MAX(D55:D56)+NoOne -> 41 | E57: Software - General | F57: =SystemizedPlant!E77 -> 13917263.2 | G57: 5291230.148 | H57: 2863252.541 | I57: 3571124.438 | J57: 538766.7666 | K57: 277837.3001 | L57: 556089.9109 | M57: 151710.6932 | N57: 46371.40773 | O57: 82081.24526 | P57: 80341.81138 | Q57: 91174.69899 | R57: 26774.88146 | S57: 42433.53106 | T57: 22846.29701 | U57: 0 | V57: 275227.5305 | AC57: Software - General | AE57: =+"Prorated on subtotal Production, Transmission, & Distribution plant - L."&$D$51 -> Prorated on subtotal Production, Transmission, & Distribution plant - L.35
A58: =SUM(G58:V58)-F58 -> 0 | D58: =MAX(D55:D57)+NoOne -> 42 | E58: Total Plant | F58: =SUM(F51:F57) -> 3452409258 | G58: 1333238649 | H58: 700966974.5 | I58: 873625231.1 | J58: 131233321.6 | K58: 68715649.85 | L58: 137019463 | M58: 37381217.14 | N58: 11425823.88 | O58: 20224657.78 | P58: 19796064.69 | Q58: 22465266.94 | R58: 6597278.259 | S58: 11053603.82 | T58: 5629282.758 | U58: 7543899.367 | V58: 65492874.9 | AC58: Total Plant
V61: Schedule G 2.3A
V62: Page 1 of 1
D63: =D5 -> NEWFOUNDLAND AND LABRADOR HYDRO
D64: =D6 -> 2027 Test Year Cost of Service Study (No Rate Mitigation)
D65: =$B$1 -> Island Interconnected
D66: Functional Classification of Net Book Value
E67: =MAX(D67)+NoOne -> 1 | F67: 2 | G67: 3 | H67: 4 | I67: 5 | J67: 6 | K67: 7 | L67: 8 | M67: 9 | N67: 10 | O67: 11 | P67: 12 | Q67: 13 | R67: 14 | S67: 15 | T67: 16 | U67: 17 | V67: 18
J68: Rural Prod & | K68: Distribution | V68: Specifically
D69: Line | F69: Total | G69: Production | H69: Production | I69: Transmission | J69: Transmission | K69: Substations | L69: Primary Lines | N69: Line Transformers | P69: Secondary Lines | R69: Services | S69: Meters | T69: Street Lighting | U69: Accounting | V69: Assigned
D70: No. | E70: Description | F70: Amount | G70: Demand | H70: Energy | I70: Demand | J70: Demand | K70: Demand | L70: Demand | M70: Customer | N70: Demand | O70: Customer | P70: Demand | Q70: Customer | R70: Customer | S70: Customer | T70: Customer | U70: Customer | V70: Customer
E71: Production | F71: ($) | G71: ($) | H71: ($) | I71: ($) | J71: ($) | K71: ($) | L71: ($) | M71: ($) | N71: ($) | O71: ($) | P71: ($) | Q71: ($) | R71: ($) | S71: ($) | T71: ($) | U71: ($) | V71: ($)
E72: Hydraulic
C73: P01 | D73: =MAX(D70:D72)+NoOne -> 1 | E73: Bay D'Espoir | F73: =IFERROR(VLOOKUP($C73,[5]!NBVAvg,AllocDep!$E$13,FALSE),0)+IFERROR(VLOOKUP($C73&".1",[5]!NBVAvg,AllocDep!$E$13,FALSE),0) -> 817319521.7 | G73: =$F73*'Schedule 4.1'!$D$13 -> 406311733.5 | H73: =$F73*'Schedule 4.1'!$E$13 -> 411007788.1 | I73: 0 | J73: 0 | K73: 0 | L73: 0 | M73: 0 | N73: 0 | O73: 0 | P73: 0 | Q73: 0 | R73: 0 | S73: 0 | T73: 0 | U73: 0 | V73: 0
C74: P10 | D74: 2 | E74: Upper Salmon | F74: =IFERROR(VLOOKUP($C74,[5]!NBVAvg,AllocDep!$E$13,FALSE),0)+IFERROR(VLOOKUP($C74&".1",[5]!NBVAvg,AllocDep!$E$13,FALSE),0) -> -308182.985 | G74: =$F74*'Schedule 4.1'!$D$13 -> -153206.1324 | H74: =$F74*'Schedule 4.1'!$E$13 -> -154976.8526 | I74: 0 | J74: 0 | K74: 0 | L74: 0 | M74: 0 | N74: 0 | O74: 0 | P74: 0 | Q74: 0 | R74: 0 | S74: 0 | T74: 0 | U74: 0 | V74: 0
C75: P05 | D75: 3 | E75: Hinds Lake | F75: =IFERROR(VLOOKUP($C75,[5]!NBVAvg,AllocDep!$E$13,FALSE),0)+IFERROR(VLOOKUP($C75&".1",[5]!NBVAvg,AllocDep!$E$13,FALSE),0) -> 2850569.455 | G75: =$F75*'Schedule 4.1'!$D$13 -> 1417095.501 | H75: =$F75*'Schedule 4.1'!$E$13 -> 1433473.954 | I75: 0 | J75: 0 | K75: 0 | L75: 0 | M75: 0 | N75: 0 | O75: 0 | P75: 0 | Q75: 0 | R75: 0 | S75: 0 | T75: 0 | U75: 0 | V75: 0
C76: P02 | D76: 4 | E76: Cat Arm | F76: =IFERROR(VLOOKUP($C76,[5]!NBVAvg,AllocDep!$E$13,FALSE),0)+IFERROR(VLOOKUP($C76&".1",[5]!NBVAvg,AllocDep!$E$13,FALSE),0) -> -92282.9 | G76: =$F76*'Schedule 4.1'!$D$13 -> -45876.3361 | H76: =$F76*'Schedule 4.1'!$E$13 -> -46406.5639 | I76: 0 | J76: 0 | K76: 0 | L76: 0 | M76: 0 | N76: 0 | O76: 0 | P76: 0 | Q76: 0 | R76: 0 | S76: 0 | T76: 0 | U76: 0 | V76: 0
C77: P08 | D77: 5 | E77: Paradise River | F77: =IFERROR(VLOOKUP($C77,[5]!NBVAvg,AllocDep!$E$13,FALSE),0)+IFERROR(VLOOKUP($C77&".1",[5]!NBVAvg,AllocDep!$E$13,FALSE),0) -> -34787.985 | G77: =$F77*'Schedule 4.1'!$D$13 -> -17294.05222 | H77: =$F77*'Schedule 4.1'!$E$13 -> -17493.93278 | I77: 0 | J77: 0 | K77: 0 | L77: 0 | M77: 0 | N77: 0 | O77: 0 | P77: 0 | Q77: 0 | R77: 0 | S77: 0 | T77: 0 | U77: 0 | V77: 0
C78: P09 | D78: 6 | E78: Granite Canal | F78: =IFERROR(VLOOKUP($C78,[5]!NBVAvg,AllocDep!$E$13,FALSE),0)+IFERROR(VLOOKUP($C78&".1",[5]!NBVAvg,AllocDep!$E$13,FALSE),0) -> -32688.745 | G78: =$F78*'Schedule 4.1'!$D$13 -> -16250.463 | H78: =$F78*'Schedule 4.1'!$E$13 -> -16438.282 | I78: 0 | J78: 0 | K78: 0 | L78: 0 | M78: 0 | N78: 0 | O78: 0 | P78: 0 | Q78: 0 | R78: 0 | S78: 0 | T78: 0 | U78: 0 | V78: 0
C79: P12 | D79: 7 | E79: Exploits | F79: =IFERROR(VLOOKUP($C79,[5]!NBVAvg,AllocDep!$E$13,FALSE),0)+IFERROR(VLOOKUP($C79&".1",[5]!NBVAvg,AllocDep!$E$13,FALSE),0) -> 0 | G79: =$F79*'Schedule 4.1'!$D$13 -> 0 | H79: =$F79*'Schedule 4.1'!$E$13 -> 0 | I79: 0 | J79: 0 | K79: 0 | L79: 0 | M79: 0 | N79: 0 | O79: 0 | P79: 0 | Q79: 0 | R79: 0 | S79: 0 | T79: 0 | U79: 0 | V79: 0
C80: P13 | D80: 8 | E80: Star Lake | F80: =IFERROR(VLOOKUP($C80,[5]!NBVAvg,AllocDep!$E$13,FALSE),0)+IFERROR(VLOOKUP($C80&".1",[5]!NBVAvg,AllocDep!$E$13,FALSE),0) -> 0 | G80: =$F80*'Schedule 4.1'!$D$13 -> 0 | H80: =$F80*'Schedule 4.1'!$E$13 -> 0 | I80: 0 | J80: 0 | K80: 0 | L80: 0 | M80: 0 | N80: 0 | O80: 0 | P80: 0 | Q80: 0 | R80: 0 | S80: 0 | T80: 0 | U80: 0 | V80: 0
C81: P07 | D81: 9 | E81: Other Small Hydraulic | F81: =IFERROR(VLOOKUP($C81,[5]!NBVAvg,AllocDep!$E$13,FALSE),0)+IFERROR(VLOOKUP($C81&".1",[5]!NBVAvg,AllocDep!$E$13,FALSE),0) -> 264354.355 | G81: =$F81*'Schedule 4.1'!$D$13 -> 131417.73 | H81: =$F81*'Schedule 4.1'!$E$13 -> 132936.625 | I81: 0 | J81: =+SNBVDetails!J12 -> 0 | K81: 0 | L81: 0 | M81: 0 | N81: 0 | O81: 0 | P81: 0 | Q81: 0 | R81: 0 | S81: 0 | T81: 0 | U81: 0 | V81: 0
A82: =SUM(G82:V82)-F82 -> 0 | D82: 10 | E82: Subtotal Hydraulic | F82: =SUM(F73:F81) -> 819966502.9 | G82: =SUM(G73:G81) -> 407627619.8 | H82: =SUM(H73:H81) -> 412338883.1 | I82: =SUM(I73:I81) -> 0 | J82: =SUM(J73:J81) -> 0 | K82: 0 | L82: 0 | M82: 0 | N82: 0 | O82: 0 | P82: 0 | Q82: 0 | R82: 0 | S82: 0 | T82: 0 | U82: 0 | V82: 0
C83: =SNBVDetails!C12 -> SNBV1 | D83: =MAX(D78:D82)+NoOne -> 11 | E83: Holyrood | F83: =SUM(G83:V83) -> 146045380.9 | G83: =SNBVDetails!D12*'Schedule 4.1'!$D$15 -> 129746716.4 | H83: =SNBVDetails!D12*'Schedule 4.1'!$E$15 -> 16298664.51 | I83: 0 | J83: 0 | K83: 0 | L83: 0 | M83: 0 | N83: 0 | O83: 0 | P83: 0 | Q83: 0 | R83: 0 | S83: 0 | T83: 0 | U83: 0 | V83: 0
C84: P04 | D84: 12 | E84: Gas Turbines | F84: =IFERROR(VLOOKUP($C84,[5]!NBVAvg,AllocDep!$E$13,FALSE),0)+IFERROR(VLOOKUP($C84&".1",[5]!NBVAvg,AllocDep!$E$13,FALSE),0) -> 126292246.2 | G84: =$F84*'Schedule 4.1'!D$16 -> 126292246.2 | H84: =$F84*'Schedule 4.1'!E$16 -> 0 | I84: =$F84*'Schedule 4.1'!F$16 -> 0 | J84: =$F84*'Schedule 4.1'!I$16 -> 0 | K84: =$F84*'Schedule 4.1'!J$16 -> 0 | L84: =$F84*'Schedule 4.1'!K$16 -> 0 | M84: =$F84*'Schedule 4.1'!L$16 -> 0 | N84: =$F84*'Schedule 4.1'!M$16 -> 0 | O84: =$F84*'Schedule 4.1'!N$16 -> 0 | P84: =$F84*'Schedule 4.1'!O$16 -> 0 | Q84: =$F84*'Schedule 4.1'!P$16 -> 0 | R84: =$F84*'Schedule 4.1'!Q$16 -> 0 | S84: =$F84*'Schedule 4.1'!R$16 -> 0 | T84: =$F84*'Schedule 4.1'!S$16 -> 0 | U84: =$F84*'Schedule 4.1'!T$16 -> 0 | V84: =$F84*'Schedule 4.1'!U$16 -> 0
C85: P11 | D85: 13 | E85: Roddickton | F85: =IFERROR(VLOOKUP($C85,[5]!NBVAvg,AllocDep!$E$13,FALSE),0)+IFERROR(VLOOKUP($C85&".1",[5]!NBVAvg,AllocDep!$E$13,FALSE),0) -> 0 | G85: =$F85*'Schedule 4.1'!D$15 -> 0 | H85: =$F85*'Schedule 4.1'!E$15 -> 0 | I85: =$F85*'Schedule 4.1'!F$16 -> 0 | J85: =$F85*'Schedule 4.1'!I$16 -> 0 | K85: =$F85*'Schedule 4.1'!J$16 -> 0 | L85: =$F85*'Schedule 4.1'!K$16 -> 0 | M85: =$F85*'Schedule 4.1'!L$16 -> 0 | N85: =$F85*'Schedule 4.1'!M$16 -> 0 | O85: =$F85*'Schedule 4.1'!N$16 -> 0 | P85: =$F85*'Schedule 4.1'!O$16 -> 0 | Q85: =$F85*'Schedule 4.1'!P$16 -> 0 | R85: =$F85*'Schedule 4.1'!Q$16 -> 0 | S85: =$F85*'Schedule 4.1'!R$16 -> 0 | T85: =$F85*'Schedule 4.1'!S$16 -> 0 | U85: =$F85*'Schedule 4.1'!T$16 -> 0 | V85: =$F85*'Schedule 4.1'!U$16 -> 0
C86: =+SNBVDetails!C17 -> SNBV2 | D86: 14 | E86: Diesel | F86: =SUM(G86:V86) -> 5172217.629 | G86: =+SNBVDetails!$D17*'Schedule 4.1'!D$16 -> 5172217.629 | H86: =+SNBVDetails!$D17*'Schedule 4.1'!E$16 -> 0 | I86: 0 | J86: =+SNBVDetails!J17 -> 0 | K86: 0 | L86: 0 | M86: 0 | N86: 0 | O86: 0 | P86: 0 | Q86: 0 | R86: 0 | S86: 0 | T86: 0 | U86: 0 | V86: 0
A87: =SUM(G87:V87)-F87 -> 0 | D87: 15 | E87: Subtotal Production | F87: =SUM(F82:F86) -> 1097476348 | G87: =SUM(G82:G86) -> 668838800 | H87: =SUM(H82:H86) -> 428637547.6 | I87: =SUM(I82:I86) -> 0 | J87: =SUM(J82:J86) -> 0 | K87: 0 | L87: 0 | M87: 0 | N87: 0 | O87: 0 | P87: 0 | Q87: 0 | R87: 0 | S87: 0 | T87: 0 | U87: 0 | V87: 0
E88: Transmission
C89: =+SNBVDetails!C34 -> SNBV3 | D89: =MAX(D86:D88)+NoOne -> 16 | E89: Lines | F89: =SUM(G89:V89) -> 417821974.5 | G89: =SNBVDetails!E34*'Schedule 4.1'!D38 -> 9064399.347 | H89: =SNBVDetails!E34*'Schedule 4.1'!E38 -> 9169163.523 | I89: =+SNBVDetails!I34 -> 351254882.7 | J89: =+SNBVDetails!J34 -> 34898170.52 | K89: 0 | L89: =+SNBVDetails!K34 -> 0 | M89: 0 | N89: 0 | O89: 0 | P89: 0 | Q89: 0 | R89: 0 | S89: 0 | T89: 0 | U89: 0 | V89: =+SNBVDetails!M34 -> 13435358.43
C90: =+SNBVDetails!C51 -> SNBV4 | D90: 17 | E90: Terminal Stations | F90: =SUM(G90:V90) -> 251981801.9 | G90: =+SNBVDetails!E51*G87/F87 -> 0 | H90: =+SNBVDetails!E51*H87/F87 -> 0 | I90: =+SNBVDetails!I51 -> 221893580.1 | J90: =+SNBVDetails!J51 -> 16264106.36 | K90: 0 | L90: 0 | M90: 0 | N90: 0 | O90: 0 | P90: 0 | Q90: 0 | R90: 0 | S90: 0 | T90: 0 | U90: 0 | V90: =+SNBVDetails!M51 -> 13824115.49
C91: =+SNBVDetails!C56 -> SNBV5 | D91: =MAX(D89:D90)+NoOne -> 18 | E91: =+$E$33 -> Term Stns - Hydraulic | F91: =SUM(G91:V91) -> 31674087.25 | G91: =SNBVDetails!E56*'Schedule 4.1'!D38 -> 15746049.07 | H91: =SNBVDetails!E56*'Schedule 4.1'!E38 -> 15928038.17 | I91: 0 | J91: 0 | K91: 0 | L91: 0 | M91: 0 | N91: 0 | O91: 0 | P91: 0 | Q91: 0 | R91: 0 | S91: 0 | T91: 0 | U91: 0 | V91: 0
C92: T24 | D92: =MAX(D90:D91)+NoOne -> 19 | E92: =+E34 -> Term Stns - Holyrood | F92: =IFERROR(VLOOKUP($C92,[5]!NBVAvg,AllocDep!$E$13,FALSE),0)+IFERROR(VLOOKUP($C92&".1",[5]!NBVAvg,AllocDep!$E$13,FALSE),0) -> 8652255.275 | G92: =$F92*'Schedule 4.1'!D39 -> 7686663.586 | H92: =$F92*'Schedule 4.1'!E39 -> 965591.6886 | I92: 0 | J92: 0 | K92: 0 | L92: 0 | M92: 0 | N92: 0 | O92: 0 | P92: 0 | Q92: 0 | R92: 0 | S92: 0 | T92: 0 | U92: 0 | V92: 0
C93: =+SNBVDetails!C61 -> SNBV6 | D93: =MAX(D91:D92)+NoOne -> 20 | E93: =+E35 -> Term Stns - Gas Tur/Dsl | F93: =SUM(G93:V93) -> 354104.935 | G93: =+SNBVDetails!$E61*'Schedule 4.1'!D$40 -> 354104.935 | H93: =+SNBVDetails!$E61*'Schedule 4.1'!E$40 -> 0 | I93: 0 | J93: =+SNBVDetails!J61 -> 0 | K93: 0 | L93: 0 | M93: 0 | N93: 0 | O93: 0 | P93: 0 | Q93: 0 | R93: 0 | S93: 0 | T93: 0 | U93: 0 | V93: 0
C94: T18 | D94: 21 | E94: Term Stns - Distribution | F94: =IFERROR(VLOOKUP($C94,[5]!NBVAvg,AllocDep!$E$13,FALSE),0)+IFERROR(VLOOKUP($C94&".1",[5]!NBVAvg,AllocDep!$E$13,FALSE),0) -> 11523736.36 | G94: 0 | H94: 0 | I94: 0 | J94: 0 | K94: =F94 -> 11523736.36 | L94: 0 | M94: 0 | N94: 0 | O94: 0 | P94: 0 | Q94: 0 | R94: 0 | S94: 0 | T94: 0 | U94: 0 | V94: 0
A95: =SUM(G95:V95)-F95 -> 0 | D95: 22 | E95: Subtotal Term Stns | F95: =SUM(F90:F94) -> 304185985.7 | G95: 23786817.6 | H95: 16893629.86 | I95: 221893580.1 | J95: 16264106.36 | K95: 11523736.36 | L95: 0 | M95: 0 | N95: 0 | O95: 0 | P95: 0 | Q95: 0 | R95: 0 | S95: 0 | T95: 0 | U95: 0 | V95: 13824115.49
A96: =SUM(G96:V96)-F96 -> 0 | D96: 23 | E96: Subtotal Trans & Term Stns | F96: =SUM(F89,F95) -> 722007960.2 | G96: =SUM(G89,G95) -> 32851216.94 | H96: 26062793.38 | I96: 573148462.7 | J96: 51162276.88 | K96: 11523736.36 | L96: 0 | M96: 0 | N96: 0 | O96: 0 | P96: 0 | Q96: 0 | R96: 0 | S96: 0 | T96: 0 | U96: 0 | V96: 27259473.91
E97: Distribution
C98: =+SNBVDetails!C67 -> SNBV7 | D98: =MAX(D95:D97)+NoOne -> 24 | E98: Substations | F98: =SUM(G98:V98) -> 51022060.91 | G98: =+SNBVDetails!E67 -> 0 | H98: 0 | I98: 0 | J98: =+SNBVDetails!J67 -> 0 | K98: =+SNBVDetails!K67 -> 51022060.91 | L98: 0 | M98: 0 | N98: 0 | O98: 0 | P98: 0 | Q98: 0 | R98: 0 | S98: 0 | T98: 0 | U98: 0 | V98: 0
C99: D11 | D99: 25 | E99: Land & Land Improvements | F99: =DistnDetails!C29+DistnDetails!C38 -> 1847170.905 | G99: =$F99*'Schedule 4.1'!D$62 -> 0 | H99: =$F99*'Schedule 4.1'!E$62 -> 0 | I99: 0 | J99: =$F99*'Schedule 4.1'!I$62 -> 0 | K99: =$F99*'Schedule 4.1'!J$62 -> 0 | L99: =$F99*'Schedule 4.1'!K$62 -> 1392674.504 | M99: =$F99*'Schedule 4.1'!L$62 -> 177420.7654 | N99: =$F99*'Schedule 4.1'!M$62 -> 0 | O99: =$F99*'Schedule 4.1'!N$62 -> 0 | P99: =$F99*'Schedule 4.1'!O$62 -> 161535.0956 | Q99: =$F99*'Schedule 4.1'!P$62 -> 115540.5401 | R99: =$F99*'Schedule 4.1'!Q$62 -> 0 | S99: =$F99*'Schedule 4.1'!R$62 -> 0 | T99: =$F99*'Schedule 4.1'!S$62 -> 0 | U99: =$F99*'Schedule 4.1'!T$62 -> 0 | V99: =$F99*'Schedule 4.1'!U$62 -> 0
C100: D11 | D100: 26 | E100: Poles | F100: =SUM(DistnDetails!C30,DistnDetails!C32) -> 64554581.53 | G100: =$F100*'Schedule 4.1'!D$67 -> 0 | H100: =$F100*'Schedule 4.1'!E$67 -> 0 | I100: 0 | J100: =$F100*'Schedule 4.1'!I$67 -> 0 | K100: =$F100*'Schedule 4.1'!J$67 -> 0 | L100: =$F100*'Schedule 4.1'!K$67 -> 37335013.12 | M100: =$F100*'Schedule 4.1'!L$67 -> 12759342.15 | N100: =$F100*'Schedule 4.1'!M$67 -> 0 | O100: =$F100*'Schedule 4.1'!N$67 -> 0 | P100: =$F100*'Schedule 4.1'!O$67 -> 6608323.402 | Q100: =$F100*'Schedule 4.1'!P$67 -> 7851902.861 | R100: =$F100*'Schedule 4.1'!Q$67 -> 0 | S100: =$F100*'Schedule 4.1'!R$67 -> 0 | T100: =$F100*'Schedule 4.1'!S$67 -> 0 | U100: =$F100*'Schedule 4.1'!T$67 -> 0 | V100: =$F100*'Schedule 4.1'!U$67 -> 0
C101: D11 | D101: 27 | E101: Primary Conductor & Eqpt | F101: =DistnDetails!C33 -> 14135420.99 | G101: =$F101*'Schedule 4.1'!D$68 -> 0 | H101: =$F101*'Schedule 4.1'!E$68 -> 0 | I101: 0 | J101: =$F101*'Schedule 4.1'!I$68 -> 0 | K101: =$F101*'Schedule 4.1'!J$68 -> 0 | L101: =$F101*'Schedule 4.1'!K$68 -> 12538118.42 | M101: =$F101*'Schedule 4.1'!L$68 -> 1597302.571 | N101: =$F101*'Schedule 4.1'!M$68 -> 0 | O101: =$F101*'Schedule 4.1'!N$68 -> 0 | P101: =$F101*'Schedule 4.1'!O$68 -> 0 | Q101: =$F101*'Schedule 4.1'!P$68 -> 0 | R101: =$F101*'Schedule 4.1'!Q$68 -> 0 | S101: =$F101*'Schedule 4.1'!R$68 -> 0 | T101: =$F101*'Schedule 4.1'!S$68 -> 0 | U101: =$F101*'Schedule 4.1'!T$68 -> 0 | V101: =$F101*'Schedule 4.1'!U$68 -> 0
C102: D05 | D102: 28 | E102: Submarine Conductor | F102: =IFERROR(VLOOKUP($C102,[5]!NBVAvg,AllocDep!$E$13,FALSE),0)+IFERROR(VLOOKUP($C102&".1",[5]!NBVAvg,AllocDep!$E$13,FALSE),0) -> 1560642.075 | G102: =$F102*'Schedule 4.1'!D$69 -> 0 | H102: =$F102*'Schedule 4.1'!E$69 -> 0 | I102: 0 | J102: =$F102*'Schedule 4.1'!I$69 -> 0 | K102: =$F102*'Schedule 4.1'!J$69 -> 0 | L102: =$F102*'Schedule 4.1'!K$69 -> 1560642.075 | M102: =$F102*'Schedule 4.1'!L$69 -> 0 | N102: =$F102*'Schedule 4.1'!M$69 -> 0 | O102: =$F102*'Schedule 4.1'!N$69 -> 0 | P102: =$F102*'Schedule 4.1'!O$69 -> 0 | Q102: =$F102*'Schedule 4.1'!P$69 -> 0 | R102: =$F102*'Schedule 4.1'!Q$69 -> 0 | S102: =$F102*'Schedule 4.1'!R$69 -> 0 | T102: =$F102*'Schedule 4.1'!S$69 -> 0 | U102: =$F102*'Schedule 4.1'!T$69 -> 0 | V102: =$F102*'Schedule 4.1'!U$69 -> 0
C103: D11 | D103: 29 | E103: Transformers | F103: =DistnDetails!C34 -> 14450702.88 | G103: =$F103*'Schedule 4.1'!D$70 -> 0 | H103: =$F103*'Schedule 4.1'!E$70 -> 0 | I103: 0 | J103: =$F103*'Schedule 4.1'!I$70 -> 0 | K103: =$F103*'Schedule 4.1'!J$70 -> 0 | L103: =$F103*'Schedule 4.1'!K$70 -> 0 | M103: =$F103*'Schedule 4.1'!L$70 -> 0 | N103: =$F103*'Schedule 4.1'!M$70 -> 5216703.739 | O103: =$F103*'Schedule 4.1'!N$70 -> 9233999.14 | P103: =$F103*'Schedule 4.1'!O$70 -> 0 | Q103: =$F103*'Schedule 4.1'!P$70 -> 0 | R103: =$F103*'Schedule 4.1'!Q$70 -> 0 | S103: =$F103*'Schedule 4.1'!R$70 -> 0 | T103: =$F103*'Schedule 4.1'!S$70 -> 0 | U103: =$F103*'Schedule 4.1'!T$70 -> 0 | V103: =$F103*'Schedule 4.1'!U$70 -> 0
C104: D11 | D104: 30 | E104: Secondary Conductor&Eqpt | F104: =DistnDetails!C35 -> 899951.094 | G104: =$F104*'Schedule 4.1'!D$71 -> 0 | H104: =$F104*'Schedule 4.1'!E$71 -> 0 | I104: 0 | J104: =$F104*'Schedule 4.1'!I$71 -> 0 | K104: =$F104*'Schedule 4.1'!J$71 -> 0 | L104: =$F104*'Schedule 4.1'!K$71 -> 0 | M104: =$F104*'Schedule 4.1'!L$71 -> 0 | N104: =$F104*'Schedule 4.1'!M$71 -> 0 | O104: =$F104*'Schedule 4.1'!N$71 -> 0 | P104: =$F104*'Schedule 4.1'!O$71 -> 524671.4878 | Q104: =$F104*'Schedule 4.1'!P$71 -> 375279.6062 | R104: =$F104*'Schedule 4.1'!Q$71 -> 0 | S104: =$F104*'Schedule 4.1'!R$71 -> 0 | T104: =$F104*'Schedule 4.1'!S$71 -> 0 | U104: =$F104*'Schedule 4.1'!T$71 -> 0 | V104: =$F104*'Schedule 4.1'!U$71 -> 0
C105: D11 | D105: 31 | E105: Services | F105: =DistnDetails!C36 -> 1764687.623 | G105: =$F105*'Schedule 4.1'!D$72 -> 0 | H105: =$F105*'Schedule 4.1'!E$72 -> 0 | I105: 0 | J105: =$F105*'Schedule 4.1'!I$72 -> 0 | K105: =$F105*'Schedule 4.1'!J$72 -> 0 | L105: =$F105*'Schedule 4.1'!K$72 -> 0 | M105: =$F105*'Schedule 4.1'!L$72 -> 0 | N105: =$F105*'Schedule 4.1'!M$72 -> 0 | O105: =$F105*'Schedule 4.1'!N$72 -> 0 | P105: =$F105*'Schedule 4.1'!O$72 -> 0 | Q105: =$F105*'Schedule 4.1'!P$72 -> 0 | R105: =$F105*'Schedule 4.1'!Q$72 -> 1764687.623 | S105: =$F105*'Schedule 4.1'!R$72 -> 0 | T105: =$F105*'Schedule 4.1'!S$72 -> 0 | U105: =$F105*'Schedule 4.1'!T$72 -> 0 | V105: =$F105*'Schedule 4.1'!U$72 -> 0
C106: =+SystemizedPlant!C31 -> SMET02 | D106: 32 | E106: Meters | F106: =SUM((IF(VLOOKUP($C106,AllocatedMeters,3,FALSE)="",0,VLOOKUP($C106,AllocatedMeters,3,FALSE)))) -> 6895203.989 | G106: =$F106*'Schedule 4.1'!D$73 -> 0 | H106: =$F106*'Schedule 4.1'!E$73 -> 0 | I106: 0 | J106: =$F106*'Schedule 4.1'!I$73 -> 0 | K106: =$F106*'Schedule 4.1'!J$73 -> 0 | L106: =$F106*'Schedule 4.1'!K$73 -> 0 | M106: =$F106*'Schedule 4.1'!L$73 -> 0 | N106: =$F106*'Schedule 4.1'!M$73 -> 0 | O106: =$F106*'Schedule 4.1'!N$73 -> 0 | P106: =$F106*'Schedule 4.1'!O$73 -> 0 | Q106: =$F106*'Schedule 4.1'!P$73 -> 0 | R106: =$F106*'Schedule 4.1'!Q$73 -> 0 | S106: =$F106*'Schedule 4.1'!R$73 -> 6895203.989 | T106: =$F106*'Schedule 4.1'!S$73 -> 0 | U106: =$F106*'Schedule 4.1'!T$73 -> 0 | V106: =$F106*'Schedule 4.1'!U$73 -> 0
C107: D11 | D107: 33 | E107: Street Lighting | F107: =DistnDetails!C37 -> 2172511.428 | G107: =$F107*'Schedule 4.1'!D$74 -> 0 | H107: =$F107*'Schedule 4.1'!E$74 -> 0 | I107: 0 | J107: =$F107*'Schedule 4.1'!I$74 -> 0 | K107: =$F107*'Schedule 4.1'!J$74 -> 0 | L107: =$F107*'Schedule 4.1'!K$74 -> 0 | M107: =$F107*'Schedule 4.1'!L$74 -> 0 | N107: =$F107*'Schedule 4.1'!M$74 -> 0 | O107: =$F107*'Schedule 4.1'!N$74 -> 0 | P107: =$F107*'Schedule 4.1'!O$74 -> 0 | Q107: =$F107*'Schedule 4.1'!P$74 -> 0 | R107: =$F107*'Schedule 4.1'!Q$74 -> 0 | S107: =$F107*'Schedule 4.1'!R$74 -> 0 | T107: =$F107*'Schedule 4.1'!S$74 -> 2172511.428 | U107: =$F107*'Schedule 4.1'!T$74 -> 0 | V107: =$F107*'Schedule 4.1'!U$74 -> 0
A108: =SUM(G108:V108)-F108 -> 0 | D108: 34 | E108: Subtotal Distribution | F108: =SUM(F98:F107) -> 159302933.4 | G108: =SUM(G98:G107) -> 0 | H108: =SUM(H98:H107) -> 0 | I108: =SUM(I98:I107) -> 0 | J108: =SUM(J98:J107) -> 0 | K108: 51022060.91 | L108: 52826448.12 | M108: 14534065.49 | N108: 5216703.739 | O108: 9233999.14 | P108: 7294529.986 | Q108: 8342723.007 | R108: 1764687.623 | S108: 6895203.989 | T108: 2172511.428 | U108: 0 | V108: 0
A109: =SUM(G109:V109)-F109 -> 0 | D109: 35 | E109: Subttl Prod, Trans, & Dist | F109: =SUM(F108,F96,F87) -> 1978787241 | G109: 701690016.9 | H109: 454700341 | I109: 573148462.7 | J109: 51162276.88 | K109: 62545797.27 | L109: 52826448.12 | M109: 14534065.49 | N109: 5216703.739 | O109: 9233999.14 | P109: 7294529.986 | Q109: 8342723.007 | R109: 1764687.623 | S109: 6895203.989 | T109: 2172511.428 | U109: 0 | V109: 27259473.91
B110: =IF(OverheadAlloc="Expenses","E-GTDC","L-GTDC") -> E-GTDC | C110: =+SystemizedPlant!C125 -> SGPLT02 | D110: 36 | E110: General | F110: =SystemizedPlant!E125 -> 109768210.8 | G110: =$F110*VLOOKUP($B110,RatiosIslInt,G$561,FALSE) -> 51490821.6 | H110: 18191987.66 | I110: 22389192.57 | J110: 3110810.625 | K110: 2092652.778 | L110: 3946722.374 | M110: 1076732.333 | N110: 329110.5787 | O110: 582553.0743 | P110: 570207.8357 | Q110: 647091.8055 | R110: 190028.6656 | S110: 582103.575 | T110: 162146.426 | U110: 3543748.531 | V110: 862300.4122
C111: G06 | D111: 37 | E111: NLSO | F111: =IFERROR(VLOOKUP($C111,[5]!NBVAvg,AllocDep!$E$13,FALSE),0)+IFERROR(VLOOKUP($C111&".1",[5]!NBVAvg,AllocDep!$E$13,FALSE),0) -> 596295.38 | G111: =$F111*(G$109/SUM($G$109:$V$109)) -> 211449.9763 | H111: 137021.1547 | I111: 172714.7686 | J111: 15417.43786 | K111: 18847.79181 | L111: 15918.92564 | M111: 4379.751356 | N111: 1572.021627 | O111: 2782.608919 | P111: 2198.161803 | Q111: 2514.028331 | R111: 531.7777751 | S111: 2077.827367 | T111: 654.6729736 | U111: 0 | V111: 8214.475016
C112: =+SNBVDetails!C72 -> SNBV8 | D112: 38 | E112: Telecontrol - Custmr & Spec | F112: =SUM(G112:V112) -> 0 | G112: 0 | H112: 0 | I112: 0 | J112: 0 | K112: 0 | L112: 0 | M112: 0 | N112: 0 | O112: 0 | P112: 0 | Q112: 0 | R112: 0 | S112: 0 | T112: 0 | U112: =+SNBVDetails!L72 -> 0 | V112: =+SNBVDetails!M72 -> 0
C113: =+SNBVDetails!C79 -> SNBV9 | D113: 39 | E113: Feasibility Studies | F113: =SUM(G113:V113) -> -180126.59 | G113: =+SNBVDetails!E79 -> -180126.59 | H113: 0 | I113: 0 | J113: 0 | K113: =+SNBVDetails!K79 -> 0 | L113: 0 | M113: 0 | N113: 0 | O113: 0 | P113: 0 | Q113: 0 | R113: 0 | S113: 0 | T113: 0 | U113: 0 | V113: 0
C114: G10 | D114: 40 | E114: Feasibility Studies - General | F114: =IFERROR(VLOOKUP($C114,[5]!NBVAvg,AllocDep!$E$13,FALSE),0)+IFERROR(VLOOKUP($C114&".1",[5]!NBVAvg,AllocDep!$E$13,FALSE),0) -> 0 | G114: =$F114*(G$109/SUM($G$109:$V$109)) -> 0 | H114: 0 | I114: 0 | J114: 0 | K114: 0 | L114: 0 | M114: 0 | N114: 0 | O114: 0 | P114: 0 | Q114: 0 | R114: 0 | S114: 0 | T114: 0 | U114: 0 | V114: 0
C115: =+SystemizedPlant!C83 -> SCS2_02 | D115: =MAX(D113:D114)+NoOne -> 41 | E115: Software - General | F115: =+SystemizedPlant!E83 -> 13768408.79 | G115: 4882361.68 | H115: 3163806.62 | I115: 3987969.081 | J115: 355987.308 | K115: 435193.8841 | L115: 367566.6174 | M115: 101128.0803 | N115: 36297.84352 | O115: 64250.19947 | P115: 50755.36607 | Q115: 58048.69692 | R115: 12278.70287 | S115: 47976.85434 | T115: 15116.34239 | U115: 0 | V115: 189671.5183
A116: =SUM(G116:V116)-F116 -> 0 | D116: =MAX(D113:D115)+NoOne -> 42 | E116: Total Net Book Value | F116: =SUM(F109:F115) -> 2102740030 | G116: 758094523.6 | H116: 476193156.4 | I116: 599698339.2 | J116: 54644492.26 | K116: 65092491.73 | L116: 57156656.03 | M116: 15716305.65 | N116: 5583684.183 | O116: 9883585.022 | P116: 7917691.35 | Q116: 9050377.538 | R116: 1967526.769 | S116: 7527362.246 | T116: 2350428.869 | U116: 3543748.531 | V116: 28319660.32
V121: Schedule G 2.5A
V122: Page 1 of 1
D123: =D5 -> NEWFOUNDLAND AND LABRADOR HYDRO
D124: =D6 -> 2027 Test Year Cost of Service Study (No Rate Mitigation)
D125: =$B$1 -> Island Interconnected
D126: Functional Classification of Depreciation Expense
E127: =MAX(D127)+NoOne -> 1 | F127: 2 | G127: 3 | H127: 4 | I127: 5 | J127: 6 | K127: 7 | L127: 8 | M127: 9 | N127: 10 | O127: 11 | P127: 12 | Q127: 13 | R127: 14 | S127: 15 | T127: 16 | U127: 17 | V127: 18
J128: Rural Prod & | K128: Distribution | V128: Specifically
D129: Line | F129: Total | G129: Production | H129: Production | I129: Transmission | J129: Transmission | K129: Substations | L129: Primary Lines | N129: Line Transformers | P129: Secondary Lines | R129: Services | S129: Meters | T129: Street Lighting | U129: Accounting | V129: Assigned
D130: No. | E130: Description | F130: Amount | G130: Demand | H130: Energy | I130: Demand | J130: Demand | K130: Demand | L130: Demand | M130: Customer | N130: Demand | O130: Customer | P130: Demand | Q130: Customer | R130: Customer | S130: Customer | T130: Customer | U130: Customer | V130: Customer
E131: Production | F131: ($) | G131: ($) | H131: ($) | I131: ($) | J131: ($) | K131: ($) | L131: ($) | M131: ($) | N131: ($) | O131: ($) | P131: ($) | Q131: ($) | R131: ($) | S131: ($) | T131: ($) | U131: ($) | V131: ($)
E132: Hydraulic
C133: P01 | D133: =MAX(D130:D132)+NoOne -> 1 | E133: Bay D'Espoir | F133: =IFERROR(VLOOKUP($C133,[5]!DEP,AllocDep!$E$13,FALSE),0)+IFERROR(VLOOKUP($C133&".1",[5]!DEP,AllocDep!$E$13,FALSE),0) -> 18997664.59 | G133: =$F133*'Schedule 4.1'!$D$13 -> 9444255.063 | H133: =$F133*'Schedule 4.1'!$E$13 -> 9553409.522 | I133: 0 | J133: 0 | K133: 0 | L133: 0 | M133: 0 | N133: 0 | O133: 0 | P133: 0 | Q133: 0 | R133: 0 | S133: 0 | T133: 0 | U133: 0 | V133: 0
C134: P10 | D134: 2 | E134: Upper Salmon | F134: =IFERROR(VLOOKUP($C134,[5]!DEP,AllocDep!$E$13,FALSE),0)+IFERROR(VLOOKUP($C134&".1",[5]!DEP,AllocDep!$E$13,FALSE),0) -> 14735.31 | G134: =$F134*'Schedule 4.1'!$D$13 -> 7325.322829 | H134: =$F134*'Schedule 4.1'!$E$13 -> 7409.987171 | I134: 0 | J134: 0 | K134: 0 | L134: 0 | M134: 0 | N134: 0 | O134: 0 | P134: 0 | Q134: 0 | R134: 0 | S134: 0 | T134: 0 | U134: 0 | V134: 0
C135: P05 | D135: 3 | E135: Hinds Lake | F135: =IFERROR(VLOOKUP($C135,[5]!DEP,AllocDep!$E$13,FALSE),0)+IFERROR(VLOOKUP($C135&".1",[5]!DEP,AllocDep!$E$13,FALSE),0) -> 30668.39 | G135: =$F135*'Schedule 4.1'!$D$13 -> 15246.08966 | H135: =$F135*'Schedule 4.1'!$E$13 -> 15422.30034 | I135: 0 | J135: 0 | K135: 0 | L135: 0 | M135: 0 | N135: 0 | O135: 0 | P135: 0 | Q135: 0 | R135: 0 | S135: 0 | T135: 0 | U135: 0 | V135: 0
C136: P02 | D136: 4 | E136: Cat Arm | F136: =IFERROR(VLOOKUP($C136,[5]!DEP,AllocDep!$E$13,FALSE),0)+IFERROR(VLOOKUP($C136&".1",[5]!DEP,AllocDep!$E$13,FALSE),0) -> 5514.6 | G136: =$F136*'Schedule 4.1'!$D$13 -> 2741.457443 | H136: =$F136*'Schedule 4.1'!$E$13 -> 2773.142557 | I136: 0 | J136: 0 | K136: 0 | L136: 0 | M136: 0 | N136: 0 | O136: 0 | P136: 0 | Q136: 0 | R136: 0 | S136: 0 | T136: 0 | U136: 0 | V136: 0
C137: P08 | D137: 5 | E137: Paradise River | F137: =IFERROR(VLOOKUP($C137,[5]!DEP,AllocDep!$E$13,FALSE),0)+IFERROR(VLOOKUP($C137&".1",[5]!DEP,AllocDep!$E$13,FALSE),0) -> 171.61 | G137: =$F137*'Schedule 4.1'!$D$13 -> 85.31199212 | H137: =$F137*'Schedule 4.1'!$E$13 -> 86.29800788 | I137: 0 | J137: 0 | K137: 0 | L137: 0 | M137: 0 | N137: 0 | O137: 0 | P137: 0 | Q137: 0 | R137: 0 | S137: 0 | T137: 0 | U137: 0 | V137: 0
C138: P09 | D138: 6 | E138: Granite Canal | F138: =IFERROR(VLOOKUP($C138,[5]!DEP,AllocDep!$E$13,FALSE),0)+IFERROR(VLOOKUP($C138&".1",[5]!DEP,AllocDep!$E$13,FALSE),0) -> 11635.87 | G138: =$F138*'Schedule 4.1'!$D$13 -> 5784.50702 | H138: =$F138*'Schedule 4.1'!$E$13 -> 5851.36298 | I138: 0 | J138: 0 | K138: 0 | L138: 0 | M138: 0 | N138: 0 | O138: 0 | P138: 0 | Q138: 0 | R138: 0 | S138: 0 | T138: 0 | U138: 0 | V138: 0
C139: P12 | D139: 7 | E139: Exploits | F139: =IFERROR(VLOOKUP($C139,[5]!DEP,AllocDep!$E$13,FALSE),0)+IFERROR(VLOOKUP($C139&".1",[5]!DEP,AllocDep!$E$13,FALSE),0) -> 0 | G139: =$F139*'Schedule 4.1'!$D$13 -> 0 | H139: =$F139*'Schedule 4.1'!$E$13 -> 0 | I139: 0 | J139: 0 | K139: 0 | L139: 0 | M139: 0 | N139: 0 | O139: 0 | P139: 0 | Q139: 0 | R139: 0 | S139: 0 | T139: 0 | U139: 0 | V139: 0
D140: 8 | E140: Muskrat Falls Sustaining | F140: =IFERROR(VLOOKUP($C140,[5]!DEP,AllocDep!$E$13,FALSE),0)+IFERROR(VLOOKUP($C140&".1",[5]!DEP,AllocDep!$E$13,FALSE),0)+SDEPDetails!E345 -> 720638 | G140: =$F140*'Schedule 4.1'!$D$13 -> 358248.7231 | H140: =$F140*'Schedule 4.1'!$E$13 -> 362389.2769 | I140: 0 | J140: 0 | K140: 0 | L140: 0 | M140: 0 | N140: 0 | O140: 0 | P140: 0 | Q140: 0 | R140: 0 | S140: 0 | T140: 0 | U140: 0 | V140: 0
C141: P07 | D141: 9 | E141: Other Small Hydraulic | F141: =IFERROR(VLOOKUP($C141,[5]!DEP,AllocDep!$E$13,FALSE),0)+IFERROR(VLOOKUP($C141&".1",[5]!DEP,AllocDep!$E$13,FALSE),0) -> 3221.89 | G141: =$F141*'Schedule 4.1'!D$13 -> 1601.689029 | H141: =$F141*'Schedule 4.1'!E$13 -> 1620.200971 | I141: 0 | J141: =+SDEPDetails!J14 -> 0 | K141: 0 | L141: 0 | M141: 0 | N141: 0 | O141: 0 | P141: 0 | Q141: 0 | R141: 0 | S141: 0 | T141: 0 | U141: 0 | V141: 0
A142: =SUM(G142:V142)-F142 -> 0 | D142: =MAX(D137:D141)+NoOne -> 10 | E142: Subtotal Hydraulic | F142: =SUM(F133:F141) -> 19784250.26 | G142: =SUM(G133:G141) -> 9835288.164 | H142: =SUM(H133:H141) -> 9948962.091 | I142: =SUM(I133:I141) -> 0 | J142: =SUM(J133:J141) -> 0 | K142: 0 | L142: 0 | M142: 0 | N142: 0 | O142: 0 | P142: 0 | Q142: 0 | R142: 0 | S142: 0 | T142: 0 | U142: 0 | V142: 0
C143: =SDEPDetails!C14 -> SDEP1 | D143: =MAX(D138:D142)+NoOne -> 11 | E143: Holyrood | F143: =SUM(G143:V143) -> 31706546.57 | G143: =(SDEPDetails!E14+SDEPDetails!I14)*'Schedule 4.1'!$D$15 -> 28168095.97 | H143: =(SDEPDetails!E14+SDEPDetails!I14)*'Schedule 4.1'!$E$15 -> 3538450.597 | I143: 0 | J143: 0 | K143: 0 | L143: 0 | M143: 0 | N143: 0 | O143: 0 | P143: 0 | Q143: 0 | R143: 0 | S143: 0 | T143: 0 | U143: 0 | V143: 0
C144: P04 | D144: 12 | E144: Gas Turbines | F144: =IFERROR(VLOOKUP($C144,[5]!DEP,AllocDep!$E$13,FALSE),0)+IFERROR(VLOOKUP($C144&".1",[5]!DEP,AllocDep!$E$13,FALSE),0) -> 5751896.979 | G144: =$F144*'Schedule 4.1'!D$16 -> 5751896.979 | H144: =$F144*'Schedule 4.1'!E$16 -> 0 | I144: =$F144*'Schedule 4.1'!F$16 -> 0 | J144: =$F144*'Schedule 4.1'!I$16 -> 0 | K144: =$F144*'Schedule 4.1'!J$16 -> 0 | L144: =$F144*'Schedule 4.1'!K$16 -> 0 | M144: =$F144*'Schedule 4.1'!L$16 -> 0 | N144: =$F144*'Schedule 4.1'!M$16 -> 0 | O144: =$F144*'Schedule 4.1'!N$16 -> 0 | P144: =$F144*'Schedule 4.1'!O$16 -> 0 | Q144: =$F144*'Schedule 4.1'!P$16 -> 0 | R144: =$F144*'Schedule 4.1'!Q$16 -> 0 | S144: =$F144*'Schedule 4.1'!R$16 -> 0 | T144: =$F144*'Schedule 4.1'!S$16 -> 0 | U144: =$F144*'Schedule 4.1'!T$16 -> 0 | V144: =$F144*'Schedule 4.1'!U$16 -> 0
C145: P11 | D145: 13 | E145: Roddickton | F145: =IFERROR(VLOOKUP($C145,[5]!DEP,AllocDep!$E$13,FALSE),0)+IFERROR(VLOOKUP($C145&".1",[5]!DEP,AllocDep!$E$13,FALSE),0) -> 0 | G145: =$F145*'Schedule 4.1'!D$15 -> 0 | H145: =$F145*'Schedule 4.1'!E$15 -> 0 | I145: =$F145*'Schedule 4.1'!F$16 -> 0 | J145: =$F145*'Schedule 4.1'!I$16 -> 0 | K145: =$F145*'Schedule 4.1'!J$16 -> 0 | L145: =$F145*'Schedule 4.1'!K$16 -> 0 | M145: =$F145*'Schedule 4.1'!L$16 -> 0 | N145: =$F145*'Schedule 4.1'!M$16 -> 0 | O145: =$F145*'Schedule 4.1'!N$16 -> 0 | P145: =$F145*'Schedule 4.1'!O$16 -> 0 | Q145: =$F145*'Schedule 4.1'!P$16 -> 0 | R145: =$F145*'Schedule 4.1'!Q$16 -> 0 | S145: =$F145*'Schedule 4.1'!R$16 -> 0 | T145: =$F145*'Schedule 4.1'!S$16 -> 0 | U145: =$F145*'Schedule 4.1'!T$16 -> 0 | V145: =$F145*'Schedule 4.1'!U$16 -> 0
C146: =+SDEPDetails!C18 -> SDEP2 | D146: 14 | E146: Diesel | F146: =SUM(G146:V146) -> 200824.001 | G146: =(SDEPDetails!$E18+SDEPDetails!$I18)*'Schedule 4.1'!D$16 -> 200824.001 | H146: =+SDEPDetails!$E18*'Schedule 4.1'!E$16 -> 0 | I146: 0 | J146: =+SDEPDetails!J18 -> 0 | K146: 0 | L146: 0 | M146: 0 | N146: 0 | O146: 0 | P146: 0 | Q146: 0 | R146: 0 | S146: 0 | T146: 0 | U146: 0 | V146: 0
A147: =SUM(G147:V147)-F147 -> 0 | D147: 15 | E147: Subtotal Production | F147: =SUM(F142:F146) -> 57443517.8 | G147: =SUM(G142:G146) -> 43956105.11 | H147: =SUM(H142:H146) -> 13487412.69 | I147: =SUM(I142:I146) -> 0 | J147: =SUM(J142:J146) -> 0 | K147: 0 | L147: 0 | M147: 0 | N147: 0 | O147: 0 | P147: 0 | Q147: 0 | R147: 0 | S147: 0 | T147: 0 | U147: 0 | V147: 0
E148: Transmission
C149: =+SDEPDetails!C35 -> SDEP3 | D149: =MAX(D146:D148)+NoOne -> 16 | E149: Lines | F149: =SUM(G149:V149) -> 10711224.95 | G149: =SDEPDetails!E35*'Schedule 4.1'!D38 -> 303275.5992 | H149: =SDEPDetails!E35*'Schedule 4.1'!E38 -> 306780.7866 | I149: =+SDEPDetails!I35 -> 8146138.838 | J149: =+SDEPDetails!J35 -> 1411968.219 | K149: 0 | L149: =+SDEPDetails!K35 -> 0 | M149: 0 | N149: 0 | O149: 0 | P149: 0 | Q149: 0 | R149: 0 | S149: 0 | T149: 0 | U149: 0 | V149: =+SDEPDetails!M35 -> 543061.5075
C150: =+SDEPDetails!C52 -> SDEP4 | D150: 17 | E150: Terminal Stations | F150: =SUM(G150:V150) -> 7749077.759 | G150: =+SDEPDetails!E52*G147/F147 -> 0 | H150: =+SDEPDetails!E52*H147/F147 -> 0 | I150: =+SDEPDetails!I52 -> 6810065.113 | J150: =+SDEPDetails!J52 -> 568683.7162 | K150: 0 | L150: 0 | M150: 0 | N150: 0 | O150: 0 | P150: 0 | Q150: 0 | R150: 0 | S150: 0 | T150: 0 | U150: 0 | V150: =+SDEPDetails!M52 -> 370328.9301
C151: =+SDEPDetails!C58 -> SDEP5 | D151: =MAX(D149:D150)+NoOne -> 18 | E151: =+E33 -> Term Stns - Hydraulic | F151: =SUM(G151:V151) -> 930929.0912 | G151: =SDEPDetails!E58*'Schedule 4.1'!D38 -> 462790.1363 | H151: =SDEPDetails!E58*'Schedule 4.1'!E38 -> 468138.9549 | I151: 0 | J151: 0 | K151: 0 | L151: 0 | M151: 0 | N151: 0 | O151: 0 | P151: 0 | Q151: 0 | R151: 0 | S151: 0 | T151: 0 | U151: 0 | V151: 0
C152: T24 | D152: =MAX(D150:D151)+NoOne -> 19 | E152: =+E34 -> Term Stns - Holyrood | F152: =IFERROR(VLOOKUP($C152,[5]!DEP,AllocDep!$E$13,FALSE),0)+IFERROR(VLOOKUP($C152&".1",[5]!DEP,AllocDep!$E$13,FALSE),0) -> 396428.0003 | G152: =$F152*'Schedule 4.1'!D39 -> 352186.6354 | H152: =$F152*'Schedule 4.1'!E39 -> 44241.36483 | I152: 0 | J152: 0 | K152: 0 | L152: 0 | M152: 0 | N152: 0 | O152: 0 | P152: 0 | Q152: 0 | R152: 0 | S152: 0 | T152: 0 | U152: 0 | V152: 0
C153: =+SDEPDetails!C64 -> SDEP6 | D153: =MAX(D151:D152)+NoOne -> 20 | E153: =+E35 -> Term Stns - Gas Tur/Dsl | F153: =SUM(G153:V153) -> 9923.21 | G153: =+SDEPDetails!$E64*'Schedule 4.1'!D$40 -> 9923.21 | H153: =+SDEPDetails!$E64*'Schedule 4.1'!E$40 -> 0 | I153: 0 | J153: =+SDEPDetails!J64 -> 0 | K153: 0 | L153: 0 | M153: 0 | N153: 0 | O153: 0 | P153: 0 | Q153: 0 | R153: 0 | S153: 0 | T153: 0 | U153: 0 | V153: 0
C154: T18 | D154: 21 | E154: Term Stns - Distribution | F154: =IFERROR(VLOOKUP($C154,[5]!DEP,AllocDep!$E$13,FALSE),0)+IFERROR(VLOOKUP($C154&".1",[5]!DEP,AllocDep!$E$13,FALSE),0) -> 381353.4249 | G154: 0 | H154: 0 | I154: 0 | J154: 0 | K154: =F154 -> 381353.4249 | L154: 0 | M154: 0 | N154: 0 | O154: 0 | P154: 0 | Q154: 0 | R154: 0 | S154: 0 | T154: 0 | U154: 0 | V154: 0
A155: =SUM(G155:V155)-F155 -> 0 | D155: 22 | E155: Subtotal Term Stns | F155: =SUM(F150:F154) -> 9467711.486 | G155: 824899.9818 | H155: 512380.3197 | I155: 6810065.113 | J155: 568683.7162 | K155: 381353.4249 | L155: 0 | M155: 0 | N155: 0 | O155: 0 | P155: 0 | Q155: 0 | R155: 0 | S155: 0 | T155: 0 | U155: 0 | V155: 370328.9301
A156: =SUM(G156:V156)-F156 -> 0 | D156: 23 | E156: Subtotal Transmission | F156: =SUM(F155,F149) -> 20178936.44 | G156: 1128175.581 | H156: 819161.1063 | I156: 14956203.95 | J156: 1980651.935 | K156: 381353.4249 | L156: 0 | M156: 0 | N156: 0 | O156: 0 | P156: 0 | Q156: 0 | R156: 0 | S156: 0 | T156: 0 | U156: 0 | V156: 913390.4376
E157: Distribution
C158: =+SDEPDetails!C70 -> SDEP7 | D158: =MAX(D155:D157)+NoOne -> 24 | E158: Substations | F158: =SUM(G158:V158) -> 1291291.741 | G158: =+SDEPDetails!E70 -> 0 | H158: 0 | I158: 0 | J158: =+SDEPDetails!J70 -> 0 | K158: =+SDEPDetails!K70 -> 1291291.741 | L158: 0 | M158: 0 | N158: 0 | O158: 0 | P158: 0 | Q158: 0 | R158: 0 | S158: 0 | T158: 0 | U158: 0 | V158: 0
C159: D11 | D159: 25 | E159: Land & Land Improvements | F159: =DistnDetails!C45+DistnDetails!C54 -> 43713.49 | G159: =$F159*'Schedule 4.1'!D$62 -> 0 | H159: =$F159*'Schedule 4.1'!E$62 -> 0 | I159: 0 | J159: =$F159*'Schedule 4.1'!I$62 -> 0 | K159: =$F159*'Schedule 4.1'!J$62 -> 0 | L159: =$F159*'Schedule 4.1'!K$62 -> 32957.78579 | M159: =$F159*'Schedule 4.1'!L$62 -> 4198.680714 | N159: =$F159*'Schedule 4.1'!M$62 -> 0 | O159: =$F159*'Schedule 4.1'!N$62 -> 0 | P159: =$F159*'Schedule 4.1'!O$62 -> 3822.7447 | Q159: =$F159*'Schedule 4.1'!P$62 -> 2734.278799 | R159: =$F159*'Schedule 4.1'!Q$62 -> 0 | S159: =$F159*'Schedule 4.1'!R$62 -> 0 | T159: =$F159*'Schedule 4.1'!S$62 -> 0 | U159: =$F159*'Schedule 4.1'!T$62 -> 0 | V159: =$F159*'Schedule 4.1'!U$62 -> 0
C160: D11 | D160: 26 | E160: Poles | F160: =SUM(DistnDetails!C46,DistnDetails!C48) -> 4179458.082 | G160: =$F160*'Schedule 4.1'!D$67 -> 0 | H160: =$F160*'Schedule 4.1'!E$67 -> 0 | I160: 0 | J160: =$F160*'Schedule 4.1'!I$67 -> 0 | K160: =$F160*'Schedule 4.1'!J$67 -> 0 | L160: =$F160*'Schedule 4.1'!K$67 -> 2417181.223 | M160: =$F160*'Schedule 4.1'!L$67 -> 826078.2489 | N160: =$F160*'Schedule 4.1'!M$67 -> 0 | O160: =$F160*'Schedule 4.1'!N$67 -> 0 | P160: =$F160*'Schedule 4.1'!O$67 -> 427842.765 | Q160: =$F160*'Schedule 4.1'!P$67 -> 508355.8455 | R160: =$F160*'Schedule 4.1'!Q$67 -> 0 | S160: =$F160*'Schedule 4.1'!R$67 -> 0 | T160: =$F160*'Schedule 4.1'!S$67 -> 0 | U160: =$F160*'Schedule 4.1'!T$67 -> 0 | V160: =$F160*'Schedule 4.1'!U$67 -> 0
C161: D11 | D161: 27 | E161: Primary Conductor & Eqpt | F161: =DistnDetails!C49 -> 547958.6688 | G161: =$F161*'Schedule 4.1'!D$68 -> 0 | H161: =$F161*'Schedule 4.1'!E$68 -> 0 | I161: 0 | J161: =$F161*'Schedule 4.1'!I$68 -> 0 | K161: =$F161*'Schedule 4.1'!J$68 -> 0 | L161: =$F161*'Schedule 4.1'!K$68 -> 486039.3393 | M161: =$F161*'Schedule 4.1'!L$68 -> 61919.32958 | N161: =$F161*'Schedule 4.1'!M$68 -> 0 | O161: =$F161*'Schedule 4.1'!N$68 -> 0 | P161: =$F161*'Schedule 4.1'!O$68 -> 0 | Q161: =$F161*'Schedule 4.1'!P$68 -> 0 | R161: =$F161*'Schedule 4.1'!Q$68 -> 0 | S161: =$F161*'Schedule 4.1'!R$68 -> 0 | T161: =$F161*'Schedule 4.1'!S$68 -> 0 | U161: =$F161*'Schedule 4.1'!T$68 -> 0 | V161: =$F161*'Schedule 4.1'!U$68 -> 0
C162: D05 | D162: 28 | E162: Submarine Conductor | F162: =IFERROR(VLOOKUP($C162,[5]!DEP,AllocDep!$E$13,FALSE),0)+IFERROR(VLOOKUP($C162&".1",[5]!DEP,AllocDep!$E$13,FALSE),0) -> 178059.91 | G162: =$F162*'Schedule 4.1'!D$69 -> 0 | H162: =$F162*'Schedule 4.1'!E$69 -> 0 | I162: 0 | J162: =$F162*'Schedule 4.1'!I$69 -> 0 | K162: =$F162*'Schedule 4.1'!J$69 -> 0 | L162: =$F162*'Schedule 4.1'!K$69 -> 178059.91 | M162: =$F162*'Schedule 4.1'!L$69 -> 0 | N162: =$F162*'Schedule 4.1'!M$69 -> 0 | O162: =$F162*'Schedule 4.1'!N$69 -> 0 | P162: =$F162*'Schedule 4.1'!O$69 -> 0 | Q162: =$F162*'Schedule 4.1'!P$69 -> 0 | R162: =$F162*'Schedule 4.1'!Q$69 -> 0 | S162: =$F162*'Schedule 4.1'!R$69 -> 0 | T162: =$F162*'Schedule 4.1'!S$69 -> 0 | U162: =$F162*'Schedule 4.1'!T$69 -> 0 | V162: =$F162*'Schedule 4.1'!U$69 -> 0
C163: D11 | D163: 29 | E163: Transformers | F163: =DistnDetails!C50 -> 761905.0205 | G163: =$F163*'Schedule 4.1'!D$70 -> 0 | H163: =$F163*'Schedule 4.1'!E$70 -> 0 | I163: 0 | J163: =$F163*'Schedule 4.1'!I$70 -> 0 | K163: =$F163*'Schedule 4.1'!J$70 -> 0 | L163: =$F163*'Schedule 4.1'!K$70 -> 0 | M163: =$F163*'Schedule 4.1'!L$70 -> 0 | N163: =$F163*'Schedule 4.1'!M$70 -> 275047.7124 | O163: =$F163*'Schedule 4.1'!N$70 -> 486857.3081 | P163: =$F163*'Schedule 4.1'!O$70 -> 0 | Q163: =$F163*'Schedule 4.1'!P$70 -> 0 | R163: =$F163*'Schedule 4.1'!Q$70 -> 0 | S163: =$F163*'Schedule 4.1'!R$70 -> 0 | T163: =$F163*'Schedule 4.1'!S$70 -> 0 | U163: =$F163*'Schedule 4.1'!T$70 -> 0 | V163: =$F163*'Schedule 4.1'!U$70 -> 0
C164: D11 | D164: 30 | E164: Secondary Conductor&Eqpt | F164: =DistnDetails!C51 -> 42304.98094 | G164: =$F164*'Schedule 4.1'!D$71 -> 0 | H164: =$F164*'Schedule 4.1'!E$71 -> 0 | I164: 0 | J164: =$F164*'Schedule 4.1'!I$71 -> 0 | K164: =$F164*'Schedule 4.1'!J$71 -> 0 | L164: =$F164*'Schedule 4.1'!K$71 -> 0 | M164: =$F164*'Schedule 4.1'!L$71 -> 0 | N164: =$F164*'Schedule 4.1'!M$71 -> 0 | O164: =$F164*'Schedule 4.1'!N$71 -> 0 | P164: =$F164*'Schedule 4.1'!O$71 -> 24663.80389 | Q164: =$F164*'Schedule 4.1'!P$71 -> 17641.17705 | R164: =$F164*'Schedule 4.1'!Q$71 -> 0 | S164: =$F164*'Schedule 4.1'!R$71 -> 0 | T164: =$F164*'Schedule 4.1'!S$71 -> 0 | U164: =$F164*'Schedule 4.1'!T$71 -> 0 | V164: =$F164*'Schedule 4.1'!U$71 -> 0
C165: D11 | D165: 31 | E165: Services | F165: =DistnDetails!C52 -> 116961.6122 | G165: =$F165*'Schedule 4.1'!D$72 -> 0 | H165: =$F165*'Schedule 4.1'!E$72 -> 0 | I165: 0 | J165: =$F165*'Schedule 4.1'!I$72 -> 0 | K165: =$F165*'Schedule 4.1'!J$72 -> 0 | L165: =$F165*'Schedule 4.1'!K$72 -> 0 | M165: =$F165*'Schedule 4.1'!L$72 -> 0 | N165: =$F165*'Schedule 4.1'!M$72 -> 0 | O165: =$F165*'Schedule 4.1'!N$72 -> 0 | P165: =$F165*'Schedule 4.1'!O$72 -> 0 | Q165: =$F165*'Schedule 4.1'!P$72 -> 0 | R165: =$F165*'Schedule 4.1'!Q$72 -> 116961.6122 | S165: =$F165*'Schedule 4.1'!R$72 -> 0 | T165: =$F165*'Schedule 4.1'!S$72 -> 0 | U165: =$F165*'Schedule 4.1'!T$72 -> 0 | V165: =$F165*'Schedule 4.1'!U$72 -> 0
C166: =+SystemizedPlant!C40 -> SMET03 | D166: 32 | E166: Meters | F166: =SUM((IF(VLOOKUP($C166,AllocatedMeters,3,FALSE)="",0,VLOOKUP($C166,AllocatedMeters,3,FALSE)))) -> 516551.0265 | G166: =$F166*'Schedule 4.1'!D$73 -> 0 | H166: =$F166*'Schedule 4.1'!E$73 -> 0 | I166: 0 | J166: =$F166*'Schedule 4.1'!I$73 -> 0 | K166: =$F166*'Schedule 4.1'!J$73 -> 0 | L166: =$F166*'Schedule 4.1'!K$73 -> 0 | M166: =$F166*'Schedule 4.1'!L$73 -> 0 | N166: =$F166*'Schedule 4.1'!M$73 -> 0 | O166: =$F166*'Schedule 4.1'!N$73 -> 0 | P166: =$F166*'Schedule 4.1'!O$73 -> 0 | Q166: =$F166*'Schedule 4.1'!P$73 -> 0 | R166: =$F166*'Schedule 4.1'!Q$73 -> 0 | S166: =$F166*'Schedule 4.1'!R$73 -> 516551.0265 | T166: =$F166*'Schedule 4.1'!S$73 -> 0 | U166: =$F166*'Schedule 4.1'!T$73 -> 0 | V166: =$F166*'Schedule 4.1'!U$73 -> 0
C167: D11 | D167: 33 | E167: Street Lighting | F167: =DistnDetails!C53 -> 207811.1467 | G167: =$F167*'Schedule 4.1'!D$74 -> 0 | H167: =$F167*'Schedule 4.1'!E$74 -> 0 | I167: 0 | J167: =$F167*'Schedule 4.1'!I$74 -> 0 | K167: =$F167*'Schedule 4.1'!J$74 -> 0 | L167: =$F167*'Schedule 4.1'!K$74 -> 0 | M167: =$F167*'Schedule 4.1'!L$74 -> 0 | N167: =$F167*'Schedule 4.1'!M$74 -> 0 | O167: =$F167*'Schedule 4.1'!N$74 -> 0 | P167: =$F167*'Schedule 4.1'!O$74 -> 0 | Q167: =$F167*'Schedule 4.1'!P$74 -> 0 | R167: =$F167*'Schedule 4.1'!Q$74 -> 0 | S167: =$F167*'Schedule 4.1'!R$74 -> 0 | T167: =$F167*'Schedule 4.1'!S$74 -> 207811.1467 | U167: =$F167*'Schedule 4.1'!T$74 -> 0 | V167: =$F167*'Schedule 4.1'!U$74 -> 0
A168: =SUM(G168:V168)-F168 -> 0 | D168: 34 | E168: Subtotal Distribution | F168: =SUM(F158:F167) -> 7886015.679 | G168: =SUM(G158:G167) -> 0 | H168: =SUM(H158:H167) -> 0 | I168: =SUM(I158:I167) -> 0 | J168: =SUM(J158:J167) -> 0 | K168: 1291291.741 | L168: 3114238.258 | M168: 892196.2592 | N168: 275047.7124 | O168: 486857.3081 | P168: 456329.3136 | Q168: 528731.3013 | R168: 116961.6122 | S168: 516551.0265 | T168: 207811.1467 | U168: 0 | V168: 0
A169: =SUM(G169:V169)-F169 -> 0 | D169: 35 | E169: Subttl Prod, Trans, & Dist | F169: =SUM(F168,F156,F147) -> 85508469.92 | G169: 45084280.7 | H169: 14306573.79 | I169: 14956203.95 | J169: 1980651.935 | K169: 1672645.166 | L169: 3114238.258 | M169: 892196.2592 | N169: 275047.7124 | O169: 486857.3081 | P169: 456329.3136 | Q169: 528731.3013 | R169: 116961.6122 | S169: 516551.0265 | T169: 207811.1467 | U169: 0 | V169: 913390.4376
B170: =IF(OverheadAlloc="Expenses","E-GTDC","L-GTDC") -> E-GTDC | C170: =+SystemizedPlant!C135 -> SGPLT03 | D170: 36 | E170: General | F170: =+SystemizedPlant!E135 -> 11618932.13 | G170: =$F170*VLOOKUP($B170,RatiosIslInt,G$561,FALSE) -> 5450287.99 | H170: 1925616.426 | I170: 2369889.304 | J170: 329278.3697 | K170: 221506.6676 | L170: 417759.377 | M170: 113971.7938 | N170: 34836.25584 | O170: 61663.06782 | P170: 60356.32803 | Q170: 68494.47312 | R170: 20114.47714 | S170: 61615.48846 | T170: 17163.15045 | U170: 375104.7169 | V170: 91274.23945
C171: G06 | D171: 37 | E171: NLSO | F171: =IFERROR(VLOOKUP($C171,[5]!DEP,AllocDep!$E$13,FALSE),0)+IFERROR(VLOOKUP($C171&".1",[5]!DEP,AllocDep!$E$13,FALSE),0) -> 10962.52 | G171: =$F171*(G$169/SUM($G$169:$V$169)) -> 5779.980969 | H171: 1834.158669 | I171: 1917.443794 | J171: 253.9273182 | K171: 214.4396468 | L171: 399.2575147 | M171: 114.383047 | N171: 35.26219158 | O171: 62.41700948 | P171: 58.50320128 | Q171: 67.78541905 | R171: 14.99493576 | S171: 66.22386022 | T171: 26.64220111 | U171: 0 | V171: 117.1002235
C172: =+SDEPDetails!C75 -> SDEP8 | D172: 38 | E172: Telecontrol - Custmr & Spec | F172: =SUM(G172:V172) -> 0 | G172: 0 | H172: 0 | I172: 0 | J172: 0 | K172: 0 | L172: 0 | M172: 0 | N172: 0 | O172: 0 | P172: 0 | Q172: 0 | R172: 0 | S172: 0 | T172: 0 | U172: =+SDEPDetails!L75 -> 0 | V172: =+SDEPDetails!M75 -> 0
C173: =+SDEPDetails!C82 -> SDEP9 | D173: 39 | E173: Feasibility Studies | F173: =SUM(G173:V173) -> 0 | G173: =+SDEPDetails!E82 -> 0 | H173: 0 | I173: =+SDEPDetails!F82 -> 0 | J173: 0 | K173: =+SDEPDetails!K82 -> 0 | L173: 0 | M173: 0 | N173: 0 | O173: 0 | P173: 0 | Q173: 0 | R173: 0 | S173: 0 | T173: 0 | U173: 0 | V173: 0
D174: =MAX(D170:D173)+NoOne -> 40 | E174: GEC and AFUDC | F174: =IFERROR(VLOOKUP($C174,[5]!DEP,AllocDep!$E$13,FALSE),0)+IFERROR(VLOOKUP($C174&".1",[5]!DEP,AllocDep!$E$13,FALSE),0)+AllocDep!E71+AllocDep!E70 -> 383174.4836 | G174: =$F174*(G$169/SUM($G$169:$V$169)) -> 202028.4773 | H174: 64109.60261 | I174: 67020.67914 | J174: 8875.55681 | K174: 7495.338748 | L174: 13955.30335 | M174: 3998.046524 | N174: 1232.524278 | O174: 2181.670398 | P174: 2044.870517 | Q174: 2369.313164 | R174: 524.1200715 | S174: 2314.731781 | T174: 931.2285545 | U174: 0 | V174: 4093.020371
C175: =+SystemizedPlant!C89 -> SCS2_03 | D175: =MAX(D173:D174)+NoOne -> 41 | E175: Software - General | F175: =+SystemizedPlant!E89 -> 2990595.578 | G175: 1576789.418 | H175: 500361.8515 | I175: 523082.1864 | J175: 69271.8385 | K175: 58499.52926 | L175: 108918.1829 | M175: 31203.90518 | N175: 9619.590589 | O175: 17027.47475 | P175: 15959.78069 | Q175: 18491.98674 | R175: 4090.645999 | S175: 18065.99062 | T175: 7268.041366 | U175: 0 | V175: 31945.15592
A176: =SUM(G176:V176)-F176 -> 0 | D176: =MAX(D173:D175)+NoOne -> 42 | E176: Total Depreciation Expense | F176: =SUM(F169:F175) -> 100512134.6 | G176: =SUM(G169:G175) -> 52319166.56 | H176: 16798495.83 | I176: 17918113.57 | J176: 2388331.627 | K176: 1960361.141 | L176: 3655270.379 | M176: 1041484.388 | N176: 320771.3453 | O176: 567791.9381 | P176: 534748.796 | Q176: 618154.8598 | R176: 141705.8504 | S176: 598613.4612 | T176: 233200.2093 | U176: 375104.7169 | V176: 1040819.954
V181: Schedule G 2.6A | AI181: Schedule G 2.6A
V182: Page 1 of 2 | AI182: Page 2 of 2
D184: =D5 -> NEWFOUNDLAND AND LABRADOR HYDRO | AA184: NEWFOUNDLAND & LABRADOR HYDRO
D185: =D6 -> 2027 Test Year Cost of Service Study (No Rate Mitigation) | AA185: =RunName -> 2027 Test Year Cost of Service Study (No Rate Mitigation)
D186: =$B$1 -> Island Interconnected | AA186: =$B$1 -> Island Interconnected
D187: Functional Classification of Rate Base | AA187: =+D187&" (CONT'D.)" -> Functional Classification of Rate Base (CONT'D.)
E189: =MAX(D189)+NoOne -> 1 | F189: 2 | G189: 3 | H189: 4 | I189: 5 | J189: 6 | K189: 7 | L189: 8 | M189: 9 | N189: 10 | O189: 11 | P189: 12 | Q189: 13 | R189: 14 | S189: 15 | T189: 16 | U189: 17 | V189: 18 | AC189: =MAX(AB189)+NoOne -> 1 | AE189: =MAX(V189)+NoOne -> 19
J190: Rural Prod & | K190: Distribution | V190: Specifically
D191: Line | F191: Total | G191: Production | H191: Production | I191: Transmission | J191: Transmission | K191: Substations | L191: Primary Lines | N191: Line Transformers | P191: Secondary Lines | R191: Services | S191: Meters | T191: Street Lighting | U191: Accounting | V191: Assigned | AC191: Description | AE191: Basis of Functional Classification
D192: No. | E192: Description | F192: Amount | G192: Demand | H192: Energy | I192: Demand | J192: Demand | K192: Demand | L192: Demand | M192: Customer | N192: Demand | O192: Customer | P192: Demand | Q192: Customer | R192: Customer | S192: Customer | T192: Customer | U192: Customer | V192: Customer
F193: ($) | G193: ($) | H193: ($) | I193: ($) | J193: ($) | K193: ($) | L193: ($) | M193: ($) | N193: ($) | O193: ($) | P193: ($) | Q193: ($) | R193: ($) | S193: ($) | T193: ($) | U193: ($) | V193: ($) | AC193: =IF(ISBLANK(E193),"",E193) -> 
D195: =MAX(D192:D194)+NoOne -> 1 | E195: Average Net Book Value | F195: =SUM(G195:V195) -> 2102740030 | G195: =G116 -> 758094523.6 | H195: 476193156.4 | I195: 599698339.2 | J195: 54644492.26 | K195: 65092491.73 | L195: 57156656.03 | M195: 15716305.65 | N195: 5583684.183 | O195: 9883585.022 | P195: 7917691.35 | Q195: 9050377.538 | R195: 1967526.769 | S195: 7527362.246 | T195: 2350428.869 | U195: 3543748.531 | V195: 28319660.32 | AC195: Average Net Book Value | AE195: =+"Sch G 2.3 , L. "&D116 -> Sch G 2.3 , L. 42
A197: =F197-SUM(G197:V197) -> 0 | D197: =MAX(D194:D196)+NoOne -> 2 | E197: Cash Working Capital (Including Muskrat Falls) | F197: ='Rate Base'!E15+'Rate Base'!E16 -> 116490187.5 | G197: =IF(SUM($G$195:$V$195)<>0,$F197*(G$195/SUM($G$195:$V$195)),0) -> 41997856.11 | H197: 26380736.22 | I197: 33222828.78 | J197: 3027263.028 | K197: 3606074.198 | L197: 3166434.977 | M197: 870671.2985 | N197: 309331.8281 | O197: 547543.042 | P197: 438634.0379 | Q197: 501383.9854 | R197: 108999.4764 | S197: 417010.1044 | T197: 130211.9595 | U197: 196320.955 | V197: 1568887.496 | AC197: Cash Working Capital (Including Muskrat Falls) | AE197: Prorated on Average Net Book Value, L. 1
F198: 0 | G198: 0 | H198: 0 | I198: 0 | J198: 0 | K198: 0 | L198: 0 | M198: 0 | N198: 0 | O198: 0 | P198: 0 | Q198: 0 | R198: 0 | S198: 0 | T198: 0 | U198: 0 | V198: 0
D199: =MAX(D196:D198)+NoOne -> 3 | E199: Fuel Inventory - No. 6 Fuel | F199: ='Rate Base'!E17 -> 53963965.14 | G199: =$F199*(G287/$F287) -> 0 | H199: 53963965.14 | I199: 0 | J199: 0 | K199: 0 | L199: 0 | M199: 0 | N199: 0 | O199: 0 | P199: 0 | Q199: 0 | R199: 0 | S199: 0 | T199: 0 | U199: 0 | V199: 0 | AC199: =IF(ISBLANK(E199),"",E199) -> Fuel Inventory - No. 6 Fuel | AE199: =+"Production - Demand, Energy ratios Sch G 4.1 L."&'Schedule 4.1'!$A$24 -> Production - Demand, Energy ratios Sch G 4.1 L.10
A200: =F200-SUM(G200:V200) -> 0 | D200: =MAX(D197:D199)+NoOne -> 4 | E200: Fuel Inventory - Diesel | F200: ='Rate Base'!E18 -> 180545.7591 | G200: =$F200*(G288/$F288) -> 180545.7591 | H200: 0 | I200: 0 | J200: 0 | K200: 0 | L200: 0 | M200: 0 | N200: 0 | O200: 0 | P200: 0 | Q200: 0 | R200: 0 | S200: 0 | T200: 0 | U200: 0 | V200: 0 | AC200: Fuel Inventory - Diesel | AE200: =+"Production - Demand, Energy ratios Sch G 4.1 L."&'Schedule 4.1'!$A$26 -> Production - Demand, Energy ratios Sch G 4.1 L.12
D201: =MAX(D198:D200)+NoOne -> 5 | E201: Fuel Inventory - Gas Turbine | F201: ='Rate Base'!E19 -> 7763005.788 | G201: =$F201*(G289/$F289) -> 7763005.788 | H201: 0 | I201: 0 | J201: 0 | K201: 0 | L201: 0 | M201: 0 | N201: 0 | O201: 0 | P201: 0 | Q201: 0 | R201: 0 | S201: 0 | T201: 0 | U201: 0 | V201: 0 | AC201: Fuel Inventory - Gas Turbine | AE201: =+"Production - Demand, Energy ratios Sch G 4.1 L."&'Schedule 4.1'!$A$25 -> Production - Demand, Energy ratios Sch G 4.1 L.11
F202: 0 | G202: 0 | H202: 0 | I202: 0 | J202: 0 | K202: 0 | L202: 0 | M202: 0 | N202: 0 | O202: 0 | P202: 0 | Q202: 0 | R202: 0 | S202: 0 | T202: 0 | U202: 0 | V202: 0
A203: =F203-SUM(G203:V203) -> 0 | D203: =MAX(D200:D202)+NoOne -> 6 | E203: Inventory/Supplies | F203: ='Rate Base'!E20 -> 39481123.04 | G203: =IF(SUM($G$58:$V$58)<>0,$F203*(G$58/SUM($G$58:$V$58)),0) -> 15246674.19 | H203: 8016130.563 | I203: 9990618.916 | J203: 1500760.347 | K203: 785819.6475 | L203: 1566929.605 | M203: 427484.7861 | N203: 130663.6394 | O203: 231285.5003 | P203: 226384.1878 | Q203: 256908.6982 | R203: 75445.27175 | S203: 126406.9986 | T203: 64375.45163 | U203: 86270.65822 | V203: 748964.5806 | AC203: Inventory/Supplies | AE203: ="Prorated on Total Plant in Service, Sch G 2.2, L. "&$D$58 -> Prorated on Total Plant in Service, Sch G 2.2, L. 42
F204: 0 | G204: 0 | H204: 0 | I204: 0 | J204: 0 | K204: 0 | L204: 0 | M204: 0 | N204: 0 | O204: 0 | P204: 0 | Q204: 0 | R204: 0 | S204: 0 | T204: 0 | U204: 0 | V204: 0
A205: =F205-SUM(G205:V205) -> 0 | D205: =MAX(D202:D204)+NoOne -> 7 | E205: ='Rate Base'!C21 -> Deferred Charges: Muskrat Falls | F205: =+'Rate Base'!E21 -> 47774.5 | G205: =IF(SUM('Schedule 4.1'!$D$15:'Schedule 4.1'!$E$15)<>0,$F205*('Schedule 4.1'!D$15/SUM('Schedule 4.1'!$D$15:'Schedule 4.1'!$E$15)),0) -> 42442.8658 | H205: =IF(SUM('Schedule 4.1'!$D$15:'Schedule 4.1'!$E$15)<>0,$F205*('Schedule 4.1'!E$15/SUM('Schedule 4.1'!$D$15:'Schedule 4.1'!$E$15)),0) -> 5331.6342 | I205: 0 | J205: 0 | K205: 0 | L205: 0 | M205: 0 | N205: 0 | O205: 0 | P205: 0 | Q205: 0 | R205: 0 | S205: 0 | T205: 0 | U205: 0 | V205: 0 | AC205: Deferred Charges: Muskrat Falls | AE205: =+"Production - Demand, Energy ratios Sch G 4.1 L."&'Schedule 4.1'!$A$15 -> Production - Demand, Energy ratios Sch G 4.1 L.3
A206: =F206-SUM(G206:V206) -> 0 | D206: =MAX(D203:D205)+NoOne -> 8 | E206: Deferred Charges: Foreign Exchange Loss and Regulatory Costs | F206: =+'Rate Base'!E22 -> 101068768.1 | G206: =IF(SUM($G$195:$V$195)<>0,$F206*(G$195/SUM($G$195:$V$195)),0) -> 36438018.27 | H206: 22888352.82 | I206: 28824662.83 | J206: 2626502.296 | K206: 3128688.216 | L206: 2747250.127 | M206: 755408.4808 | N206: 268381.2901 | O206: 475057.1866 | P206: 380565.9757 | Q206: 435008.8436 | R206: 94569.70617 | S206: 361804.7017 | T206: 112973.9991 | U206: 170331.2314 | V206: 1361192.131 | AC206: Deferred Charges: Foreign Exchange Loss and Regulatory Costs | AE206: Prorated on Average Net Book Value, L. 1
D207: =MAX(D204:D206)+NoOne -> 9 | E207: Retired Asset Pool | F207: ='Rate Base'!E23 -> 28866723.83 | G207: 10407232.92 | H207: 6537249.561 | I207: 8232746.842 | J207: 750167.6121 | K207: 893599.2827 | L207: 784654.9652 | M207: 215755.7513 | N207: 76653.63621 | O207: 135683.3062 | P207: 108695.2292 | Q207: 124244.9115 | R207: 27010.49634 | S207: 103336.734 | T207: 32267.03258 | U207: 48649.1001 | V207: 388776.4545 | AC207: =IF(ISBLANK(E207),"",E207) -> Retired Asset Pool | AE207: Prorated on Average Net Book Value, L. 1
A208: =SUM(F195:F207)-F208 -> 0 | D208: =MAX(D206:D207)+NoOne -> 10 | E208: Total Rate Base | F208: =SUM(G208:V208) -> 2450602123 | G208: =SUM(G195:G207) -> 870170299.5 | H208: =SUM(H195:H207) -> 593984922.3 | I208: 679969196.5 | J208: 62549185.54 | K208: 73506673.07 | L208: 65421925.71 | M208: 17985625.97 | N208: 6368714.577 | O208: 11273154.06 | P208: 9071970.78 | Q208: 10367923.98 | R208: 2273551.72 | S208: 8535920.785 | T208: 2690257.312 | U208: 4045320.476 | V208: 32387480.98 | AC208: Total Rate Base
D210: =MAX(D207:D209)+NoOne -> 11 | E210: Less: Rural Asset Portion | F210: =SUM(G210:V210) -> 0 | G210: 0 | H210: 0 | I210: 0 | J210: =IF(RuralMarginSwitch=1,-J208,0) -> 0 | K210: =IF(RuralMarginSwitch=1,-K208,0) -> 0 | L210: 0 | M210: 0 | N210: 0 | O210: 0 | P210: 0 | Q210: 0 | R210: 0 | S210: 0 | T210: 0 | U210: 0 | V210: =V208*V378 -> 0 | AC210: Less: Rural Asset Portion | AE210: =IF(RuralMarginSwitch=1,"Rural Transmission and Distribution Rate Base","N/A") -> N/A
A212: =F208+F210-F212 -> 0 | D212: =MAX(D209:D211)+NoOne -> 12 | E212: Rate Base Available for Equity Return | F212: =SUM(G212:V212) -> 2450602123 | G212: =SUM(G208,G210) -> 870170299.5 | H212: =SUM(H208,H210) -> 593984922.3 | I212: =SUM(I208,I210) -> 679969196.5 | J212: =SUM(J208,J210) -> 62549185.54 | K212: 73506673.07 | L212: 65421925.71 | M212: 17985625.97 | N212: 6368714.577 | O212: 11273154.06 | P212: 9071970.78 | Q212: 10367923.98 | R212: 2273551.72 | S212: 8535920.785 | T212: 2690257.312 | U212: 4045320.476 | V212: 32387480.98 | AC212: Rate Base Available for Equity Return
A214: =(F$208*'Rate Base'!E43)-F214 -> 0 | D214: =MAX(D211:D213)+NoOne -> 13 | E214: Return on Debt | F214: =SUM(G214:V214) -> 73763123.91 | G214: ='Rate Base'!$E$43*G208 -> 26192126.01 | H214: ='Rate Base'!$E$43*H208 -> 17878946.16 | I214: ='Rate Base'!$E$43*I208 -> 20467072.82 | J214: ='Rate Base'!$E$43*J208 -> 1882730.485 | K214: ='Rate Base'!$E$43*K208 -> 2212550.859 | L214: ='Rate Base'!$E$43*L208 -> 1969199.964 | M214: ='Rate Base'!$E$43*M208 -> 541367.3416 | N214: ='Rate Base'!$E$43*N208 -> 191698.3088 | O214: ='Rate Base'!$E$43*O208 -> 339321.9371 | P214: ='Rate Base'!$E$43*P208 -> 273066.3205 | Q214: ='Rate Base'!$E$43*Q208 -> 312074.5117 | R214: ='Rate Base'!$E$43*R208 -> 68433.90676 | S214: ='Rate Base'!$E$43*S208 -> 256931.2156 | T214: ='Rate Base'!$E$43*T208 -> 80976.74509 | U214: ='Rate Base'!$E$43*U208 -> 121764.1463 | V214: ='Rate Base'!$E$43*V208 -> 974863.1775 | AC214: Return on Debt | AE214: =+"L."&D208&" x Sch G 1.1,p2,L."&'Rate Base'!$B$34 -> L.10 x Sch G 1.1,p2,L.16
A216: =(F$212*'Rate Base'!E44)-F216 -> 0 | D216: =MAX(D213:D215)+NoOne -> 14 | E216: Return on Equity | F216: =SUM(G216:V216) -> 45826259.71 | G216: ='Rate Base'!$E$44*G212 -> 16272184.6 | H216: ='Rate Base'!$E$44*H212 -> 11107518.05 | I216: ='Rate Base'!$E$44*I212 -> 12715423.97 | J216: ='Rate Base'!$E$44*J212 -> 1169669.77 | K216: ='Rate Base'!$E$44*K212 -> 1374574.786 | L216: ='Rate Base'!$E$44*L212 -> 1223390.011 | M216: ='Rate Base'!$E$44*M212 -> 336331.2056 | N216: ='Rate Base'!$E$44*N212 -> 119094.9626 | O216: ='Rate Base'!$E$44*O212 -> 210807.9809 | P216: ='Rate Base'!$E$44*P212 -> 169645.8536 | Q216: ='Rate Base'!$E$44*Q212 -> 193880.1784 | R216: ='Rate Base'!$E$44*R212 -> 42515.41716 | S216: ='Rate Base'!$E$44*S212 -> 159621.7187 | T216: ='Rate Base'!$E$44*T212 -> 50307.81173 | U216: ='Rate Base'!$E$44*U212 -> 75647.4929 | V216: ='Rate Base'!$E$44*V212 -> 605645.8943 | AC216: Return on Equity | AE216: =+"L."&D212&" x Sch G 1.1,p2,L."&'Rate Base'!$B$38 -> L.12 x Sch G 1.1,p2,L.19
A218: =SUM(F214:F216)-F218 -> 0 | D218: =MAX(D215:D217)+NoOne -> 15 | E218: Return on Rate Base | F218: =SUM(G218:V218) -> 119589383.6 | G218: =SUM(G214:G216) -> 42464310.62 | H218: =SUM(H214:H216) -> 28986464.21 | I218: =SUM(I214:I216) -> 33182496.79 | J218: =SUM(J214:J216) -> 3052400.254 | K218: 3587125.646 | L218: 3192589.975 | M218: 877698.5472 | N218: 310793.2714 | O218: 550129.918 | P218: 442712.1741 | Q218: 505954.6901 | R218: 110949.3239 | S218: 416552.9343 | T218: 131284.5568 | U218: 197411.6392 | V218: 1580509.072 | AC218: Return on Rate Base
V220: Schedule G 2.4A | AI220: Schedule G 2.4A
... 342 more rows

Sheet LabIntCos
A1: 99 | B1: Labrador Interconnected
A2: 19 | B2: Plant Lookups
U3: Schedule G 2.2E | AF3: Schedule G 2.2E
U4: Page 1 of 2 | AF4: Page 2 of 2
D6: NEWFOUNDLAND AND LABRADOR HYDRO | Y6: NEWFOUNDLAND & LABRADOR HYDRO
D7: =RunName -> 2027 Test Year Cost of Service Study (No Rate Mitigation) | Y7: =RunName -> 2027 Test Year Cost of Service Study (No Rate Mitigation)
D8: =$B$1 -> Labrador Interconnected | Y8: =$B$1 -> Labrador Interconnected
D9: Functional Classification of Plant in Service for the Allocation of O&M Expense | Y9: =+D9&" (CONT'D.)" -> Functional Classification of Plant in Service for the Allocation of O&M Expense (CONT'D.)
E11: =MAX(D11)+NoOne -> 1 | F11: 2 | G11: 3 | H11: 4 | I11: 5 | J11: 6 | K11: 7 | L11: 8 | M11: 9 | N11: 10 | O11: 11 | P11: 12 | Q11: 13 | R11: 14 | S11: 15 | T11: 16 | U11: 17
J12: Distribution | U12: Specifically | AA12: =MAX(Z12)+NoOne -> 1 | AC12: =MAX(U11)+NoOne -> 18
A13: Check | B13: Alloc | C13: Code | D13: Line | F13: Total | G13: Production | H13: Production | I13: Transmission | J13: Substations | K13: Primary Lines | M13: Line Transformers | O13: Secondary Lines | Q13: Services | R13: Meters | S13: Street Lighting | T13: Accounting | U13: Assigned
A14: Column | B14: Factor | C14: Reference | D14: No. | E14: Description | F14: Amount | G14: Demand | H14: Energy | I14: Demand | J14: Demand | K14: Demand | L14: Customer | M14: Demand | N14: Customer | O14: Demand | P14: Customer | Q14: Customer | R14: Customer | S14: Customer | T14: Customer | U14: Customer | AA14: Description | AB14: Basis of Functional Classification
A15: =ROUND(SUM(A16:A567),2) -> 0 | F15: ($) | G15: ($) | H15: ($) | I15: ($) | J15: ($) | K15: ($) | L15: ($) | M15: ($) | N15: ($) | O15: ($) | P15: ($) | Q15: ($) | R15: ($) | S15: ($) | T15: ($) | U15: ($)
E17: Production | AA17: =IF(ISBLANK(E17),"",E17) -> Production
AA18: =IF(ISBLANK(E18),"",E18) -> 
C19: P04 | D19: =MAX(D16:D18)+NoOne -> 1 | E19: Gas Turbines | F19: =IFERROR(VLOOKUP($C19,[5]!HistCostAvg,AllocDep!$K$13,FALSE),0)+IFERROR(VLOOKUP($C19&".1",[5]!HistCostAvg,AllocDep!$K$13,FALSE),0) -> 28768434.5 | G19: =$F19*'Schedule 4.1'!D$21 -> 28768434.5 | H19: =$F19*'Schedule 4.1'!E$21 -> 0 | I19: =$F19*'Schedule 4.1'!G$16 -> 0 | J19: =$F19*'Schedule 4.1'!J$16 -> 0 | K19: =$F19*'Schedule 4.1'!K$16 -> 0 | L19: =$F19*'Schedule 4.1'!L$16 -> 0 | M19: =$F19*'Schedule 4.1'!M$16 -> 0 | N19: =$F19*'Schedule 4.1'!N$16 -> 0 | O19: =$F19*'Schedule 4.1'!O$16 -> 0 | P19: =$F19*'Schedule 4.1'!P$16 -> 0 | Q19: =$F19*'Schedule 4.1'!Q$16 -> 0 | R19: =$F19*'Schedule 4.1'!R$16 -> 0 | S19: =$F19*'Schedule 4.1'!S$16 -> 0 | T19: =$F19*'Schedule 4.1'!T$16 -> 0 | U19: =$F19*'Schedule 4.1'!U$16 -> 0 | AA19: Gas Turbines | AB19: ="Production - Demand, Energy ratios Sch G 4.1 L."&'Schedule 4.1'!$A$21 -> Production - Demand, Energy ratios Sch G 4.1 L.9
C20: P03 | D20: =MAX(D17:D19)+NoOne -> 2 | E20: Diesel | F20: =IFERROR(VLOOKUP($C20,[5]!HistCostAvg,AllocDep!$K$13,FALSE),0) -> 3370354.99 | G20: =$F20*'Schedule 4.1'!$D$21 -> 3370354.99 | H20: =$F20*'Schedule 4.1'!$E$21 -> 0 | I20: 0 | J20: 0 | K20: 0 | L20: 0 | M20: 0 | N20: 0 | O20: 0 | P20: 0 | Q20: 0 | R20: 0 | S20: 0 | T20: 0 | U20: 0 | AA20: Diesel | AB20: ="Production - Demand, Energy ratios Sch G 4.1 L."&'Schedule 4.1'!$A$21 -> Production - Demand, Energy ratios Sch G 4.1 L.9
A21: =SUM(G21:U21)-F21 -> 0 | D21: =MAX(D18:D20)+NoOne -> 3 | E21: Subtotal Production | F21: =SUM(F19:F20) -> 32138789.49 | G21: =SUM(G19:G20) -> 32138789.49 | H21: =SUM(H19:H20) -> 0 | I21: 0 | J21: 0 | K21: 0 | L21: 0 | M21: 0 | N21: 0 | O21: 0 | P21: 0 | Q21: 0 | R21: 0 | S21: 0 | T21: 0 | U21: 0 | AA21: Subtotal Production
E23: Transmission | AA23: Transmission
C24: =+SPLTDetails!C$141 -> SPLT16 | D24: =MAX(D21:D23)+NoOne -> 4 | E24: Lines | F24: =SUM(G24:U24) -> 4560341.215 | G24: 0 | H24: =+SPLTDetails!G141*'Schedule 4.1'!E32 -> 0 | I24: =SPLTDetails!I141*'Schedule 4.1'!G32 -> 4560341.215 | J24: =SPLTDetails!J141*'Schedule 4.1'!H32 -> 0 | K24: =+SPLTDetails!K141 -> 0 | L24: 0 | M24: 0 | N24: 0 | O24: 0 | P24: 0 | Q24: 0 | R24: 0 | S24: 0 | T24: 0 | U24: =+SPLTDetails!M141 -> 0 | AA24: Lines | AB24: Production, Transmission - Demand; Distribution - Primary Demand; Spec Assigned - Custmr
C25: =+SPLTDetails!C$158 -> SPLT17 | D25: =MAX(D22:D24)+NoOne -> 5 | E25: Terminal Stations | F25: =SUM(G25:U25) -> 94319119.58 | G25: 0 | H25: =+SPLTDetails!G158*'Schedule 4.1'!E36 -> 0 | I25: =SPLTDetails!G158*'Schedule 4.1'!G36 -> 71206182.24 | J25: =SPLTDetails!K158 -> 20082083.71 | K25: 0 | L25: 0 | M25: 0 | N25: 0 | O25: 0 | P25: 0 | Q25: 0 | R25: 0 | S25: 0 | T25: 0 | U25: =SPLTDetails!M158 -> 3030853.63 | AA25: Terminal Stations | AB25: Production, Transmission - Demand; Spec Assigned - Custmr
A26: =SUM(G26:U26)-F26 -> 0 | D26: =MAX(D23:D25)+NoOne -> 6 | E26: Subtotal Transmission | F26: =SUM(F24:F25) -> 98879460.79 | G26: =SUM(G24:G25) -> 0 | H26: 0 | I26: 75766523.46 | J26: 20082083.71 | K26: 0 | L26: 0 | M26: 0 | N26: 0 | O26: 0 | P26: 0 | Q26: 0 | R26: 0 | S26: 0 | T26: 0 | U26: 3030853.63 | AA26: Subtotal Transmission
E28: Distribution | AA28: Distribution
C29: =+SPLTDetails!C$164 -> SPLT18 | D29: =MAX(D26:D28)+NoOne -> 7 | E29: Substations | F29: =SUM(G29:U29) -> 12569786.83 | G29: =+SPLTDetails!E164 -> 0 | H29: 0 | I29: 0 | J29: =SPLTDetails!K164 -> 12569786.83 | K29: 0 | L29: 0 | M29: 0 | N29: 0 | O29: 0 | P29: 0 | Q29: 0 | R29: 0 | S29: 0 | T29: 0 | U29: 0 | AA29: Substations | AB29: Production - Demand; Dist Substns - Demand
C30: D11 | D30: 8 | E30: Land & Land Improvements | F30: =DistnDetails!G13+DistnDetails!G22 -> 1261995.46 | G30: =$F30*'Schedule 4.1'!D$62 -> 0 | H30: =$F30*'Schedule 4.1'!E$62 -> 0 | I30: =$F30*'Schedule 4.1'!G$62 -> 0 | J30: =$F30*'Schedule 4.1'!J$62 -> 0 | K30: =$F30*'Schedule 4.1'!K$62 -> 951481.4771 | L30: =$F30*'Schedule 4.1'!L$62 -> 121214.6639 | M30: =$F30*'Schedule 4.1'!M$62 -> 0 | N30: =$F30*'Schedule 4.1'!N$62 -> 0 | O30: =$F30*'Schedule 4.1'!O$62 -> 110361.503 | P30: =$F30*'Schedule 4.1'!P$62 -> 78937.81602 | Q30: =$F30*'Schedule 4.1'!Q$62 -> 0 | R30: =$F30*'Schedule 4.1'!R$62 -> 0 | S30: =$F30*'Schedule 4.1'!S$62 -> 0 | T30: =$F30*'Schedule 4.1'!T$62 -> 0 | U30: =$F30*'Schedule 4.1'!U$62 -> 0 | AA30: Land & Land Improvements | AB30: ="Primary, Secondary - Demand, Customer - zero intercept ratios Sch G 4.1 L."&'Schedule 4.1'!$A$62 -> Primary, Secondary - Demand, Customer - zero intercept ratios Sch G 4.1 L.32
C31: D11 | D31: 9 | E31: Poles | F31: =DistnDetails!G14+DistnDetails!G16 -> 43568475.3 | G31: =$F31*'Schedule 4.1'!D$67 -> 0 | H31: =$F31*'Schedule 4.1'!E$67 -> 0 | I31: =$F31*'Schedule 4.1'!G$67 -> 0 | J31: =$F31*'Schedule 4.1'!J$67 -> 0 | K31: =$F31*'Schedule 4.1'!K$67 -> 25197740.55 | L31: =$F31*'Schedule 4.1'!L$67 -> 8611396.281 | M31: =$F31*'Schedule 4.1'!M$67 -> 0 | N31: =$F31*'Schedule 4.1'!N$67 -> 0 | O31: =$F31*'Schedule 4.1'!O$67 -> 4460017.68 | P31: =$F31*'Schedule 4.1'!P$67 -> 5299320.788 | Q31: =$F31*'Schedule 4.1'!Q$67 -> 0 | R31: =$F31*'Schedule 4.1'!R$67 -> 0 | S31: =$F31*'Schedule 4.1'!S$67 -> 0 | T31: =$F31*'Schedule 4.1'!T$67 -> 0 | U31: =$F31*'Schedule 4.1'!U$67 -> 0 | AA31: Poles | AB31: ="Primary, Secondary - Demand, Customer - zero intercept ratios Sch G 4.1 L."&'Schedule 4.1'!$A$67 -> Primary, Secondary - Demand, Customer - zero intercept ratios Sch G 4.1 L.37
C32: D11 | D32: 10 | E32: Primary Conductor & Eqpt | F32: =DistnDetails!G17 -> 7376347.59 | G32: =$F32*'Schedule 4.1'!D$68 -> 0 | H32: =$F32*'Schedule 4.1'!E$68 -> 0 | I32: =$F32*'Schedule 4.1'!G$68 -> 0 | J32: =$F32*'Schedule 4.1'!J$68 -> 0 | K32: =$F32*'Schedule 4.1'!K$68 -> 6542820.312 | L32: =$F32*'Schedule 4.1'!L$68 -> 833527.2777 | M32: =$F32*'Schedule 4.1'!M$68 -> 0 | N32: =$F32*'Schedule 4.1'!N$68 -> 0 | O32: =$F32*'Schedule 4.1'!O$68 -> 0 | P32: =$F32*'Schedule 4.1'!P$68 -> 0 | Q32: =$F32*'Schedule 4.1'!Q$68 -> 0 | R32: =$F32*'Schedule 4.1'!R$68 -> 0 | S32: =$F32*'Schedule 4.1'!S$68 -> 0 | T32: =$F32*'Schedule 4.1'!T$68 -> 0 | U32: =$F32*'Schedule 4.1'!U$68 -> 0 | AA32: Primary Conductor & Eqpt | AB32: ="Primary - Demand, Customer - zero intercept ratios Sch G 4.1 L."&'Schedule 4.1'!$A$68 -> Primary - Demand, Customer - zero intercept ratios Sch G 4.1 L.38
C33: D05 | D33: 11 | E33: Submarine Conductor | F33: =IFERROR(VLOOKUP($C33,[5]!HistCostAvg,AllocDep!$K$13,FALSE),0) -> 620107.91 | G33: =$F33*'Schedule 4.1'!D$69 -> 0 | H33: =$F33*'Schedule 4.1'!E$69 -> 0 | I33: =$F33*'Schedule 4.1'!G$69 -> 0 | J33: =$F33*'Schedule 4.1'!J$69 -> 0 | K33: =$F33*'Schedule 4.1'!K$69 -> 620107.91 | L33: =$F33*'Schedule 4.1'!L$69 -> 0 | M33: =$F33*'Schedule 4.1'!M$69 -> 0 | N33: =$F33*'Schedule 4.1'!N$69 -> 0 | O33: =$F33*'Schedule 4.1'!O$69 -> 0 | P33: =$F33*'Schedule 4.1'!P$69 -> 0 | Q33: =$F33*'Schedule 4.1'!Q$69 -> 0 | R33: =$F33*'Schedule 4.1'!R$69 -> 0 | S33: =$F33*'Schedule 4.1'!S$69 -> 0 | T33: =$F33*'Schedule 4.1'!T$69 -> 0 | U33: =$F33*'Schedule 4.1'!U$69 -> 0 | AA33: Submarine Conductor | AB33: ="Primary - Demand, Customer - zero intercept ratios Sch G 4.1 L."&'Schedule 4.1'!$A$69 -> Primary - Demand, Customer - zero intercept ratios Sch G 4.1 L.39
C34: D11 | D34: 12 | E34: Transformers | F34: =DistnDetails!G18 -> 20778264.49 | G34: =$F34*'Schedule 4.1'!D$70 -> 0 | H34: =$F34*'Schedule 4.1'!E$70 -> 0 | I34: =$F34*'Schedule 4.1'!G$70 -> 0 | J34: =$F34*'Schedule 4.1'!J$70 -> 0 | K34: =$F34*'Schedule 4.1'!K$70 -> 0 | L34: =$F34*'Schedule 4.1'!L$70 -> 0 | M34: =$F34*'Schedule 4.1'!M$70 -> 7500953.482 | N34: =$F34*'Schedule 4.1'!N$70 -> 13277311.01 | O34: =$F34*'Schedule 4.1'!O$70 -> 0 | P34: =$F34*'Schedule 4.1'!P$70 -> 0 | Q34: =$F34*'Schedule 4.1'!Q$70 -> 0 | R34: =$F34*'Schedule 4.1'!R$70 -> 0 | S34: =$F34*'Schedule 4.1'!S$70 -> 0 | T34: =$F34*'Schedule 4.1'!T$70 -> 0 | U34: =$F34*'Schedule 4.1'!U$70 -> 0 | AA34: Transformers | AB34: =+"Transformers - Demand, Customer - zero intercept ratios Sch G 4.1 L."&'Schedule 4.1'!$A$70 -> Transformers - Demand, Customer - zero intercept ratios Sch G 4.1 L.40
C35: D11 | D35: 13 | E35: Secondary Conductor&Eqpt | F35: =DistnDetails!G19 -> 1215204.8 | G35: =$F35*'Schedule 4.1'!D$71 -> 0 | H35: =$F35*'Schedule 4.1'!E$71 -> 0 | I35: =$F35*'Schedule 4.1'!G$71 -> 0 | J35: =$F35*'Schedule 4.1'!J$71 -> 0 | K35: =$F35*'Schedule 4.1'!K$71 -> 0 | L35: =$F35*'Schedule 4.1'!L$71 -> 0 | M35: =$F35*'Schedule 4.1'!M$71 -> 0 | N35: =$F35*'Schedule 4.1'!N$71 -> 0 | O35: =$F35*'Schedule 4.1'!O$71 -> 708464.3984 | P35: =$F35*'Schedule 4.1'!P$71 -> 506740.4016 | Q35: =$F35*'Schedule 4.1'!Q$71 -> 0 | R35: =$F35*'Schedule 4.1'!R$71 -> 0 | S35: =$F35*'Schedule 4.1'!S$71 -> 0 | T35: =$F35*'Schedule 4.1'!T$71 -> 0 | U35: =$F35*'Schedule 4.1'!U$71 -> 0 | AA35: Secondary Conductor&Eqpt | AB35: ="Secondary - Demand, Customer - zero intercept ratios Sch G 4.1 L."&'Schedule 4.1'!$A$71 -> Secondary - Demand, Customer - zero intercept ratios Sch G 4.1 L.41
C36: D11 | D36: 14 | E36: Services | F36: =DistnDetails!G20 -> 2020790.45 | G36: =$F36*'Schedule 4.1'!D$72 -> 0 | H36: =$F36*'Schedule 4.1'!E$72 -> 0 | I36: =$F36*'Schedule 4.1'!G$72 -> 0 | J36: =$F36*'Schedule 4.1'!J$72 -> 0 | K36: =$F36*'Schedule 4.1'!K$72 -> 0 | L36: =$F36*'Schedule 4.1'!L$72 -> 0 | M36: =$F36*'Schedule 4.1'!M$72 -> 0 | N36: =$F36*'Schedule 4.1'!N$72 -> 0 | O36: =$F36*'Schedule 4.1'!O$72 -> 0 | P36: =$F36*'Schedule 4.1'!P$72 -> 0 | Q36: =$F36*'Schedule 4.1'!Q$72 -> 2020790.45 | R36: =$F36*'Schedule 4.1'!R$72 -> 0 | S36: =$F36*'Schedule 4.1'!S$72 -> 0 | T36: =$F36*'Schedule 4.1'!T$72 -> 0 | U36: =$F36*'Schedule 4.1'!U$72 -> 0 | AA36: Services | AB36: Services Customer
C37: =+SystemizedPlant!C$21 -> SMET01 | D37: 15 | E37: Meters | F37: =SUM((IF(VLOOKUP($C37,AllocatedMeters,9,FALSE)="",0,VLOOKUP($C37,AllocatedMeters,9,FALSE)))) -> 4544441.767 | G37: =$F37*'Schedule 4.1'!D$73 -> 0 | H37: =$F37*'Schedule 4.1'!E$73 -> 0 | I37: =$F37*'Schedule 4.1'!G$73 -> 0 | J37: =$F37*'Schedule 4.1'!J$73 -> 0 | K37: =$F37*'Schedule 4.1'!K$73 -> 0 | L37: =$F37*'Schedule 4.1'!L$73 -> 0 | M37: =$F37*'Schedule 4.1'!M$73 -> 0 | N37: =$F37*'Schedule 4.1'!N$73 -> 0 | O37: =$F37*'Schedule 4.1'!O$73 -> 0 | P37: =$F37*'Schedule 4.1'!P$73 -> 0 | Q37: =$F37*'Schedule 4.1'!Q$73 -> 0 | R37: =$F37*'Schedule 4.1'!R$73 -> 4544441.767 | S37: =$F37*'Schedule 4.1'!S$73 -> 0 | T37: =$F37*'Schedule 4.1'!T$73 -> 0 | U37: =$F37*'Schedule 4.1'!U$73 -> 0 | AA37: Meters | AB37: Meters - Customer
C38: D11 | D38: 16 | E38: Street Lighting | F38: =DistnDetails!G21 -> 2215553.309 | G38: =$F38*'Schedule 4.1'!D$74 -> 0 | H38: =$F38*'Schedule 4.1'!E$74 -> 0 | I38: =$F38*'Schedule 4.1'!G$74 -> 0 | J38: =$F38*'Schedule 4.1'!J$74 -> 0 | K38: =$F38*'Schedule 4.1'!K$74 -> 0 | L38: =$F38*'Schedule 4.1'!L$74 -> 0 | M38: =$F38*'Schedule 4.1'!M$74 -> 0 | N38: =$F38*'Schedule 4.1'!N$74 -> 0 | O38: =$F38*'Schedule 4.1'!O$74 -> 0 | P38: =$F38*'Schedule 4.1'!P$74 -> 0 | Q38: =$F38*'Schedule 4.1'!Q$74 -> 0 | R38: =$F38*'Schedule 4.1'!R$74 -> 0 | S38: =$F38*'Schedule 4.1'!S$74 -> 2215553.309 | T38: =$F38*'Schedule 4.1'!T$74 -> 0 | U38: =$F38*'Schedule 4.1'!U$74 -> 0 | AA38: Street Lighting | AB38: Street Lighting - Customer
A39: =SUM(G39:U39)-F39 -> 0 | D39: 17 | E39: Subtotal Distribution | F39: =SUM(F29:F38) -> 96170967.91 | G39: =SUM(G29:G38) -> 0 | H39: 0 | I39: 0 | J39: 12569786.83 | K39: 33312150.25 | L39: 9566138.222 | M39: 7500953.482 | N39: 13277311.01 | O39: 5278843.581 | P39: 5884999.006 | Q39: 2020790.45 | R39: 4544441.767 | S39: 2215553.309 | T39: 0 | U39: 0 | AA39: Subtotal Distribution
A41: =SUM(G41:U41)-F41 -> 0 | D41: =MAX(D38:D40)+NoOne -> 18 | E41: Subttl Prod, Trans, & Dist | F41: =SUM(F39,F26,F21) -> 227189218.2 | G41: =SUM(G39,G26,G21) -> 32138789.49 | H41: 0 | I41: 75766523.46 | J41: 32651870.53 | K41: 33312150.25 | L41: 9566138.222 | M41: 7500953.482 | N41: 13277311.01 | O41: 5278843.581 | P41: 5884999.006 | Q41: 2020790.45 | R41: 4544441.767 | S41: 2215553.309 | T41: 0 | U41: 3030853.63 | AA41: Subttl Prod, Trans, & Dist
B43: =IF(OverheadAlloc="Expenses","E-GTDC","L-GTDC") -> E-GTDC | C43: =+SystemizedPlant!C114 -> SGPLT01 | D43: =MAX(D40:D42)+NoOne -> 19 | E43: General | F43: =SystemizedPlant!K114 -> 25144749.5 | G43: =$F43*VLOOKUP($B43,RatiosLabInt,G$530,FALSE) -> 1664748.774 | H43: 0 | I43: 10311823.04 | J43: 1291112.577 | K43: 2838803.991 | L43: 815209.8006 | M43: 639218.3188 | N43: 1131469.545 | O43: 449853.9456 | P43: 501509.4654 | Q43: 172208.2769 | R43: 606044.4844 | S43: 188805.6318 | T43: 4424635.217 | U43: 109306.4285 | AA43: General | AB43: =+"Prorated on Subtotal Production, Transmission, Distribution, Accounting Expenses - Sch G 2.4 L."&$D$223&", "&$D$225 -> Prorated on Subtotal Production, Transmission, Distribution, Accounting Expenses - Sch G 2.4 L.11, 12
D44: =MAX(D41:D43)+NoOne -> 20 | E44: Telecontrol - Specific | F44: 0 | G44: =$F44*'Schedule 4.1'!D$35 -> 0 | H44: =$F44*'Schedule 4.1'!E$35 -> 0 | I44: =$F44*'Schedule 4.1'!G$35 -> 0 | J44: =$F44*'Schedule 4.1'!J$35 -> 0 | K44: =$F44*'Schedule 4.1'!K$35 -> 0 | L44: =$F44*'Schedule 4.1'!L$35 -> 0 | M44: =$F44*'Schedule 4.1'!M$35 -> 0 | N44: =$F44*'Schedule 4.1'!N$35 -> 0 | O44: =$F44*'Schedule 4.1'!O$35 -> 0 | P44: =$F44*'Schedule 4.1'!P$35 -> 0 | Q44: =$F44*'Schedule 4.1'!Q$35 -> 0 | R44: =$F44*'Schedule 4.1'!R$35 -> 0 | S44: =$F44*'Schedule 4.1'!S$35 -> 0 | T44: =$F44*'Schedule 4.1'!T$35 -> 0 | U44: =$F44*'Schedule 4.1'!U$35 -> 0 | AA44: Telecontrol - Specific | AB44: Specifically Assigned - Customer
C45: =+SPLTDetails!C$171 -> SPLT19 | D45: =MAX(D42:D44)+NoOne -> 21 | E45: Feasibility Studies | F45: =SUM(G45:U45) -> 0 | G45: =+SPLTDetails!E171 -> 0 | H45: 0 | I45: =+SPLTDetails!G171 -> 0 | J45: =+SPLTDetails!K171 -> 0 | K45: 0 | L45: 0 | M45: 0 | N45: 0 | O45: 0 | P45: 0 | Q45: 0 | R45: 0 | S45: 0 | T45: 0 | U45: 0 | AA45: Feasibility Studies | AB45: Production, Transmission - Demand
C46: =+SystemizedPlant!C77 -> SCS2_01 | D46: =MAX(D43:D45)+NoOne -> 22 | E46: Software - General | F46: =SystemizedPlant!K77 -> 987133.8491 | G46: =$F46*G$41/SUM($G$41:$U$41) -> 139642.5729 | H46: 0 | I46: 329204.4426 | J46: 141871.9026 | K46: 144740.8084 | L46: 41564.73146 | M46: 32591.5338 | N46: 57689.72326 | O46: 22936.49859 | P46: 25570.2351 | Q46: 8780.305118 | R46: 19745.53339 | S46: 9626.546908 | T46: 0 | U46: 13169.01495 | AA46: Software - General | AB46: =+"Prorated on subtotal Production, Transmission, & Distribution plant - L."&$D$41 -> Prorated on subtotal Production, Transmission, & Distribution plant - L.18
C47: =+SystemizedPlant!C62 -> SCS1_01 | D47: =MAX(D44:D46)+NoOne -> 23 | E47: Software - Cust Acctng | F47: =SUM(G47:U47) -> 0 | G47: 0 | H47: 0 | I47: 0 | J47: 0 | K47: 0 | L47: 0 | M47: 0 | N47: 0 | O47: 0 | P47: 0 | Q47: 0 | R47: 0 | S47: 0 | T47: =+SystemizedPlant!K62 -> 0 | U47: 0 | AA47: Software - Cust Acctng
A49: =SUM(G49:U49)-F49 -> 0 | D49: =MAX(D46:D48)+NoOne -> 24 | E49: Total Plant | F49: =SUM(F41:F47) -> 253321101.5 | G49: =SUM(G41:G47) -> 33943180.83 | H49: 0 | I49: 86407550.94 | J49: 34084855.01 | K49: 36295695.05 | L49: 10422912.75 | M49: 8172763.334 | N49: 14466470.28 | O49: 5751634.025 | P49: 6412078.706 | Q49: 2201779.032 | R49: 5170231.785 | S49: 2413985.488 | T49: 4424635.217 | U49: 3153329.073 | AA49: Total Plant
U52: Schedule G 2.3E
U53: Page 1 of 1
D55: =D6 -> NEWFOUNDLAND AND LABRADOR HYDRO
D56: =D7 -> 2027 Test Year Cost of Service Study (No Rate Mitigation)
D57: =$B$1 -> Labrador Interconnected
D58: Functional Classification of Net Book Value
E61: =MAX(D61)+NoOne -> 1 | F61: 2 | G61: 3 | H61: 4 | I61: 5 | J61: 6 | K61: 7 | L61: 8 | M61: 9 | N61: 10 | O61: 11 | P61: 12 | Q61: 13 | R61: 14 | S61: 15 | T61: 16 | U61: 17
J62: Distribution | U62: Specifically
D63: Line | F63: Total | G63: Production | H63: Production | I63: Transmission | J63: Substations | K63: Primary Lines | M63: Line Transformers | O63: Secondary Lines | Q63: Services | R63: Meters | S63: Street Lighting | T63: Accounting | U63: Assigned
D64: No. | E64: Description | F64: Amount | G64: Demand | H64: Energy | I64: Demand | J64: Demand | K64: Demand | L64: Customer | M64: Demand | N64: Customer | O64: Demand | P64: Customer | Q64: Customer | R64: Customer | S64: Customer | T64: Customer | U64: Customer
F65: ($) | G65: ($) | H65: ($) | I65: ($) | J65: ($) | K65: ($) | L65: ($) | M65: ($) | N65: ($) | O65: ($) | P65: ($) | Q65: ($) | R65: ($) | S65: ($) | T65: ($) | U65: ($)
E67: Production
C69: P04 | D69: =MAX(D66:D68)+NoOne -> 1 | E69: Gas Turbines | F69: =IFERROR(VLOOKUP($C69,[5]!NBVAvg,AllocDep!$K$13,FALSE),0)+IFERROR(VLOOKUP($C69&".1",[5]!NBVAvg,AllocDep!$K$13,FALSE),0) -> 10673662.89 | G69: =$F69*'Schedule 4.1'!$D$21 -> 10673662.89 | H69: =$F69*'Schedule 4.1'!$E$21 -> 0 | I69: 0 | J69: 0 | K69: 0 | L69: 0 | M69: 0 | N69: 0 | O69: 0 | P69: 0 | Q69: 0 | R69: 0 | S69: 0 | T69: 0 | U69: 0
C70: P03 | D70: =MAX(D67:D69)+NoOne -> 2 | E70: Diesel | F70: =IFERROR(VLOOKUP($C70,[5]!NBVAvg,AllocDep!$K$13,FALSE),0) -> 384172.03 | G70: =$F70*'Schedule 4.1'!$D$21 -> 384172.03 | H70: =$F70*'Schedule 4.1'!$E$21 -> 0 | I70: 0 | J70: 0 | K70: 0 | L70: 0 | M70: 0 | N70: 0 | O70: 0 | P70: 0 | Q70: 0 | R70: 0 | S70: 0 | T70: 0 | U70: 0
A71: =SUM(G71:U71)-F71 -> 0 | D71: =MAX(D68:D70)+NoOne -> 3 | E71: Subtotal Production | F71: =SUM(F69:F70) -> 11057834.92 | G71: =SUM(G69:G70) -> 11057834.92 | H71: =SUM(H69:H70) -> 0 | I71: 0 | J71: 0 | K71: 0 | L71: 0 | M71: 0 | N71: 0 | O71: 0 | P71: 0 | Q71: 0 | R71: 0 | S71: 0 | T71: 0 | U71: 0
E73: Transmission
C74: =+SNBVDetails!C$136 -> SNBV16 | D74: =MAX(D71:D73)+NoOne -> 4 | E74: Lines | F74: =SUM(G74:U74) -> 3536018.83 | G74: 0 | H74: =+SNBVDetails!G136*'Schedule 4.1'!E32 -> 0 | I74: =+SNBVDetails!I136*'Schedule 4.1'!G32 -> 3536018.83 | J74: =+SNBVDetails!J136*'Schedule 4.1'!H32 -> 0 | K74: =+SNBVDetails!K136 -> 0 | L74: 0 | M74: 0 | N74: 0 | O74: 0 | P74: 0 | Q74: 0 | R74: 0 | S74: 0 | T74: 0 | U74: =+SNBVDetails!M136 -> 0
C75: =+SNBVDetails!C$151 -> SNBV17 | D75: =MAX(D72:D74)+NoOne -> 5 | E75: Terminal Stations | F75: =SUM(G75:U75) -> 86402411.74 | G75: 0 | H75: =+SNBVDetails!G151*'Schedule 4.1'!E36 -> 0 | I75: =+SNBVDetails!I151*'Schedule 4.1'!G36 -> 73946857.19 | J75: =+SNBVDetails!K151 -> 12394403.81 | K75: 0 | L75: 0 | M75: 0 | N75: 0 | O75: 0 | P75: 0 | Q75: 0 | R75: 0 | S75: 0 | T75: 0 | U75: =+SNBVDetails!M151 -> 61150.72868
A76: =SUM(G76:U76)-F76 -> 0 | D76: =MAX(D73:D75)+NoOne -> 6 | E76: Subtotal Transmission | F76: =SUM(F74:F75) -> 89938430.57 | G76: =SUM(G74:G75) -> 0 | H76: 0 | I76: 77482876.02 | J76: 12394403.81 | K76: 0 | L76: 0 | M76: 0 | N76: 0 | O76: 0 | P76: 0 | Q76: 0 | R76: 0 | S76: 0 | T76: 0 | U76: 61150.72868
E78: Distribution
C79: =+SNBVDetails!C$157 -> SNBV18 | D79: =MAX(D76:D78)+NoOne -> 7 | E79: Substations | F79: =SUM(G79:U79) -> 9162491.297 | G79: =+SNBVDetails!E157 -> 0 | H79: 0 | I79: 0 | J79: =+SNBVDetails!K157 -> 9162491.297 | K79: 0 | L79: 0 | M79: 0 | N79: 0 | O79: 0 | P79: 0 | Q79: 0 | R79: 0 | S79: 0 | T79: 0 | U79: 0
C80: D11 | D80: 8 | E80: Land & Land Improvements | F80: =DistnDetails!G29+DistnDetails!G38 -> 602147.055 | G80: =$F80*'Schedule 4.1'!D$62 -> 0 | H80: =$F80*'Schedule 4.1'!E$62 -> 0 | I80: =$F80*'Schedule 4.1'!G$62 -> 0 | J80: =$F80*'Schedule 4.1'!J$62 -> 0 | K80: =$F80*'Schedule 4.1'!K$62 -> 453988.7721 | L80: =$F80*'Schedule 4.1'!L$62 -> 57836.22463 | M80: =$F80*'Schedule 4.1'!M$62 -> 0 | N80: =$F80*'Schedule 4.1'!N$62 -> 0 | O80: =$F80*'Schedule 4.1'!O$62 -> 52657.75996 | P80: =$F80*'Schedule 4.1'!P$62 -> 37664.29829 | Q80: =$F80*'Schedule 4.1'!Q$62 -> 0 | R80: =$F80*'Schedule 4.1'!R$62 -> 0 | S80: =$F80*'Schedule 4.1'!S$62 -> 0 | T80: =$F80*'Schedule 4.1'!T$62 -> 0 | U80: =$F80*'Schedule 4.1'!U$62 -> 0
C81: D11 | D81: 9 | E81: Poles | F81: =DistnDetails!G30+DistnDetails!G32 -> 17476091.63 | G81: =$F81*'Schedule 4.1'!D$67 -> 0 | H81: =$F81*'Schedule 4.1'!E$67 -> 0 | I81: =$F81*'Schedule 4.1'!G$67 -> 0 | J81: =$F81*'Schedule 4.1'!J$67 -> 0 | K81: =$F81*'Schedule 4.1'!K$67 -> 10107262.64 | L81: =$F81*'Schedule 4.1'!L$67 -> 3454184.462 | M81: =$F81*'Schedule 4.1'!M$67 -> 0 | N81: =$F81*'Schedule 4.1'!N$67 -> 0 | O81: =$F81*'Schedule 4.1'!O$67 -> 1788992.548 | P81: =$F81*'Schedule 4.1'!P$67 -> 2125651.977 | Q81: =$F81*'Schedule 4.1'!Q$67 -> 0 | R81: =$F81*'Schedule 4.1'!R$67 -> 0 | S81: =$F81*'Schedule 4.1'!S$67 -> 0 | T81: =$F81*'Schedule 4.1'!T$67 -> 0 | U81: =$F81*'Schedule 4.1'!U$67 -> 0
C82: D11 | D82: 10 | E82: Primary Conductor & Eqpt | F82: =DistnDetails!G33 -> 3429399.046 | G82: =$F82*'Schedule 4.1'!D$68 -> 0 | H82: =$F82*'Schedule 4.1'!E$68 -> 0 | I82: =$F82*'Schedule 4.1'!G$68 -> 0 | J82: =$F82*'Schedule 4.1'!J$68 -> 0 | K82: =$F82*'Schedule 4.1'!K$68 -> 3041876.954 | L82: =$F82*'Schedule 4.1'!L$68 -> 387522.0922 | M82: =$F82*'Schedule 4.1'!M$68 -> 0 | N82: =$F82*'Schedule 4.1'!N$68 -> 0 | O82: =$F82*'Schedule 4.1'!O$68 -> 0 | P82: =$F82*'Schedule 4.1'!P$68 -> 0 | Q82: =$F82*'Schedule 4.1'!Q$68 -> 0 | R82: =$F82*'Schedule 4.1'!R$68 -> 0 | S82: =$F82*'Schedule 4.1'!S$68 -> 0 | T82: =$F82*'Schedule 4.1'!T$68 -> 0 | U82: =$F82*'Schedule 4.1'!U$68 -> 0
C83: D05 | D83: 11 | E83: Submarine Conductor | F83: =IFERROR(VLOOKUP($C83,[5]!NBVAvg,AllocDep!$K$13,FALSE),0) -> 71523.985 | G83: =$F83*'Schedule 4.1'!D$69 -> 0 | H83: =$F83*'Schedule 4.1'!E$69 -> 0 | I83: =$F83*'Schedule 4.1'!G$69 -> 0 | J83: =$F83*'Schedule 4.1'!J$69 -> 0 | K83: =$F83*'Schedule 4.1'!K$69 -> 71523.985 | L83: =$F83*'Schedule 4.1'!L$69 -> 0 | M83: =$F83*'Schedule 4.1'!M$69 -> 0 | N83: =$F83*'Schedule 4.1'!N$69 -> 0 | O83: =$F83*'Schedule 4.1'!O$69 -> 0 | P83: =$F83*'Schedule 4.1'!P$69 -> 0 | Q83: =$F83*'Schedule 4.1'!Q$69 -> 0 | R83: =$F83*'Schedule 4.1'!R$69 -> 0 | S83: =$F83*'Schedule 4.1'!S$69 -> 0 | T83: =$F83*'Schedule 4.1'!T$69 -> 0 | U83: =$F83*'Schedule 4.1'!U$69 -> 0
C84: D11 | D84: 12 | E84: Transformers | F84: =DistnDetails!G34 -> 9301908.532 | G84: =$F84*'Schedule 4.1'!D$70 -> 0 | H84: =$F84*'Schedule 4.1'!E$70 -> 0 | I84: =$F84*'Schedule 4.1'!G$70 -> 0 | J84: =$F84*'Schedule 4.1'!J$70 -> 0 | K84: =$F84*'Schedule 4.1'!K$70 -> 0 | L84: =$F84*'Schedule 4.1'!L$70 -> 0 | M84: =$F84*'Schedule 4.1'!M$70 -> 3357988.98 | N84: =$F84*'Schedule 4.1'!N$70 -> 5943919.552 | O84: =$F84*'Schedule 4.1'!O$70 -> 0 | P84: =$F84*'Schedule 4.1'!P$70 -> 0 | Q84: =$F84*'Schedule 4.1'!Q$70 -> 0 | R84: =$F84*'Schedule 4.1'!R$70 -> 0 | S84: =$F84*'Schedule 4.1'!S$70 -> 0 | T84: =$F84*'Schedule 4.1'!T$70 -> 0 | U84: =$F84*'Schedule 4.1'!U$70 -> 0
C85: D11 | D85: 13 | E85: Secondary Conductor&Eqpt | F85: =DistnDetails!G35 -> 322267.97 | G85: =$F85*'Schedule 4.1'!D$71 -> 0 | H85: =$F85*'Schedule 4.1'!E$71 -> 0 | I85: =$F85*'Schedule 4.1'!G$71 -> 0 | J85: =$F85*'Schedule 4.1'!J$71 -> 0 | K85: =$F85*'Schedule 4.1'!K$71 -> 0 | L85: =$F85*'Schedule 4.1'!L$71 -> 0 | M85: =$F85*'Schedule 4.1'!M$71 -> 0 | N85: =$F85*'Schedule 4.1'!N$71 -> 0 | O85: =$F85*'Schedule 4.1'!O$71 -> 187882.2265 | P85: =$F85*'Schedule 4.1'!P$71 -> 134385.7435 | Q85: =$F85*'Schedule 4.1'!Q$71 -> 0 | R85: =$F85*'Schedule 4.1'!R$71 -> 0 | S85: =$F85*'Schedule 4.1'!S$71 -> 0 | T85: =$F85*'Schedule 4.1'!T$71 -> 0 | U85: =$F85*'Schedule 4.1'!U$71 -> 0
